Workbook

Sheet Database
B1: Table 1 - Precast Product Data
B3: Description | C3: Cell | D3: Unit | E3: Hand Set | F3: Flat Wall | G3: Manhole | H3: Manhole | I3: Manhole | J3: Manhole | K3: Manhole | L3: Manhole | M3: Riser Section | N3: Riser Section | O3: Riser Section | P3: Riser Section | Q3: Riser Section | R3: Riser Section | S3: 8" Flat Wall | T3: 8" Flat Wall | U3: 8" Flat Wall | V3: 8" Flat Wall | W3: 8" Flat Wall | X3: 8" Flat Wall | Y3: 8" Flat Wall | Z3: 8" Flat Wall | AA3: 8" Flat Wall | AB3: 8" Flat Wall | AC3: 8" Flat Wall | AD3: 8" Flat Wall | AE3: 8" Flat Wall | AF3: 8" Flat Wall | AG3: 8" Flat Wall | AH3: 8" Flat Wall | AI3: 8" Flat Wall | AJ3: 8" Flat Wall | AK3: 8" Flat Wall | AL3: 6" Flat Wall | AM3: 6" Flat Wall | AN3: 6" Flat Wall | AO3: 6" Flat Wall | AP3: 6" Flat Wall | AQ3: 6" Panel Form | AR3: 6" Panel Form | AS3: 6" Flat Wall | AT3: 6" Flat Wall | AU3: 6" Flat Wall | AV3: 6" Flat Wall | AW3: 6" Flat Wall | AX3: 6" Flat Wall | AY3: KO Manhole | AZ3: KO Manhole | BA3: KO Manhole | BB3: KO 8" Wall | BC3: KO 8" Wall | BD3: KO 8" Wall | BE3: KO 8" Wall | BF3: KO 8" Wall | BG3: KO 6" Wall | BH3: KO 6" Wall | BI3: KO 6" Wall | BJ3: KO 6" Wall
B4: Structure Size | C4: Reference | E4: Panel Form Structure | F4: Standard GT or Tank | G4: 48" Dia. | H4: 60" Dia. | I4: 72" Dia. | J4: 96" Dia. | K4: 120" Dia. | L4: 144" Dia. | M4: 48" Dia. (Component Only) | N4: 60" Dia. (Component Only) | O4: 72" Dia. (Component Only) | P4: 96" Dia. (Component Only) | Q4: 120" Dia. (Component Only) | R4: 144" Dia. (Component Only) | S4: 24"x24" K/O (8"W) | T4: 24"x24" (8"W) | U4: 24"x30" (8"W) | V4: 24"x36" (8"W) | W4: 32"x32" (8"W Panel Form) | X4: 36"x36" (8"W) | Y4: 24"x40" (8"W Panel Form) | Z4: 36"x48" (8"W) | AA4: 48"x48" (8"W) | AB4: 36"x54" (8"W Panel Form) | AC4: 24"x60" (8"W Panel Form) | AD4: 36"x60" (8"W Panel Form) | AE4: 60"x60" (8"W Panel Form) | AF4: 62"x62" (8"W TDOT Panel Form) | AG4: 72"x72" (8"W Panel Form) | AH4: 48"x48" (8"W/12"F KY TY C MH) | AI4: 48"x60" (8"W/12"F KY TY C MH) | AJ4: 48"x72" (8"W/12"F KY TY C MH) | AK4: 48"x90" (8"W/12"F KY TY C MH) | AL4: 18"x18" (6"W) | AM4: 24"x24" (6"W) | AN4: 28"x28" (6"W) | AO4: 30"x30" (6"W) | AP4: 24"x36" (6"W) | AQ4: 24"x46" (6"W/8"F Panel Form) | AR4: 30"x46" (6"W/8"F Panel Form) | AS4: 28"x64" (6"W) | AT4: 24"x72" (6"W Panel Form) | AU4: 28"x97" (6"W) | AV4: 72"x96" (6"W) | AW4: 60"x120" (6"W) | AX4: 72"x144" (6"W) | AY4: KO 48" Dia. x 3' | AZ4: KO 60" Dia. x 4.5' | BA4: KO 72" Dia. x 5' | BB4: KO 24"x24" x 3' (8"W) | BC4: KO 24"x30" x 3.66' (8"W) | BD4: KO 24"x36" x 4' (8"W) | BE4: KO 36"x36" x 4.16' (8"W) | BF4: KO 48"x48" x 4.5' (8"W) | BG4: KO 18"x18" x 2' (6"W) | BH4: KO 24"x24" x 3' (6"W) | BI4: KO 24"x36" x 4' (6"W) | BJ4: KO 30"x30" x 4' (6"W)
B5: Structure Diamater | C5: Dia (inches) | D5: Inch | G5: 48 | H5: 60 | I5: 72 | J5: 96 | K5: 120 | L5: 144 | M5: 48 | N5: 60 | O5: 72 | P5: 96 | Q5: 120 | R5: 144 | AY5: 48 | AZ5: 60 | BA5: 72
B6: Structure Width | C6: Width (inches) | D6: Inch | S6: 24 | T6: 24 | U6: 24 | V6: 24 | W6: 32 | X6: 36 | Y6: 24 | Z6: 36 | AA6: 48 | AB6: 24 | AC6: 24 | AD6: 36 | AE6: 60 | AF6: 62 | AG6: 72 | AH6: 48 | AI6: 48 | AJ6: 48 | AK6: 48 | AL6: 18 | AM6: 24 | AN6: 28 | AO6: 30 | AP6: 24 | AQ6: 24 | AR6: 30 | AS6: 28 | AT6: 24 | AU6: 28 | AV6: 72 | AW6: 60 | AX6: 72 | BB6: 24 | BC6: 24 | BD6: 24 | BE6: 36 | BF6: 48 | BG6: 18 | BH6: 24 | BI6: 24 | BJ6: 30
B7: Structure Length | C7: Length (inches) | D7: Inch | S7: 24 | T7: 24 | U7: 30 | V7: 36 | W7: 32 | X7: 36 | Y7: 40 | Z7: 48 | AA7: 48 | AB7: 54 | AC7: 60 | AD7: 60 | AE7: 60 | AF7: 62 | AG7: 72 | AH7: 48 | AI7: 60 | AJ7: 72 | AK7: 90 | AL7: 18 | AM7: 24 | AN7: 28 | AO7: 30 | AP7: 36 | AQ7: 46 | AR7: 46 | AS7: 64 | AT7: 72 | AU7: 97 | AV7: 96 | AW7: 120 | AX7: 144 | BB7: 24 | BC7: 30 | BD7: 36 | BE7: 36 | BF7: 48 | BG7: 18 | BH7: 24 | BI7: 36 | BJ7: 30
B8: Standard Base Thickness | C8: Base | D8: Inch | G8: 6 | H8: 8 | I8: 8 | J8: 18 | K8: 18 | L8: 14 | S8: 8 | T8: 8 | U8: 8 | V8: 8 | W8: 8 | X8: 8 | Y8: 8 | Z8: 8 | AA8: 8 | AB8: 8 | AC8: 8 | AD8: 8 | AE8: 8 | AF8: 8 | AG8: 8 | AH8: 12 | AI8: 12 | AJ8: 12 | AK8: 12 | AL8: 6 | AM8: 6 | AN8: 6 | AO8: 6 | AP8: 6 | AQ8: 8 | AR8: 8 | AS8: 6 | AT8: 6 | AU8: 6 | AV8: 6 | AW8: 6 | AX8: 6
B9: Standard Top Thickness | C9: Lid | D9: Inch | G9: 8 | H9: 8 | I9: 10 | J9: 12 | K9: 12 | L9: 12 | S9: 8 | T9: 8 | U9: 8 | V9: 8 | W9: 8 | X9: 8 | Y9: 8 | Z9: 8 | AA9: 8 | AB9: 8 | AC9: 8 | AD9: 8 | AE9: 8 | AF9: 11 | AG9: 8 | AH9: 8 | AI9: 8 | AJ9: 8 | AK9: 8 | AL9: 6 | AM9: 6 | AN9: 6 | AO9: 6 | AP9: 6 | AQ9: 6 | AR9: 6 | AS9: 6 | AT9: 6 | AU9: 6 | AV9: 6 | AW9: 6 | AX9: 6
B10: Standard Wall Thickness | C10: Walls | D10: Inch | G10: 5 | H10: 6 | I10: 7 | J10: 9 | K10: 11 | L10: 12 | S10: 8 | T10: 8 | U10: 8 | V10: 8 | W10: 8 | X10: 8 | Y10: 8 | Z10: 8 | AA10: 8 | AB10: 8 | AC10: 8 | AD10: 8 | AE10: 8 | AF10: 8 | AG10: 8 | AH10: 8 | AI10: 8 | AJ10: 8 | AK10: 8 | AL10: 6 | AM10: 6 | AN10: 6 | AO10: 6 | AP10: 6 | AQ10: 6 | AR10: 6 | AS10: 6 | AT10: 6 | AU10: 6 | AV10: 6 | AW10: 6 | AX10: 6
B11: Outside Perimter | C11: Perimeter (Feet) | D11: Feet | G11: 15.19 | H11: 18.86 | I11: 22.52 | J11: 29.86 | K11: 37.19 | L11: 44 | M11: 15.19 | N11: 18.86 | O11: 22.52 | P11: 29.86 | Q11: 37.19 | R11: 44 | AY11: 15.19 | AZ11: 18.86 | BA11: 22.52 | BB11: 13.33 | BC11: 14.33 | BD11: 15.33 | BE11: 17.33 | BF11: 21.33 | BG11: 10 | BH11: 12 | BI11: 14 | BJ11: 14
B12: Structure Type | C12: Structure Type | E12: Flat Wall | F12: Flat Wall | G12: Round | H12: Round | I12: Round | J12: Round | K12: Round | L12: Round | M12: Round | N12: Round | O12: Round | P12: Round | Q12: Round | R12: Round | S12: Flat Wall | T12: Flat Wall | U12: Flat Wall | V12: Flat Wall | W12: Flat Wall | X12: Flat Wall | Y12: Flat Wall | Z12: Flat Wall | AA12: Flat Wall | AB12: Flat Wall | AC12: Flat Wall | AD12: Flat Wall | AE12: Flat Wall | AF12: Flat Wall | AG12: Flat Wall | AH12: Flat Wall | AI12: Flat Wall | AJ12: Flat Wall | AK12: Flat Wall | AL12: Flat Wall | AM12: Flat Wall | AN12: Flat Wall | AO12: Flat Wall | AP12: Flat Wall | AQ12: Flat Wall | AR12: Flat Wall | AS12: Flat Wall | AT12: Flat Wall | AU12: Flat Wall | AV12: Flat Wall | AW12: Flat Wall | AX12: Flat Wall | AY12: Knockout | AZ12: Knockout | BA12: Knockout | BB12: Knockout | BC12: Knockout | BD12: Knockout | BE12: Knockout | BF12: Knockout | BG12: Knockout | BH12: Knockout | BI12: Knockout | BJ12: Knockout
B13: Top Slab Default | C13: Top/Trans Slab Required | D13: Yes/No | E13: Yes Top | F13: Yes Top | G13: Yes Top | H13: Yes Top | I13: Yes Top | J13: Yes Top | K13: Yes Top | L13: Yes Top | M13: No Top | N13: No Top | O13: No Top | P13: No Top | Q13: No Top | R13: No Top | S13: No Top | T13: No Top | U13: No Top | V13: No Top | W13: No Top | X13: No Top | Y13: No Top | Z13: Yes Top | AA13: Yes Top | AB13: Yes Top | AC13: Yes Top | AD13: Yes Top | AE13: Yes Top | AF13: Yes Top | AG13: Yes Top | AH13: Yes Top | AI13: Yes Top | AJ13: Yes Top | AK13: Yes Top | AL13: No Top | AM13: No Top | AN13: No Top | AO13: No Top | AP13: No Top | AQ13: No Top | AR13: No Top | AS13: No Top | AT13: No Top | AU13: No Top | AV13: Yes Top | AW13: Yes Top | AX13: Yes Top | AY13: Yes Top | AZ13: Yes Top | BA13: Yes Top | BB13: No Top | BC13: No Top | BD13: No Top | BE13: No Top | BF13: Yes Top | BG13: No Top | BH13: No Top | BI13: No Top | BJ13: No Top
B14: Base Price Inside Height | C14: Base Price Depth | D14: Feet | S14: 3 | T14: 3 | U14: 3 | V14: 3 | W14: 3 | X14: 3 | Y14: 3 | Z14: 3 | AA14: 3 | AB14: 3 | AC14: 3 | AD14: 4 | AE14: 4 | AF14: 4 | AG14: 4 | AH14: 4 | AI14: 5 | AJ14: 6 | AK14: 7.5 | AL14: 2 | AM14: 2.5 | AN14: 4 | AO14: 4 | AP14: 4 | AQ14: 3 | AR14: 3 | AS14: 4 | AT14: 4 | AU14: 4 | AV14: 4 | AW14: 4 | AX14: 4
B15: Flat Wall Base Price | C15: Flat Wall Base | D15: Dollar | S15: 597 | T15: 661 | U15: 733 | V15: 804 | W15: 921 | X15: 921 | Y15: 1108 | Z15: 1072 | AA15: 1182 | AB15: 1566 | AC15: 1422 | AD15: 2044 | AE15: 2616 | AF15: 2712 | AG15: 3208 | AH15: 2347 | AI15: 3081 | AJ15: 3894 | AK15: 5264 | AL15: 445 | AM15: 510 | AN15: 790 | AO15: 813 | AP15: 690 | AQ15: 905 | AR15: 998 | AS15: 1266 | AT15: 1396 | AU15: 1824 | AV15: 3321 | AW15: 3510 | AX15: 4509
B16: Flat Wall Concrete Lid Adder | C16: Flat Wall Lid Adder | D16: Dollar | S16: 141 | T16: 170 | U16: 196 | V16: 221 | W16: 275 | X16: 275 | Y16: 312 | Z16: 339 | AA16: 398 | AB16: 506 | AC16: 423 | AD16: 548 | AE16: 802 | AF16: 1162 | AG16: 948 | AH16: 398 | AI16: 676 | AJ16: 783 | AK16: 943 | AL16: 142 | AM16: 153 | AN16: 176 | AO16: 187 | AP16: 156 | AQ16: 218 | AR16: 254 | AS16: 335 | AT16: 316 | AU16: 455 | AV16: 0 | AW16: 0 | AX16: 0
B17: Plain Concrete VF Adder Rate | C17: VF Adder Rate | D17: Dollar | G17: 102 | H17: 167 | I17: 255 | J17: 472 | K17: 776 | L17: 1079 | S17: 164 | T17: 164 | U17: 179 | V17: 194 | W17: 215 | X17: 215 | Y17: 268 | Z17: 244 | AA17: 261 | AB17: 354 | AC17: 354 | AD17: 372 | AE17: 454 | AF17: 468 | AG17: 532 | AH17: 261 | AI17: 414 | AJ17: 454 | AK17: 514 | AL17: 120 | AM17: 125 | AN17: 159 | AO17: 162 | AP17: 138 | AQ17: 205 | AR17: 220 | AS17: 243 | AT17: 272 | AU17: 343 | AV17: 405 | AW17: 432 | AX17: 513
B18: Flat Wall Base Slab Deduct | C18: Base Slab Deduct | D18: Dollar | S18: 0 | T18: 128 | U18: 147 | V18: 166 | W18: 207 | X18: 207 | Y18: 312 | Z18: 254 | AA18: 299 | AB18: 506 | AC18: 423 | AD18: 548 | AE18: 802 | AF18: 844 | AG18: 948 | AH18: 853 | AI18: 1013 | AJ18: 1174 | AK18: 1414 | AL18: 106 | AM18: 115 | AN18: 132 | AO18: 141 | AP18: 117 | AQ18: 218 | AR18: 339 | AS18: 251 | AT18: 316 | AU18: 455 | AV18: 638 | AW18: 668 | AX18: 921
B19: KO Base Price | C19: KO Base Price | D19: Dollar | AY19: 550 | AZ19: 1155 | BA19: 1870 | BB19: 597 | BC19: 733 | BD19: 998 | BE19: 1171 | BF19: 1574 | BG19: 445 | BH19: 573 | BI19: 690 | BJ19: 813
B20: KO Base Weight | C20: KO Base Weight | D20: LBS | AY20: 2995 | AZ20: 6300 | BA20: 9350 | BB20: 4200 | BC20: 3025 | BE20: 4357 | BF20: 6500 | BG20: 1170 | BH20: 1735 | BI20: 2550 | BJ20: 2565
B21: KO Base Inside Height | C21: KO Base Height Inches | D21: Inches | AY21: 36 | AZ21: 54 | BA21: 60 | BB21: 36 | BC21: 44 | BD21: 48 | BE21: 50 | BF21: 54 | BG21: 24 | BH21: 36 | BI21: 48 | BJ21: 4
B22: KO Concrete Lid Adder | C22: KO Lid Price | D22: Dollar | AY22: 257 | AZ22: 396 | BA22: 706 | BB22: 170 | BC22: 196 | BD22: 221 | BE22: 275 | BF22: 398 | BG22: 142 | BH22: 153 | BI22: 156 | BJ22: 187
B23: KO Lid Weight | C23: KO Lid Weight | D23: LBS | AY23: 1545 | AZ23: 2710 | BA23: 4935 | BB23: 1112 | BC23: 1279 | BD23: 1446 | BE23: 1880 | BF23: 2847 | BG23: 804 | BH23: 1112 | BI23: 1446 | BJ23: 1471
B24: KO Lid Height | C24: KO Lid Height Inches | D24: Inch | AY24: 12 | AZ24: 13 | BA24: 15 | BB24: 8 | BC24: 8 | BD24: 8 | BE24: 8 | BF24: 8 | BG24: 6 | BH24: 6 | BI24: 6 | BJ24: 6
B25: 12" Plain Riser Price | C25: KO Riser Price | D25: Dollar | AY25: 102 | AZ25: 167 | BA25: 255 | BB25: 164 | BC25: 179 | BD25: 194 | BE25: 215 | BF25: 261 | BG25: 120 | BH25: 125 | BI25: 138 | BJ25: 162
B26: 12" Plain Riser Weight | C26: 12" Riser Weight | D26: LBS | AY26: 867 | AZ26: 1300 | BA26: 1810 | BB26: 1068 | BC26: 1170 | BD26: 1268 | BE26: 1475 | BF26: 1877 | BG26: 600 | BH26: 750 | BI26: 900 | BJ26: 900
B27: 24" Plain Riser Price | C27: KO Riser Price | D27: Dollar | AY27: 204 | AZ27: 334 | BA27: 510 | BB27: 328 | BC27: 358 | BD27: 388 | BE27: 430 | BF27: 522 | BG27: 240 | BH27: 250 | BI27: 276 | BJ27: 324
B28: 24" Plain Riser Weight | C28: 24" Riser Weight | D28: LBS | AY28: 1734 | AZ28: 2600 | BA28: 3620 | BB28: 2135 | BC28: 2340 | BD28: 2535 | BE28: 2950 | BF28: 3754 | BG28: 1200 | BH28: 1500 | BI28: 1800 | BJ28: 1800
B29: 36" Plain Riser Price | C29: KO Riser Price | D29: Dollar
B30: 36" Plain Riser Weight | C30: 36" Riser Weight | D30: LBS
B31: 48" Plain Riser Price | C31: KO Riser Price | D31: Dollar
B32: 48" Plain Riser Weight | C32: 48" Riser Weight | D32: LBS
B33: Standard Base Slab Extension | C33: Base Ext | D33: Inch | G33: 8 | H33: 7 | I33: 8 | J33: 14 | K33: 14 | L33: 8 | AH33: 8 | AI33: 8 | AJ33: 8 | AK33: 8
B34: 2' Plain Base & Top | C34: 2 | D34: Dollar | G34: 626 | H34: 1163 | I34: 1923 | J34: 4866 | K34: 8115 | L34: 12067
B35: 3' Plain Base & Top | C35: 3 | D35: Dollar | G35: 735 | H35: 1340 | I35: 2190 | J35: 5333 | K35: 8879 | L35: 13116
B36: 4' Plain Base & Top | C36: 4 | D36: Dollar | G36: 848 | H36: 1525 | I36: 2469 | J36: 5838 | K36: 9706 | L36: 14259
B37: 5' Plain Base & Top | C37: 5 | D37: Dollar | G37: 918 | H37: 1634 | I37: 2628 | J37: 6067 | K37: 10076 | L37: 14735
B38: 6' Plain Base & Top | C38: 6 | D38: Dollar | G38: 1010 | H38: 1782 | I38: 2851 | J38: 6453 | K38: 10708 | L38: 15600
B39: 7' Plain Base & Top | C39: 7 | D39: Dollar | G39: 1085 | H39: 1901 | I39: 3027 | J39: 6739 | K39: 11174 | L39: 16225
B40: 8' Plain Base & Top | C40: 8 | D40: Dollar | G40: 1165 | H40: 2030 | I40: 3221 | J40: 7074 | K40: 11721 | L40: 16971
B41: 9' Plain Base & Top | C41: 9 | D41: Dollar | G41: 1226 | H41: 2126 | I41: 3363 | J41: 7296 | K41: 12083 | L41: 17452
B42: 10' Plain Base & Top | C42: 10 | D42: Dollar | G42: 1296 | H42: 2238 | I42: 3530 | J42: 7579 | K42: 12545 | L42: 18079
B43: Plain VF of Riser | C43: VF Adder Rate | D43: Dollar | G43: 102 | H43: 167 | I43: 255 | J43: 472 | K43: 776 | L43: 1079
B44: Plain Base Slab Deduct | C44: Round Base Slab Deduct | D44: Dollar | G44: 202 | H44: 414 | I44: 591 | J44: 1901 | K44: 2950 | L44: 4308
B45: Plain Lid Slab | C45: Round Lid Slab Deduct | D45: Dollar | G45: 257 | H45: 396 | I45: 706 | J45: 1559 | K45: 2418 | L45: 3539
B46: Standard Plain Base Extension | C46: Base Ext Adder | D46: Dollar | G46: 111 | H46: 202 | I46: 286 | J46: 681 | K46: 866 | L46: 1025 | AH46: 480 | AI46: 520 | AJ46: 560 | AK46: 621
B47: 8" Plain Invert | C47: 8 | D47: Dollar | G47: 120 | H47: 196 | I47: 295
B48: 10" Plain Invert | C48: 10 | D48: Dollar | G48: 143 | H48: 235 | I48: 359
B49: 12" Plain Invert | C49: 12 | D49: Dollar | G49: 162 | H49: 271 | I49: 420
B50: 15" Plain Invert | C50: 15 | D50: Dollar | G50: 186 | H50: 317 | I50: 504
B51: 18" Plain Invert | C51: 18 | D51: Dollar | G51: 203 | H51: 355 | I51: 579
B52: 24" Plain Invert | C52: 24 | D52: Dollar | G52: 217 | H52: 406 | I52: 704
B53: 30" Plain Invert | C53: 30 | D53: Dollar | G53: 203 | H53: 423 | I53: 796
B54: 36" Plain Invert | C54: 36 | D54: Dollar | G54: n/a | H54: 406 | I54: 853
B55: 42" Plain Invert | C55: 42 | D55: Dollar | G55: n/a | H55: 355 | I55: 877
B56: 48" Plain Invert | C56: 48 | D56: Dollar | G56: n/a | H56: n/a | I56: 867
B57: 2' Xypex Base & Top | C57: 2 | D57: Dollar | G57: 771 | H57: 1409 | I57: 2296 | J57: 5737 | K57: 9462 | L57: 13938
B58: 3' Xypex Base & Top | C58: 3 | D58: Dollar | G58: 909 | H58: 1572 | I58: 2536 | J58: 6112 | K58: 10083 | L58: 14776
B59: 4' Xypex Base & Top | C59: 4 | D59: Dollar | G59: 1051 | H59: 1857 | I59: 2692 | J59: 6914 | K59: 11368 | L59: 16538
B60: 5' Xypex Base & Top | C60: 5 | D60: Dollar | G60: 1151 | H60: 2009 | I60: 3182 | J60: 7246 | K60: 11895 | L60: 17219
B61: 6' Xypex Base & Top | C61: 6 | D61: Dollar | G61: 1271 | H61: 2201 | I61: 3465 | J61: 7736 | K61: 12684 | L61: 18287
B62: 7' Xypex Base & Top | C62: 7 | D62: Dollar | G62: 1375 | H62: 2362 | I62: 3701 | J62: 8125 | K62: 13307 | L62: 19117
B63: 8' Xypex Base & Top | C63: 8 | D63: Dollar | G63: 1484 | H63: 2535 | I63: 3956 | J63: 8562 | K63: 14011 | L63: 20067
B64: 9' Xypex Base & Top | C64: 9 | D64: Dollar | G64: 1574 | H64: 2674 | I64: 4158 | J64: 8888 | K64: 14530 | L64: 20751
B65: 10' Xypex Base & Top | C65: 10 | D65: Dollar | G65: 1672 | H65: 2829 | I65: 4385 | J65: 9274 | K65: 15150 | L65: 21583
B66: Xypex VF of Riser | C66: VF Adder Rate | D66: Dollar | G66: 131 | H66: 211 | I66: 315 | J66: 575 | K66: 933 | L66: 1284
B67: Xypex Base Slab Deduct | C67: Round Base Slab Deduct | D67: Dollar | G67: 248 | H67: 509 | I67: 729 | J67: 2314 | K67: 3591 | L67: 5206
B68: Xypex Lid Slab | C68: Round Lid Slab Deduct | D68: Dollar | G68: 306 | H68: 471 | I68: 840 | J68: 1842 | K68: 2858 | L68: 4154
B69: Xypex Plain Base Extension | C69: Base Ext Adder | D69: Dollar | G69: 140 | H69: 242 | I69: 340 | J69: 811 | K69: 1025 | L69: 1175
B70: 8" Xypex Invert | C70: 8 | D70: Dollar | G70: 143 | H70: 233 | I70: 351
B71: 10" Xypex Invert | C71: 10 | D71: Dollar | G71: 170 | H71: 280 | I71: 428
B72: 12" Xypex Invert | C72: 12 | D72: Dollar | G72: 193 | H72: 322 | I72: 500
B73: 15" Xypex Invert | C73: 15 | D73: Dollar | G73: 222 | H73: 378 | I73: 599
B74: 18" Xypex Invert | C74: 18 | D74: Dollar | G74: 242 | H74: 423 | I74: 689
B75: 24" Xypex Invert | C75: 24 | D75: Dollar | G75: 258 | H75: 484 | I75: 838
B76: 30" Xypex Invert | C76: 30 | D76: Dollar | G76: 242 | H76: 504 | I76: 947
B77: 36" Xypex Invert | C77: 36 | D77: Dollar | G77: n/a | H77: 484 | I77: 1016
B78: 42" Xypex Invert | C78: 42 | D78: Dollar | G78: n/a | H78: 423 | I78: 1044
B79: 48" Xypex Invert | C79: 48 | D79: Dollar | G79: n/a | H79: n/a | I79: 1032
B80: 2' Con-Block MIC Base & Top | C80: 2 | D80: Dollar | G80: 902 | H80: 1631 | I80: 2631 | J80: 6520 | K80: 10676 | L80: 15622
B81: 3' Con-Block MIC Base & Top | C81: 3 | D81: Dollar | G81: 1066 | H81: 1890 | I81: 3012 | J81: 7183 | K81: 11739 | L81: 17059
B82: 4' Con-Block MIC Base & Top | C82: 4 | D82: Dollar | G82: 1234 | H82: 2156 | I82: 3406 | J82: 7883 | K82: 12864 | L82: 18590
B83: 5' Con-Block MIC Base & Top | C83: 5 | D83: Dollar | G83: 1360 | H83: 2347 | I83: 3680 | J83: 8308 | K83: 13532 | L83: 19454
B84: 6' Con-Block MIC Base & Top | C84: 6 | D84: Dollar | G84: 1506 | H84: 2578 | I84: 4017 | J84: 8890 | K84: 14463 | L84: 20706
B85: 7' Con-Block MIC Base & Top | C85: 7 | D85: Dollar | G85: 1636 | H85: 2778 | I85: 4308 | J85: 9372 | K85: 15227 | L85: 21719
B86: 8' Con-Block MIC Base & Top | C86: 8 | D86: Dollar | G86: 1771 | H86: 2990 | I86: 4617 | J86: 9902 | K86: 16073 | L86: 22853
B87: 9' Con-Block MIC Base & Top | C87: 9 | D87: Dollar | G87: 1887 | H87: 3168 | I87: 4873 | J87: 10321 | K87: 16733 | L87: 23721
B88: 10' Con-Block MIC Base & Top | C88: 10 | D88: Dollar | G88: 2011 | H88: 3361 | I88: 5154 | J88: 10799 | K88: 17494 | L88: 24736
B89: Con-Block MIC VF of Riser | C89: VF Adder Rate | D89: Dollar | G89: 157 | H89: 249 | I89: 370 | J89: 668 | K89: 1074 | L89: 1467
B90: Con-Block MIC Base Slab Deduct | C90: Round Base Slab Deduct | D90: Dollar | G90: 289 | H90: 593 | I90: 847 | J90: 2686 | K90: 4168 | L90: 6013
B91: Con-Block MIC Lid Slab | C91: Round Lid Slab Deduct | D91: Dollar | G91: 361 | H91: 556 | I91: 991 | J91: 2161 | K91: 3353 | L91: 4847
B92: Con-Block MIC Plain Base Extension | C92: Base Ext Adder | D92: Dollar | G92: 166 | H92: 279 | I92: 389 | J92: 928 | K92: 1168 | L92: 1311
B93: 8" Con-Block MIC Invert | C93: 8 | D93: Dollar | G93: 169 | H93: 275 | I93: 414
B94: 10" Con-Block MIC Invert | C94: 10 | D94: Dollar | G94: 201 | H94: 330 | I94: 505
B95: 12" Con-Block MIC Invert | C95: 12 | D95: Dollar | G95: 228 | H95: 380 | I95: 590
B96: 15" Con-Block MIC Invert | C96: 15 | D96: Dollar | G96: 262 | H96: 446 | I96: 707
B97: 18" Con-Block MIC Invert | C97: 18 | D97: Dollar | G97: 285 | H97: 499 | I97: 813
B98: 24" Con-Block MIC Invert | C98: 24 | D98: Dollar | G98: 304 | H98: 571 | I98: 989
B99: 30" Con-Block MIC Invert | C99: 30 | D99: Dollar | G99: 285 | H99: 594 | I99: 1118
B100: 36" Con-Block MIC Invert | C100: 36 | D100: Dollar | G100: n/a | H100: 571 | I100: 1198
B101: 42" Con-Block MIC Invert | C101: 42 | D101: Dollar | G101: n/a | H101: 499 | I101: 1232
B102: 48" Con-Block MIC Invert | C102: 48 | D102: Dollar | G102: n/a | H102: n/a | I102: 1217
B103: 2' Con-Block MIC + Xypex Base & Top | C103: 2 | D103: Dollar | G103: 1048 | H103: 1877 | I103: 3004 | J103: 7391 | K103: 12024 | L103: 17493
B104: 3' Con-Block MIC + Xypex Base & Top | C104: 3 | D104: Dollar | G104: 1241 | H104: 2121 | I104: 3359 | J104: 7962 | K104: 12943 | L104: 18719
B105: 4' Con-Block MIC + Xypex Base & Top | C105: 4 | D105: Dollar | G105: 1437 | H105: 2488 | I105: 3900 | J105: 8960 | K105: 14526 | L105: 20869
B106: 5' Con-Block MIC + Xypex Base & Top | C106: 5 | D106: Dollar | G106: 1592 | H106: 2723 | I106: 4234 | J106: 9487 | K106: 15352 | L106: 21937
B107: 6' Con-Block MIC + Xypex Base & Top | C107: 6 | D107: Dollar | G107: 1767 | H107: 2996 | I107: 4631 | J107: 10173 | K107: 16439 | L107: 23393
B108: 7' Con-Block MIC + Xypex Base & Top | C108: 7 | D108: Dollar | G108: 1926 | H108: 3240 | I108: 4982 | J108: 10758 | K108: 17361 | L108: 24610
B109: 8' Con-Block MIC + Xypex Base & Top | C109: 8 | D109: Dollar | G109: 2090 | H109: 3495 | I109: 5351 | J109: 11391 | K109: 18364 | L109: 25948
B110: 9' Con-Block MIC + Xypex Base & Top | C110: 9 | D110: Dollar | G110: 2235 | H110: 3716 | I110: 5668 | J110: 11912 | K110: 19181 | L110: 27021
B111: 10' Con-Block MIC + Xypex Base & Top | C111: 10 | D111: Dollar | G111: 2388 | H111: 3953 | I111: 6009 | J111: 12494 | K111: 20099 | L111: 28240
B112: Con-Block MIC + Xypex VF of Riser | C112: VF Adder Rate | D112: Dollar | G112: 186 | H112: 293 | I112: 430 | J112: 771 | K112: 1231 | L112: 1671
B113: Con-Block MIC + Xypex Base Slab Deduct | C113: Round Base Slab Deduct | D113: Dollar | G113: 335 | H113: 668 | I113: 981 | J113: 3100 | K113: 4809 | L113: 6911
B114: Con-Block MIC + Xypex Lid Slab | C114: Round Lid Slab Deduct | D114: Dollar | G114: 410 | H114: 631 | I114: 1126 | J114: 2444 | K114: 3792 | L114: 5462
B115: Con-Block MIC + Xypex Plain Base Ext. | C115: Base Ext Adder | D115: Dollar | G115: 195 | H115: 319 | I115: 444 | J115: 1058 | K115: 1327 | L115: 1461
B116: 8" Con-Block MIC + Xypex Invert | C116: 8 | D116: Dollar | G116: 192 | H116: 312 | I116: 470
B117: 10" Con-Block MIC + Xypex Invert | C117: 10 | D117: Dollar | G117: 228 | H117: 375 | I117: 573
B118: 12" Con-Block MIC + Xypex Invert | C118: 12 | D118: Dollar | G118: 259 | H118: 432 | I118: 670
B119: 15" Con-Block MIC + Xypex Invert | C119: 15 | D119: Dollar | G119: 297 | H119: 506 | I119: 803
B120: 18" Con-Block MIC + Xypex Invert | C120: 18 | D120: Dollar | G120: 324 | H120: 567 | I120: 923
B121: 24" Con-Block MIC + Xypex Invert | C121: 24 | D121: Dollar | G121: 346 | H121: 648 | I121: 1123
B122: 30" Con-Block MIC + Xypex Invert | C122: 30 | D122: Dollar | G122: 324 | H122: 675 | I122: 1269
B123: 36" Con-Block MIC + Xypex Invert | C123: 36 | D123: Dollar | G123: n/a | H123: 648 | I123: 1361
B124: 42" Con-Block MIC + Xypex Invert | C124: 42 | D124: Dollar | G124: n/a | H124: 567 | I124: 1399
B125: 48" Con-Block MIC + Xypex Invert | C125: 48 | D125: Dollar | G125: n/a | H125: n/a | I125: 1382
B129: Table 2 - Transition Structures
B131: Description | C131: Cell | D131: Unit
B132: Structure Size | C132: Reference | E132: Yes Top | F132: No Top | G132: Trans 48"R W/Top | H132: Trans 60"R W/Top | I132: Trans 24"x24" Riser | J132: Trans 24"x24" W/Top | K132: Trans 24"x30" Riser | L132: Trans 24"x30" W/Top | M132: Trans 24"x36" Riser | N132: Trans 24"x36" W/Top | O132: Trans 36"x36" Riser | P132: Trans 36"x36" W/Top
B133: Structure Diamater | C133: Dia (inches) | D133: Inch | G133: 48 | H133: 60
B134: Structure Width | C134: Width (inches) | D134: Inch | I134: 24 | J134: 24 | K134: 24 | L134: 24 | M134: 24 | N134: 24 | O134: 36 | P134: 36
B135: Structure Length | C135: Length (inches) | D135: Inch | I135: 24 | J135: 24 | K135: 30 | L135: 30 | M135: 36 | N135: 36 | O135: 36 | P135: 36
B136: Standard Top Thickness | C136: Lid | D136: Inch | G136: 8 | H136: 8 | J136: 8 | L136: 8 | N136: 8 | P136: 8
B137: Standard Wall Thickness | C137: Walls | D137: Inch | G137: 5 | H137: 6 | I137: 8 | J137: 8 | K137: 8 | L137: 8 | M137: 8 | N137: 8 | O137: 8 | P137: 8
B138: Standard Top Avg. Weight | C138: Top Weight | D138: LBS | G138: 1660 | H138: 2527 | J138: 1120 | L138: 1279 | N138: 1448 | P138: 1866
B139: Standard Riser Avg. VF Weight | C139: Riser VF Weight | D139: LBS | G139: 860 | H139: 1300 | I139: 1070 | J139: 1070 | K139: 1168 | L139: 1168 | M139: 1266 | N139: 1266 | O139: 1458 | P139: 1458
B140: Structure Type | C140: Structure Type | G140: Round | H140: Round | I140: Flat Wall | J140: Flat Wall | K140: Flat Wall | L140: Flat Wall | M140: Flat Wall | N140: Flat Wall | O140: Flat Wall | P140: Flat Wall
B141: Transition Status | C141: Transition Status | E141: Top Slab | F141: No Top | G141: Transition | H141: Transition | I141: Transition | J141: Transition | K141: Transition | L141: Transition | M141: Transition | N141: Transition | O141: Transition | P141: Transition
B142: Pipe Chamber Top or Transition Used? | C142: Pipe Chamber Top Status | E142: Top Slab | F142: No Top | G142: Yes Top | H142: Yes Top | I142: Yes Top | J142: Yes Top | K142: Yes Top | L142: Yes Top | M142: Yes Top | N142: Yes Top | O142: Yes Top | P142: Yes Top
B143: Top Slab Over Transition Riser | C143: Trans. Top | D143: Dollar | G143: 257 | H143: 396 | J143: 170 | L143: 196 | N143: 221 | P143: 275
B144: Plain Concrete VF Adder Rate | C144: Trans. Riser | D144: Dollar | G144: 102 | H144: 167 | I144: 164 | J144: 164 | K144: 179 | L144: 179 | M144: 194 | N144: 194 | O144: 215 | P144: 215
B148: Table 3 - Casting Product Data
C149: Cell
B150: Casting Make & Model | C150: Reference | D150: Unit | E150: No Casting | F150: Halliday Hatch Model | G150: Hatch Model | H150: HOE MC-82 | I150: HOE MC-260 | J150: HOE MC-350 | K150: HOE MC-350-Self Seal | L150: HOE WT-350-SAN | M150: HOE MC-315 | N150: HOE MC-315-Self Seal | O150: HOE WT-315-SAN | P150: HOE MC-420 | Q150: HOE WT-420 | R150: HOE MC-285 | S150: HOE MC-375 | T150: HOE MC-375-Self Seal | U150: HOE WT-375-SAN | V150: HOE MC-455 | W150: HOE MC-747 | X150: HOE MC-900 | Y150: HOE MCS-295 | Z150: HOE MCS-288 | AA150: HOE MCS-288-BH | AB150: HOE MCS-290 | AC150: HOE MCB-260 | AD150: HOE MCB-260-BH | AE150: HOE MCB-315-B | AF150: HOE MCB-315-R | AG150: HOE MCB-315-BH | AH150: HOE MCB-350 | AI150: HOE MCB-350-BH | AJ150: HOE MCB-350-R | AK150: HOE MCB-420 | AL150: HOE MCB-285-B | AM150: HOE MCB-285-BH | AN150: HOE MCB-375-B | AO150: HOE MCB-375-BH | AP150: HOE MCB-747 | AQ150: HOE MCB-900 | AR150: HOE 165-A | AS150: HOE 280T | AT150: HOE 280-BH | AU150: HOE 280-Solid | AV150: HOE 320 | AW150: HOE 342 | AX150: HOE 275-A | AY150: HOE-460 | AZ150: HOE 326-BH | BA150: HOE 580 | BB150: HOE 518 | BC150: HOE 518-DBL | BD150: HOE 468 | BE150: HOE 918 | BF150: HOE 275A-DBL | BG150: HOE 595 | BH150: HOE-165 Angle F/G | BI150: HOE-315 Angle F/G | BJ150: HOE-555 Angle F/G | BK150: HOE-700 Angle F/G | BL150: HOE 465 | BM150: HOE 360 | BN150: HOE 399 | BO150: HOE 470 | BP150: HOE 525 | BQ150: HOE 525-DBL | BR150: HOE-410 | BS150: HOE-698 | BT150: EJ 4510 | BU150: HOE KY-206 (KY TY1) | BV150: HOE KY-510 (KY TY2) | BW150: HOE KY-316 (DBI 1) | BX150: HOE KY-398 (DBI 2) | BY150: HOE KY-328 (DBI 3) | BZ150: HOE KY-410 (DBI 4) | CA150: HOE KY-460 (DBI 5) | CB150: HOE KY-426 (DBI 6) | CC150: HOE KY-328 (DBI 7) | CD150: HOE KY-550 (DBI 10) | CE150: HOE KY-460-11 | CF150: HOE DBI 12 | CG150: HOE DBI 12A | CH150: HOE KY-230-G (GRADE) | CI150: HOE KY-230-S (SAG) | CJ150: HOE KY-210 (DBI 14) | CK150: HOE KY-215 (DBI 15) | CL150: HOE KY Single Safety Inlet (2 Grates) | CM150: HOE KY Double Safety Inlet (4 Grates) | CN150: HOE KY-161 (12"-18" SBO1) | CO150: HOE KY-300 (24" SBO1) | CP150: HOE KY-272 (12"-18" SFBIO) | CQ150: HOE KY-454 (24" SFBIO) | CR150: HOE KY-796 (30" SFBIO) | CS150: HOE KY-1218 (36" SFBIO) | CT150: HOE KY-298 (SBIO TY1) | CU150: HOE KY-206-SB (SBIO TY2) | CV150: HOE KY-345 (MBBI) | CW150: HOE KY-206 (CBI A) | CX150: HOE KY-345 (CBI B) | CY150: HOE KY-465 (CBI TY F) | CZ150: JRH 1-1/2" X 10" TD Angle F/G | DA150: JRH 1-1/2" X 12" TD Angle F/G | DB150: JRH 1-1/2" X 14" TD Angle F/G | DC150: JRH 1-1/2" X 17" TD Angle F/G | DD150: JRH 1-1/2" X 20" TD Angle F/G | DE150: JRH 1-1/2" X 26" TD Angle F/G | DF150: INDOT Type 2 F/G Set | DG150: INDOT Type 3 F/C Set | DH150: INDOT Type 4 F/C Set | DI150: INDOT Type 5 F/G Set | DJ150: INDOT Type 7 BH Grate | DK150: INDOT Type 8 Casting Set | DL150: INDOT Type 10 Casting Set | DM150: INDOT Type 12-A (Single) Casting | DN150: INDOT Type 12 (Double) Casting | DO150: INDOT Type 13 F/G Set | DP150: INDOT Type 14 F/G Set | DQ150: INDOT Type 15 Casting Set | DR150: JBS 1072 | DS150: JBS 1072 GT | DT150: JBS 1077 | DU150: JBS 1090 BDWT Lou | DV150: JBS 1090 BDWT San. | DW150: JBS 1095 Lagrange | DX150: JBS 1095 Lou | DY150: JBS 1110 | DZ150: JBS 1123 WT San. | EA150: JBS 1123 Mod. BDWT | EB150: JBS 1123 Mod. Non WT | EC150: JBS 1140M | ED150: JBS 1140M BDWT | EE150: JBS 1144 | EF150: JBS 1150 San. | EG150: JBS 1150 Stm. | EH150: JBS 1150 BDWT | EI150: JBS 1152 BGMU | EJ150: JBS 1155 San. | EK150: JBS 1155 Stm. | EL150: JBS 1155 BDWT | EM150: JBS 1220 | EN150: JBS 1247DM | EO150: JBS 1247DM Self-Seal | EP150: JBS 1247DM BDWT | EQ150: JBS 2072 | ER150: JBS 2110 | ES150: JBS 2140 | ET150: JBS 2150 | EU150: JBS 2214 | EV150: JBS 2215 | EW150: JBS 2220 | EX150: JBS 2230 | EY150: JBS 2272 Beehive | EZ150: JBS 3070 | FA150: JBS 3080 | FB150: JBS 3085 | FC150: JBS 3101 Single | FD150: JBS 3101 Double | FE150: JBS 3101 Triple | FF150: JBS 3103 Single | FG150: JBS 3103 Double | FH150: JBS 3103 Triple | FI150: JBS 3104 Single | FJ150: JBS 3104 Double | FK150: JBS 3104 Triple | FL150: JBS 3105 | FM150: JBS 3106 Reg. Grate | FN150: JBS 3106-V | FO150: JBS 3123 | FP150: JBS 3157 | FQ150: JBS 3158 | FR150: JBS 3300 Single | FS150: JBS 3300 Double | FT150: JBS 3300 Triple | FU150: JBS 3305MOD | FV150: JBS 3411 | FW150: JBS 3413 | FX150: JBS 3450 | FY150: JBS 3700 | FZ150: JBS 4012 | GA150: JBS 4073 | GB150: JBS 4075 | GC150: JBS 4076X | GD150: JBS 4200 Grate Only | GE150: JBS 4254 | GF150: JBS 4260 | GG150: JBS 4275 Regular | GH150: JBS 4275-V | GI150: JBS 4300 | GJ150: JBS 4310 | GK150: JBS 4315 | GL150: JBS 4475D Grate Only | GM150: JBS 4480 Beehive | GN150: JBS 5830 | GO150: JBS 5830 Bolted | GP150: LSQ-24-P Plain Trash Rack | GQ150: LSQ-24-G Galvanized Trash Rack | GR150: LSQ-24-AL Aluminum Trash Rack | GS150: LSQ-36-P Plain Trash Rack | GT150: LSQ-36-G Galvanized Trash Rack | GU150: LSQ-36-AL Aluminum Trash Rack | GV150: LSQ-48-P Plain Trash Rack | GW150: LSQ-48-G Galvanized Trash Rack | GX150: LSQ-48-AL Aluminum Trash Rack | GY150: LSQ-60-P Plain Trash Rack | GZ150: LSQ-60-G Galvanized Trash Rack | HA150: LSQ-60-AL Aluminum Trash Rack | HB150: LSQ-72-P Plain Trash Rack | HC150: LSQ-72-G Galvanized Trash Rack | HD150: LSQ-72-AL Aluminum Trash Rack | HE150: LDR-48-P Plain Trash Rack | HF150: LDR-48-G Galvanized Trash Rack | HG150: LDR-48-AL Aluminum Trash Rack | HH150: LDR-60-P Plain Trash Rack | HI150: LDR-60-G Galvanized Trash Rack | HJ150: LDR-60-AL Aluminum Trash Rack | HK150: LDR-72-P Plain Trash Rack | HL150: LDR-72-G Galvanized Trash Rack | HM150: LDR-72-AL Aluminum Trash Rack | HN150: LFG-36-P Plain Flat Grate | HO150: LFG-36-G Galvanized Flat Grate | HP150: LFG-36-AL Aluminum Flat Grate | HQ150: LFG-3648-P Plain Flat Grate | HR150: LFG-3648-G Galvanized Flat Grate | HS150: LFG-3648-AL Aluminum Flat Grate | HT150: LFG-48-P Plain Flat Grate | HU150: LFG-48-G Galvanized Flat Grate | HV150: LFG-48-AL Aluminum Flat Grate | HW150: LFG-60-P Plain Flat Grate | HX150: LFG-60-G Galvanized Flat Grate | HY150: LFG-60-AL Aluminum Flat Grate | HZ150: LFG-72-P Plain Flat Grate | IA150: LFG-72-G Galvanized Flat Grate | IB150: LFG-72-AL Aluminum Flat Grate | IC150: LFS-36-P Plain Flush Grate | ID150: LFS-36-G Galvanized Flush Grate | IE150: LFS-36-AL Aluminum Flush Grate | IF150: LFS-48-P Plain Flush Grate | IG150: LFS-48-G Galvanized Flush Grate | IH150: LFS-48-AL Aluminum Flush Grate | II150: LFS-60-P Plain Flush Grate | IJ150: LFS-60-G Galvanized Flush Grate | IK150: LFS-60-AL Aluminum Flush Grate | IL150: LFS-72-P Plain Flush Grate | IM150: LFS-72-G Galvanized Flush Grate | IN150: LFS-72-AL Aluminum Flush Grate | IO150: LFR-48-P Plain Flush Grate | IP150: LFR-48-G Galvanized Flush Grate | IQ150: LFR-48-AL Aluminum Flush Grate | IR150: LFR-60-P Plain Flush Grate | IS150: LFR-60-G Galvanized Flush Grate | IT150: LFR-60-AL Aluminum Flush Grate | IU150: LFR-72-P Plain Flush Grate | IV150: LFR-72-G Galvanized Flush Grate | IW150: LFR-72-AL Aluminum Flush Grate | IX150: Halla 12" FES Trash Guard | IY150: Halla 15" FES Trash Guard | IZ150: Halla 18" FES Trash Guard | JA150: Halla 24" FES Trash Guard | JB150: Halla 30" FES Trash Guard | JC150: Blank Slot 1 | JD150: Blank Slot 2 | JE150: Blank Slot 3 | JF150: Blank Slot 4 | JG150: Blank Slot 5 | JH150: Blank Slot 6 | JI150: Blank Slot 7 | JJ150: Blank Slot 8 | JK150: Blank Slot 9 | JL150: Blank Slot 10
B151: Casting Frame Height Above Str. | C151: Casting Height | D151: Inch | E151: 0 | H151: 4 | I151: 4 | J151: 7 | K151: 7 | L151: 7 | M151: 7 | N151: 7 | O151: 7 | P151: 7 | Q151: 7 | R151: 4 | S151: 7 | T151: 7 | U151: 7 | V151: 4 | W151: 6 | X151: 6 | Y151: 0 | Z151: 0 | AA151: 0 | AB151: 0 | AC151: 4 | AD151: 7 | AE151: 7 | AF151: 7 | AG151: 7 | AH151: 7 | AI151: 7 | AJ151: 7 | AK151: 7 | AL151: 4 | AM151: 4 | AN151: 7 | AO151: 7 | AP151: 4 | AQ151: 6 | AR151: 4 | AS151: 4 | AT151: 4 | AU151: 4 | AV151: 4 | AW151: 6 | AX151: 3.5 | AY151: 4 | AZ151: 4 | BA151: 5.5 | BB151: 4 | BC151: 4 | BD151: 4 | BE151: 4 | BF151: 3.5 | BG151: 3 | BH151: 0 | BI151: 0 | BJ151: 0 | BK151: 0 | BL151: 5 | BM151: 6 | BN151: 8 | BO151: 6 | BP151: 6 | BQ151: 6 | BR151: 3.5 | BS151: 3.5 | BT151: 6.25 | BU151: 4 | BV151: 8 | BW151: 0 | BX151: 0 | BY151: 0 | BZ151: 0 | CA151: 0 | CB151: 0 | CC151: 0 | CD151: 5 | CE151: 3.75 | CF151: 0 | CG151: 0 | CH151: 0 | CI151: 0 | CJ151: 0 | CK151: 0 | CN151: 0 | CO151: 0 | CP151: 0 | CQ151: 0 | CR151: 0 | CS151: 0 | CT151: 0 | CU151: 0 | CV151: 0 | CW151: 0 | CX151: 0 | CY151: 5 | DF151: 8 | DH151: 7 | DI151: 8 | DK151: 8 | DL151: 8 | DO151: 8 | DP151: 7 | DQ151: 8 | DR151: 4 | DS151: 4 | DT151: 4 | DU151: 7.5 | DV151: 7.5 | DW151: 7 | DX151: 7 | DY151: 7.25 | DZ151: 7.5 | EA151: 8 | EB151: 8 | EC151: 7 | ED151: 7 | EE151: 4 | EF151: 7.25 | EG151: 7.25 | EH151: 7.25 | EI151: 8 | EJ151: 6 | EK151: 6 | EL151: 6 | EM151: 4 | EN151: 7 | EO151: 7 | EP151: 7 | EQ151: 4 | ER151: 7.25 | ES151: 7 | ET151: 7.25 | EU151: 0 | EV151: 0 | EW151: 4 | EX151: 4.25 | EY151: 4 | EZ151: 6.25 | FA151: 6.5 | FB151: 5 | FC151: 6 | FD151: 6 | FE151: 6 | FF151: 6 | FG151: 6 | FH151: 6 | FI151: 5 | FJ151: 5 | FK151: 5 | FL151: 7 | FM151: 5.5 | FN151: 5.5 | FO151: 5 | FP151: 7 | FQ151: 5.5 | FR151: 7.5 | FS151: 7.5 | FT151: 7.5 | FU151: 7.25 | FV151: 3.75 | FW151: 0 | FX151: 0 | FY151: 0 | FZ151: 7 | GA151: 4 | GB151: 3.37 | GC151: 3 | GD151: 0 | GE151: 4 | GF151: 4 | GG151: 5.5 | GH151: 5.5 | GI151: 6 | GJ151: 6 | GK151: 4 | GL151: 0 | GM151: 0 | GN151: 0 | GO151: 0
B152: Casting Cost (Not Selling Price =>) | C152: Casting Price | D152: Dollar | H152: 203.28 | I152: 269.115 | J152: 299.145 | K152: 329.175 | L152: 379.995 | M152: 279.51 | N152: 340.725 | O152: 380 | P152: 337.26 | Q152: 423.885 | R152: 323.4 | S152: 323.4 | T152: 323.4 | U152: 462 | V152: 502.425 | W152: 1002.372 | X152: 1833.7095 | Y152: 302.925 | Z152: 326.865 | AA152: 419.265 | AB152: 256.515 | AC152: 358.06 | AD152: 392.71 | AE152: 344.19 | AF152: 390.39 | AG152: 400.785 | AH152: 388.08 | AI152: 422.73 | AJ152: 383.46 | AK152: 429.66 | AL152: 325.71 | AM152: 337.26 | AN152: 325.72 | AO152: 337.27 | AP152: 1022.784 | AQ152: 1868.5695 | AR152: 173.25 | AS152: 265.65 | AT152: 304.92 | AU152: 303.77 | AV152: 375.375 | AW152: 504.735 | AX152: 496.65 | AY152: 513.98 | AZ152: 462 | BA152: 520.905 | BB152: 429.66 | BC152: 1219.68 | BD152: 575 | BE152: 1836.75 | BF152: 1263.58 | BG152: 702.24 | BH152: 229.845 | BI152: 435.435 | BJ152: 795.795 | BK152: 739.2 | BL152: 537.075 | BM152: 481.635 | BN152: 599.445 | BO152: 691.845 | BP152: 571.725 | BQ152: 1231.23 | BR152: 531.3 | BS152: 965.58 | BT152: 836 | BU152: 259.875 | BV152: 652.575 | BW152: 402.4125 | BX152: 490.6125 | BY152: 545.7375 | BZ152: 716.625 | CA152: 589.8375 | CB152: 800.415 | CC152: 545.7375 | CD152: 929.775 | CE152: 513.975 | CF152: 117.81 | CG152: 138.6 | CH152: 323.4 | CI152: 646.8 | CJ152: 392.7 | CK152: 398.475 | CL152: 513.78 | CM152: 1027.56 | CN152: 198.45 | CO152: 380.3625 | CP152: 341.775 | CQ152: 573.3 | CR152: 1014.3 | CS152: 1571.06 | CT152: 435.4875 | CU152: 325.2375 | CV152: 489.72 | CW152: 259.875 | CX152: 489.72 | CY152: 537.075 | CZ152: 77.385 | DA152: 80.85 | DB152: 86.625 | DC152: 114.345 | DD152: 132.825 | DE152: 168.63 | DF152: 687.3 | DG152: 600.58 | DH152: 337.91 | DI152: 1032.7 | DJ152: 272.4225 | DK152: 574.43 | DL152: 695.5 | DM152: 827.59 | DN152: 1881.93 | DO152: 567.84 | DP152: 1026.98 | DQ152: 950.43 | DR152: 272 | DS152: 281 | DT152: 266 | DU152: 411 | DV152: 435 | DW152: 338 | DX152: 318 | DY152: 288 | DZ152: 753 | EA152: 697 | EB152: 603 | EC152: 297 | ED152: 379 | EE152: 332 | EF152: 326 | EG152: 333 | EH152: 419 | EI152: 283 | EJ152: 284 | EK152: 292 | EL152: 390 | EM152: 457 | EN152: 285 | EO152: 332 | EP152: 428 | EQ152: 322 | ER152: 297 | ES152: 340 | ET152: 334 | EU152: 276 | EV152: 291 | EW152: 503 | EX152: 394 | EY152: 306 | EZ152: 827 | FA152: 540 | FB152: 557 | FC152: 727 | FD152: 1544 | FE152: 2362 | FF152: 716 | FG152: 1524 | FH152: 2330 | FI152: 669 | FJ152: 1423 | FK152: 2182 | FL152: 420 | FM152: 677 | FN152: 637 | FO152: 674 | FP152: 420 | FQ152: 639 | FR152: 648 | FS152: 1387 | FT152: 2127 | FU152: 685 | FV152: 532 | FW152: 334 | FX152: 430 | FY152: 731 | FZ152: 950 | GA152: 798 | GB152: 273 | GC152: 175 | GD152: 507 | GE152: 416 | GF152: 798 | GG152: 516 | GH152: 480 | GI152: 659 | GJ152: 659 | GK152: 546 | GL152: 321 | GM152: 557 | GN152: 112 | GO152: 144 | GP152: 462.46 | GQ152: 542.65 | GR152: 682.4 | GS152: 805.68 | GT152: 916.43 | GU152: 1119.59 | GV152: 1061.46 | GW152: 1061.46 | GX152: 1295.5 | GY152: 2349.94 | GZ152: 2642.14 | HA152: 3241.97 | HB152: 3533.55 | HC152: 3853.76 | HD152: 5456.67 | HE152: 1060.68 | HF152: 1154.69 | HG152: 1332.51 | HH152: 1696.72 | HI152: 1881.79 | HJ152: 2231.87 | HK152: 2647.53 | HL152: 2882.76 | HM152: 4168.52 | HN152: 636.12 | HO152: 713.7 | HP152: 855.39 | HQ152: 836.58 | HR152: 946.8 | HS152: 1083.41 | HT152: 966.24 | HU152: 1106.4 | HV152: 1303.98 | HW152: 2176.68 | HX152: 2531.3 | HY152: 3171.01 | HZ152: 3217.35 | IA152: 3546.06 | IB152: 5148.97 | IC152: 672.12 | ID152: 727.2 | IE152: 831.39 | IF152: 984.24 | IG152: 1094.4 | IH152: 1302.78 | II152: 2227.68 | IJ152: 2539.8 | IK152: 3130.21 | IL152: 2819.55 | IM152: 3097.26 | IN152: 4615.17 | IO152: 1140.3 | IP152: 1278 | IQ152: 1538.48 | IR152: 2227.68 | IS152: 2539.8 | IT152: 3130.21 | IU152: 2819.55 | IV152: 3097.26 | IW152: 4615.17 | IX152: 255 | IY152: 295 | IZ152: 323 | JA152: 505 | JB152: 684
B153: Casting Clear Opening | C153: Clear Opening | D153: Inch | H153: 11 | I153: 21 | J153: 21 | K153: 21 | L153: 21 | M153: 21 | N153: 21 | O153: 21 | P153: 22 | Q153: 22 | R153: 24 | S153: 24 | T153: 24 | U153: 24 | V153: 32 | W153: 36 | X153: 48 | Y153: 21 | Z153: 24 | AA153: 24 | AB153: 21 | AC153: 21 | AD153: 21 | AE153: 21 | AF153: 21 | AG153: 21 | AH153: 21 | AI153: 21 | AJ153: 21 | AK153: 22 | AL153: 24 | AM153: 24 | AN153: 24 | AO153: 24 | AP153: 36 | AQ153: 48 | AR153: 18 X 18 | AS153: 22 X 22 | AT153: 22 X 22 | AU153: 22 X 22 | AV153: 24 X 24 | AW153: 22 X 22 | AX153: 20 X 26 | AY153: 21.375 X 27.875 | AZ153: 24 X 24 | BA153: 15.25 X 35.75 | BB153: 22 X 34 | BC153: 34 X 48 | BD153: 30 X 30 | BF153: 26 X 46 | BG153: 33.25 X 33.25 | BK153: 24 X 35 | BL153: 22 X 22 | BM153: 17.5 X 20.25 | BN153: 20.88 X 22 | BO153: 14.75 X 36 | BP153: 24.25 X 33.25 | BQ153: (2) 24.25 X 33.25 | BR153: 23.375 X 20 | BS153: 23.378 X 44 | BU153: 23.5 | BV153: 26 | BW153: 36 X 36 | BX153: 36 X 48 | BY153: 36 X 36 | BZ153: 36 X 48 | CA153: 36 X 48 | CB153: 36 X 48 | CC153: 36 X 36 | CD153: 20.75 X 37.25 | CE153: 21 X 28 | CF153: 12 X 12 | CG153: 12 X 12 | CH153: 15.75 X 27.75 | CI153: (2) 15.75 X 27.75 | CJ153: 20 | CK153: 20 | CY153: 24 X 24 | DR153: 24.25 | DS153: 24.25 | DT153: 23.5 | DU153: 21.75 | DV153: 21.75 | DW153: 22 | DX153: 22 | DY153: 21.5 | DZ153: 24 | EA153: 26 | EB153: 26 | EC153: 21 | ED153: 21 | EE153: 20.62 | EF153: 24.12 | EG153: 24.12 | EH153: 24 | EI153: 24 | EJ153: 24.12 | EK153: 24.12 | EL153: 24.12 | EM153: 30 | EN153: 24 | EO153: 24 | EP153: 24 | EQ153: 24.25 | ER153: 21.5 | ES153: 21 | ET153: 24.12 | EU153: 20 | EV153: 20 | EW153: 30 | EX153: 24 X 24 | EY153: 24.25 | EZ153: 21.25 X 34.31 | FA153: 24.75 X33.75 | FB153: 24 X 24 | FC153: 30X30 | FD153: (2) 30X30 | FE153: (3) 30X30 | FF153: 30X30 | FG153: (2) 30X30 | FH153: (3) 30X30 | FI153: 20.18 X 29.75 | FJ153: (2) 20.18 X 29.75 | FK153: (3) 20.18 X 29.75 | FL153: 20.5 X 29 | FM153: 24 X 35.62 | FN153: 24 X 35.62 | FR153: 29.56 X 30 | FS153: (2) 29.56 X 30 | FT153: (3) 29.56 X 30 | FU153: 23.25 X 24.25 | FV153: 21 X 28 | FW153: 15.75 X 27.75 | FY153: 24 X 36 | FZ153: 22 X 22 | GA153: 36 X 36 | GB153: 22.75 X 22.75 | GC153: 17 X 17 | GE153: 22 X 34 | GF153: 34 X 34 | GG153: 15 X 35.62 | GH153: 15 X 35.62 | GI153: 30 X 30 | GJ153: 30 X 30 | GK153: 30 X 30 | GN153: 12 X 12 | GO153: 12 X 12
B154: Casting/Hatch Designation | C154: Designation: | D154: Designation | F154: Hatch | G154: Hatch | H154: Casting | I154: Casting | J154: Casting | K154: Casting | L154: Casting | M154: Casting | N154: Casting | O154: Casting | P154: Casting | Q154: Casting | R154: Casting | S154: Casting | T154: Casting | U154: Casting | V154: Casting | W154: Casting | X154: Casting | Y154: Casting | Z154: Casting | AA154: Casting | AB154: Casting | AC154: Casting | AD154: Casting | AE154: Casting | AF154: Casting | AG154: Casting | AH154: Casting | AI154: Casting | AJ154: Casting | AK154: Casting | AL154: Casting | AM154: Casting | AN154: Casting | AO154: Casting | AP154: Casting | AQ154: Casting | AR154: Casting | AS154: Casting | AT154: Casting | AU154: Casting | AV154: Casting | AW154: Casting | AX154: Casting | AY154: Casting | AZ154: Casting | BA154: Casting | BB154: Casting | BC154: Casting | BD154: Casting | BE154: Casting | BF154: Casting | BG154: Casting | BH154: Casting | BI154: Casting | BJ154: Casting | BK154: Casting | BL154: Casting | BM154: Casting | BN154: Casting | BO154: Casting | BP154: Casting | BQ154: Casting | BR154: Casting | BS154: Casting | BT154: Casting | BU154: Casting | BV154: Casting | BW154: Casting | BX154: Casting | BY154: Casting | BZ154: Casting | CA154: Casting | CB154: Casting | CC154: Casting | CD154: Casting | CE154: Casting | CF154: Casting | CG154: Casting | CH154: Casting | CI154: Casting | CJ154: Casting | CK154: Casting | CL154: Casting | CM154: Casting | CN154: Casting | CO154: Casting | CP154: Casting | CQ154: Casting | CR154: Casting | CS154: Casting | CT154: Casting | CU154: Casting | CV154: Casting | CW154: Casting | CX154: Casting | CY154: Casting | CZ154: Casting | DA154: Casting | DB154: Casting | DC154: Casting | DD154: Casting | DE154: Casting | DF154: Casting | DG154: Casting | DH154: Casting | DI154: Casting | DJ154: Casting | DK154: Casting | DL154: Casting | DM154: Casting | DN154: Casting | DO154: Casting | DP154: Casting | DQ154: Casting | DR154: Casting | DS154: Casting | DT154: Casting | DU154: Casting | DV154: Casting | DW154: Casting | DX154: Casting | DY154: Casting | DZ154: Casting | EA154: Casting | EB154: Casting | EC154: Casting | ED154: Casting | EE154: Casting | EF154: Casting | EG154: Casting | EH154: Casting | EI154: Casting | EJ154: Casting | EK154: Casting | EL154: Casting | EM154: Casting | EN154: Casting | EO154: Casting | EP154: Casting | EQ154: Casting | ER154: Casting | ES154: Casting | ET154: Casting | EU154: Casting | EV154: Casting | EW154: Casting | EX154: Casting | EY154: Casting | EZ154: Casting | FA154: Casting | FB154: Casting | FC154: Casting | FD154: Casting | FE154: Casting | FF154: Casting | FG154: Casting | FH154: Casting | FI154: Casting | FJ154: Casting | FK154: Casting | FL154: Casting | FM154: Casting | FN154: Casting | FO154: Casting | FP154: Casting | FQ154: Casting | FR154: Casting | FS154: Casting | FT154: Casting | FU154: Casting | FV154: Casting | FW154: Casting | FX154: Casting | FY154: Casting | FZ154: Casting | GA154: Casting | GB154: Casting | GC154: Casting | GD154: Casting | GE154: Casting | GF154: Casting | GG154: Casting | GH154: Casting | GI154: Casting | GJ154: Casting | GK154: Casting | GL154: Casting | GM154: Casting | GN154: Casting | GO154: Casting | GP154: Casting | GQ154: Casting | GR154: Casting | GS154: Casting | GT154: Casting | GU154: Casting | GV154: Casting | GW154: Casting | GX154: Casting | GY154: Casting | GZ154: Casting | HA154: Casting | HB154: Casting | HC154: Casting | HD154: Casting | HE154: Casting | HF154: Casting | HG154: Casting | HH154: Casting | HI154: Casting | HJ154: Casting | HK154: Casting | HL154: Casting | HM154: Casting | HN154: Casting | HO154: Casting | HP154: Casting | HQ154: Casting | HR154: Casting | HS154: Casting | HT154: Casting | HU154: Casting | HV154: Casting | HW154: Casting | HX154: Casting | HY154: Casting | HZ154: Casting | IA154: Casting | IB154: Casting | IC154: Casting | ID154: Casting | IE154: Casting | IF154: Casting | IG154: Casting | IH154: Casting | II154: Casting | IJ154: Casting | IK154: Casting | IL154: Casting | IM154: Casting | IN154: Casting | IO154: Casting | IP154: Casting | IQ154: Casting | IR154: Casting | IS154: Casting | IT154: Casting | IU154: Casting | IV154: Casting | IW154: Casting | IX154: Casting | IY154: Casting | IZ154: Casting | JA154: Casting | JB154: Casting | JC154: Casting | JD154: Casting | JE154: Casting | JF154: Casting | JG154: Casting | JH154: Casting | JI154: Casting | JJ154: Casting | JK154: Casting | JL154: Casting
B155: Stock or Non-Stock Item Designation | C155: Stock or Non-Stock Item | F155: Non-Stock Hatch | G155: Non-Stock Hatch | H155: Non-Stock | I155: Non-Stock | J155: Non-Stock | K155: Non-Stock | L155: Non-Stock | M155: Stock | N155: Non-Stock | O155: Non-Stock | P155: Non-Stock | Q155: Non-Stock | R155: Non-Stock | S155: Stock | T155: Non-Stock | U155: Non-Stock | V155: Non-Stock | W155: Non-Stock | X155: Non-Stock | Y155: Stock | Z155: Stock | AA155: Stock | AB155: Non-Stock | AC155: Non-Stock | AD155: Non-Stock | AE155: Stock | AF155: Stock | AG155: Stock | AH155: Non-Stock | AI155: Non-Stock | AJ155: Non-Stock | AK155: Non-Stock | AL155: Non-Stock | AM155: Non-Stock | AN155: Stock | AO155: Stock | AP155: Non-Stock | AQ155: Non-Stock | AR155: Stock | AS155: Stock | AT155: Non-Stock | AU155: Non-Stock | AV155: Non-Stock | AW155: Non-Stock | AX155: Non-Stock | AY155: Non-Stock | AZ155: Non-Stock | BA155: Non-Stock | BB155: Non-Stock | BC155: Non-Stock | BD155: Stock | BE155: Non-Stock | BF155: Non-Stock | BG155: Non-Stock | BH155: Non-Stock | BI155: Non-Stock | BJ155: Non-Stock | BK155: Non-Stock | BL155: Stock | BM155: Non-Stock | BN155: Non-Stock | BO155: Non-Stock | BP155: Stock | BQ155: Non-Stock | BR155: Non-Stock | BS155: Non-Stock | BT155: Non-Stock | BU155: Stock | BV155: Non-Stock | BW155: Non-Stock | BX155: Non-Stock | BY155: Non-Stock | BZ155: Non-Stock | CA155: Non-Stock | CB155: Non-Stock | CC155: Non-Stock | CD155: Non-Stock | CE155: Stock | CF155: Non-Stock | CG155: Non-Stock | CH155: Non-Stock | CI155: Non-Stock | CJ155: Non-Stock | CK155: Non-Stock | CL155: Non-Stock | CM155: Non-Stock | CN155: Non-Stock | CO155: Non-Stock | CP155: Non-Stock | CQ155: Non-Stock | CR155: Non-Stock | CS155: Non-Stock | CT155: Non-Stock | CU155: Non-Stock | CV155: Non-Stock | CW155: Stock | CX155: Non-Stock | CY155: Stock | CZ155: Non-Stock | DA155: Non-Stock | DB155: Non-Stock | DC155: Non-Stock | DD155: Non-Stock | DE155: Non-Stock | DF155: Non-Stock | DG155: Non-Stock | DH155: Non-Stock | DI155: Non-Stock | DJ155: Stock | DK155: Non-Stock | DL155: Non-Stock | DM155: Non-Stock | DN155: Non-Stock | DO155: Non-Stock | DP155: Non-Stock | DQ155: Non-Stock | DR155: Non-Stock | DS155: Non-Stock | DT155: Non-Stock | DU155: Non-Stock | DV155: Non-Stock | DW155: Non-Stock | DX155: Non-Stock | DY155: Non-Stock | DZ155: Non-Stock | EA155: Non-Stock | EB155: Non-Stock | EC155: Non-Stock | ED155: Non-Stock | EE155: Non-Stock | EF155: Non-Stock | EG155: Non-Stock | EH155: Non-Stock | EI155: Non-Stock | EJ155: Non-Stock | EK155: Non-Stock | EL155: Non-Stock | EM155: Non-Stock | EN155: Non-Stock | EO155: Non-Stock | EP155: Non-Stock | EQ155: Non-Stock | ER155: Non-Stock | ES155: Non-Stock | ET155: Non-Stock | EU155: Non-Stock | EV155: Non-Stock | EW155: Non-Stock | EX155: Non-Stock | EY155: Non-Stock | EZ155: Non-Stock | FA155: Non-Stock | FB155: Non-Stock | FC155: Non-Stock | FD155: Non-Stock | FE155: Non-Stock | FF155: Non-Stock | FG155: Non-Stock | FH155: Non-Stock | FI155: Non-Stock | FJ155: Non-Stock | FK155: Non-Stock | FL155: Non-Stock | FM155: Non-Stock | FN155: Non-Stock | FO155: Non-Stock | FP155: Non-Stock | FQ155: Non-Stock | FR155: Non-Stock | FS155: Non-Stock | FT155: Non-Stock | FU155: Non-Stock | FV155: Non-Stock | FW155: Non-Stock | FX155: Non-Stock | FY155: Non-Stock | FZ155: Non-Stock | GA155: Non-Stock | GB155: Non-Stock | GC155: Non-Stock | GD155: Non-Stock | GE155: Non-Stock | GF155: Non-Stock | GG155: Non-Stock | GH155: Non-Stock | GI155: Non-Stock | GJ155: Non-Stock | GK155: Non-Stock | GL155: Non-Stock | GM155: Non-Stock | GN155: Non-Stock | GO155: Non-Stock | GP155: Non-Stock | GQ155: Non-Stock | GR155: Non-Stock | GS155: Non-Stock | GT155: Non-Stock | GU155: Non-Stock | GV155: Non-Stock | GW155: Non-Stock | GX155: Non-Stock | GY155: Non-Stock | GZ155: Non-Stock | HA155: Non-Stock | HB155: Non-Stock | HC155: Non-Stock | HD155: Non-Stock | HE155: Non-Stock | HF155: Non-Stock | HG155: Non-Stock | HH155: Non-Stock | HI155: Non-Stock | HJ155: Non-Stock | HK155: Non-Stock | HL155: Non-Stock | HM155: Non-Stock | HN155: Non-Stock | HO155: Non-Stock | HP155: Non-Stock | HQ155: Non-Stock | HR155: Non-Stock | HS155: Non-Stock | HT155: Non-Stock | HU155: Non-Stock | HV155: Non-Stock | HW155: Non-Stock | HX155: Non-Stock | HY155: Non-Stock | HZ155: Non-Stock | IA155: Non-Stock | IB155: Non-Stock | IC155: Non-Stock | ID155: Non-Stock | IE155: Non-Stock | IF155: Non-Stock | IG155: Non-Stock | IH155: Non-Stock | II155: Non-Stock | IJ155: Non-Stock | IK155: Non-Stock | IL155: Non-Stock | IM155: Non-Stock | IN155: Non-Stock | IO155: Non-Stock | IP155: Non-Stock | IQ155: Non-Stock | IR155: Non-Stock | IS155: Non-Stock | IT155: Non-Stock | IU155: Non-Stock | IV155: Non-Stock | IW155: Non-Stock | IX155: Non-Stock | IY155: Non-Stock | IZ155: Non-Stock | JA155: Non-Stock | JB155: Non-Stock | JC155: Non-Stock | JD155: Non-Stock | JE155: Non-Stock | JF155: Non-Stock | JG155: Non-Stock | JH155: Non-Stock | JI155: Non-Stock | JJ155: Non-Stock | JK155: Non-Stock | JL155: Non-Stock
B156: Casting Quick Reference | C156: Equivalent 1 | I156: JBS 1144 | M156: JBS 1140 | N156: JBS 1140 | O156: JBS 1140 | S156: JBS 1150 | T156: JBS 1150 | U156: JBS 1150 | Z156: JBS 1072 | AE156: JBS 2140 | AM156: JBS 2272 | AN156: JBS 2150 | AO156: JBS 2280 | AS156: JBS 4075 | BA156: JBS 4275 | BB156: JBS 4254 | BD156: JBS 4315 | BG156: JBS 4260 | BK156: JBS 3700 | BM156: JBS 3105 | BO156: JBS 3106 | BP156: JBS 3080 | BQ156: JBS 3080 DBL | BT156: JBS 3070 | BU156: JBS 1077 | BV156: JBS 1123 Mod. | BW156: BOTTOMS DBI 1 | BX156: BOTTOMS DBI 2 | BY156: BOTTOMS DBI 3 | BZ156: BOTTOMS DBI 4 | CA156: BOTTOMS DBI 5 | CB156: BOTTOMS DBI 6 | CC156: BOTTOMS DBI 7 | CD156: JBS 2501D | CE156: JBS 3411 | CF156: JBS 5830 | CG156: JBS 5830 BOLTED | CH156: JBS 3413 | CI156: JBS 3413D | CJ156: JBS 2214 | CK156: JBS 2215 | CN156: BOTTOMS | CO156: BOTTOMS | CP156: BOTTOMS | CQ156: BOTTOMS | CR156: BOTTOMS | CS156: BOTTOMS | CT156: BOTTOMS | CU156: BOTTOMS | CV156: JBS 3450 | CW156: JBS 1077 | CX156: JBS 3450 | CY156: JBS 3085 | DR156: HOE MCS-288 | DS156: HOE MCS-288 | DT156: HOE KY-206 | EA156: HOE KY-510 | EC156: HOW MC-315 | ED156: HOE WT-315-SAN | EE156: HOE MC-260 | EF156: HOE MC-375 | EG156: HOE MC-375 | EH156: HOE WT-375-SAN | EN156: HOE MC-375 | EO156: HOE MC-375 SS | EP156: HOE WT-375-SAN | ES156: HOE MCB-315-B | ET156: HOE MCB-375-B | EU156: HOE KY-210 | EV156: HOE KY-215 | EY156: HOE MCB-285-BH | EZ156: EJ 4510 | FA156: HOE 525 | FB156: HOE KY-465 | FL156: HOE 360 | FM156: HOE 470 | FN156: HOE 470 | FP156: HOE 360 | FQ156: HOE 470 | FV156: HOE KY-460-11 | FW156: HOE KY-240 | FX156: HOE KY-345 | FY156: HOE-700 | GB156: HOE-280T | GE156: HOE-518 | GF156: HOE-595 | GG156: HOE-580 | GH156: HOE-580 | GK156: HOE 468 | GN156: HOE DBI 12 | GO156: HOE DBI 12A
B157: Casting Quick Reference | C157: Equivalent 2 | S157: JBS 1247DM | T157: JBS 1247DM | U157: JBS 1247DM
B158: Casting Quick Reference | C158: Equivalent 3
B159: Municipal or State Spec. | C159: Specification | BK159: LEX SI TY B | BM159: LOU SINGLE CI | BO159: LOU DOUBLE CI | BP159: LEX TYPE D CI | BT159: BGMU CI | BU159: KY MH TY 1 | BV159: KY MH TY 2 | BW159: KY DBI TY 1 | BX159: KY DBI TY 2 | BY159: KY DBI TY 3 | BZ159: KY DBI TY 4 | CA159: KY DBI TY 5 | CB159: KY DBI TY 6 | CC159: KY DBI TY 7 | CD159: KY DBI TY 10 | CE159: KY DBI TY 11 | CF159: KY DBI TY 12 | CG159: KY DBI TY 12A | CH159: KY DBI TY 13/16G | CI159: KY DBI TY 13/16S | CJ159: KY DBI TY 14 | CK159: KY DBI TY 15 | CN159: 15"-18" SBO TY 1 | CO159: 24" SBO TY 1 | CP159: 18" SFBIO | CQ159: 24" SFBIO | CR159: 30" SFBIO | CS159: 36" SFBIO | CT159: SBIO TY 1 | CU159: SBIO TY 2 | CV159: KY CMBBI | CW159: KY CBI TY A | CX159: KY CBI TY B | CY159: KY CBI TY F | DX159: LOU KY MH | DZ159: NASHVILLE, TN MH | EA159: KY MH TY 2 | EB159: KY MH TY 2 | EU159: KY DBI TY 14 | EV159: KY DBI TY 15 | EZ159: BGMU SCI | FB159: KY CBI TY F | FL159: LOU SINGLE CI | FM159: LOU DOUBLE CI | FN159: LOU DOUBLE CI | FO159: TDOT STD. #12 | FV159: KY DBI TY 11 | FW159: KY DBI TY 13/16G | FX159: KY CBI TY B | FY159: LFUCG TY B SI | GD159: TDOT STD. #42 | GG159: LOU DOUBLE SI | GH159: LOU DOUBLE SI | GN159: KY DBI TY 12 | GO159: KY DBI TY 12A
B160: Municipal or State Spec. | C160: Specification | FX160: KY CMBBI
B161: Municipal or State Spec. | C161: Specification
B164: Table 4 - Pipe Connection & Pipe Seal Product Data
C165: Cell
C166: Reference | D166: Unit | E166: Box Culvert (Grout) | F166: Link Seal (Others) | G166: 4" HDPE/PVC (Grout) | H166: 6" HDPE/PVC (Grout) | I166: 8" HDPE (Grout) | J166: 10" HDPE (Grout) | K166: 12" RCP/HDPE (Grout) | L166: 15" RCP/HDPE (Grout) | M166: 18" RCP/HDPE (Grout) | N166: 21" RCP (Grout) | O166: 24" RCP/HDPE (Grout) | P166: 30" RCP/HDPE (Grout) | Q166: 36" RCP/HDPE (Grout) | R166: 42" RCP/HDPE (Grout) | S166: 48" RCP/HDPE (Grout) | T166: 54" RCP/HDPE (Grout) | U166: 60" RCP/HDPE (Grout) | V166: 66" RCP/HDPE (Grout) | W166: 72" RCP/HDPE (Grout) | X166: 78" RCP (Grout) | Y166: 84" RCP (Grout) | Z166: 90" RCP (Grout) | AA166: 96" RCP (Grout) | AB166: 8" CMP/PVC (Grout) | AC166: 10" CMP/PVC (Grout) | AD166: 12" CMP/PVC (Grout) | AE166: 15" CMP/PVC (Grout) | AF166: 18" CMP/PVC (Grout) | AG166: 21" CMP/PVC (Grout) | AH166: 24" CMP/PVC (Grout) | AI166: 30" CMP (Grout) | AJ166: 36" CMP (Grout) | AK166: 42" CMP (Grout) | AL166: 48" CMP (Grout) | AM166: 54" CMP (Grout) | AN166: 60" CMP (Grout) | AO166: 72" CMP (Grout) | AP166: 14"x23" HERCP (Grout) | AQ166: 19"x30" HERCP (Grout) | AR166: 22"x34" HERCP (Grout) | AS166: 24"x38" HERCP (Grout) | AT166: 27"x42" HERCP (Grout) | AU166: 29"x45" HERCP (Grout) | AV166: 32"x49" HERCP (Grout) | AW166: 34"x53" HERCP (Grout) | AX166: 38"x60" HERCP (Grout) | AY166: 43"x68" HERCP (Grout) | AZ166: 48"x76" HERCP (Grout) | BA166: 4" PVC/DI Boot | BB166: 6" PVC/DI Boot | BC166: 8" PVC Boot | BD166: 8" DI Boot | BE166: 10" PVC/DI Boot | BF166: 12" PVC/DI Boot | BG166: 14" DI Boot | BH166: 15" PVC Boot | BI166: 16" DI Boot | BJ166: 18" PVC Boot | BK166: 18" DI Boot | BL166: 20" DI Boot | BM166: 21" PVC Boot | BN166: 24" PVC Boot | BO166: 24" DI Boot | BP166: 27" PVC Boot | BQ166: 30" PVC/DI Boot | BR166: 36" PVC/DI Boot | BS166: 42" PVC Boot | BT166: 48" PVC Boot | BU166: 4" PVC A-Lok | BV166: 4" DI A-Lok | BW166: 6" PVC A-Lok | BX166: 6" DI A-Lok | BY166: 8" PVC A-Lok | BZ166: 8" DI A-Lok | CA166: 10" PVC A-Lok | CB166: 10" DI A-Lok | CC166: 12" PVC A-Lok | CD166: 12" DI A-Lok | CE166: 15" PVC A-Lok | CF166: 18" PVC A-Lok | CG166: 21" PVC A-Lok | CH166: 24" PVC A-Lok | CI166: 30" PVC/DI A-Lok | CJ166: 36" PVC/DI A-Lok | CK166: 42" PVC A-Lok | CL166: 48" PVC A-Lok | CM166: Blank Slot 1 (A-Lok) | CN166: Blank Slot 2 (A-Lok) | CO166: Blank Slot 3 (A-Lok) | CP166: Blank Slot 4 (A-Lok) | CQ166: Blank Slot 5 (A-Lok) | CR166: Blank Slot 6 (A-Lok)
B167: Pipe Seal Cost | C167: Pipe Seal Cost | D167: Dollar | BA167: 41 | BB167: 28 | BC167: 28 | BD167: 35 | BE167: 49 | BF167: 49 | BG167: 92 | BH167: 92 | BI167: 114 | BJ167: 133 | BK167: 137 | BL167: 144 | BM167: 144 | BN167: 175 | BO167: 185 | BP167: 200 | BQ167: 241 | BR167: 269 | BS167: 393 | BT167: 825 | BU167: 29 | BV167: 29 | BW167: 29 | BX167: 29 | BY167: 31 | BZ167: 31 | CA167: 44 | CB167: 44 | CC167: 52 | CD167: 52 | CE167: 80 | CF167: 99 | CG167: 116 | CH167: 130 | CI167: 269 | CJ167: 327 | CK167: 380 | CL167: 434
B168: Model Number | C168: Product ID | D168: Model | E168: Grout | F168: Link Seal (By Others) | G168: Grout | H168: Grout | I168: Grout | J168: Grout | K168: Grout | L168: Grout | M168: Grout | N168: Grout | O168: Grout | P168: Grout | Q168: Grout | R168: Grout | S168: Grout | T168: Grout | U168: Grout | V168: Grout | W168: Grout | X168: Grout | Y168: Grout | Z168: Grout | AA168: Grout | AB168: Grout | AC168: Grout | AD168: Grout | AE168: Grout | AF168: Grout | AG168: Grout | AH168: Grout | AI168: Grout | AJ168: Grout | AK168: Grout | AL168: Grout | AM168: Grout | AN168: Grout | AO168: Grout | AP168: Grout | AQ168: Grout | AR168: Grout | AS168: Grout | AT168: Grout | AU168: Grout | AV168: Grout | AW168: Grout | AX168: Grout | AY168: Grout | AZ168: Grout | BA168: 8 QRS PSX:DD | BB168: 12-06 NYLO DRIVE | BC168: 12-08 NYLO DRIVE | BD168: 12M NYLO DRIVE | BE168: 16Y NYLO DRIVE | BF168: 16M NYLO DRIVE | BG168: S206-18L | BH168: S206-18L | BJ168: S206-22 | BM168: S206-26 | BN168: S206-28 | BO168: S206-30 | BP168: S206-32 | BQ168: S206-36 | BR168: S206-42 | BS168: S206-48 | BT168: S206-54L | BU168: Model #140/150 | BV168: Model #160/165 | BW168: Model #200/210 | BX168: Model #225 | BY168: Model #285 | BZ168: Model #300/310 | CA168: Model #350 | CB168: Model #370 | CC168: Model #410 | CD168: Model #425 | CE168: Model #490/500 | CF168: Model #600/610 | CG168: Model #710 | CH168: Model #800/805 | CI168: Model #1040 | CJ168: Model #1235/1240 | CK168: Model #1430 | CL168: Model #1630/1640
B169: Manufacturer | BA169: Press-Seal | BB169: Press-Seal | BC169: Press-Seal | BD169: Press-Seal | BE169: Press-Seal | BF169: Press-Seal | BG169: Trelleborg | BH169: Trelleborg | BI169: Trelleborg | BJ169: Trelleborg | BK169: Trelleborg | BL169: Trelleborg | BM169: Trelleborg | BN169: Trelleborg | BO169: Trelleborg | BP169: Trelleborg | BQ169: Trelleborg | BR169: Trelleborg | BS169: Trelleborg | BT169: Trelleborg | BU169: A-Lok | BV169: A-Lok | BW169: A-Lok | BX169: A-Lok | BY169: A-Lok | BZ169: A-Lok | CA169: A-Lok | CB169: A-Lok | CC169: A-Lok | CD169: A-Lok | CE169: A-Lok | CF169: A-Lok | CG169: A-Lok | CH169: A-Lok | CI169: A-Lok | CJ169: A-Lok | CK169: A-Lok | CL169: A-Lok
B170: Pipe Inside Diameter | C170: ID | D170: Inch | G170: 4 | H170: 6 | I170: 8 | J170: 10 | K170: 12 | L170: 15 | M170: 18 | N170: 21 | O170: 24 | P170: 30 | Q170: 36 | R170: 42 | S170: 48 | T170: 54 | U170: 60 | V170: 66 | W170: 72 | X170: 78 | Y170: 84 | Z170: 90 | AA170: 96 | AB170: 8 | AC170: 10 | AD170: 12 | AE170: 15 | AF170: 18 | AG170: 21 | AH170: 24 | AI170: 30 | AJ170: 36 | AK170: 42 | AL170: 48 | AM170: 54 | AN170: 60 | AO170: 72 | AP170: 14x23 | AQ170: 19x30 | AR170: 22x34 | AS170: 24x38 | AT170: 27x42 | AU170: 29x45 | AV170: 32x49 | AW170: 34x53 | AX170: 38x60 | AY170: 43x68 | AZ170: 48x76 | BA170: 4 | BB170: 6 | BC170: 8 | BD170: 8 | BE170: 10 | BF170: 12 | BG170: 14 | BH170: 15 | BI170: 16 | BJ170: 18 | BK170: 18 | BL170: 20 | BM170: 21 | BN170: 24 | BO170: 24 | BP170: 27 | BQ170: 30 | BR170: 36 | BS170: 42 | BT170: 48 | BU170: 4 | BV170: 4 | BW170: 6 | BX170: 6 | BY170: 8 | BZ170: 8 | CA170: 10 | CB170: 10 | CC170: 12 | CD170: 12 | CE170: 15 | CF170: 18 | CG170: 21 | CH170: 24 | CI170: 30 | CJ170: 36 | CK170: 42 | CL170: 48
B171: Largest Pipe Thickness (Rounded Up) | C171: Rounded Up Largest Pipe Wall Thickness (Inches) | D171: Inch | E171: 8 | G171: 1 | H171: 1 | I171: 1 | J171: 2 | K171: 2 | L171: 2 | M171: 3 | N171: 3 | O171: 3 | P171: 4 | Q171: 4 | R171: 5 | S171: 5 | T171: 5 | U171: 6 | V171: 7 | W171: 7 | X171: 8 | Y171: 8 | Z171: 9 | AA171: 9 | AB171: 1 | AC171: 1 | AD171: 1 | AE171: 1 | AF171: 1 | AG171: 1 | AH171: 1 | AI171: 1 | AJ171: 1 | AK171: 1 | AL171: 1 | AM171: 1 | AN171: 1 | AO171: 1 | AP171: 4 | AQ171: 4 | AR171: 4 | AS171: 4 | AT171: 4 | AU171: 5 | AV171: 5 | AW171: 5 | AX171: 6 | AY171: 6 | AZ171: 7 | BA171: 2 | BB171: 2 | BC171: 2 | BD171: 2 | BE171: 2 | BF171: 2 | BG171: 2 | BH171: 2 | BI171: 2 | BJ171: 2 | BK171: 2 | BL171: 2 | BM171: 2 | BN171: 2 | BO171: 2 | BP171: 2 | BQ171: 2 | BR171: 2 | BS171: 2 | BT171: 2 | BU171: 2 | BV171: 2 | BW171: 2 | BX171: 2 | BY171: 2 | BZ171: 2 | CA171: 2 | CB171: 2 | CC171: 2 | CD171: 2 | CE171: 2 | CF171: 2 | CG171: 2 | CH171: 2 | CI171: 2 | CJ171: 2 | CK171: 2 | CL171: 2
B172: Boot/Gasket Pipe O.D. Minimum | D172: Inch | BA172: 1.7 | BB172: 5.7 | BC172: 8 | BD172: 8 | BE172: 10 | BF172: 12.05 | BG172: 15 | BH172: 15 | BJ172: 17.625 | BM172: 21.625 | BN172: 23.625 | BO172: 25.625 | BP172: 27.625 | BQ172: 31.625 | BR172: 37.625 | BS172: 43.625 | BT172: 49.625 | BU172: 4 | BV172: 4.5 | BW172: 6 | BX172: 6.625 | BY172: 8.25 | BZ172: 8.75 | CA172: 10.25 | CB172: 11 | CC172: 12.25 | CD172: 12.75 | CE172: 15 | CF172: 18.25 | CG172: 21.75 | CH172: 23.75 | CI172: 31.75 | CJ172: 38.125 | CK172: 44.25 | CL172: 50.5
B173: Boot/Gasket Pipe O.D. Maximum | D173: Inch | BA173: 4.8 | BB173: 6.9 | BC173: 8.65 | BD173: 9.1 | BE173: 11.1 | BF173: 13.3 | BG173: 15.625 | BH173: 15.625 | BJ173: 19 | BM173: 23 | BN173: 25 | BO173: 27 | BP173: 29 | BQ173: 33 | BR173: 39 | BS173: 45 | BT173: 51 | BU173: 4.75 | BV173: 5.25 | BW173: 6.75 | BX173: 7.125 | BY173: 8.75 | BZ173: 9.5 | CA173: 10.75 | CB173: 11.5 | CC173: 12.75 | CD173: 13.25 | CE173: 15.75 | CF173: 19 | CG173: 22.25 | CH173: 24.25 | CI173: 32.25 | CJ173: 38.75 | CK173: 44.75 | CL173: 51
B174: Hole Size | D174: Inch | G174: 8 | H174: 10 | I174: 12 | J174: 14 | K174: 20 | L174: 24 | M174: 26 | N174: 30 | O174: 34 | P174: 40 | Q174: 48 | R174: 55 | S174: 62 | T174: 68 | U174: 75 | AB174: 12 | AC174: 14 | AD174: 16 | AE174: 20 | AF174: 22 | AG174: 26 | AH174: 28 | AI174: 34 | AJ174: 40 | AK174: 46 | AL174: 52 | AM174: 58 | AN174: 64 | AO174: 77 | AP174: 23x32 | AQ174: 29x40 | AR174: 33x45 | AS174: 35x49 | AT174: 39x54 | AU174: 41x58 | AV174: 46x64 | AW174: 50x69 | AX174: 55x76 | AY174: 60x86 | AZ174: 68x96 | BA174: 8 | BB174: 12 | BC174: 12 | BD174: 12 | BE174: 16 | BF174: 16 | BG174: 18 | BH174: 18 | BJ174: 22 | BL174: 26 | BM174: 26 | BN174: 28 | BO174: 30 | BP174: 32 | BQ174: 36 | BR174: 42 | BS174: 48 | BT174: 54
B175: Minimum Manhole Size Required | D175: Inch | BA175: 48 | BB175: 48 | BC175: 48 | BD175: 48 | BE175: 48 | BF175: 48 | BG175: 48 | BH175: 48 | BI175: 48 | BJ175: 48 | BK175: 48 | BL175: 48 | BM175: 48 | BN175: 48 | BO175: 60 | BP175: 60 | BQ175: 72 | BR175: 72 | BS175: 96 | BT175: 96 | BU175: 48 | BV175: 48 | BW175: 48 | BX175: 48 | BY175: 48 | BZ175: 48 | CA175: 48 | CB175: 48 | CC175: 48 | CD175: 48 | CE175: 48 | CF175: 48 | CG175: 48 | CH175: 48 | CI175: 60 | CJ175: 60 | CK175: 72 | CL175: 72
B176: Alternate 1 Model Number | BB176: 09-06 PSX:DD | BC176: 11-08 PSX:DD | BE176: 14M PSX:DD
B177: Alternate 1 Manufacturer | BB177: Press-Seal | BC177: Press-Seal | BE177: Press-Seal
B178: Alternate 2 Model Number
B179: Alternate 2 Manufacturer
B180: Pipe Notes: | AT180: *Note: Blank slot entry needs to say "A-Lok" or "Boot" somewhere in the description for it to display on the quote tab. | CM180: *Note: Blank slot entry needs to say "A-Lok" or "Boot" or "Grout" somewhere in the description for it to display on the quote tab.
B183: Table 5 - Component List: Headwall, Top Phase, Riser Section, Tops Product Data
C184: Cell
C185: Reference | D185: Unit | E185: Double 36" PC HW | F185: Double 36" PC HW W/ED | G185: 18" AW Headwall | H185: 12" AW Flat Bottom Headwall | I185: 15" AW Flat Bottom Headwall | J185: 18" AW Flat Bottom Headwall | K185: 12" AW Headwall W/ED | L185: 15" AW Headwall W/ED | M185: 18" AW Headwall W/ED | N185: 24" BW Headwall | O185: 24" BW Flat Bottom Headwall | P185: 24" BW Headwall W/ED | Q185: 12" Sloped/Flared HW | R185: 15" Sloped/Flared HW | S185: 12" Sloped/Flared Flat Btm. HW | T185: 15" Sloped/Flared Flat Btm. HW | U185: 12" Sloped/Flared HW W/ED | V185: 15" Sloped/Flared HW W/ED | W185: 12" Creekstone HW | X185: 15" Creekstone HW | Y185: 18" Sloped/Flared HW | Z185: 24" Sloped/Flared HW | AA185: 18"Sloped/Flared Flat Btm. HW | AB185: 24" Sloped/Flared Flat Btm. HW | AC185: 18" Sloped/Flared HW W/ED | AD185: 24" Sloped/Flared HW W/ED | AE185: 18" Creekstone HW | AF185: 24" Creekstone HW | AG185: 30" Pipe Culvert HW | AH185: 36" Pipe Culvert HW | AI185: 30" Pipe Culvert Flat Btm. HW | AJ185: 36" Pipe Culvert Flat Btm. HW | AK185: 30" Pipe Culvert HW W/ED | AL185: 36" Pipe Culvert HW W/ED | AM185: 30" Creekstone HW | AN185: 36" Creekstone HW | AO185: 42" Pipe Culvert HW | AP185: 42" Pipe Culvert HW W/ED | AQ185: 48" Pipe Culvert HW | AR185: 48" Pipe Culvert HW W/ED | AS185: 54" Pipe Culvert HW | AT185: 54" Pipe Culvert HW W/ED | AU185: 60" Pipe Culvert HW | AV185: 60" Pipe Culvert HW W/ED | AW185: 12" MSD Std. Straight Headwall | AX185: 15" MSD Std. Straight Headwall | AY185: 18" MSD Std. Straight Headwall | AZ185: 4" KYTC Perf. Pipe HW Type 1 | BA185: 4" KYTC Perf. Pipe HW Type 2 | BB185: 4" KYTC Perf. Pipe HW Type 3 | BC185: 4" KYTC Perf. Pipe HW Type 4 | BD185: 6" KYTC Perf. Pipe HW Type 1 | BE185: 6" KYTC Perf. Pipe HW Type 2 | BF185: 6" KYTC Perf. Pipe HW Type 3 | BG185: 6" KYTC Perf. Pipe HW Type 4 | BH185: 8" KYTC Perf. Pipe HW Type 1 | BI185: 8" KYTC Perf. Pipe HW Type 2 | BJ185: 8" KYTC Perf. Pipe HW Type 3 | BK185: 8" KYTC Perf. Pipe HW Type 4 | BL185: 12" KYTC Sloped Box Outlet TY1 | BM185: 15" KYTC Sloped Box Outlet TY1 | BN185: 18" KYTC Sloped Box Outlet TY1 | BO185: 24" KYTC Sloped Box Outlet TY1 | BP185: 18" KYTC SL/FL Box I/O | BQ185: 24" KYTC SL/FL Box I/O | BR185: 30" KYTC SL/FL Box I/O | BS185: 36" KYTC SL/FL Box I/O | BT185: 12" KYTC Sloped/Parallel HW | BU185: 15" KYTC Sloped/Parallel HW | BV185: 18" KYTC Sloped/Parallel HW | BW185: 12" KYTC Standard Straight HW | BX185: 15" KYTC Standard Straight HW | BY185: 18" KYTC Standard Straight HW | BZ185: 24" KYTC Standard Straight HW | CA185: 12" KYTC ELL Headwall | CB185: 15" KYTC ELL Headwall | CC185: 18" KYTC ELL Headwall | CD185: 24" KYTC ELL Headwall | CE185: 12" KYTC U-Type Headwall | CF185: 15" KYTC U-Type Headwall | CG185: 18" KYTC U-Type Headwall | CH185: 24" KYTC U-Type Headwall | CI185: 30" KYTC U-Type Headwall | CJ185: 36" KYTC U-Type Headwall | CK185: 18" KY Double Standard Straight HW | CL185: 24" KY Double Standard Straight HW | CM185: 30" KY Double Pipe Culvert HW | CN185: 36" KY Double Pipe Culvert HW | CO185: 42" KY Double Pipe Culvert HW | CP185: 48" KY Double Pipe Culvert HW | CQ185: 18" KY Triple Standard Straight HW | CR185: 24" KY Triple Standard Straight HW | CS185: 30" KY Triple Pipe Culvert HW | CT185: 36" KY Triple Pipe Culvert HW | CU185: 42" KY Triple Pipe Culvert HW | CV185: 48" KY Triple Pipe Culvert HW | CW185: 30" Equiv. KY Pipe Culvert HW | CX185: 36" Equiv. KY Pipe Culvert HW | CY185: 42" Equiv. KY Pipe Culvert HW | CZ185: 48" Equiv. KY Pipe Culvert HW | DA185: 54" Equiv. KY Pipe Culvert HW | DB185: 60" Equiv. KY Pipe Culvert HW | DC185: KY Sloped Box IO TY1 (no bid) | DD185: KY Sloped Box Outlet TY2 (no bid) | DE185: 12" FES (Bell) | DF185: 12" FES (Spigot) | DG185: 12" FES | DH185: 15" FES (Bell) | DI185: 15" FES (Spigot) | DJ185: 15" FES | DK185: 18" FES (Bell) | DL185: 18" FES (Spigot) | DM185: 18" FES | DN185: 21" FES (Bell) | DO185: 21" FES (Spigot) | DP185: 21" FES | DQ185: 24" FES (Bell) | DR185: 24" FES (Spigot) | DS185: 24" FES | DT185: 30" FES (Bell) | DU185: 30" FES (Spigot) | DV185: 30" FES | DW185: 36" FES (Bell) | DX185: 36" FES (Spigot) | DY185: 36" FES | DZ185: 42" FES (Bell) | EA185: 42" FES (Spigot) | EB185: 42" FES | EC185: 48" FES (Bell) | ED185: 48" FES (Spigot) | EE185: 48" FES | EF185: ,CMBBI 10' Throat | EG185: ,KY Ty A Top Phase(5') Std. | EH185: ,KY Ty A Top Phase(5') Radius | EI185: ,KY Ty A Top Phase(5') Island | EJ185: ,KY Ty A Top Phase(10') Std. | EK185: ,KY Ty A Top Phase(10') Radius | EL185: ,KY Ty A Top Phase(10') Island | EM185: ,KY Ty A Top Phase(15') | EN185: ,KY Ty A Top Phase(20') | EO185: ,KY Ty B Top Phase(5') | EP185: ,KY Ty B Top Phase(5') Island | EQ185: ,KY Ty B Top Phase(10') | ER185: ,KY Ty B Top Phase(10') Island | ES185: ,Lex Ty A Top Phase(10') | ET185: ,Lex Ty A Top Phase(10') Radius | EU185: ,Lex Ty A Top Phase(15') | EV185: ,Lex Ty B Top Phase(10') | EW185: ,Lex Ty B Top Phase(10') Radius | EX185: ,Lex Ty B Top Phase(15') | EY185: 61"x31" Gang Meter Vault (44" Ht.) | EZ185: 85"x36" Gang Meter Vault (36" Ht.) | FA185: INDOT 10' Temporary Barrier Wall (Per LF) | FB185: KYTC 20' Temporary Barrier Wall (Per LF) | FC185: TDOT 20' Temporary Barrier Wall (Per LF) | FD185: Blank Slot 1 | FE185: Blank Slot 2 | FF185: Blank Slot 3 | FG185: Blank Slot 4 | FH185: Blank Slot 5 | FI185: 48" Dia. Additional VF of Riser | FJ185: 48" Dia. Riser Section x 12" Ht. | FK185: 48" Dia. Riser Section x 24" Ht. | FL185: 48" Dia. Riser Section x 36" Ht. | FM185: 48" Dia. Riser Section x 48" Ht. | FN185: 48" Dia. Riser Section x 60" Ht. | FO185: 60" Dia. Additional VF of Riser | FP185: 60" Dia. Riser Section x 12" Ht. | FQ185: 60" Dia. Riser Section x 24" Ht. | FR185: 60" Dia. Riser Section x 36" Ht. | FS185: 60" Dia. Riser Section x 48" Ht. | FT185: 60" Dia. Riser Section x 60" Ht. | FU185: 72" Dia. Additional VF of Riser | FV185: 72" Dia. Riser Section x 12" Ht. | FW185: 72" Dia. Riser Section x 24" Ht. | FX185: 72" Dia. Riser Section x 36" Ht. | FY185: 72" Dia. Riser Section x 48" Ht. | FZ185: 72" Dia. Riser Section x 60" Ht. | GA185: 72" Dia. Riser Section x 72" Ht. | GB185: 72" Dia. Riser Section x 84" Ht. | GC185: 96" Dia. Additional VF of Riser | GD185: 96" Dia. Riser Section x 12" Ht. | GE185: 96" Dia. Riser Section x 24" Ht. | GF185: 96" Dia. Riser Section x 36" Ht. | GG185: 96" Dia. Riser Section x 48" Ht. | GH185: 96" Dia. Riser Section x 60" Ht. | GI185: 96" Dia. Riser Section x 72" Ht. | GJ185: 96" Dia. Riser Section x 84" Ht. | GK185: 96" Dia. Riser Section x 96" Ht. | GL185: 120" Dia. Additional VF of Riser | GM185: 120" Dia. Riser Section x 12" Ht. | GN185: 120" Dia. Riser Section x 24" Ht. | GO185: 120" Dia. Riser Section x 36" Ht. | GP185: 120" Dia. Riser Section x 48" Ht. | GQ185: 120" Dia. Riser Section x 60" Ht. | GR185: 120" Dia. Riser Section x 72" Ht. | GS185: 120" Dia. Riser Section x 84" Ht. | GT185: 120" Dia. Riser Section x 96" Ht. | GU185: 144" Dia. Additional VF of Riser | GV185: 144" Dia. Riser Section x 12" Ht. | GW185: 144" Dia. Riser Section x 24" Ht. | GX185: 144" Dia. Riser Section x 36" Ht. | GY185: 144" Dia. Riser Section x 48" Ht. | GZ185: 144" Dia. Riser Section x 60" Ht. | HA185: 144" Dia. Riser Section x 72" Ht. | HB185: 144" Dia. Riser Section x 84" Ht. | HC185: 144" Dia. Riser Section x 96" Ht. | HD185: 48" Dia. Top Slab | HE185: 60" Dia. Top Slab | HF185: 72" Dia. Top Slab | HG185: 96" Dia. Top Slab | HH185: 120" Dia. Top Slab | HI185: 144" Dia. Top Slab | HJ185: 48" Dia. Concentric Cone x 36" Ht. | HK185: 48" Dia. Eccentric Cone x 24" Ht. | HL185: 48" Dia. Eccentric Cone x 30" Ht. | HM185: 48" Dia. Eccentric Cone x 36" Ht. | HN185: 48" Dia. Eccentric Cone x 39" Ht. | HO185: 3" Ht. Grade Ring (24" I.D.) | HP185: 4" Ht. Grade Ring (24" I.D.) | HQ185: 6" Ht. Grade Ring (24" I.D.) | HR185: 12" Ht. Grade Ring (24" I.D.) | HS185: 3' Ht. Bundle Grade Rings (24" I.D.) | HT185: 1000 Gallon Grease Trap | HU185: 1500 Gallon Grease Trap | HV185: 2000 Gallon Grease Trap | HW185: 2500 Gallon Grease Trap | HX185: 1000 Gallon Tank | HY185: 1500 Gallon Tank | HZ185: 2000 Gallon Tank | IA185: 2500 Gallon Tank
B186: List Price | C186: Headwall or Top Phase List Price | D186: Dollar | G186: 489 | H186: 405 | I186: 405 | J186: 405 | K186: 689 | L186: 689 | M186: 689 | N186: 752 | O186: 614 | P186: 952 | Q186: 506 | R186: 506 | S186: 404 | T186: 404 | U186: 706 | V186: 706 | W186: 806 | X186: 806 | Y186: 652 | Z186: 752 | AA186: 539 | AB186: 614 | AC186: 852 | AD186: 952 | AE186: 1052 | AF186: 1152 | AG186: 1235 | AH186: 1235 | AI186: 1033 | AJ186: 1033 | AK186: 1535 | AL186: 1535 | AM186: 1635 | AN186: 1635 | AO186: 1936 | AP186: 2236 | AQ186: 1936 | AR186: 2236 | AS186: 2938 | AT186: 3238 | AU186: 2938 | AV186: 3238 | AW186: 466 | AX186: 515 | AY186: 587 | AZ186: 257 | BA186: 378 | BB186: 500 | BC186: 419 | BD186: 257 | BE186: 378 | BF186: 500 | BG186: 419 | BH186: 395 | BI186: 426 | BJ186: 561 | BK186: 493 | BL186: 733 | BM186: 733 | BN186: 733 | BO186: 1311 | BP186: 1119 | BQ186: 1760 | BR186: 3120 | BS186: 4500 | BT186: 917 | BU186: 917 | BV186: 1639 | BW186: =BW189*BW193 -> 850.5 | BX186: 1012.5 | BY186: 1198.8 | BZ186: 1611.9 | CA186: 1124.55 | CB186: 1341.9 | CC186: 1578.15 | CD186: 2097.9 | CE186: 1956.15 | CF186: 2286.9 | CG186: 2702.7 | CH186: 3543.75 | CI186: 4517.1 | CJ186: 6350.4 | CK186: 1692.9 | CL186: 2288.25 | CM186: 3645.675 | CN186: 4618.35 | CO186: 5754.375 | CP186: 6964.65 | CQ186: =CQ189*CQ193 -> 1972.35 | CR186: 2705.4 | CS186: =CS189*CS193 -> 4818.825 | CT186: 6088.5 | CU186: 7566.075 | CV186: 9132.75 | CW186: 2279.75 | CX186: 2925.45 | CY186: 3608.55 | CZ186: 4276.8 | DA186: 5116.1 | DB186: 6058.8 | DE186: 420 | DF186: 420 | DG186: 420 | DH186: 440 | DI186: 440 | DJ186: 440 | DK186: 480 | DL186: 480 | DM186: 480 | DN186: 781 | DO186: 781 | DP186: 781 | DQ186: 680 | DR186: 680 | DS186: 680 | DT186: 876 | DU186: 876 | DV186: 876 | DW186: 1594 | DX186: 1594 | DY186: 1594 | DZ186: 1625 | EA186: 1625 | EB186: 1625 | EC186: 2000 | ED186: 2000 | EE186: 2000 | EF186: =EF189*EF193 -> 1613.315 | EG186: =EG189*EG193 -> 1064.07 | EH186: =EH189*EH193 -> 1064.07 | EI186: =EI189*EI193 -> 1064.07 | EJ186: =EJ189*25 -> 1410 | EK186: =EK189*EK193 -> 1974 | EL186: 1974 | EM186: 3481.38 | EN186: 4630.5 | EO186: 790.02 | EP186: 790.02 | EQ186: 1005.9 | ER186: 1005.9 | ES186: 1777.545 | ET186: 1777.545 | EU186: 2557.17 | EV186: 2020.41 | EW186: 2020.41 | EX186: 2911.545 | EY186: 1102 | EZ186: 1083 | FA186: 80 | FB186: 80 | FC186: 80
B187: Weight in Tons | C187: Component Tons Each | D187: Tons | G187: 0.9 | H187: 0.69 | I187: 0.69 | J187: 0.69 | K187: 0.9 | L187: 0.9 | M187: 0.9 | N187: 1.85 | O187: 1.55 | P187: 1.85 | Q187: 1.5 | R187: 1.5 | S187: 1.31 | T187: 1.31 | U187: 1.5 | V187: 1.5 | W187: 1.5 | X187: 1.5 | Y187: 1.85 | Z187: 2.7 | AA187: 1.55 | AB187: 2.44 | AC187: 2.7 | AD187: 2.7 | AE187: 2.7 | AF187: 2.7 | AG187: 4.35 | AH187: 4.35 | AI187: 3.7 | AJ187: 3.7 | AK187: 4.35 | AL187: 4.35 | AM187: 4.35 | AN187: 4.35 | AO187: 6.6 | AP187: 6.6 | AQ187: 6.6 | AR187: 6.6 | AS187: 9.3 | AT187: 9.3 | AU187: 9.3 | AV187: 9.3 | AW187: 1 | AX187: 1.1 | AY187: 1.26 | AZ187: 0.77 | BA187: 1.13 | BB187: 1.5 | BC187: 1.26 | BD187: 0.77 | BE187: 1.13 | BF187: 1.5 | BG187: 1.26 | BH187: 0.87 | BI187: 1.28 | BJ187: 1.68 | BK187: 1.48 | BL187: 2.4 | BM187: 2.4 | BN187: 2.4 | BO187: 3.7 | BP187: 3.93 | BQ187: 5.98 | BR187: 7.8 | BS187: 11.25 | BT187: 2.4 | BU187: 2.4 | BV187: 3.7 | BW187: =(BW188*4050)/2000 -> 2.12625 | BX187: 2.53125 | BY187: 2.997 | BZ187: 4.02975 | CA187: =(CA188*4050)/2000 -> 2.40975 | CB187: =(CB188*4050)/2000 -> 2.8755 | CC187: =(CC188*4050)/2000 -> 3.38175 | CD187: =(CD188*4050)/2000 -> 4.4955 | CE187: =(CE188*4050)/2000 -> 4.19175 | CF187: =(CF188*4050)/2000 -> 4.9005 | CG187: 5.7915 | CH187: 7.59375 | CI187: 9.6795 | CJ187: 13.608 | CK187: =(CK188*4050)/2000 -> 4.23225 | CL187: =(CL188*4050)/2000 -> 5.720625 | CM187: =(CM188*4050)/2000 -> 4.971375 | CN187: =(CN188*4050)/2000 -> 6.29775 | CO187: =(CO188*4050)/2000 -> 7.846875 | CP187: =(CP188*4050)/2000 -> 9.49725 | CQ187: 4.930875 | CR187: 6.7635 | CS187: 6.571125 | CT187: 8.3025 | CU187: 10.317375 | CV187: 12.45375 | CW187: 3.11 | CX187: 3.99 | CY187: 4.92 | CZ187: 5.83 | DA187: 6.98 | DB187: 8.26 | DE187: 0.72 | DF187: 0.72 | DG187: 0.72 | DH187: 1 | DI187: 1 | DJ187: 1 | DK187: 1.3 | DL187: 1.3 | DM187: 1.3 | DN187: 1.63 | DO187: 1.63 | DP187: 1.63 | DQ187: 1.95 | DR187: 1.95 | DS187: 1.95 | DT187: 2.57 | DU187: 2.57 | DV187: 2.57 | DW187: 2.59 | DX187: 2.59 | DY187: 2.59 | DZ187: 2.69 | EA187: 2.69 | EB187: 2.69 | EC187: 4.205 | ED187: 4.205 | EE187: 4.205 | EF187: =(EF188*4050)/2000 -> 2.19915 | EG187: 2.28015 | EH187: 2.28015 | EI187: 2.28015 | EJ187: 4.2282 | EK187: 4.2282 | EL187: 4.2282 | EM187: =(EM188*4050)/2000 -> 7.4601 | EN187: =(EN188*4050)/2000 -> 9.9225 | EO187: =(EO188*4050)/2000 -> 1.0773 | EP187: 1.0773 | EQ187: =(EQ188*4050)/2000 -> 2.1546 | ER187: 2.1546 | ES187: =(ES188*4050)/2000 -> 3.809025 | ET187: 3.809025 | EU187: =(EU188*4050)/2000 -> 5.47965 | EV187: =(EV188*4050)/2000 -> 4.32945 | EW187: 4.32945 | EX187: 6.239025 | EY187: 1.5 | EZ187: 1.845 | FA187: 0.24 | FB187: 0.24 | FC187: 0.24 | FI187: 0.434 | FJ187: 0.434 | FK187: 0.868 | FL187: 1.302 | FM187: 1.736 | FN187: 2.168 | FO187: 0.648 | FP187: 0.648 | FQ187: 1.296 | FR187: 1.944 | FS187: 2.592 | FT187: 3.24 | FU187: 0.9 | FV187: 0.9 | FW187: 1.8 | FX187: 2.7 | FY187: 3.6 | FZ187: 4.5 | GA187: 5.4 | GB187: 6.3 | GC187: 1.547 | GD187: 1.547 | GE187: 3.093 | GF187: 4.639 | GG187: 6.185 | GH187: 7.732 | GI187: 9.278 | GJ187: 10.824 | GK187: 12.37 | GL187: 2.146 | GM187: 2.146 | GN187: 4.291 | GO187: 6.437 | GP187: 8.582 | GQ187: 10.728 | GR187: 12.873 | GS187: 15.018 | GT187: 17.164 | GU187: 3.063 | GV187: 3.063 | GW187: 6.126 | GX187: 9.189 | GY187: 12.252 | GZ187: 15.316 | HA187: 18.379 | HB187: 21.441 | HC187: 24.504 | HD187: 0.841 | HE187: 1.264 | HF187: 2.3 | HG187: 5.875 | HH187: 9.119 | HI187: 12.379 | HJ187: 1.165 | HK187: 0.875 | HL187: 1.025 | HM187: 1.165 | HN187: 1.711 | HO187: 0.105 | HP187: 0.14 | HQ187: 0.21 | HR187: 0.42 | HS187: 1.26 | HT187: 11.11 | HU187: 13.28 | HV187: 15.538 | HW187: 21.59 | HX187: 11.11 | HY187: 13.28 | HZ187: 15.538 | IA187: 21.59
B188: Cubic Yards of Concrete | D188: CY | AW188: 13.3 | AX188: 14.71 | AY188: 16.75 | BW188: 1.05 | BX188: 1.25 | BY188: 1.48 | BZ188: 1.99 | CA188: 1.19 | CB188: 1.42 | CC188: 1.67 | CD188: 2.22 | CE188: 2.07 | CF188: 2.42 | CG188: 2.86 | CH188: 3.75 | CI188: 4.78 | CJ188: 6.72 | CK188: 2.09 | CL188: 2.825 | CM188: 2.455 | CN188: 3.11 | CO188: 3.875 | CP188: 4.69 | CQ188: 2.435 | CR188: 3.34 | CS188: 3.245 | CT188: 4.1 | CU188: 5.095 | CV188: 6.15 | EF188: 1.086 | EG188: 1.126 | EH188: 1.126 | EI188: 1.126 | EJ188: 2.088 | EK188: 2.088 | EL188: 2.088 | EM188: 3.684 | EN188: 4.9 | EO188: 0.532 | EP188: 0.532 | EQ188: 1.064 | ER188: 1.064 | ES188: 1.881 | ET188: 1.881 | EU188: 2.706 | EV188: 2.138 | EW188: 2.138 | EX188: 3.081
B189: Cubic FT of Concrete | D189: CF | BR189: 104 | BS189: 150 | BW189: =BW188*27 -> 28.35 | BX189: 33.75 | BY189: 39.96 | BZ189: 53.73 | CA189: =CA188*27 -> 32.13 | CB189: =CB188*27 -> 38.34 | CC189: =CC188*27 -> 45.09 | CD189: =CD188*27 -> 59.94 | CE189: =CE188*27 -> 55.89 | CF189: =CF188*27 -> 65.34 | CG189: 77.22 | CH189: 101.25 | CI189: 129.06 | CJ189: 181.44 | CK189: 56.43 | CL189: 76.275 | CM189: =CM188*27 -> 66.285 | CN189: =CN188*27 -> 83.97 | CO189: =CO188*27 -> 104.625 | CP189: =CP188*27 -> 126.63 | CQ189: 65.745 | CR189: 90.18 | CS189: 87.615 | CT189: 110.7 | CU189: 137.565 | CV189: =CV188*27 -> 166.05 | CW189: 41.45 | CX189: 53.19 | CY189: 65.61 | CZ189: 77.76 | DA189: 93.02 | DB189: 110.16 | EF189: 29.333 | EG189: =EG188*27 -> 30.402 | EH189: 30.402 | EI189: =EI188*27 -> 30.402 | EJ189: 56.4 | EK189: 56.4 | EL189: 56.4 | EM189: =EM188*27 -> 99.468 | EN189: =EN188*27 -> 132.3 | EO189: =EO188*27 -> 14.364 | EP189: 14.364 | EQ189: 28.74 | ER189: 28.74 | ES189: =ES188*27 -> 50.787 | ET189: 50.787 | EU189: =EU188*27 -> 73.062 | EV189: =EV188*27 -> 57.726 | EW189: 57.726 | EX189: =EX188*27 -> 83.187
B190: Standard Mold or Custom Form | E190: Standard Mold | F190: Standard Mold | G190: Standard Mold | H190: Standard Mold | I190: Standard Mold | J190: Standard Mold | K190: Standard Mold | L190: Standard Mold | M190: Standard Mold | N190: Standard Mold | O190: Standard Mold | P190: Standard Mold | Q190: Standard Mold | R190: Standard Mold | S190: Standard Mold | T190: Standard Mold | U190: Standard Mold | V190: Standard Mold | W190: Standard Mold | X190: Standard Mold | Y190: Standard Mold | Z190: Standard Mold | AA190: Standard Mold | AB190: Standard Mold | AC190: Standard Mold | AD190: Standard Mold | AE190: Standard Mold | AF190: Standard Mold | AG190: Standard Mold | AH190: Standard Mold | AI190: Standard Mold | AJ190: Standard Mold | AK190: Standard Mold | AL190: Standard Mold | AM190: Standard Mold | AN190: Standard Mold | AO190: Standard Mold | AP190: Standard Mold | AQ190: Standard Mold | AR190: Standard Mold | AS190: Standard Mold | AT190: Standard Mold | AU190: Standard Mold | AV190: Standard Mold | AW190: Custom Form | AX190: Custom Form | AY190: Custom Form | AZ190: Standard Mold | BA190: Standard Mold | BB190: Standard Mold | BC190: Standard Mold | BD190: Standard Mold | BE190: Standard Mold | BF190: Standard Mold | BG190: Standard Mold | BH190: Custom Form | BI190: Custom Form | BJ190: Custom Form | BK190: Custom Form | BL190: Standard Mold | BM190: Standard Mold | BN190: Standard Mold | BO190: Standard Mold | BP190: Standard Mold | BQ190: Standard Mold | BR190: Standard Mold | BS190: Standard Mold | BT190: SBO, TY1 Mold | BU190: SBO, TY1 Mold | BV190: 24" SBO, TY1 Mold | BW190: Custom Form | BX190: Custom Form | BY190: Custom Form | BZ190: Custom Form | CA190: Custom Form | CB190: Custom Form | CC190: Custom Form | CD190: Custom Form | CE190: Custom Form | CF190: Custom Form | CG190: Custom Form | CH190: Custom Form | CI190: Custom Form | CJ190: Custom Form | CK190: Custom Form | CL190: Custom Form | CM190: Custom Form | CN190: Custom Form | CO190: Custom Form | CP190: Custom Form | CQ190: Custom Form | CR190: Custom Form | CS190: Custom Form | CT190: Custom Form | CU190: Custom Form | CV190: Custom Form | CW190: Custom Form | CX190: Custom Form | CY190: Custom Form | CZ190: Custom Form | DA190: Custom Form | DB190: Custom Form | DC190: Custom Form | DD190: Custom Form | DE190: Standard Mold | DF190: Standard Mold | DG190: Standard Mold | DH190: Standard Mold | DI190: Standard Mold | DJ190: Standard Mold | DK190: Standard Mold | DL190: Standard Mold | DM190: Standard Mold | DN190: Re-Sale | DO190: Re-Sale | DP190: Re-Sale | DQ190: Standard Mold | DR190: Standard Mold | DS190: Standard Mold | DT190: Standard Mold | DU190: Standard Mold | DV190: Standard Mold | DW190: Re-Sale | DX190: Re-Sale | DY190: Re-Sale | DZ190: Re-Sale | EA190: Re-Sale | EB190: Re-Sale | EC190: Re-Sale | ED190: Re-Sale | EE190: Re-Sale | EF190: Custom Form | EG190: Custom Form | EH190: Custom Form | EI190: Custom Form | EJ190: Standard Mold | EK190: Custom Form | EL190: Custom Form | EM190: Custom Form | EN190: Custom Form | EO190: Standard Mold | EP190: Custom Form | EQ190: Standard Mold | ER190: Custom Form | ES190: Custom Form | ET190: Custom Form | EU190: Custom Form | EV190: Custom Form | EW190: Custom Form | EX190: Custom Form | EY190: Standard Mold | EZ190: Standard Mold | FI190: Standard Mold | FJ190: Standard Mold | FK190: Standard Mold | FL190: Standard Mold | FM190: Standard Mold | FN190: Standard Mold | FO190: Standard Mold | FP190: Standard Mold | FQ190: Standard Mold | FR190: Standard Mold | FS190: Standard Mold | FT190: Standard Mold | FU190: Standard Mold | FV190: Standard Mold | FW190: Standard Mold | FX190: Standard Mold | FY190: Standard Mold | FZ190: Standard Mold | GA190: Standard Mold | GB190: Standard Mold | GC190: Standard Mold | GD190: Standard Mold | GE190: Standard Mold | GF190: Standard Mold | GG190: Standard Mold | GH190: Standard Mold | GI190: Standard Mold | GJ190: Standard Mold | GK190: Standard Mold | GL190: Standard Mold | GM190: Standard Mold | GN190: Standard Mold | GO190: Standard Mold | GP190: Standard Mold | GQ190: Standard Mold | GR190: Standard Mold | GS190: Standard Mold | GT190: Standard Mold | GU190: Standard Mold | GV190: Standard Mold | GW190: Standard Mold | GX190: Standard Mold | GY190: Standard Mold | GZ190: Standard Mold | HA190: Standard Mold | HB190: Standard Mold | HC190: Standard Mold | HD190: Standard Mold | HE190: Standard Mold | HF190: Standard Mold | HG190: Standard Mold | HH190: Standard Mold | HI190: Standard Mold | HJ190: Standard Mold | HK190: Standard Mold | HL190: Standard Mold | HM190: Standard Mold | HN190: Standard Mold | HO190: Standard Mold | HP190: Standard Mold | HQ190: Standard Mold | HR190: Standard Mold | HS190: Standard Mold | HT190: Standard 10'x5' Mold | HU190: Standard 10'x5' Mold | HV190: Standard 10'x5' Mold | HW190: Standard 12'x6' Mold | HX190: Standard 10'x5' Mold | HY190: Standard 10'x5' Mold | HZ190: Standard 10'x5' Mold | IA190: Standard 12'x6' Mold
B191: Load Dimension | C191: Component Load Width | D191: Inches | G191: 102 | H191: 102 | I191: 102 | J191: 102 | K191: 102 | L191: 102 | M191: 102 | N191: 102 | O191: 102 | P191: 102 | Q191: 102 | R191: 102 | S191: 102 | T191: 102 | U191: 102 | V191: 102 | W191: 102 | X191: 102 | Y191: 102 | Z191: 102 | AA191: 102 | AB191: 102 | AC191: 102 | AD191: 102 | AE191: 102 | AF191: 102 | AG191: 102 | AH191: 102 | AI191: 102 | AJ191: 102 | AK191: 102 | AL191: 102 | AM191: 102 | AN191: 102 | AO191: 102 | AP191: 102 | AQ191: 102 | AR191: 102 | AS191: 102 | AT191: 102 | AU191: 102 | AV191: 102 | AW191: 102 | AX191: 102 | AY191: 102 | AZ191: 102 | BA191: 102 | BB191: 102 | BC191: 102 | BD191: 102 | BE191: 102 | BF191: 102 | BG191: 102 | BH191: 102 | BI191: 102 | BJ191: 102 | BK191: 102 | BL191: 102 | BM191: 102 | BN191: 102 | BO191: 102 | BP191: 102 | BQ191: 107 | BR191: 128 | BS191: 147 | BT191: 102 | BU191: 102 | BV191: 102 | BW191: 102 | BX191: 102 | BY191: 102 | BZ191: 102 | CA191: 102 | CB191: 102 | CC191: 102 | CD191: 102 | CE191: 102 | CF191: 102 | CG191: 102 | CH191: 102 | CI191: 102 | CJ191: 102 | CK191: 102 | CL191: 102 | CM191: 102 | CN191: 102 | CO191: 102 | CP191: 102 | CQ191: 102 | CR191: 102 | CS191: 102 | CT191: 102 | CU191: 102 | CV191: 102 | CW191: 102 | CX191: 102 | CY191: 102 | CZ191: 102 | DA191: 102 | DB191: 102 | DC191: 102 | DD191: 102 | DE191: 102 | DF191: 102 | DG191: 102 | DH191: 102 | DI191: 102 | DJ191: 102 | DK191: 102 | DL191: 102 | DM191: 102 | DN191: 102 | DO191: 102 | DP191: 102 | DQ191: 102 | DR191: 102 | DS191: 102 | DT191: 102 | DU191: 102 | DV191: 102 | DW191: 102 | DX191: 102 | DY191: 102 | DZ191: 102 | EA191: 102 | EB191: 102 | EC191: 102 | ED191: 102 | EE191: 102 | EF191: 102 | EG191: 102 | EH191: 102 | EI191: 102 | EJ191: 102 | EK191: 102 | EL191: 102 | EM191: 102 | EN191: 102 | EO191: 102 | EP191: 102 | EQ191: 102 | ER191: 102 | ES191: 102 | ET191: 102 | EU191: 102 | EV191: 102 | EW191: 102 | EX191: 102 | EY191: 102 | EZ191: 102 | FA191: 102 | FB191: 102 | FC191: 102 | FI191: 102 | FJ191: 102 | FK191: 102 | FL191: 102 | FM191: 102 | FN191: 102 | FO191: 102 | FP191: 102 | FQ191: 102 | FR191: 102 | FS191: 102 | FT191: 102 | FU191: 102 | FV191: 102 | FW191: 102 | FX191: 102 | FY191: 102 | FZ191: 102 | GA191: 102 | GB191: 102 | GC191: 114 | GD191: 114 | GE191: 114 | GF191: 114 | GG191: 114 | GH191: 114 | GI191: 114 | GJ191: 114 | GK191: 114 | GL191: 142 | GM191: 142 | GN191: 142 | GO191: 142 | GP191: 142 | GQ191: 142 | GR191: 142 | GS191: 142 | GT191: 142 | GU191: 168 | GV191: 168 | GW191: 168 | GX191: 168 | GY191: 168 | GZ191: 168 | HA191: 168 | HB191: 168 | HC191: 168 | HD191: 102 | HE191: 102 | HF191: 102 | HG191: 114 | HH191: 142 | HI191: 168 | HJ191: 102 | HK191: 102 | HL191: 102 | HM191: 102 | HN191: 102 | HT191: 102 | HU191: 102 | HV191: 102 | HW191: 102 | HX191: 102 | HY191: 102 | HZ191: 102 | IA191: 102
B192: Reference Drawing | AW192: 35 | AX192: 35 | AY192: 35 | BT192: RDH-030-03 | BU192: RDH-030-03 | BV192: RDH-030-03 | BW192: RDH-005-02 | BX192: RDH-005-02 | BY192: RDH-005-02 | BZ192: RDH-005-02 | CA192: RDH-005-02 | CB192: RDH-005-02 | CC192: RDH-005-02 | CD192: RDH-005-02 | CE192: RDH-050-02 | CF192: RDH-050-02 | CG192: RDH-050-02 | CH192: RDH-050-02 | CI192: RDH-050-02 | CJ192: RDH-050-02 | CK192: RDH-500-03 | CL192: RDH-500-03 | CM192: RDH-522-02 | CN192: RDH-522-02 | CO192: RDH-522-02 | CP192: RDH-522-02 | CQ192: RDH-500-03 | CR192: RDH-500-03 | CS192: RDH-522-02 | CT192: RDH-522-02 | CU192: RDH-522-02 | CV192: RDH-522-02 | CW192: RDH-220-02 | CX192: RDH-220-02 | CY192: RDH-220-02 | CZ192: RDH-220-02 | DA192: RDH-220-02 | DB192: RDH-220-02 | EF192: RDB-230-09 | EG192: RDB-272-07 | EH192: RDB-272-07 | EI192: RDB-272-07 | EJ192: RDB-272-07 | EK192: RDB-272-07 | EL192: RDB-272-07 | EM192: RDB-272-07 | EN192: RDB-272-07 | EO192: RDB-282-04 | EP192: RDB-282-04 | EQ192: RDB-282-04 | ER192: RDB-282-04 | ES192: LFUCG 122-1 | ET192: LFUCG 122-1 | EU192: LFUCG 122-1 | EV192: LFUCG 123-1 | EW192: LFUCG 123-1 | EX192: LFUCG 123-1
B193: Custom $/CF | BW193: 30 | BX193: 30 | BY193: 30 | BZ193: 30 | CA193: 35 | CB193: 35 | CC193: 35 | CD193: 35 | CE193: 35 | CF193: 35 | CG193: 35 | CH193: 35 | CI193: 35 | CJ193: 35 | CK193: 30 | CL193: 30 | CM193: 55 | CN193: 55 | CO193: 55 | CP193: 55 | CQ193: 30 | CR193: 30 | CS193: 55 | CT193: 55 | CU193: 55 | CV193: 55 | CW193: 55 | CX193: 55 | CY193: 55 | CZ193: 55 | DA193: 55 | DB193: 55 | EF193: 55 | EG193: 35 | EH193: 35 | EI193: 35 | EJ193: 25 | EK193: 35 | EL193: 35 | EM193: 35 | EN193: 35 | EO193: 55 | EP193: 55 | EQ193: 35 | ER193: 35 | ES193: 35 | ET193: 35 | EU193: 35 | EV193: 35 | EW193: 35 | EX193: 35
B194: Associated Casting | C194: Master Casting List | D194: Model | BL194: HOE KY-161 (12"-18" SBO1) | BM194: HOE KY-161 (12"-18" SBO1) | BN194: HOE KY-161 (12"-18" SBO1) | BO194: HOE KY-300 (24" SBO1) | BP194: HOE KY-272 (12"-18" SFBIO) | BQ194: HOE KY-454 (24" SFBIO) | BR194: HOE KY-796 (30" SFBIO) | BS194: HOE KY-1218 (36" SFBIO) | DC194: HOE KY-298 (SBIO TY1) | DD194: HOE KY-206-SB (SBIO TY2) | EF194: HOE KY-345 (MBBI) | EG194: HOE KY-206 (CBI A) | EH194: HOE KY-206 (CBI A) | EI194: HOE KY-206 (CBI A) | EJ194: HOE KY-206 (CBI A) | EK194: HOE KY-206 (CBI A) | EL194: HOE KY-206 (CBI A) | EM194: HOE KY-206 (CBI A) | EN194: HOE KY-206 (CBI A) | EO194: HOE KY-345 (CBI B) | EP194: HOE KY-345 (CBI B) | EQ194: HOE KY-345 (CBI B) | ER194: HOE KY-345 (CBI B) | ES194: HOE KY-206 (CBI A) | ET194: HOE KY-206 (CBI A) | EU194: HOE KY-206 (CBI A) | EV194: HOE KY-206 (CBI A) | EW194: HOE KY-206 (CBI A) | EX194: HOE KY-206 (CBI A)
B195: Plain Riser Section Price | C195: Round Component Price | D195: Dollar | FI195: 102 | FJ195: 202 | FK195: 277 | FL195: 381 | FM195: 509 | FN195: 621 | FO195: 167 | FP195: 389 | FQ195: 535 | FR195: 648 | FS195: 829 | FT195: 1036 | FU195: 255 | FV195: 724 | FW195: 868 | FX195: 977 | FY195: 1206 | FZ195: 1507 | GA195: 1736 | GB195: 2026 | GC195: 472 | GD195: 1236 | GE195: 1896 | GF195: 1916 | GG195: 2473 | GH195: 3091 | GI195: 3462 | GJ195: 3750 | GK195: 4121 | GL195: 776 | GM195: 1885 | GN195: 3016 | GO195: 3299 | GP195: 3896 | GQ195: 4870 | GR195: 5656 | GS195: 6379 | GT195: 7290 | GU195: 1079 | GV195: 2449 | GW195: 4082 | GX195: 4653 | GY195: 5225 | GZ195: 6531 | HA195: 7348 | HB195: 8286 | HC195: 9470 | HD195: 257 | HE195: 396 | HF195: 706 | HG195: 1559 | HH195: 2418 | HI195: 3539 | HJ195: 374 | HK195: 242 | HL195: 322 | HM195: 374 | HN195: 418 | HO195: 50 | HP195: 60 | HQ195: 78 | HR195: 125 | HS195: 460 | HT195: 4030 | HU195: 4779 | HV195: 5528 | HW195: 8636 | HX195: 4030 | HY195: 4779 | HZ195: 5528 | IA195: 8636
B196: Xypex Riser Section Price | C196: Round Component Price | D196: Dollar | FI196: 131 | FJ196: 225 | FK196: 335 | FL196: 468 | FM196: 624 | FN196: 766 | FO196: 211 | FP196: 423 | FQ196: 622 | FR196: 777 | FS196: 1002 | FT196: 1252 | FU196: 315 | FV196: 772 | FW196: 989 | FX196: 1158 | FY196: 1447 | FZ196: 1809 | GA196: 2098 | GB196: 2448 | GC196: 575 | GD196: 1319 | GE196: 2102 | GF196: 2225 | GG196: 2885 | GH196: 3606 | GI196: 4080 | GJ196: 4472 | GK196: 4946 | GL196: 933 | GM196: 2011 | GN196: 3331 | GO196: 3771 | GP196: 4525 | GQ196: 5656 | GR196: 6599 | GS196: 7478 | GT196: 8547 | GU196: 1284 | GV196: 2612 | GW196: 4490 | GX196: 5266 | GY196: 6041 | GZ196: 7552 | HA196: 8572 | HB196: 9715 | HC196: 11103 | HD196: 306 | HE196: 471 | HF196: 840 | HG196: 1842 | HH196: 2858 | HI196: 4154 | HJ196: 495 | HK196: 297 | HL196: 392 | HM196: 495 | HN196: 513 | HO196: 57 | HP196: 69 | HQ196: 92 | HR196: 155 | HS196: 550 | HT196: 5185 | HU196: 6198 | HV196: 7252 | HW196: 10651 | HX196: 5185 | HY196: 6198 | HZ196: 7252 | IA196: 10651
B197: MIC Riser Section Price | C197: Round Component Price | D197: Dollar | FI197: 157 | FJ197: 251 | FK197: 387 | FL197: 546 | FM197: 728 | FN197: 896 | FO197: 249 | FP197: 462 | FQ197: 699 | FR197: 894 | FS197: 1157 | FT197: 1446 | FU197: 370 | FV197: 826 | FW197: 1097 | FX197: 1320 | FY197: 1664 | FZ197: 2080 | GA197: 2424 | GB197: 2828 | GC197: 668 | GD197: 1412 | GE197: 2287 | GF197: 2504 | GG197: 3256 | GH197: 4070 | GI197: 4636 | GJ197: 5121 | GK197: 5687 | GL197: 1074 | GM197: 2152 | GN197: 3614 | GO197: 4195 | GP197: 5090 | GQ197: 6363 | GR197: 7447 | GS197: 8468 | GT197: 9678 | GU197: 1467 | GV197: 2796 | GW197: 4858 | GX197: 5817 | GY197: 6776 | GZ197: 8470 | HA197: 9674 | HB197: 11001 | HC197: 12573 | HD197: 361 | HE197: 556 | HF197: 991 | HG197: 2161 | HH197: 3353 | HI197: 4847 | HJ197: 536 | HK197: 347 | HL197: 455 | HM197: 536 | HN197: 599 | HO197: 83 | HP197: 103 | HQ197: 144 | HR197: 245 | HS197: 860 | HT197: 5520 | HU197: 6545 | HV197: 7571 | HW197: 11000 | HX197: 5520 | HY197: 6545 | HZ197: 7571 | IA197: 11000
B198: Xypex & MIC Riser Section Price | C198: Round Component Price | D198: Dollar | FI198: 186 | FJ198: 274 | FK198: 445 | FL198: 633 | FM198: 844 | FN198: 1040 | FO198: 293 | FP198: 497 | FQ198: 786 | FR198: 1023 | FS198: 1330 | FT198: 1662 | FU198: 430 | FV198: 874 | FW198: 1218 | FX198: 1501 | FY198: 1905 | FZ198: 2382 | GA198: 2786 | GB198: 3250 | GC198: 771 | GD198: 1494 | GE198: 2493 | GF198: 2813 | GG198: 3668 | GH198: 4585 | GI198: 5255 | GJ198: 5842 | GK198: 6512 | GL198: 1231 | GM198: 2278 | GN198: 3928 | GO198: 4666 | GP198: 5719 | GQ198: 7148 | GR198: 8390 | GS198: 9568 | GT198: 10935 | GU198: 1671 | GV198: 2959 | GW198: 5266 | GX198: 6429 | GY198: 7593 | GZ198: 9491 | HA198: 10899 | HB198: 12430 | HC198: 14205 | HD198: 410 | HE198: 631 | HF198: 1126 | HG198: 2444 | HH198: 3792 | HI198: 5462 | HJ198: 621 | HK198: 402 | HL198: 525 | HM198: 621 | HN198: 694 | HO198: 83 | HP198: 103 | HQ198: 144 | HR198: 245 | HS198: 860 | HT198: 6220 | HU198: 7376 | HV198: 8532 | HW198: 13000 | HX198: 6220 | HY198: 7376 | HZ198: 8532 | IA198: 13000
B200: Table 6 - Coating Product Data
C201: Cell
C202: Reference | D202: Unit | F202: 48" Dia. | G202: 60" Dia. | H202: 72" Dia. | I202: 96" Dia. | J202: 120" Dia. | K202: 144" Dia. | L202: 48" Dia. (Component Only) | M202: 60" Dia. (Component Only) | N202: 72" Dia. (Component Only) | O202: 96" Dia. (Component Only) | P202: 120" Dia. (Component Only) | Q202: 144" Dia. (Component Only) | R202: Standard GT or Tank | S202: Coating Type | T202: Coating Cost Per Sq. Ft. | U202: Number of Coats
B203: Conseal CS-55 | C203: CS-55 | D203: Dollar | F203: 27 | G203: 33 | H203: 40 | I203: 53 | J203: 69 | K203: 90 | L203: 27 | M203: 33 | N203: 40 | O203: 53 | P203: 69 | Q203: 90 | R203: 90 | S203: Bituminous | T203: 2.25 | U203: 1
B204: Carboline 300M | C204: Carboline 300M | D204: Dollar | F204: 43 | G204: 53 | H204: 64 | I204: 85 | J204: 104 | K204: 126 | L204: 43 | M204: 53 | N204: 64 | O204: 85 | P204: 104 | Q204: 126 | R204: 126 | S204: Coal Tar Epoxy | T204: 2.85 | U204: 1
B205: Masterseal 610 | C205: Masterseal 610 | D205: Dollar | F205: 38 | G205: 47 | H205: 56 | I205: 75 | J205: 93 | K205: 111 | L205: 38 | M205: 47 | N205: 56 | O205: 75 | P205: 93 | Q205: 111 | R205: 111 | S205: Bituminous | T205: 2.5 | U205: 1
B206: HLM 5000 | C206: HLM 5000 | D206: Dollar | F206: 137 | G206: 170 | H206: 203 | I206: 268 | J206: 334 | K206: 400 | L206: 137 | M206: 170 | N206: 203 | O206: 268 | P206: 334 | Q206: 400 | R206: 400 | S206: Special Epoxy | T206: 6.1 | U206: 1
B207: Conseal CS-55 | C207: CS-55 (2 Coats) | D207: Dollar | F207: =F203*2 -> 54 | G207: =G203*2 -> 66 | H207: =H203*2 -> 80 | I207: 106 | J207: 138 | K207: 180 | L207: 54 | M207: 66 | N207: 80 | O207: 106 | P207: 138 | Q207: 180 | R207: 180 | S207: Bituminous | T207: 4.5 | U207: 2
B208: Carboline 300M | C208: Carboline 300M (2 Coats) | D208: Dollar | F208: =F204*2 -> 86 | G208: 106 | H208: 128 | I208: 170 | J208: 208 | K208: 252 | L208: 86 | M208: 106 | N208: 128 | O208: 170 | P208: 208 | Q208: 252 | R208: 252 | S208: Coal Tar Epoxy | T208: 5.7 | U208: 2
B209: Masterseal 610 | C209: Masterseal 610 (2 Coats) | D209: Dollar | F209: =F205*2 -> 76 | G209: 94 | H209: 112 | I209: 150 | J209: 186 | K209: 222 | L209: 76 | M209: 94 | N209: 112 | O209: 150 | P209: 186 | Q209: 222 | R209: 222 | S209: Bituminous | T209: 5 | U209: 2
B210: HLM 5000 | C210: HLM 5000 (2 Coats) | D210: Dollar | F210: =F206*2 -> 274 | G210: =G206*2 -> 340 | H210: 406 | I210: 536 | J210: 668 | K210: 800 | L210: 274 | M210: 340 | N210: 406 | O210: 536 | P210: 668 | Q210: 800 | R210: 800 | S210: Special Epoxy | T210: 12.2 | U210: 2
B215: Table 7 - Joint Sealant Product Data
C216: Cell
C217: Reference | D217: Unit | E217: 1" CS-102 | F217: 1" CS-102 Dbl | G217: 1.25" CS-102 | H217: 1.25" CS-102 Dbl | I217: 1" CS-231 | J217: 1" CS-231 Dbl | K217: 1.25" CS-231 | L217: 1.25" CS-231 Dbl | M217: 3/4" CS-440 | N217: HK TSS Gasket
... 702 more rows

Sheet Pipe Input
C1: Data Collection | E1: Formula - Unlock Password: I-Cast | I1: Hidden Items. Unide rows on the quote to use these items.
C2: Select RCP/HERCP Market Location: | E2: Price Per LF (Tennessee)
B3: Line Item # | C3: Bid Item # | D3: Pipe Specified | E3: Pipe Type Quoted | F3: Alternate Status | G3: Pipe Selection | H3: Pipe Size | I3: Line Item Description | J3: LF Selling Price | K3: List Price | L3: RCP List Price | M3: HERCP List Price | N3: Markup | O3: LF Selling Price | P3: Freight Per LF | Q3: Freight Per LF | R3: Extended Total RCP Price | S3: RCP % of Project | T3: Total RCP Weight | U3: Extended Total HERCP Price | V3: HERCP % of Project | W3: Total HERCP Weight | X3: Extended Total HDPE Price | Y3: HDPE % of Project | Z3: HDPE % of a Full Load | AA3: HDPE Full Load Fraction | AB3: Extended Total CMP Price | AC3: Pipe Weight | AD3: # of Sections | AE3: Exact Quantity | AF3: Quantity | AH3: INPUT PIPE RUN LENGTHS IN TABLE BELOW
B4: 1 | D4: RCP | E4: RCP | F4: =IF(AND(OR(D4="HDPE",D4="CMP"),E4="RCP"),"Alternate","") ->  | G4: 36" RCP C3 (B Wall) | I4: =IFERROR(IF(E4="RCP",INDEX(Database!$E$272:$BF$272,MATCH('Pipe Input'!$I$3,Database!$C$272:$BF$272,0),MATCH('Pipe Input'!G4,Database!$E$270:$BF$270,0)),IF(E4="HERCP",INDEX(Database!$E$312:$S$312,MATCH('Pipe Input'!$I$3,Database!$C$312:$S$312,0),MATCH('Pipe Input'!G4,Database!$E$309:$S$309,0)),IF(E4="HDPE",INDEX(Database!$E$333:$S$333,MATCH('Pipe Input'!$I$3,Database!$C$333:$S$333,0),MATCH('Pipe Input'!G4,Database!$E$331:$S$331,0)),IF(E4="CMP",INDEX(Database!$E$350:$AS$350,MATCH('Pipe Input'!$I$3,Database!$C$350:$AS$350,0),MATCH('Pipe Input'!G4,Database!$E$348:$AS$348,0)),"")))),"") -> 36" RCP CL 3 w/Gaskets | J4: =IFERROR(IF(AF4>0,(ROUNDUP((((K4+P4))/(1-N4/100)),2)),""), "") ->  | K4: =IFERROR(IF(E4="RCP",L4,IF(E4="HERCP",M4,IF(E4="HDPE",INDEX(Database!$E$337:$S$337,MATCH('Pipe Input'!$K$3,Database!$C$337:$S$337,0),MATCH('Pipe Input'!G4,Database!$E$331:$S$331,0)),IF(E4="CMP",INDEX(Database!$E$355:$AS$355,MATCH('Pipe Input'!$K$3,Database!$C$355:$AS$355,0),MATCH('Pipe Input'!G4,Database!$E$348:$AS$348,0)),"")))),"") -> 82.25 | L4: =IF(E4="RCP",INDEX(Database!$E$277:$BF$281,MATCH('Pipe Input'!$E$2,Database!$C$277:$C$281,0),MATCH('Pipe Input'!G4,Database!$E$270:$BF$270,0)),"") -> 82.25 | M4: =IF(E4="HERCP",INDEX(Database!$E$316:$S$320,MATCH('Pipe Input'!$E$2,Database!$C$316:$C$320,0),MATCH('Pipe Input'!G4,Database!$E$309:$S$309,0)),"") ->  | N4: =IF(E4="RCP",Summary!$AN$5,IF(E4="HERCP",Summary!$AN$33,IF(E4="HDPE",Summary!$AN$50,IF(E4="CMP",Summary!$AN$72, "")))) -> 0 | O4: =IFERROR(J4,"") ->  | P4: =IF(AF4>0,Q4, 0) -> 0 | Q4: =IFERROR(IF(E4="RCP",((S4*R37)/(AD4*8)),IF(E4="HERCP",((V4*U37)/(AD4*8)),IF(E4="HDPE",((Y4*X37)/(AD4*20)),0))), "") ->  | R4: =IFERROR(IF(E4="RCP",(J4*AF4), ""), "") ->  | S4: =IFERROR(IF(E4="RCP",(T4/T37), ""), "") ->  | T4: =IFERROR(IF(E4="RCP",AD4*8*AC4, ""), "") -> 0 | U4: =IFERROR(IF(E4="HERCP",(J4*AF4), ""), "") ->  | V4: =IFERROR(IF(E4="HERCP",(W4/W37), ""), "") ->  | W4: =IFERROR(IF(E4="HERCP",AD4*8*AC4, ""), "") ->  | X4: =IFERROR(IF(E4="HDPE",(J4*AF4), ""), "") ->  | Y4: =IFERROR(IF(E4="HDPE",(Z4/Z37), ""), "") ->  | Z4: =IFERROR(IF(E4="HDPE",(AA4*AD4), ""), "") ->  | AA4: =IFERROR(IF(E4="HDPE",INDEX(Database!$E$340:$S$340,MATCH('Pipe Input'!$AA$3,Database!$C$340:$S$340,0),MATCH('Pipe Input'!G4,Database!$E$331:$S$331,0)),""), "") ->  | AB4: =IFERROR(IF(E4="CMP",(J4*AF4), ""), "") ->  | AC4: =IFERROR(IF(E4="RCP",INDEX(Database!$E$283:$BF$283,MATCH('Pipe Input'!$AC$3,Database!$C$283:$BF$283,0),MATCH('Pipe Input'!G4,Database!$E$270:$BF$270,0)),IF(E4="HERCP",INDEX(Database!$E$322:$S$322,MATCH('Pipe Input'!$AC$3,Database!$C$322:$S$322,0),MATCH('Pipe Input'!G4,Database!$E$309:$S$309,0)),IF(E4="HDPE",INDEX(Database!$E$338:$S$338,MATCH('Pipe Input'!$AC$3,Database!$C$338:$S$338,0),MATCH('Pipe Input'!G4,Database!$E$331:$S$331,0)),IF(E4="CMP",INDEX(Database!$E$356:$AS$356,MATCH('Pipe Input'!$AC$3,Database!$C$356:$AS$356,0),MATCH('Pipe Input'!G4,Database!$E$348:$AS$348,0)),"")))),"") -> 594 | AD4: =IF(OR(E4="RCP",E4="HERCP"),(ROUNDUP(AE4/8,0)),IF(OR(E4="HDPE",E4="CMP"),(ROUNDUP(AE4/20,0)),0)) -> 0 | AE4: =SUM(AH4:AAG4) -> 0 | AF4: =IF(OR(E4="RCP",E4="HERCP"),(AD4*8),IF(OR(E4="HDPE",E4="CMP"),(AD4*20),0)) -> 0
B5: =B4+1 -> 2 | F5: =IF(AND(OR(D5="HDPE",D5="CMP"),E5="RCP"),"Alternate","") ->  | I5: =IFERROR(IF(E5="RCP",INDEX(Database!$E$272:$BF$272,MATCH('Pipe Input'!$I$3,Database!$C$272:$BF$272,0),MATCH('Pipe Input'!G5,Database!$E$270:$BF$270,0)),IF(E5="HERCP",INDEX(Database!$E$312:$S$312,MATCH('Pipe Input'!$I$3,Database!$C$312:$S$312,0),MATCH('Pipe Input'!G5,Database!$E$309:$S$309,0)),IF(E5="HDPE",INDEX(Database!$E$333:$S$333,MATCH('Pipe Input'!$I$3,Database!$C$333:$S$333,0),MATCH('Pipe Input'!G5,Database!$E$331:$S$331,0)),IF(E5="CMP",INDEX(Database!$E$350:$AS$350,MATCH('Pipe Input'!$I$3,Database!$C$350:$AS$350,0),MATCH('Pipe Input'!G5,Database!$E$348:$AS$348,0)),"")))),"") ->  | J5: =IFERROR(IF(AF5>0,(ROUNDUP((((K5+P5))/(1-N5/100)),2)),""), "") ->  | K5: =IFERROR(IF(E5="RCP",L5,IF(E5="HERCP",M5,IF(E5="HDPE",INDEX(Database!$E$337:$S$337,MATCH('Pipe Input'!$K$3,Database!$C$337:$S$337,0),MATCH('Pipe Input'!G5,Database!$E$331:$S$331,0)),IF(E5="CMP",INDEX(Database!$E$355:$AS$355,MATCH('Pipe Input'!$K$3,Database!$C$355:$AS$355,0),MATCH('Pipe Input'!G5,Database!$E$348:$AS$348,0)),"")))),"") ->  | L5: =IF(E5="RCP",INDEX(Database!$E$277:$BF$281,MATCH('Pipe Input'!$E$2,Database!$C$277:$C$281,0),MATCH('Pipe Input'!G5,Database!$E$270:$BF$270,0)),"") ->  | M5: =IF(E5="HERCP",INDEX(Database!$E$316:$S$320,MATCH('Pipe Input'!$E$2,Database!$C$316:$C$320,0),MATCH('Pipe Input'!G5,Database!$E$309:$S$309,0)),"") ->  | N5: =IF(E5="RCP",Summary!$AN$5,IF(E5="HERCP",Summary!$AN$33,IF(E5="HDPE",Summary!$AN$50,IF(E5="CMP",Summary!$AN$72, "")))) ->  | O5: =IFERROR(J5,"") ->  | P5: =IF(AF5>0,Q5, 0) -> 0 | Q5: =IFERROR(IF(E5="RCP",((S5*R38)/(AD5*8)),IF(E5="HERCP",((V5*U38)/(AD5*8)),IF(E5="HDPE",((Y5*X38)/(AD5*20)),0))), "") -> 0 | T5: =IFERROR(IF(E5="RCP",AD5*8*AC5, ""), "") ->  | X5: =IFERROR(IF(E5="HDPE",(J5*AF5), ""), "") ->  | Y5: =IFERROR(IF(E5="HDPE",(Z5/Z38), ""), "") ->  | Z5: =IFERROR(IF(E5="HDPE",(AA5*AD5), ""), "") ->  | AA5: =IFERROR(IF(E5="HDPE",INDEX(Database!$E$340:$S$340,MATCH('Pipe Input'!$AA$3,Database!$C$340:$S$340,0),MATCH('Pipe Input'!G5,Database!$E$331:$S$331,0)),""), "") ->  | AB5: =IFERROR(IF(E5="CMP",(J5*AF5), ""), "") ->  | AC5: =IFERROR(IF(E5="RCP",INDEX(Database!$E$283:$BF$283,MATCH('Pipe Input'!$AC$3,Database!$C$283:$BF$283,0),MATCH('Pipe Input'!G5,Database!$E$270:$BF$270,0)),IF(E5="HERCP",INDEX(Database!$E$322:$S$322,MATCH('Pipe Input'!$AC$3,Database!$C$322:$S$322,0),MATCH('Pipe Input'!G5,Database!$E$309:$S$309,0)),IF(E5="HDPE",INDEX(Database!$E$338:$S$338,MATCH('Pipe Input'!$AC$3,Database!$C$338:$S$338,0),MATCH('Pipe Input'!G5,Database!$E$331:$S$331,0)),IF(E5="CMP",INDEX(Database!$E$356:$AS$356,MATCH('Pipe Input'!$AC$3,Database!$C$356:$AS$356,0),MATCH('Pipe Input'!G5,Database!$E$348:$AS$348,0)),"")))),"") ->  | AD5: =IF(OR(E5="RCP",E5="HERCP"),(ROUNDUP(AE5/8,0)),IF(OR(E5="HDPE",E5="CMP"),(ROUNDUP(AE5/20,0)),0)) -> 0 | AE5: 0 | AF5: 0
B6: =B5+1 -> 3 | I6: =IFERROR(IF(E6="RCP",INDEX(Database!$E$272:$BF$272,MATCH('Pipe Input'!$I$3,Database!$C$272:$BF$272,0),MATCH('Pipe Input'!G6,Database!$E$270:$BF$270,0)),IF(E6="HERCP",INDEX(Database!$E$312:$S$312,MATCH('Pipe Input'!$I$3,Database!$C$312:$S$312,0),MATCH('Pipe Input'!G6,Database!$E$309:$S$309,0)),IF(E6="HDPE",INDEX(Database!$E$333:$S$333,MATCH('Pipe Input'!$I$3,Database!$C$333:$S$333,0),MATCH('Pipe Input'!G6,Database!$E$331:$S$331,0)),IF(E6="CMP",INDEX(Database!$E$350:$AS$350,MATCH('Pipe Input'!$I$3,Database!$C$350:$AS$350,0),MATCH('Pipe Input'!G6,Database!$E$348:$AS$348,0)),"")))),"") ->  | K6: =IFERROR(IF(E6="RCP",L6,IF(E6="HERCP",M6,IF(E6="HDPE",INDEX(Database!$E$337:$S$337,MATCH('Pipe Input'!$K$3,Database!$C$337:$S$337,0),MATCH('Pipe Input'!G6,Database!$E$331:$S$331,0)),IF(E6="CMP",INDEX(Database!$E$355:$AS$355,MATCH('Pipe Input'!$K$3,Database!$C$355:$AS$355,0),MATCH('Pipe Input'!G6,Database!$E$348:$AS$348,0)),"")))),"") ->  | L6: =IF(E6="RCP",INDEX(Database!$E$277:$BF$281,MATCH('Pipe Input'!$E$2,Database!$C$277:$C$281,0),MATCH('Pipe Input'!G6,Database!$E$270:$BF$270,0)),"") ->  | M6: =IF(E6="HERCP",INDEX(Database!$E$316:$S$320,MATCH('Pipe Input'!$E$2,Database!$C$316:$C$320,0),MATCH('Pipe Input'!G6,Database!$E$309:$S$309,0)),"") ->  | N6: =IF(E6="RCP",Summary!$AN$5,IF(E6="HERCP",Summary!$AN$33,IF(E6="HDPE",Summary!$AN$50,IF(E6="CMP",Summary!$AN$72, "")))) ->  | O6: =IFERROR(J6,"") ->  | P6: 0 | Q6: 0 | AA6: =IFERROR(IF(E6="HDPE",INDEX(Database!$E$340:$S$340,MATCH('Pipe Input'!$AA$3,Database!$C$340:$S$340,0),MATCH('Pipe Input'!G6,Database!$E$331:$S$331,0)),""), "") ->  | AC6: =IFERROR(IF(E6="RCP",INDEX(Database!$E$283:$BF$283,MATCH('Pipe Input'!$AC$3,Database!$C$283:$BF$283,0),MATCH('Pipe Input'!G6,Database!$E$270:$BF$270,0)),IF(E6="HERCP",INDEX(Database!$E$322:$S$322,MATCH('Pipe Input'!$AC$3,Database!$C$322:$S$322,0),MATCH('Pipe Input'!G6,Database!$E$309:$S$309,0)),IF(E6="HDPE",INDEX(Database!$E$338:$S$338,MATCH('Pipe Input'!$AC$3,Database!$C$338:$S$338,0),MATCH('Pipe Input'!G6,Database!$E$331:$S$331,0)),IF(E6="CMP",INDEX(Database!$E$356:$AS$356,MATCH('Pipe Input'!$AC$3,Database!$C$356:$AS$356,0),MATCH('Pipe Input'!G6,Database!$E$348:$AS$348,0)),"")))),"") ->  | AD6: 0 | AE6: =SUM(AH6:AAG6) -> 0 | AF6: 0
B7: 4 | I7: =IFERROR(IF(E7="RCP",INDEX(Database!$E$272:$BF$272,MATCH('Pipe Input'!$I$3,Database!$C$272:$BF$272,0),MATCH('Pipe Input'!G7,Database!$E$270:$BF$270,0)),IF(E7="HERCP",INDEX(Database!$E$312:$S$312,MATCH('Pipe Input'!$I$3,Database!$C$312:$S$312,0),MATCH('Pipe Input'!G7,Database!$E$309:$S$309,0)),IF(E7="HDPE",INDEX(Database!$E$333:$S$333,MATCH('Pipe Input'!$I$3,Database!$C$333:$S$333,0),MATCH('Pipe Input'!G7,Database!$E$331:$S$331,0)),IF(E7="CMP",INDEX(Database!$E$350:$AS$350,MATCH('Pipe Input'!$I$3,Database!$C$350:$AS$350,0),MATCH('Pipe Input'!G7,Database!$E$348:$AS$348,0)),"")))),"") ->  | K7: =IFERROR(IF(E7="RCP",L7,IF(E7="HERCP",M7,IF(E7="HDPE",INDEX(Database!$E$337:$S$337,MATCH('Pipe Input'!$K$3,Database!$C$337:$S$337,0),MATCH('Pipe Input'!G7,Database!$E$331:$S$331,0)),IF(E7="CMP",INDEX(Database!$E$355:$AS$355,MATCH('Pipe Input'!$K$3,Database!$C$355:$AS$355,0),MATCH('Pipe Input'!G7,Database!$E$348:$AS$348,0)),"")))),"") ->  | L7: =IF(E7="RCP",INDEX(Database!$E$277:$BF$281,MATCH('Pipe Input'!$E$2,Database!$C$277:$C$281,0),MATCH('Pipe Input'!G7,Database!$E$270:$BF$270,0)),"") ->  | M7: =IF(E7="HERCP",INDEX(Database!$E$316:$S$320,MATCH('Pipe Input'!$E$2,Database!$C$316:$C$320,0),MATCH('Pipe Input'!G7,Database!$E$309:$S$309,0)),"") ->  | N7: =IF(E7="RCP",Summary!$AN$5,IF(E7="HERCP",Summary!$AN$33,IF(E7="HDPE",Summary!$AN$50,IF(E7="CMP",Summary!$AN$72, "")))) ->  | O7: =IFERROR(J7,"") ->  | P7: 0 | Q7: 0 | AA7: =IFERROR(IF(E7="HDPE",INDEX(Database!$E$340:$S$340,MATCH('Pipe Input'!$AA$3,Database!$C$340:$S$340,0),MATCH('Pipe Input'!G7,Database!$E$331:$S$331,0)),""), "") ->  | AC7: =IFERROR(IF(E7="RCP",INDEX(Database!$E$283:$BF$283,MATCH('Pipe Input'!$AC$3,Database!$C$283:$BF$283,0),MATCH('Pipe Input'!G7,Database!$E$270:$BF$270,0)),IF(E7="HERCP",INDEX(Database!$E$322:$S$322,MATCH('Pipe Input'!$AC$3,Database!$C$322:$S$322,0),MATCH('Pipe Input'!G7,Database!$E$309:$S$309,0)),IF(E7="HDPE",INDEX(Database!$E$338:$S$338,MATCH('Pipe Input'!$AC$3,Database!$C$338:$S$338,0),MATCH('Pipe Input'!G7,Database!$E$331:$S$331,0)),IF(E7="CMP",INDEX(Database!$E$356:$AS$356,MATCH('Pipe Input'!$AC$3,Database!$C$356:$AS$356,0),MATCH('Pipe Input'!G7,Database!$E$348:$AS$348,0)),"")))),"") ->  | AD7: 0 | AE7: 0 | AF7: 0
B8: 5 | I8: =IFERROR(IF(E8="RCP",INDEX(Database!$E$272:$BF$272,MATCH('Pipe Input'!$I$3,Database!$C$272:$BF$272,0),MATCH('Pipe Input'!G8,Database!$E$270:$BF$270,0)),IF(E8="HERCP",INDEX(Database!$E$312:$S$312,MATCH('Pipe Input'!$I$3,Database!$C$312:$S$312,0),MATCH('Pipe Input'!G8,Database!$E$309:$S$309,0)),IF(E8="HDPE",INDEX(Database!$E$333:$S$333,MATCH('Pipe Input'!$I$3,Database!$C$333:$S$333,0),MATCH('Pipe Input'!G8,Database!$E$331:$S$331,0)),IF(E8="CMP",INDEX(Database!$E$350:$AS$350,MATCH('Pipe Input'!$I$3,Database!$C$350:$AS$350,0),MATCH('Pipe Input'!G8,Database!$E$348:$AS$348,0)),"")))),"") ->  | K8: =IFERROR(IF(E8="RCP",L8,IF(E8="HERCP",M8,IF(E8="HDPE",INDEX(Database!$E$337:$S$337,MATCH('Pipe Input'!$K$3,Database!$C$337:$S$337,0),MATCH('Pipe Input'!G8,Database!$E$331:$S$331,0)),IF(E8="CMP",INDEX(Database!$E$355:$AS$355,MATCH('Pipe Input'!$K$3,Database!$C$355:$AS$355,0),MATCH('Pipe Input'!G8,Database!$E$348:$AS$348,0)),"")))),"") ->  | L8: =IF(E8="RCP",INDEX(Database!$E$277:$BF$281,MATCH('Pipe Input'!$E$2,Database!$C$277:$C$281,0),MATCH('Pipe Input'!G8,Database!$E$270:$BF$270,0)),"") ->  | M8: =IF(E8="HERCP",INDEX(Database!$E$316:$S$320,MATCH('Pipe Input'!$E$2,Database!$C$316:$C$320,0),MATCH('Pipe Input'!G8,Database!$E$309:$S$309,0)),"") ->  | N8: =IF(E8="RCP",Summary!$AN$5,IF(E8="HERCP",Summary!$AN$33,IF(E8="HDPE",Summary!$AN$50,IF(E8="CMP",Summary!$AN$72, "")))) ->  | P8: 0 | Q8: 0 | AA8: =IFERROR(IF(E8="HDPE",INDEX(Database!$E$340:$S$340,MATCH('Pipe Input'!$AA$3,Database!$C$340:$S$340,0),MATCH('Pipe Input'!G8,Database!$E$331:$S$331,0)),""), "") ->  | AC8: =IFERROR(IF(E8="RCP",INDEX(Database!$E$283:$BF$283,MATCH('Pipe Input'!$AC$3,Database!$C$283:$BF$283,0),MATCH('Pipe Input'!G8,Database!$E$270:$BF$270,0)),IF(E8="HERCP",INDEX(Database!$E$322:$S$322,MATCH('Pipe Input'!$AC$3,Database!$C$322:$S$322,0),MATCH('Pipe Input'!G8,Database!$E$309:$S$309,0)),IF(E8="HDPE",INDEX(Database!$E$338:$S$338,MATCH('Pipe Input'!$AC$3,Database!$C$338:$S$338,0),MATCH('Pipe Input'!G8,Database!$E$331:$S$331,0)),IF(E8="CMP",INDEX(Database!$E$356:$AS$356,MATCH('Pipe Input'!$AC$3,Database!$C$356:$AS$356,0),MATCH('Pipe Input'!G8,Database!$E$348:$AS$348,0)),"")))),"") ->  | AD8: 0 | AE8: 0 | AF8: 0
B9: 6 | I9: =IFERROR(IF(E9="RCP",INDEX(Database!$E$272:$BF$272,MATCH('Pipe Input'!$I$3,Database!$C$272:$BF$272,0),MATCH('Pipe Input'!G9,Database!$E$270:$BF$270,0)),IF(E9="HERCP",INDEX(Database!$E$312:$S$312,MATCH('Pipe Input'!$I$3,Database!$C$312:$S$312,0),MATCH('Pipe Input'!G9,Database!$E$309:$S$309,0)),IF(E9="HDPE",INDEX(Database!$E$333:$S$333,MATCH('Pipe Input'!$I$3,Database!$C$333:$S$333,0),MATCH('Pipe Input'!G9,Database!$E$331:$S$331,0)),IF(E9="CMP",INDEX(Database!$E$350:$AS$350,MATCH('Pipe Input'!$I$3,Database!$C$350:$AS$350,0),MATCH('Pipe Input'!G9,Database!$E$348:$AS$348,0)),"")))),"") ->  | K9: =IFERROR(IF(E9="RCP",L9,IF(E9="HERCP",M9,IF(E9="HDPE",INDEX(Database!$E$337:$S$337,MATCH('Pipe Input'!$K$3,Database!$C$337:$S$337,0),MATCH('Pipe Input'!G9,Database!$E$331:$S$331,0)),IF(E9="CMP",INDEX(Database!$E$355:$AS$355,MATCH('Pipe Input'!$K$3,Database!$C$355:$AS$355,0),MATCH('Pipe Input'!G9,Database!$E$348:$AS$348,0)),"")))),"") ->  | L9: =IF(E9="RCP",INDEX(Database!$E$277:$BF$281,MATCH('Pipe Input'!$E$2,Database!$C$277:$C$281,0),MATCH('Pipe Input'!G9,Database!$E$270:$BF$270,0)),"") ->  | M9: =IF(E9="HERCP",INDEX(Database!$E$316:$S$320,MATCH('Pipe Input'!$E$2,Database!$C$316:$C$320,0),MATCH('Pipe Input'!G9,Database!$E$309:$S$309,0)),"") ->  | N9: =IF(E9="RCP",Summary!$AN$5,IF(E9="HERCP",Summary!$AN$33,IF(E9="HDPE",Summary!$AN$50,IF(E9="CMP",Summary!$AN$72, "")))) ->  | P9: 0 | Q9: 0 | AA9: =IFERROR(IF(E9="HDPE",INDEX(Database!$E$340:$S$340,MATCH('Pipe Input'!$AA$3,Database!$C$340:$S$340,0),MATCH('Pipe Input'!G9,Database!$E$331:$S$331,0)),""), "") ->  | AC9: =IFERROR(IF(E9="RCP",INDEX(Database!$E$283:$BF$283,MATCH('Pipe Input'!$AC$3,Database!$C$283:$BF$283,0),MATCH('Pipe Input'!G9,Database!$E$270:$BF$270,0)),IF(E9="HERCP",INDEX(Database!$E$322:$S$322,MATCH('Pipe Input'!$AC$3,Database!$C$322:$S$322,0),MATCH('Pipe Input'!G9,Database!$E$309:$S$309,0)),IF(E9="HDPE",INDEX(Database!$E$338:$S$338,MATCH('Pipe Input'!$AC$3,Database!$C$338:$S$338,0),MATCH('Pipe Input'!G9,Database!$E$331:$S$331,0)),IF(E9="CMP",INDEX(Database!$E$356:$AS$356,MATCH('Pipe Input'!$AC$3,Database!$C$356:$AS$356,0),MATCH('Pipe Input'!G9,Database!$E$348:$AS$348,0)),"")))),"") ->  | AD9: 0 | AE9: 0 | AF9: 0
B10: 7 | I10: =IFERROR(IF(E10="RCP",INDEX(Database!$E$272:$BF$272,MATCH('Pipe Input'!$I$3,Database!$C$272:$BF$272,0),MATCH('Pipe Input'!G10,Database!$E$270:$BF$270,0)),IF(E10="HERCP",INDEX(Database!$E$312:$S$312,MATCH('Pipe Input'!$I$3,Database!$C$312:$S$312,0),MATCH('Pipe Input'!G10,Database!$E$309:$S$309,0)),IF(E10="HDPE",INDEX(Database!$E$333:$S$333,MATCH('Pipe Input'!$I$3,Database!$C$333:$S$333,0),MATCH('Pipe Input'!G10,Database!$E$331:$S$331,0)),IF(E10="CMP",INDEX(Database!$E$350:$AS$350,MATCH('Pipe Input'!$I$3,Database!$C$350:$AS$350,0),MATCH('Pipe Input'!G10,Database!$E$348:$AS$348,0)),"")))),"") ->  | K10: =IFERROR(IF(E10="RCP",L10,IF(E10="HERCP",M10,IF(E10="HDPE",INDEX(Database!$E$337:$S$337,MATCH('Pipe Input'!$K$3,Database!$C$337:$S$337,0),MATCH('Pipe Input'!G10,Database!$E$331:$S$331,0)),IF(E10="CMP",INDEX(Database!$E$355:$AS$355,MATCH('Pipe Input'!$K$3,Database!$C$355:$AS$355,0),MATCH('Pipe Input'!G10,Database!$E$348:$AS$348,0)),"")))),"") ->  | L10: =IF(E10="RCP",INDEX(Database!$E$277:$BF$281,MATCH('Pipe Input'!$E$2,Database!$C$277:$C$281,0),MATCH('Pipe Input'!G10,Database!$E$270:$BF$270,0)),"") ->  | M10: =IF(E10="HERCP",INDEX(Database!$E$316:$S$320,MATCH('Pipe Input'!$E$2,Database!$C$316:$C$320,0),MATCH('Pipe Input'!G10,Database!$E$309:$S$309,0)),"") ->  | N10: =IF(E10="RCP",Summary!$AN$5,IF(E10="HERCP",Summary!$AN$33,IF(E10="HDPE",Summary!$AN$50,IF(E10="CMP",Summary!$AN$72, "")))) ->  | P10: 0 | Q10: 0 | AA10: =IFERROR(IF(E10="HDPE",INDEX(Database!$E$340:$S$340,MATCH('Pipe Input'!$AA$3,Database!$C$340:$S$340,0),MATCH('Pipe Input'!G10,Database!$E$331:$S$331,0)),""), "") ->  | AC10: =IFERROR(IF(E10="RCP",INDEX(Database!$E$283:$BF$283,MATCH('Pipe Input'!$AC$3,Database!$C$283:$BF$283,0),MATCH('Pipe Input'!G10,Database!$E$270:$BF$270,0)),IF(E10="HERCP",INDEX(Database!$E$322:$S$322,MATCH('Pipe Input'!$AC$3,Database!$C$322:$S$322,0),MATCH('Pipe Input'!G10,Database!$E$309:$S$309,0)),IF(E10="HDPE",INDEX(Database!$E$338:$S$338,MATCH('Pipe Input'!$AC$3,Database!$C$338:$S$338,0),MATCH('Pipe Input'!G10,Database!$E$331:$S$331,0)),IF(E10="CMP",INDEX(Database!$E$356:$AS$356,MATCH('Pipe Input'!$AC$3,Database!$C$356:$AS$356,0),MATCH('Pipe Input'!G10,Database!$E$348:$AS$348,0)),"")))),"") ->  | AD10: 0 | AE10: 0 | AF10: 0
B11: 8 | I11: =IFERROR(IF(E11="RCP",INDEX(Database!$E$272:$BF$272,MATCH('Pipe Input'!$I$3,Database!$C$272:$BF$272,0),MATCH('Pipe Input'!G11,Database!$E$270:$BF$270,0)),IF(E11="HERCP",INDEX(Database!$E$312:$S$312,MATCH('Pipe Input'!$I$3,Database!$C$312:$S$312,0),MATCH('Pipe Input'!G11,Database!$E$309:$S$309,0)),IF(E11="HDPE",INDEX(Database!$E$333:$S$333,MATCH('Pipe Input'!$I$3,Database!$C$333:$S$333,0),MATCH('Pipe Input'!G11,Database!$E$331:$S$331,0)),IF(E11="CMP",INDEX(Database!$E$350:$AS$350,MATCH('Pipe Input'!$I$3,Database!$C$350:$AS$350,0),MATCH('Pipe Input'!G11,Database!$E$348:$AS$348,0)),"")))),"") ->  | K11: =IFERROR(IF(E11="RCP",L11,IF(E11="HERCP",M11,IF(E11="HDPE",INDEX(Database!$E$337:$S$337,MATCH('Pipe Input'!$K$3,Database!$C$337:$S$337,0),MATCH('Pipe Input'!G11,Database!$E$331:$S$331,0)),IF(E11="CMP",INDEX(Database!$E$355:$AS$355,MATCH('Pipe Input'!$K$3,Database!$C$355:$AS$355,0),MATCH('Pipe Input'!G11,Database!$E$348:$AS$348,0)),"")))),"") ->  | L11: =IF(E11="RCP",INDEX(Database!$E$277:$BF$281,MATCH('Pipe Input'!$E$2,Database!$C$277:$C$281,0),MATCH('Pipe Input'!G11,Database!$E$270:$BF$270,0)),"") ->  | M11: =IF(E11="HERCP",INDEX(Database!$E$316:$S$320,MATCH('Pipe Input'!$E$2,Database!$C$316:$C$320,0),MATCH('Pipe Input'!G11,Database!$E$309:$S$309,0)),"") ->  | N11: =IF(E11="RCP",Summary!$AN$5,IF(E11="HERCP",Summary!$AN$33,IF(E11="HDPE",Summary!$AN$50,IF(E11="CMP",Summary!$AN$72, "")))) ->  | P11: 0 | Q11: 0 | AA11: =IFERROR(IF(E11="HDPE",INDEX(Database!$E$340:$S$340,MATCH('Pipe Input'!$AA$3,Database!$C$340:$S$340,0),MATCH('Pipe Input'!G11,Database!$E$331:$S$331,0)),""), "") ->  | AC11: =IFERROR(IF(E11="RCP",INDEX(Database!$E$283:$BF$283,MATCH('Pipe Input'!$AC$3,Database!$C$283:$BF$283,0),MATCH('Pipe Input'!G11,Database!$E$270:$BF$270,0)),IF(E11="HERCP",INDEX(Database!$E$322:$S$322,MATCH('Pipe Input'!$AC$3,Database!$C$322:$S$322,0),MATCH('Pipe Input'!G11,Database!$E$309:$S$309,0)),IF(E11="HDPE",INDEX(Database!$E$338:$S$338,MATCH('Pipe Input'!$AC$3,Database!$C$338:$S$338,0),MATCH('Pipe Input'!G11,Database!$E$331:$S$331,0)),IF(E11="CMP",INDEX(Database!$E$356:$AS$356,MATCH('Pipe Input'!$AC$3,Database!$C$356:$AS$356,0),MATCH('Pipe Input'!G11,Database!$E$348:$AS$348,0)),"")))),"") ->  | AD11: 0 | AE11: 0 | AF11: 0
B12: 9 | I12: =IFERROR(IF(E12="RCP",INDEX(Database!$E$272:$BF$272,MATCH('Pipe Input'!$I$3,Database!$C$272:$BF$272,0),MATCH('Pipe Input'!G12,Database!$E$270:$BF$270,0)),IF(E12="HERCP",INDEX(Database!$E$312:$S$312,MATCH('Pipe Input'!$I$3,Database!$C$312:$S$312,0),MATCH('Pipe Input'!G12,Database!$E$309:$S$309,0)),IF(E12="HDPE",INDEX(Database!$E$333:$S$333,MATCH('Pipe Input'!$I$3,Database!$C$333:$S$333,0),MATCH('Pipe Input'!G12,Database!$E$331:$S$331,0)),IF(E12="CMP",INDEX(Database!$E$350:$AS$350,MATCH('Pipe Input'!$I$3,Database!$C$350:$AS$350,0),MATCH('Pipe Input'!G12,Database!$E$348:$AS$348,0)),"")))),"") ->  | K12: =IFERROR(IF(E12="RCP",L12,IF(E12="HERCP",M12,IF(E12="HDPE",INDEX(Database!$E$337:$S$337,MATCH('Pipe Input'!$K$3,Database!$C$337:$S$337,0),MATCH('Pipe Input'!G12,Database!$E$331:$S$331,0)),IF(E12="CMP",INDEX(Database!$E$355:$AS$355,MATCH('Pipe Input'!$K$3,Database!$C$355:$AS$355,0),MATCH('Pipe Input'!G12,Database!$E$348:$AS$348,0)),"")))),"") ->  | L12: =IF(E12="RCP",INDEX(Database!$E$277:$BF$281,MATCH('Pipe Input'!$E$2,Database!$C$277:$C$281,0),MATCH('Pipe Input'!G12,Database!$E$270:$BF$270,0)),"") ->  | M12: =IF(E12="HERCP",INDEX(Database!$E$316:$S$320,MATCH('Pipe Input'!$E$2,Database!$C$316:$C$320,0),MATCH('Pipe Input'!G12,Database!$E$309:$S$309,0)),"") ->  | N12: =IF(E12="RCP",Summary!$AN$5,IF(E12="HERCP",Summary!$AN$33,IF(E12="HDPE",Summary!$AN$50,IF(E12="CMP",Summary!$AN$72, "")))) ->  | P12: 0 | Q12: 0 | AA12: =IFERROR(IF(E12="HDPE",INDEX(Database!$E$340:$S$340,MATCH('Pipe Input'!$AA$3,Database!$C$340:$S$340,0),MATCH('Pipe Input'!G12,Database!$E$331:$S$331,0)),""), "") ->  | AC12: =IFERROR(IF(E12="RCP",INDEX(Database!$E$283:$BF$283,MATCH('Pipe Input'!$AC$3,Database!$C$283:$BF$283,0),MATCH('Pipe Input'!G12,Database!$E$270:$BF$270,0)),IF(E12="HERCP",INDEX(Database!$E$322:$S$322,MATCH('Pipe Input'!$AC$3,Database!$C$322:$S$322,0),MATCH('Pipe Input'!G12,Database!$E$309:$S$309,0)),IF(E12="HDPE",INDEX(Database!$E$338:$S$338,MATCH('Pipe Input'!$AC$3,Database!$C$338:$S$338,0),MATCH('Pipe Input'!G12,Database!$E$331:$S$331,0)),IF(E12="CMP",INDEX(Database!$E$356:$AS$356,MATCH('Pipe Input'!$AC$3,Database!$C$356:$AS$356,0),MATCH('Pipe Input'!G12,Database!$E$348:$AS$348,0)),"")))),"") ->  | AD12: 0 | AE12: 0 | AF12: 0
B13: 10 | I13: =IFERROR(IF(E13="RCP",INDEX(Database!$E$272:$BF$272,MATCH('Pipe Input'!$I$3,Database!$C$272:$BF$272,0),MATCH('Pipe Input'!G13,Database!$E$270:$BF$270,0)),IF(E13="HERCP",INDEX(Database!$E$312:$S$312,MATCH('Pipe Input'!$I$3,Database!$C$312:$S$312,0),MATCH('Pipe Input'!G13,Database!$E$309:$S$309,0)),IF(E13="HDPE",INDEX(Database!$E$333:$S$333,MATCH('Pipe Input'!$I$3,Database!$C$333:$S$333,0),MATCH('Pipe Input'!G13,Database!$E$331:$S$331,0)),IF(E13="CMP",INDEX(Database!$E$350:$AS$350,MATCH('Pipe Input'!$I$3,Database!$C$350:$AS$350,0),MATCH('Pipe Input'!G13,Database!$E$348:$AS$348,0)),"")))),"") ->  | K13: =IFERROR(IF(E13="RCP",L13,IF(E13="HERCP",M13,IF(E13="HDPE",INDEX(Database!$E$337:$S$337,MATCH('Pipe Input'!$K$3,Database!$C$337:$S$337,0),MATCH('Pipe Input'!G13,Database!$E$331:$S$331,0)),IF(E13="CMP",INDEX(Database!$E$355:$AS$355,MATCH('Pipe Input'!$K$3,Database!$C$355:$AS$355,0),MATCH('Pipe Input'!G13,Database!$E$348:$AS$348,0)),"")))),"") ->  | L13: =IF(E13="RCP",INDEX(Database!$E$277:$BF$281,MATCH('Pipe Input'!$E$2,Database!$C$277:$C$281,0),MATCH('Pipe Input'!G13,Database!$E$270:$BF$270,0)),"") ->  | M13: =IF(E13="HERCP",INDEX(Database!$E$316:$S$320,MATCH('Pipe Input'!$E$2,Database!$C$316:$C$320,0),MATCH('Pipe Input'!G13,Database!$E$309:$S$309,0)),"") ->  | N13: =IF(E13="RCP",Summary!$AN$5,IF(E13="HERCP",Summary!$AN$33,IF(E13="HDPE",Summary!$AN$50,IF(E13="CMP",Summary!$AN$72, "")))) ->  | P13: 0 | Q13: 0 | AA13: =IFERROR(IF(E13="HDPE",INDEX(Database!$E$340:$S$340,MATCH('Pipe Input'!$AA$3,Database!$C$340:$S$340,0),MATCH('Pipe Input'!G13,Database!$E$331:$S$331,0)),""), "") ->  | AC13: =IFERROR(IF(E13="RCP",INDEX(Database!$E$283:$BF$283,MATCH('Pipe Input'!$AC$3,Database!$C$283:$BF$283,0),MATCH('Pipe Input'!G13,Database!$E$270:$BF$270,0)),IF(E13="HERCP",INDEX(Database!$E$322:$S$322,MATCH('Pipe Input'!$AC$3,Database!$C$322:$S$322,0),MATCH('Pipe Input'!G13,Database!$E$309:$S$309,0)),IF(E13="HDPE",INDEX(Database!$E$338:$S$338,MATCH('Pipe Input'!$AC$3,Database!$C$338:$S$338,0),MATCH('Pipe Input'!G13,Database!$E$331:$S$331,0)),IF(E13="CMP",INDEX(Database!$E$356:$AS$356,MATCH('Pipe Input'!$AC$3,Database!$C$356:$AS$356,0),MATCH('Pipe Input'!G13,Database!$E$348:$AS$348,0)),"")))),"") ->  | AD13: 0 | AE13: 0 | AF13: 0
B14: 11 | I14: =IFERROR(IF(E14="RCP",INDEX(Database!$E$272:$BF$272,MATCH('Pipe Input'!$I$3,Database!$C$272:$BF$272,0),MATCH('Pipe Input'!G14,Database!$E$270:$BF$270,0)),IF(E14="HERCP",INDEX(Database!$E$312:$S$312,MATCH('Pipe Input'!$I$3,Database!$C$312:$S$312,0),MATCH('Pipe Input'!G14,Database!$E$309:$S$309,0)),IF(E14="HDPE",INDEX(Database!$E$333:$S$333,MATCH('Pipe Input'!$I$3,Database!$C$333:$S$333,0),MATCH('Pipe Input'!G14,Database!$E$331:$S$331,0)),IF(E14="CMP",INDEX(Database!$E$350:$AS$350,MATCH('Pipe Input'!$I$3,Database!$C$350:$AS$350,0),MATCH('Pipe Input'!G14,Database!$E$348:$AS$348,0)),"")))),"") ->  | K14: =IFERROR(IF(E14="RCP",L14,IF(E14="HERCP",M14,IF(E14="HDPE",INDEX(Database!$E$337:$S$337,MATCH('Pipe Input'!$K$3,Database!$C$337:$S$337,0),MATCH('Pipe Input'!G14,Database!$E$331:$S$331,0)),IF(E14="CMP",INDEX(Database!$E$355:$AS$355,MATCH('Pipe Input'!$K$3,Database!$C$355:$AS$355,0),MATCH('Pipe Input'!G14,Database!$E$348:$AS$348,0)),"")))),"") ->  | L14: =IF(E14="RCP",INDEX(Database!$E$277:$BF$281,MATCH('Pipe Input'!$E$2,Database!$C$277:$C$281,0),MATCH('Pipe Input'!G14,Database!$E$270:$BF$270,0)),"") ->  | M14: =IF(E14="HERCP",INDEX(Database!$E$316:$S$320,MATCH('Pipe Input'!$E$2,Database!$C$316:$C$320,0),MATCH('Pipe Input'!G14,Database!$E$309:$S$309,0)),"") ->  | N14: =IF(E14="RCP",Summary!$AN$5,IF(E14="HERCP",Summary!$AN$33,IF(E14="HDPE",Summary!$AN$50,IF(E14="CMP",Summary!$AN$72, "")))) ->  | P14: 0 | Q14: 0 | AA14: =IFERROR(IF(E14="HDPE",INDEX(Database!$E$340:$S$340,MATCH('Pipe Input'!$AA$3,Database!$C$340:$S$340,0),MATCH('Pipe Input'!G14,Database!$E$331:$S$331,0)),""), "") ->  | AC14: =IFERROR(IF(E14="RCP",INDEX(Database!$E$283:$BF$283,MATCH('Pipe Input'!$AC$3,Database!$C$283:$BF$283,0),MATCH('Pipe Input'!G14,Database!$E$270:$BF$270,0)),IF(E14="HERCP",INDEX(Database!$E$322:$S$322,MATCH('Pipe Input'!$AC$3,Database!$C$322:$S$322,0),MATCH('Pipe Input'!G14,Database!$E$309:$S$309,0)),IF(E14="HDPE",INDEX(Database!$E$338:$S$338,MATCH('Pipe Input'!$AC$3,Database!$C$338:$S$338,0),MATCH('Pipe Input'!G14,Database!$E$331:$S$331,0)),IF(E14="CMP",INDEX(Database!$E$356:$AS$356,MATCH('Pipe Input'!$AC$3,Database!$C$356:$AS$356,0),MATCH('Pipe Input'!G14,Database!$E$348:$AS$348,0)),"")))),"") ->  | AD14: 0 | AE14: 0 | AF14: 0
B15: =B14+1 -> 12 | I15: =IFERROR(IF(E15="RCP",INDEX(Database!$E$272:$BF$272,MATCH('Pipe Input'!$I$3,Database!$C$272:$BF$272,0),MATCH('Pipe Input'!G15,Database!$E$270:$BF$270,0)),IF(E15="HERCP",INDEX(Database!$E$312:$S$312,MATCH('Pipe Input'!$I$3,Database!$C$312:$S$312,0),MATCH('Pipe Input'!G15,Database!$E$309:$S$309,0)),IF(E15="HDPE",INDEX(Database!$E$333:$S$333,MATCH('Pipe Input'!$I$3,Database!$C$333:$S$333,0),MATCH('Pipe Input'!G15,Database!$E$331:$S$331,0)),IF(E15="CMP",INDEX(Database!$E$350:$AS$350,MATCH('Pipe Input'!$I$3,Database!$C$350:$AS$350,0),MATCH('Pipe Input'!G15,Database!$E$348:$AS$348,0)),"")))),"") ->  | K15: =IFERROR(IF(E15="RCP",L15,IF(E15="HERCP",M15,IF(E15="HDPE",INDEX(Database!$E$337:$S$337,MATCH('Pipe Input'!$K$3,Database!$C$337:$S$337,0),MATCH('Pipe Input'!G15,Database!$E$331:$S$331,0)),IF(E15="CMP",INDEX(Database!$E$355:$AS$355,MATCH('Pipe Input'!$K$3,Database!$C$355:$AS$355,0),MATCH('Pipe Input'!G15,Database!$E$348:$AS$348,0)),"")))),"") ->  | L15: =IF(E15="RCP",INDEX(Database!$E$277:$BF$281,MATCH('Pipe Input'!$E$2,Database!$C$277:$C$281,0),MATCH('Pipe Input'!G15,Database!$E$270:$BF$270,0)),"") ->  | M15: =IF(E15="HERCP",INDEX(Database!$E$316:$S$320,MATCH('Pipe Input'!$E$2,Database!$C$316:$C$320,0),MATCH('Pipe Input'!G15,Database!$E$309:$S$309,0)),"") ->  | N15: =IF(E15="RCP",Summary!$AN$5,IF(E15="HERCP",Summary!$AN$33,IF(E15="HDPE",Summary!$AN$50,IF(E15="CMP",Summary!$AN$72, "")))) ->  | P15: 0 | Q15: 0 | AA15: =IFERROR(IF(E15="HDPE",INDEX(Database!$E$340:$S$340,MATCH('Pipe Input'!$AA$3,Database!$C$340:$S$340,0),MATCH('Pipe Input'!G15,Database!$E$331:$S$331,0)),""), "") ->  | AC15: =IFERROR(IF(E15="RCP",INDEX(Database!$E$283:$BF$283,MATCH('Pipe Input'!$AC$3,Database!$C$283:$BF$283,0),MATCH('Pipe Input'!G15,Database!$E$270:$BF$270,0)),IF(E15="HERCP",INDEX(Database!$E$322:$S$322,MATCH('Pipe Input'!$AC$3,Database!$C$322:$S$322,0),MATCH('Pipe Input'!G15,Database!$E$309:$S$309,0)),IF(E15="HDPE",INDEX(Database!$E$338:$S$338,MATCH('Pipe Input'!$AC$3,Database!$C$338:$S$338,0),MATCH('Pipe Input'!G15,Database!$E$331:$S$331,0)),IF(E15="CMP",INDEX(Database!$E$356:$AS$356,MATCH('Pipe Input'!$AC$3,Database!$C$356:$AS$356,0),MATCH('Pipe Input'!G15,Database!$E$348:$AS$348,0)),"")))),"") ->  | AD15: 0 | AE15: 0 | AF15: 0
B16: 13 | I16: =IFERROR(IF(E16="RCP",INDEX(Database!$E$272:$BF$272,MATCH('Pipe Input'!$I$3,Database!$C$272:$BF$272,0),MATCH('Pipe Input'!G16,Database!$E$270:$BF$270,0)),IF(E16="HERCP",INDEX(Database!$E$312:$S$312,MATCH('Pipe Input'!$I$3,Database!$C$312:$S$312,0),MATCH('Pipe Input'!G16,Database!$E$309:$S$309,0)),IF(E16="HDPE",INDEX(Database!$E$333:$S$333,MATCH('Pipe Input'!$I$3,Database!$C$333:$S$333,0),MATCH('Pipe Input'!G16,Database!$E$331:$S$331,0)),IF(E16="CMP",INDEX(Database!$E$350:$AS$350,MATCH('Pipe Input'!$I$3,Database!$C$350:$AS$350,0),MATCH('Pipe Input'!G16,Database!$E$348:$AS$348,0)),"")))),"") ->  | K16: =IFERROR(IF(E16="RCP",L16,IF(E16="HERCP",M16,IF(E16="HDPE",INDEX(Database!$E$337:$S$337,MATCH('Pipe Input'!$K$3,Database!$C$337:$S$337,0),MATCH('Pipe Input'!G16,Database!$E$331:$S$331,0)),IF(E16="CMP",INDEX(Database!$E$355:$AS$355,MATCH('Pipe Input'!$K$3,Database!$C$355:$AS$355,0),MATCH('Pipe Input'!G16,Database!$E$348:$AS$348,0)),"")))),"") ->  | L16: =IF(E16="RCP",INDEX(Database!$E$277:$BF$281,MATCH('Pipe Input'!$E$2,Database!$C$277:$C$281,0),MATCH('Pipe Input'!G16,Database!$E$270:$BF$270,0)),"") ->  | M16: =IF(E16="HERCP",INDEX(Database!$E$316:$S$320,MATCH('Pipe Input'!$E$2,Database!$C$316:$C$320,0),MATCH('Pipe Input'!G16,Database!$E$309:$S$309,0)),"") ->  | N16: =IF(E16="RCP",Summary!$AN$5,IF(E16="HERCP",Summary!$AN$33,IF(E16="HDPE",Summary!$AN$50,IF(E16="CMP",Summary!$AN$72, "")))) ->  | P16: 0 | Q16: 0 | AA16: =IFERROR(IF(E16="HDPE",INDEX(Database!$E$340:$S$340,MATCH('Pipe Input'!$AA$3,Database!$C$340:$S$340,0),MATCH('Pipe Input'!G16,Database!$E$331:$S$331,0)),""), "") ->  | AC16: =IFERROR(IF(E16="RCP",INDEX(Database!$E$283:$BF$283,MATCH('Pipe Input'!$AC$3,Database!$C$283:$BF$283,0),MATCH('Pipe Input'!G16,Database!$E$270:$BF$270,0)),IF(E16="HERCP",INDEX(Database!$E$322:$S$322,MATCH('Pipe Input'!$AC$3,Database!$C$322:$S$322,0),MATCH('Pipe Input'!G16,Database!$E$309:$S$309,0)),IF(E16="HDPE",INDEX(Database!$E$338:$S$338,MATCH('Pipe Input'!$AC$3,Database!$C$338:$S$338,0),MATCH('Pipe Input'!G16,Database!$E$331:$S$331,0)),IF(E16="CMP",INDEX(Database!$E$356:$AS$356,MATCH('Pipe Input'!$AC$3,Database!$C$356:$AS$356,0),MATCH('Pipe Input'!G16,Database!$E$348:$AS$348,0)),"")))),"") ->  | AD16: 0 | AE16: 0 | AF16: 0
B17: 14 | I17: =IFERROR(IF(E17="RCP",INDEX(Database!$E$272:$BF$272,MATCH('Pipe Input'!$I$3,Database!$C$272:$BF$272,0),MATCH('Pipe Input'!G17,Database!$E$270:$BF$270,0)),IF(E17="HERCP",INDEX(Database!$E$312:$S$312,MATCH('Pipe Input'!$I$3,Database!$C$312:$S$312,0),MATCH('Pipe Input'!G17,Database!$E$309:$S$309,0)),IF(E17="HDPE",INDEX(Database!$E$333:$S$333,MATCH('Pipe Input'!$I$3,Database!$C$333:$S$333,0),MATCH('Pipe Input'!G17,Database!$E$331:$S$331,0)),IF(E17="CMP",INDEX(Database!$E$350:$AS$350,MATCH('Pipe Input'!$I$3,Database!$C$350:$AS$350,0),MATCH('Pipe Input'!G17,Database!$E$348:$AS$348,0)),"")))),"") ->  | K17: =IFERROR(IF(E17="RCP",L17,IF(E17="HERCP",M17,IF(E17="HDPE",INDEX(Database!$E$337:$S$337,MATCH('Pipe Input'!$K$3,Database!$C$337:$S$337,0),MATCH('Pipe Input'!G17,Database!$E$331:$S$331,0)),IF(E17="CMP",INDEX(Database!$E$355:$AS$355,MATCH('Pipe Input'!$K$3,Database!$C$355:$AS$355,0),MATCH('Pipe Input'!G17,Database!$E$348:$AS$348,0)),"")))),"") ->  | L17: =IF(E17="RCP",INDEX(Database!$E$277:$BF$281,MATCH('Pipe Input'!$E$2,Database!$C$277:$C$281,0),MATCH('Pipe Input'!G17,Database!$E$270:$BF$270,0)),"") ->  | M17: =IF(E17="HERCP",INDEX(Database!$E$316:$S$320,MATCH('Pipe Input'!$E$2,Database!$C$316:$C$320,0),MATCH('Pipe Input'!G17,Database!$E$309:$S$309,0)),"") ->  | N17: =IF(E17="RCP",Summary!$AN$5,IF(E17="HERCP",Summary!$AN$33,IF(E17="HDPE",Summary!$AN$50,IF(E17="CMP",Summary!$AN$72, "")))) ->  | P17: 0 | Q17: 0 | AA17: =IFERROR(IF(E17="HDPE",INDEX(Database!$E$340:$S$340,MATCH('Pipe Input'!$AA$3,Database!$C$340:$S$340,0),MATCH('Pipe Input'!G17,Database!$E$331:$S$331,0)),""), "") ->  | AC17: =IFERROR(IF(E17="RCP",INDEX(Database!$E$283:$BF$283,MATCH('Pipe Input'!$AC$3,Database!$C$283:$BF$283,0),MATCH('Pipe Input'!G17,Database!$E$270:$BF$270,0)),IF(E17="HERCP",INDEX(Database!$E$322:$S$322,MATCH('Pipe Input'!$AC$3,Database!$C$322:$S$322,0),MATCH('Pipe Input'!G17,Database!$E$309:$S$309,0)),IF(E17="HDPE",INDEX(Database!$E$338:$S$338,MATCH('Pipe Input'!$AC$3,Database!$C$338:$S$338,0),MATCH('Pipe Input'!G17,Database!$E$331:$S$331,0)),IF(E17="CMP",INDEX(Database!$E$356:$AS$356,MATCH('Pipe Input'!$AC$3,Database!$C$356:$AS$356,0),MATCH('Pipe Input'!G17,Database!$E$348:$AS$348,0)),"")))),"") ->  | AD17: 0 | AE17: 0 | AF17: 0
B18: 15 | I18: =IFERROR(IF(E18="RCP",INDEX(Database!$E$272:$BF$272,MATCH('Pipe Input'!$I$3,Database!$C$272:$BF$272,0),MATCH('Pipe Input'!G18,Database!$E$270:$BF$270,0)),IF(E18="HERCP",INDEX(Database!$E$312:$S$312,MATCH('Pipe Input'!$I$3,Database!$C$312:$S$312,0),MATCH('Pipe Input'!G18,Database!$E$309:$S$309,0)),IF(E18="HDPE",INDEX(Database!$E$333:$S$333,MATCH('Pipe Input'!$I$3,Database!$C$333:$S$333,0),MATCH('Pipe Input'!G18,Database!$E$331:$S$331,0)),IF(E18="CMP",INDEX(Database!$E$350:$AS$350,MATCH('Pipe Input'!$I$3,Database!$C$350:$AS$350,0),MATCH('Pipe Input'!G18,Database!$E$348:$AS$348,0)),"")))),"") ->  | K18: =IFERROR(IF(E18="RCP",L18,IF(E18="HERCP",M18,IF(E18="HDPE",INDEX(Database!$E$337:$S$337,MATCH('Pipe Input'!$K$3,Database!$C$337:$S$337,0),MATCH('Pipe Input'!G18,Database!$E$331:$S$331,0)),IF(E18="CMP",INDEX(Database!$E$355:$AS$355,MATCH('Pipe Input'!$K$3,Database!$C$355:$AS$355,0),MATCH('Pipe Input'!G18,Database!$E$348:$AS$348,0)),"")))),"") ->  | L18: =IF(E18="RCP",INDEX(Database!$E$277:$BF$281,MATCH('Pipe Input'!$E$2,Database!$C$277:$C$281,0),MATCH('Pipe Input'!G18,Database!$E$270:$BF$270,0)),"") ->  | M18: =IF(E18="HERCP",INDEX(Database!$E$316:$S$320,MATCH('Pipe Input'!$E$2,Database!$C$316:$C$320,0),MATCH('Pipe Input'!G18,Database!$E$309:$S$309,0)),"") ->  | N18: =IF(E18="RCP",Summary!$AN$5,IF(E18="HERCP",Summary!$AN$33,IF(E18="HDPE",Summary!$AN$50,IF(E18="CMP",Summary!$AN$72, "")))) ->  | O18: =IFERROR(J18,"") ->  | P18: 0 | Q18: 0 | AA18: =IFERROR(IF(E18="HDPE",INDEX(Database!$E$340:$S$340,MATCH('Pipe Input'!$AA$3,Database!$C$340:$S$340,0),MATCH('Pipe Input'!G18,Database!$E$331:$S$331,0)),""), "") ->  | AC18: =IFERROR(IF(E18="RCP",INDEX(Database!$E$283:$BF$283,MATCH('Pipe Input'!$AC$3,Database!$C$283:$BF$283,0),MATCH('Pipe Input'!G18,Database!$E$270:$BF$270,0)),IF(E18="HERCP",INDEX(Database!$E$322:$S$322,MATCH('Pipe Input'!$AC$3,Database!$C$322:$S$322,0),MATCH('Pipe Input'!G18,Database!$E$309:$S$309,0)),IF(E18="HDPE",INDEX(Database!$E$338:$S$338,MATCH('Pipe Input'!$AC$3,Database!$C$338:$S$338,0),MATCH('Pipe Input'!G18,Database!$E$331:$S$331,0)),IF(E18="CMP",INDEX(Database!$E$356:$AS$356,MATCH('Pipe Input'!$AC$3,Database!$C$356:$AS$356,0),MATCH('Pipe Input'!G18,Database!$E$348:$AS$348,0)),"")))),"") ->  | AD18: 0 | AE18: =SUM(AH18:AAG18) -> 0 | AF18: 0
B19: 16 | F19: =IF(AND(OR(D19="HDPE",D19="CMP"),E19="RCP"),"Alternate","") ->  | I19: =IFERROR(IF(E19="RCP",INDEX(Database!$E$272:$BF$272,MATCH('Pipe Input'!$I$3,Database!$C$272:$BF$272,0),MATCH('Pipe Input'!G19,Database!$E$270:$BF$270,0)),IF(E19="HERCP",INDEX(Database!$E$312:$S$312,MATCH('Pipe Input'!$I$3,Database!$C$312:$S$312,0),MATCH('Pipe Input'!G19,Database!$E$309:$S$309,0)),IF(E19="HDPE",INDEX(Database!$E$333:$S$333,MATCH('Pipe Input'!$I$3,Database!$C$333:$S$333,0),MATCH('Pipe Input'!G19,Database!$E$331:$S$331,0)),IF(E19="CMP",INDEX(Database!$E$350:$AS$350,MATCH('Pipe Input'!$I$3,Database!$C$350:$AS$350,0),MATCH('Pipe Input'!G19,Database!$E$348:$AS$348,0)),"")))),"") ->  | K19: =IFERROR(IF(E19="RCP",L19,IF(E19="HERCP",M19,IF(E19="HDPE",INDEX(Database!$E$337:$S$337,MATCH('Pipe Input'!$K$3,Database!$C$337:$S$337,0),MATCH('Pipe Input'!G19,Database!$E$331:$S$331,0)),IF(E19="CMP",INDEX(Database!$E$355:$AS$355,MATCH('Pipe Input'!$K$3,Database!$C$355:$AS$355,0),MATCH('Pipe Input'!G19,Database!$E$348:$AS$348,0)),"")))),"") ->  | L19: =IF(E19="RCP",INDEX(Database!$E$277:$BF$281,MATCH('Pipe Input'!$E$2,Database!$C$277:$C$281,0),MATCH('Pipe Input'!G19,Database!$E$270:$BF$270,0)),"") ->  | M19: =IF(E19="HERCP",INDEX(Database!$E$316:$S$320,MATCH('Pipe Input'!$E$2,Database!$C$316:$C$320,0),MATCH('Pipe Input'!G19,Database!$E$309:$S$309,0)),"") ->  | N19: =IF(E19="RCP",Summary!$AN$5,IF(E19="HERCP",Summary!$AN$33,IF(E19="HDPE",Summary!$AN$50,IF(E19="CMP",Summary!$AN$72, "")))) ->  | P19: =IF(AF19>0,Q19, 0) -> 0 | Q19: 0 | AA19: =IFERROR(IF(E19="HDPE",INDEX(Database!$E$340:$S$340,MATCH('Pipe Input'!$AA$3,Database!$C$340:$S$340,0),MATCH('Pipe Input'!G19,Database!$E$331:$S$331,0)),""), "") ->  | AC19: =IFERROR(IF(E19="RCP",INDEX(Database!$E$283:$BF$283,MATCH('Pipe Input'!$AC$3,Database!$C$283:$BF$283,0),MATCH('Pipe Input'!G19,Database!$E$270:$BF$270,0)),IF(E19="HERCP",INDEX(Database!$E$322:$S$322,MATCH('Pipe Input'!$AC$3,Database!$C$322:$S$322,0),MATCH('Pipe Input'!G19,Database!$E$309:$S$309,0)),IF(E19="HDPE",INDEX(Database!$E$338:$S$338,MATCH('Pipe Input'!$AC$3,Database!$C$338:$S$338,0),MATCH('Pipe Input'!G19,Database!$E$331:$S$331,0)),IF(E19="CMP",INDEX(Database!$E$356:$AS$356,MATCH('Pipe Input'!$AC$3,Database!$C$356:$AS$356,0),MATCH('Pipe Input'!G19,Database!$E$348:$AS$348,0)),"")))),"") ->  | AD19: 0 | AE19: 0 | AF19: 0
B20: 17 | I20: =IFERROR(IF(E20="RCP",INDEX(Database!$E$272:$BF$272,MATCH('Pipe Input'!$I$3,Database!$C$272:$BF$272,0),MATCH('Pipe Input'!G20,Database!$E$270:$BF$270,0)),IF(E20="HERCP",INDEX(Database!$E$312:$S$312,MATCH('Pipe Input'!$I$3,Database!$C$312:$S$312,0),MATCH('Pipe Input'!G20,Database!$E$309:$S$309,0)),IF(E20="HDPE",INDEX(Database!$E$333:$S$333,MATCH('Pipe Input'!$I$3,Database!$C$333:$S$333,0),MATCH('Pipe Input'!G20,Database!$E$331:$S$331,0)),IF(E20="CMP",INDEX(Database!$E$350:$AS$350,MATCH('Pipe Input'!$I$3,Database!$C$350:$AS$350,0),MATCH('Pipe Input'!G20,Database!$E$348:$AS$348,0)),"")))),"") ->  | K20: =IFERROR(IF(E20="RCP",L20,IF(E20="HERCP",M20,IF(E20="HDPE",INDEX(Database!$E$337:$S$337,MATCH('Pipe Input'!$K$3,Database!$C$337:$S$337,0),MATCH('Pipe Input'!G20,Database!$E$331:$S$331,0)),IF(E20="CMP",INDEX(Database!$E$355:$AS$355,MATCH('Pipe Input'!$K$3,Database!$C$355:$AS$355,0),MATCH('Pipe Input'!G20,Database!$E$348:$AS$348,0)),"")))),"") ->  | L20: =IF(E20="RCP",INDEX(Database!$E$277:$BF$281,MATCH('Pipe Input'!$E$2,Database!$C$277:$C$281,0),MATCH('Pipe Input'!G20,Database!$E$270:$BF$270,0)),"") ->  | M20: =IF(E20="HERCP",INDEX(Database!$E$316:$S$320,MATCH('Pipe Input'!$E$2,Database!$C$316:$C$320,0),MATCH('Pipe Input'!G20,Database!$E$309:$S$309,0)),"") ->  | N20: =IF(E20="RCP",Summary!$AN$5,IF(E20="HERCP",Summary!$AN$33,IF(E20="HDPE",Summary!$AN$50,IF(E20="CMP",Summary!$AN$72, "")))) ->  | P20: =IF(AF20>0,Q20, 0) -> 0 | Q20: 0 | AA20: =IFERROR(IF(E20="HDPE",INDEX(Database!$E$340:$S$340,MATCH('Pipe Input'!$AA$3,Database!$C$340:$S$340,0),MATCH('Pipe Input'!G20,Database!$E$331:$S$331,0)),""), "") ->  | AC20: =IFERROR(IF(E20="RCP",INDEX(Database!$E$283:$BF$283,MATCH('Pipe Input'!$AC$3,Database!$C$283:$BF$283,0),MATCH('Pipe Input'!G20,Database!$E$270:$BF$270,0)),IF(E20="HERCP",INDEX(Database!$E$322:$S$322,MATCH('Pipe Input'!$AC$3,Database!$C$322:$S$322,0),MATCH('Pipe Input'!G20,Database!$E$309:$S$309,0)),IF(E20="HDPE",INDEX(Database!$E$338:$S$338,MATCH('Pipe Input'!$AC$3,Database!$C$338:$S$338,0),MATCH('Pipe Input'!G20,Database!$E$331:$S$331,0)),IF(E20="CMP",INDEX(Database!$E$356:$AS$356,MATCH('Pipe Input'!$AC$3,Database!$C$356:$AS$356,0),MATCH('Pipe Input'!G20,Database!$E$348:$AS$348,0)),"")))),"") ->  | AD20: 0 | AE20: 0 | AF20: 0
B21: 18 | I21: =IFERROR(IF(E21="RCP",INDEX(Database!$E$272:$BF$272,MATCH('Pipe Input'!$I$3,Database!$C$272:$BF$272,0),MATCH('Pipe Input'!G21,Database!$E$270:$BF$270,0)),IF(E21="HERCP",INDEX(Database!$E$312:$S$312,MATCH('Pipe Input'!$I$3,Database!$C$312:$S$312,0),MATCH('Pipe Input'!G21,Database!$E$309:$S$309,0)),IF(E21="HDPE",INDEX(Database!$E$333:$S$333,MATCH('Pipe Input'!$I$3,Database!$C$333:$S$333,0),MATCH('Pipe Input'!G21,Database!$E$331:$S$331,0)),IF(E21="CMP",INDEX(Database!$E$350:$AS$350,MATCH('Pipe Input'!$I$3,Database!$C$350:$AS$350,0),MATCH('Pipe Input'!G21,Database!$E$348:$AS$348,0)),"")))),"") ->  | K21: =IFERROR(IF(E21="RCP",L21,IF(E21="HERCP",M21,IF(E21="HDPE",INDEX(Database!$E$337:$S$337,MATCH('Pipe Input'!$K$3,Database!$C$337:$S$337,0),MATCH('Pipe Input'!G21,Database!$E$331:$S$331,0)),IF(E21="CMP",INDEX(Database!$E$355:$AS$355,MATCH('Pipe Input'!$K$3,Database!$C$355:$AS$355,0),MATCH('Pipe Input'!G21,Database!$E$348:$AS$348,0)),"")))),"") ->  | L21: =IF(E21="RCP",INDEX(Database!$E$277:$BF$281,MATCH('Pipe Input'!$E$2,Database!$C$277:$C$281,0),MATCH('Pipe Input'!G21,Database!$E$270:$BF$270,0)),"") ->  | M21: =IF(E21="HERCP",INDEX(Database!$E$316:$S$320,MATCH('Pipe Input'!$E$2,Database!$C$316:$C$320,0),MATCH('Pipe Input'!G21,Database!$E$309:$S$309,0)),"") ->  | N21: =IF(E21="RCP",Summary!$AN$5,IF(E21="HERCP",Summary!$AN$33,IF(E21="HDPE",Summary!$AN$50,IF(E21="CMP",Summary!$AN$72, "")))) ->  | P21: 0 | Q21: 0 | AA21: =IFERROR(IF(E21="HDPE",INDEX(Database!$E$340:$S$340,MATCH('Pipe Input'!$AA$3,Database!$C$340:$S$340,0),MATCH('Pipe Input'!G21,Database!$E$331:$S$331,0)),""), "") ->  | AC21: =IFERROR(IF(E21="RCP",INDEX(Database!$E$283:$BF$283,MATCH('Pipe Input'!$AC$3,Database!$C$283:$BF$283,0),MATCH('Pipe Input'!G21,Database!$E$270:$BF$270,0)),IF(E21="HERCP",INDEX(Database!$E$322:$S$322,MATCH('Pipe Input'!$AC$3,Database!$C$322:$S$322,0),MATCH('Pipe Input'!G21,Database!$E$309:$S$309,0)),IF(E21="HDPE",INDEX(Database!$E$338:$S$338,MATCH('Pipe Input'!$AC$3,Database!$C$338:$S$338,0),MATCH('Pipe Input'!G21,Database!$E$331:$S$331,0)),IF(E21="CMP",INDEX(Database!$E$356:$AS$356,MATCH('Pipe Input'!$AC$3,Database!$C$356:$AS$356,0),MATCH('Pipe Input'!G21,Database!$E$348:$AS$348,0)),"")))),"") ->  | AD21: 0 | AE21: 0 | AF21: 0
B22: 19 | I22: =IFERROR(IF(E22="RCP",INDEX(Database!$E$272:$BF$272,MATCH('Pipe Input'!$I$3,Database!$C$272:$BF$272,0),MATCH('Pipe Input'!G22,Database!$E$270:$BF$270,0)),IF(E22="HERCP",INDEX(Database!$E$312:$S$312,MATCH('Pipe Input'!$I$3,Database!$C$312:$S$312,0),MATCH('Pipe Input'!G22,Database!$E$309:$S$309,0)),IF(E22="HDPE",INDEX(Database!$E$333:$S$333,MATCH('Pipe Input'!$I$3,Database!$C$333:$S$333,0),MATCH('Pipe Input'!G22,Database!$E$331:$S$331,0)),IF(E22="CMP",INDEX(Database!$E$350:$AS$350,MATCH('Pipe Input'!$I$3,Database!$C$350:$AS$350,0),MATCH('Pipe Input'!G22,Database!$E$348:$AS$348,0)),"")))),"") ->  | K22: =IFERROR(IF(E22="RCP",L22,IF(E22="HERCP",M22,IF(E22="HDPE",INDEX(Database!$E$337:$S$337,MATCH('Pipe Input'!$K$3,Database!$C$337:$S$337,0),MATCH('Pipe Input'!G22,Database!$E$331:$S$331,0)),IF(E22="CMP",INDEX(Database!$E$355:$AS$355,MATCH('Pipe Input'!$K$3,Database!$C$355:$AS$355,0),MATCH('Pipe Input'!G22,Database!$E$348:$AS$348,0)),"")))),"") ->  | L22: =IF(E22="RCP",INDEX(Database!$E$277:$BF$281,MATCH('Pipe Input'!$E$2,Database!$C$277:$C$281,0),MATCH('Pipe Input'!G22,Database!$E$270:$BF$270,0)),"") ->  | M22: =IF(E22="HERCP",INDEX(Database!$E$316:$S$320,MATCH('Pipe Input'!$E$2,Database!$C$316:$C$320,0),MATCH('Pipe Input'!G22,Database!$E$309:$S$309,0)),"") ->  | N22: =IF(E22="RCP",Summary!$AN$5,IF(E22="HERCP",Summary!$AN$33,IF(E22="HDPE",Summary!$AN$50,IF(E22="CMP",Summary!$AN$72, "")))) ->  | P22: 0 | Q22: 0 | AA22: =IFERROR(IF(E22="HDPE",INDEX(Database!$E$340:$S$340,MATCH('Pipe Input'!$AA$3,Database!$C$340:$S$340,0),MATCH('Pipe Input'!G22,Database!$E$331:$S$331,0)),""), "") ->  | AC22: =IFERROR(IF(E22="RCP",INDEX(Database!$E$283:$BF$283,MATCH('Pipe Input'!$AC$3,Database!$C$283:$BF$283,0),MATCH('Pipe Input'!G22,Database!$E$270:$BF$270,0)),IF(E22="HERCP",INDEX(Database!$E$322:$S$322,MATCH('Pipe Input'!$AC$3,Database!$C$322:$S$322,0),MATCH('Pipe Input'!G22,Database!$E$309:$S$309,0)),IF(E22="HDPE",INDEX(Database!$E$338:$S$338,MATCH('Pipe Input'!$AC$3,Database!$C$338:$S$338,0),MATCH('Pipe Input'!G22,Database!$E$331:$S$331,0)),IF(E22="CMP",INDEX(Database!$E$356:$AS$356,MATCH('Pipe Input'!$AC$3,Database!$C$356:$AS$356,0),MATCH('Pipe Input'!G22,Database!$E$348:$AS$348,0)),"")))),"") ->  | AD22: 0 | AE22: 0 | AF22: 0
B23: 20 | I23: =IFERROR(IF(E23="RCP",INDEX(Database!$E$272:$BF$272,MATCH('Pipe Input'!$I$3,Database!$C$272:$BF$272,0),MATCH('Pipe Input'!G23,Database!$E$270:$BF$270,0)),IF(E23="HERCP",INDEX(Database!$E$312:$S$312,MATCH('Pipe Input'!$I$3,Database!$C$312:$S$312,0),MATCH('Pipe Input'!G23,Database!$E$309:$S$309,0)),IF(E23="HDPE",INDEX(Database!$E$333:$S$333,MATCH('Pipe Input'!$I$3,Database!$C$333:$S$333,0),MATCH('Pipe Input'!G23,Database!$E$331:$S$331,0)),IF(E23="CMP",INDEX(Database!$E$350:$AS$350,MATCH('Pipe Input'!$I$3,Database!$C$350:$AS$350,0),MATCH('Pipe Input'!G23,Database!$E$348:$AS$348,0)),"")))),"") ->  | K23: =IFERROR(IF(E23="RCP",L23,IF(E23="HERCP",M23,IF(E23="HDPE",INDEX(Database!$E$337:$S$337,MATCH('Pipe Input'!$K$3,Database!$C$337:$S$337,0),MATCH('Pipe Input'!G23,Database!$E$331:$S$331,0)),IF(E23="CMP",INDEX(Database!$E$355:$AS$355,MATCH('Pipe Input'!$K$3,Database!$C$355:$AS$355,0),MATCH('Pipe Input'!G23,Database!$E$348:$AS$348,0)),"")))),"") ->  | L23: =IF(E23="RCP",INDEX(Database!$E$277:$BF$281,MATCH('Pipe Input'!$E$2,Database!$C$277:$C$281,0),MATCH('Pipe Input'!G23,Database!$E$270:$BF$270,0)),"") ->  | M23: =IF(E23="HERCP",INDEX(Database!$E$316:$S$320,MATCH('Pipe Input'!$E$2,Database!$C$316:$C$320,0),MATCH('Pipe Input'!G23,Database!$E$309:$S$309,0)),"") ->  | N23: =IF(E23="RCP",Summary!$AN$5,IF(E23="HERCP",Summary!$AN$33,IF(E23="HDPE",Summary!$AN$50,IF(E23="CMP",Summary!$AN$72, "")))) ->  | P23: 0 | Q23: 0 | AA23: =IFERROR(IF(E23="HDPE",INDEX(Database!$E$340:$S$340,MATCH('Pipe Input'!$AA$3,Database!$C$340:$S$340,0),MATCH('Pipe Input'!G23,Database!$E$331:$S$331,0)),""), "") ->  | AC23: =IFERROR(IF(E23="RCP",INDEX(Database!$E$283:$BF$283,MATCH('Pipe Input'!$AC$3,Database!$C$283:$BF$283,0),MATCH('Pipe Input'!G23,Database!$E$270:$BF$270,0)),IF(E23="HERCP",INDEX(Database!$E$322:$S$322,MATCH('Pipe Input'!$AC$3,Database!$C$322:$S$322,0),MATCH('Pipe Input'!G23,Database!$E$309:$S$309,0)),IF(E23="HDPE",INDEX(Database!$E$338:$S$338,MATCH('Pipe Input'!$AC$3,Database!$C$338:$S$338,0),MATCH('Pipe Input'!G23,Database!$E$331:$S$331,0)),IF(E23="CMP",INDEX(Database!$E$356:$AS$356,MATCH('Pipe Input'!$AC$3,Database!$C$356:$AS$356,0),MATCH('Pipe Input'!G23,Database!$E$348:$AS$348,0)),"")))),"") ->  | AD23: 0 | AE23: 0 | AF23: 0
B24: 21 | I24: =IFERROR(IF(E24="RCP",INDEX(Database!$E$272:$BF$272,MATCH('Pipe Input'!$I$3,Database!$C$272:$BF$272,0),MATCH('Pipe Input'!G24,Database!$E$270:$BF$270,0)),IF(E24="HERCP",INDEX(Database!$E$312:$S$312,MATCH('Pipe Input'!$I$3,Database!$C$312:$S$312,0),MATCH('Pipe Input'!G24,Database!$E$309:$S$309,0)),IF(E24="HDPE",INDEX(Database!$E$333:$S$333,MATCH('Pipe Input'!$I$3,Database!$C$333:$S$333,0),MATCH('Pipe Input'!G24,Database!$E$331:$S$331,0)),IF(E24="CMP",INDEX(Database!$E$350:$AS$350,MATCH('Pipe Input'!$I$3,Database!$C$350:$AS$350,0),MATCH('Pipe Input'!G24,Database!$E$348:$AS$348,0)),"")))),"") ->  | K24: =IFERROR(IF(E24="RCP",L24,IF(E24="HERCP",M24,IF(E24="HDPE",INDEX(Database!$E$337:$S$337,MATCH('Pipe Input'!$K$3,Database!$C$337:$S$337,0),MATCH('Pipe Input'!G24,Database!$E$331:$S$331,0)),IF(E24="CMP",INDEX(Database!$E$355:$AS$355,MATCH('Pipe Input'!$K$3,Database!$C$355:$AS$355,0),MATCH('Pipe Input'!G24,Database!$E$348:$AS$348,0)),"")))),"") ->  | L24: =IF(E24="RCP",INDEX(Database!$E$277:$BF$281,MATCH('Pipe Input'!$E$2,Database!$C$277:$C$281,0),MATCH('Pipe Input'!G24,Database!$E$270:$BF$270,0)),"") ->  | M24: =IF(E24="HERCP",INDEX(Database!$E$316:$S$320,MATCH('Pipe Input'!$E$2,Database!$C$316:$C$320,0),MATCH('Pipe Input'!G24,Database!$E$309:$S$309,0)),"") ->  | N24: =IF(E24="RCP",Summary!$AN$5,IF(E24="HERCP",Summary!$AN$33,IF(E24="HDPE",Summary!$AN$50,IF(E24="CMP",Summary!$AN$72, "")))) ->  | P24: 0 | Q24: 0 | AA24: =IFERROR(IF(E24="HDPE",INDEX(Database!$E$340:$S$340,MATCH('Pipe Input'!$AA$3,Database!$C$340:$S$340,0),MATCH('Pipe Input'!G24,Database!$E$331:$S$331,0)),""), "") ->  | AC24: =IFERROR(IF(E24="RCP",INDEX(Database!$E$283:$BF$283,MATCH('Pipe Input'!$AC$3,Database!$C$283:$BF$283,0),MATCH('Pipe Input'!G24,Database!$E$270:$BF$270,0)),IF(E24="HERCP",INDEX(Database!$E$322:$S$322,MATCH('Pipe Input'!$AC$3,Database!$C$322:$S$322,0),MATCH('Pipe Input'!G24,Database!$E$309:$S$309,0)),IF(E24="HDPE",INDEX(Database!$E$338:$S$338,MATCH('Pipe Input'!$AC$3,Database!$C$338:$S$338,0),MATCH('Pipe Input'!G24,Database!$E$331:$S$331,0)),IF(E24="CMP",INDEX(Database!$E$356:$AS$356,MATCH('Pipe Input'!$AC$3,Database!$C$356:$AS$356,0),MATCH('Pipe Input'!G24,Database!$E$348:$AS$348,0)),"")))),"") ->  | AD24: 0 | AE24: 0 | AF24: 0
B25: 22 | I25: =IFERROR(IF(E25="RCP",INDEX(Database!$E$272:$BF$272,MATCH('Pipe Input'!$I$3,Database!$C$272:$BF$272,0),MATCH('Pipe Input'!G25,Database!$E$270:$BF$270,0)),IF(E25="HERCP",INDEX(Database!$E$312:$S$312,MATCH('Pipe Input'!$I$3,Database!$C$312:$S$312,0),MATCH('Pipe Input'!G25,Database!$E$309:$S$309,0)),IF(E25="HDPE",INDEX(Database!$E$333:$S$333,MATCH('Pipe Input'!$I$3,Database!$C$333:$S$333,0),MATCH('Pipe Input'!G25,Database!$E$331:$S$331,0)),IF(E25="CMP",INDEX(Database!$E$350:$AS$350,MATCH('Pipe Input'!$I$3,Database!$C$350:$AS$350,0),MATCH('Pipe Input'!G25,Database!$E$348:$AS$348,0)),"")))),"") ->  | K25: =IFERROR(IF(E25="RCP",L25,IF(E25="HERCP",M25,IF(E25="HDPE",INDEX(Database!$E$337:$S$337,MATCH('Pipe Input'!$K$3,Database!$C$337:$S$337,0),MATCH('Pipe Input'!G25,Database!$E$331:$S$331,0)),IF(E25="CMP",INDEX(Database!$E$355:$AS$355,MATCH('Pipe Input'!$K$3,Database!$C$355:$AS$355,0),MATCH('Pipe Input'!G25,Database!$E$348:$AS$348,0)),"")))),"") ->  | L25: =IF(E25="RCP",INDEX(Database!$E$277:$BF$281,MATCH('Pipe Input'!$E$2,Database!$C$277:$C$281,0),MATCH('Pipe Input'!G25,Database!$E$270:$BF$270,0)),"") ->  | M25: =IF(E25="HERCP",INDEX(Database!$E$316:$S$320,MATCH('Pipe Input'!$E$2,Database!$C$316:$C$320,0),MATCH('Pipe Input'!G25,Database!$E$309:$S$309,0)),"") ->  | N25: =IF(E25="RCP",Summary!$AN$5,IF(E25="HERCP",Summary!$AN$33,IF(E25="HDPE",Summary!$AN$50,IF(E25="CMP",Summary!$AN$72, "")))) ->  | P25: 0 | Q25: 0 | AA25: =IFERROR(IF(E25="HDPE",INDEX(Database!$E$340:$S$340,MATCH('Pipe Input'!$AA$3,Database!$C$340:$S$340,0),MATCH('Pipe Input'!G25,Database!$E$331:$S$331,0)),""), "") ->  | AC25: =IFERROR(IF(E25="RCP",INDEX(Database!$E$283:$BF$283,MATCH('Pipe Input'!$AC$3,Database!$C$283:$BF$283,0),MATCH('Pipe Input'!G25,Database!$E$270:$BF$270,0)),IF(E25="HERCP",INDEX(Database!$E$322:$S$322,MATCH('Pipe Input'!$AC$3,Database!$C$322:$S$322,0),MATCH('Pipe Input'!G25,Database!$E$309:$S$309,0)),IF(E25="HDPE",INDEX(Database!$E$338:$S$338,MATCH('Pipe Input'!$AC$3,Database!$C$338:$S$338,0),MATCH('Pipe Input'!G25,Database!$E$331:$S$331,0)),IF(E25="CMP",INDEX(Database!$E$356:$AS$356,MATCH('Pipe Input'!$AC$3,Database!$C$356:$AS$356,0),MATCH('Pipe Input'!G25,Database!$E$348:$AS$348,0)),"")))),"") ->  | AD25: 0 | AE25: 0 | AF25: 0
B26: 23 | I26: =IFERROR(IF(E26="RCP",INDEX(Database!$E$272:$BF$272,MATCH('Pipe Input'!$I$3,Database!$C$272:$BF$272,0),MATCH('Pipe Input'!G26,Database!$E$270:$BF$270,0)),IF(E26="HERCP",INDEX(Database!$E$312:$S$312,MATCH('Pipe Input'!$I$3,Database!$C$312:$S$312,0),MATCH('Pipe Input'!G26,Database!$E$309:$S$309,0)),IF(E26="HDPE",INDEX(Database!$E$333:$S$333,MATCH('Pipe Input'!$I$3,Database!$C$333:$S$333,0),MATCH('Pipe Input'!G26,Database!$E$331:$S$331,0)),IF(E26="CMP",INDEX(Database!$E$350:$AS$350,MATCH('Pipe Input'!$I$3,Database!$C$350:$AS$350,0),MATCH('Pipe Input'!G26,Database!$E$348:$AS$348,0)),"")))),"") ->  | K26: =IFERROR(IF(E26="RCP",L26,IF(E26="HERCP",M26,IF(E26="HDPE",INDEX(Database!$E$337:$S$337,MATCH('Pipe Input'!$K$3,Database!$C$337:$S$337,0),MATCH('Pipe Input'!G26,Database!$E$331:$S$331,0)),IF(E26="CMP",INDEX(Database!$E$355:$AS$355,MATCH('Pipe Input'!$K$3,Database!$C$355:$AS$355,0),MATCH('Pipe Input'!G26,Database!$E$348:$AS$348,0)),"")))),"") ->  | L26: =IF(E26="RCP",INDEX(Database!$E$277:$BF$281,MATCH('Pipe Input'!$E$2,Database!$C$277:$C$281,0),MATCH('Pipe Input'!G26,Database!$E$270:$BF$270,0)),"") ->  | M26: =IF(E26="HERCP",INDEX(Database!$E$316:$S$320,MATCH('Pipe Input'!$E$2,Database!$C$316:$C$320,0),MATCH('Pipe Input'!G26,Database!$E$309:$S$309,0)),"") ->  | N26: =IF(E26="RCP",Summary!$AN$5,IF(E26="HERCP",Summary!$AN$33,IF(E26="HDPE",Summary!$AN$50,IF(E26="CMP",Summary!$AN$72, "")))) ->  | P26: 0 | Q26: 0 | AA26: =IFERROR(IF(E26="HDPE",INDEX(Database!$E$340:$S$340,MATCH('Pipe Input'!$AA$3,Database!$C$340:$S$340,0),MATCH('Pipe Input'!G26,Database!$E$331:$S$331,0)),""), "") ->  | AC26: =IFERROR(IF(E26="RCP",INDEX(Database!$E$283:$BF$283,MATCH('Pipe Input'!$AC$3,Database!$C$283:$BF$283,0),MATCH('Pipe Input'!G26,Database!$E$270:$BF$270,0)),IF(E26="HERCP",INDEX(Database!$E$322:$S$322,MATCH('Pipe Input'!$AC$3,Database!$C$322:$S$322,0),MATCH('Pipe Input'!G26,Database!$E$309:$S$309,0)),IF(E26="HDPE",INDEX(Database!$E$338:$S$338,MATCH('Pipe Input'!$AC$3,Database!$C$338:$S$338,0),MATCH('Pipe Input'!G26,Database!$E$331:$S$331,0)),IF(E26="CMP",INDEX(Database!$E$356:$AS$356,MATCH('Pipe Input'!$AC$3,Database!$C$356:$AS$356,0),MATCH('Pipe Input'!G26,Database!$E$348:$AS$348,0)),"")))),"") ->  | AD26: 0 | AE26: 0 | AF26: 0
B27: 24 | I27: =IFERROR(IF(E27="RCP",INDEX(Database!$E$272:$BF$272,MATCH('Pipe Input'!$I$3,Database!$C$272:$BF$272,0),MATCH('Pipe Input'!G27,Database!$E$270:$BF$270,0)),IF(E27="HERCP",INDEX(Database!$E$312:$S$312,MATCH('Pipe Input'!$I$3,Database!$C$312:$S$312,0),MATCH('Pipe Input'!G27,Database!$E$309:$S$309,0)),IF(E27="HDPE",INDEX(Database!$E$333:$S$333,MATCH('Pipe Input'!$I$3,Database!$C$333:$S$333,0),MATCH('Pipe Input'!G27,Database!$E$331:$S$331,0)),IF(E27="CMP",INDEX(Database!$E$350:$AS$350,MATCH('Pipe Input'!$I$3,Database!$C$350:$AS$350,0),MATCH('Pipe Input'!G27,Database!$E$348:$AS$348,0)),"")))),"") ->  | K27: =IFERROR(IF(E27="RCP",L27,IF(E27="HERCP",M27,IF(E27="HDPE",INDEX(Database!$E$337:$S$337,MATCH('Pipe Input'!$K$3,Database!$C$337:$S$337,0),MATCH('Pipe Input'!G27,Database!$E$331:$S$331,0)),IF(E27="CMP",INDEX(Database!$E$355:$AS$355,MATCH('Pipe Input'!$K$3,Database!$C$355:$AS$355,0),MATCH('Pipe Input'!G27,Database!$E$348:$AS$348,0)),"")))),"") ->  | L27: =IF(E27="RCP",INDEX(Database!$E$277:$BF$281,MATCH('Pipe Input'!$E$2,Database!$C$277:$C$281,0),MATCH('Pipe Input'!G27,Database!$E$270:$BF$270,0)),"") ->  | M27: =IF(E27="HERCP",INDEX(Database!$E$316:$S$320,MATCH('Pipe Input'!$E$2,Database!$C$316:$C$320,0),MATCH('Pipe Input'!G27,Database!$E$309:$S$309,0)),"") ->  | N27: =IF(E27="RCP",Summary!$AN$5,IF(E27="HERCP",Summary!$AN$33,IF(E27="HDPE",Summary!$AN$50,IF(E27="CMP",Summary!$AN$72, "")))) ->  | P27: 0 | Q27: 0 | AA27: =IFERROR(IF(E27="HDPE",INDEX(Database!$E$340:$S$340,MATCH('Pipe Input'!$AA$3,Database!$C$340:$S$340,0),MATCH('Pipe Input'!G27,Database!$E$331:$S$331,0)),""), "") ->  | AC27: =IFERROR(IF(E27="RCP",INDEX(Database!$E$283:$BF$283,MATCH('Pipe Input'!$AC$3,Database!$C$283:$BF$283,0),MATCH('Pipe Input'!G27,Database!$E$270:$BF$270,0)),IF(E27="HERCP",INDEX(Database!$E$322:$S$322,MATCH('Pipe Input'!$AC$3,Database!$C$322:$S$322,0),MATCH('Pipe Input'!G27,Database!$E$309:$S$309,0)),IF(E27="HDPE",INDEX(Database!$E$338:$S$338,MATCH('Pipe Input'!$AC$3,Database!$C$338:$S$338,0),MATCH('Pipe Input'!G27,Database!$E$331:$S$331,0)),IF(E27="CMP",INDEX(Database!$E$356:$AS$356,MATCH('Pipe Input'!$AC$3,Database!$C$356:$AS$356,0),MATCH('Pipe Input'!G27,Database!$E$348:$AS$348,0)),"")))),"") ->  | AD27: 0 | AE27: 0 | AF27: 0
B28: 25 | I28: =IFERROR(IF(E28="RCP",INDEX(Database!$E$272:$BF$272,MATCH('Pipe Input'!$I$3,Database!$C$272:$BF$272,0),MATCH('Pipe Input'!G28,Database!$E$270:$BF$270,0)),IF(E28="HERCP",INDEX(Database!$E$312:$S$312,MATCH('Pipe Input'!$I$3,Database!$C$312:$S$312,0),MATCH('Pipe Input'!G28,Database!$E$309:$S$309,0)),IF(E28="HDPE",INDEX(Database!$E$333:$S$333,MATCH('Pipe Input'!$I$3,Database!$C$333:$S$333,0),MATCH('Pipe Input'!G28,Database!$E$331:$S$331,0)),IF(E28="CMP",INDEX(Database!$E$350:$AS$350,MATCH('Pipe Input'!$I$3,Database!$C$350:$AS$350,0),MATCH('Pipe Input'!G28,Database!$E$348:$AS$348,0)),"")))),"") ->  | K28: =IFERROR(IF(E28="RCP",L28,IF(E28="HERCP",M28,IF(E28="HDPE",INDEX(Database!$E$337:$S$337,MATCH('Pipe Input'!$K$3,Database!$C$337:$S$337,0),MATCH('Pipe Input'!G28,Database!$E$331:$S$331,0)),IF(E28="CMP",INDEX(Database!$E$355:$AS$355,MATCH('Pipe Input'!$K$3,Database!$C$355:$AS$355,0),MATCH('Pipe Input'!G28,Database!$E$348:$AS$348,0)),"")))),"") ->  | L28: =IF(E28="RCP",INDEX(Database!$E$277:$BF$281,MATCH('Pipe Input'!$E$2,Database!$C$277:$C$281,0),MATCH('Pipe Input'!G28,Database!$E$270:$BF$270,0)),"") ->  | M28: =IF(E28="HERCP",INDEX(Database!$E$316:$S$320,MATCH('Pipe Input'!$E$2,Database!$C$316:$C$320,0),MATCH('Pipe Input'!G28,Database!$E$309:$S$309,0)),"") ->  | N28: =IF(E28="RCP",Summary!$AN$5,IF(E28="HERCP",Summary!$AN$33,IF(E28="HDPE",Summary!$AN$50,IF(E28="CMP",Summary!$AN$72, "")))) ->  | P28: 0 | Q28: 0 | AA28: =IFERROR(IF(E28="HDPE",INDEX(Database!$E$340:$S$340,MATCH('Pipe Input'!$AA$3,Database!$C$340:$S$340,0),MATCH('Pipe Input'!G28,Database!$E$331:$S$331,0)),""), "") ->  | AC28: =IFERROR(IF(E28="RCP",INDEX(Database!$E$283:$BF$283,MATCH('Pipe Input'!$AC$3,Database!$C$283:$BF$283,0),MATCH('Pipe Input'!G28,Database!$E$270:$BF$270,0)),IF(E28="HERCP",INDEX(Database!$E$322:$S$322,MATCH('Pipe Input'!$AC$3,Database!$C$322:$S$322,0),MATCH('Pipe Input'!G28,Database!$E$309:$S$309,0)),IF(E28="HDPE",INDEX(Database!$E$338:$S$338,MATCH('Pipe Input'!$AC$3,Database!$C$338:$S$338,0),MATCH('Pipe Input'!G28,Database!$E$331:$S$331,0)),IF(E28="CMP",INDEX(Database!$E$356:$AS$356,MATCH('Pipe Input'!$AC$3,Database!$C$356:$AS$356,0),MATCH('Pipe Input'!G28,Database!$E$348:$AS$348,0)),"")))),"") ->  | AD28: 0 | AE28: 0 | AF28: 0
B29: 26 | I29: =IFERROR(IF(E29="RCP",INDEX(Database!$E$272:$BF$272,MATCH('Pipe Input'!$I$3,Database!$C$272:$BF$272,0),MATCH('Pipe Input'!G29,Database!$E$270:$BF$270,0)),IF(E29="HERCP",INDEX(Database!$E$312:$S$312,MATCH('Pipe Input'!$I$3,Database!$C$312:$S$312,0),MATCH('Pipe Input'!G29,Database!$E$309:$S$309,0)),IF(E29="HDPE",INDEX(Database!$E$333:$S$333,MATCH('Pipe Input'!$I$3,Database!$C$333:$S$333,0),MATCH('Pipe Input'!G29,Database!$E$331:$S$331,0)),IF(E29="CMP",INDEX(Database!$E$350:$AS$350,MATCH('Pipe Input'!$I$3,Database!$C$350:$AS$350,0),MATCH('Pipe Input'!G29,Database!$E$348:$AS$348,0)),"")))),"") ->  | K29: =IFERROR(IF(E29="RCP",L29,IF(E29="HERCP",M29,IF(E29="HDPE",INDEX(Database!$E$337:$S$337,MATCH('Pipe Input'!$K$3,Database!$C$337:$S$337,0),MATCH('Pipe Input'!G29,Database!$E$331:$S$331,0)),IF(E29="CMP",INDEX(Database!$E$355:$AS$355,MATCH('Pipe Input'!$K$3,Database!$C$355:$AS$355,0),MATCH('Pipe Input'!G29,Database!$E$348:$AS$348,0)),"")))),"") ->  | L29: =IF(E29="RCP",INDEX(Database!$E$277:$BF$281,MATCH('Pipe Input'!$E$2,Database!$C$277:$C$281,0),MATCH('Pipe Input'!G29,Database!$E$270:$BF$270,0)),"") ->  | M29: =IF(E29="HERCP",INDEX(Database!$E$316:$S$320,MATCH('Pipe Input'!$E$2,Database!$C$316:$C$320,0),MATCH('Pipe Input'!G29,Database!$E$309:$S$309,0)),"") ->  | N29: =IF(E29="RCP",Summary!$AN$5,IF(E29="HERCP",Summary!$AN$33,IF(E29="HDPE",Summary!$AN$50,IF(E29="CMP",Summary!$AN$72, "")))) ->  | P29: 0 | Q29: 0 | AA29: =IFERROR(IF(E29="HDPE",INDEX(Database!$E$340:$S$340,MATCH('Pipe Input'!$AA$3,Database!$C$340:$S$340,0),MATCH('Pipe Input'!G29,Database!$E$331:$S$331,0)),""), "") ->  | AC29: =IFERROR(IF(E29="RCP",INDEX(Database!$E$283:$BF$283,MATCH('Pipe Input'!$AC$3,Database!$C$283:$BF$283,0),MATCH('Pipe Input'!G29,Database!$E$270:$BF$270,0)),IF(E29="HERCP",INDEX(Database!$E$322:$S$322,MATCH('Pipe Input'!$AC$3,Database!$C$322:$S$322,0),MATCH('Pipe Input'!G29,Database!$E$309:$S$309,0)),IF(E29="HDPE",INDEX(Database!$E$338:$S$338,MATCH('Pipe Input'!$AC$3,Database!$C$338:$S$338,0),MATCH('Pipe Input'!G29,Database!$E$331:$S$331,0)),IF(E29="CMP",INDEX(Database!$E$356:$AS$356,MATCH('Pipe Input'!$AC$3,Database!$C$356:$AS$356,0),MATCH('Pipe Input'!G29,Database!$E$348:$AS$348,0)),"")))),"") ->  | AD29: 0 | AE29: 0 | AF29: 0
B30: 27 | I30: =IFERROR(IF(E30="RCP",INDEX(Database!$E$272:$BF$272,MATCH('Pipe Input'!$I$3,Database!$C$272:$BF$272,0),MATCH('Pipe Input'!G30,Database!$E$270:$BF$270,0)),IF(E30="HERCP",INDEX(Database!$E$312:$S$312,MATCH('Pipe Input'!$I$3,Database!$C$312:$S$312,0),MATCH('Pipe Input'!G30,Database!$E$309:$S$309,0)),IF(E30="HDPE",INDEX(Database!$E$333:$S$333,MATCH('Pipe Input'!$I$3,Database!$C$333:$S$333,0),MATCH('Pipe Input'!G30,Database!$E$331:$S$331,0)),IF(E30="CMP",INDEX(Database!$E$350:$AS$350,MATCH('Pipe Input'!$I$3,Database!$C$350:$AS$350,0),MATCH('Pipe Input'!G30,Database!$E$348:$AS$348,0)),"")))),"") ->  | K30: =IFERROR(IF(E30="RCP",L30,IF(E30="HERCP",M30,IF(E30="HDPE",INDEX(Database!$E$337:$S$337,MATCH('Pipe Input'!$K$3,Database!$C$337:$S$337,0),MATCH('Pipe Input'!G30,Database!$E$331:$S$331,0)),IF(E30="CMP",INDEX(Database!$E$355:$AS$355,MATCH('Pipe Input'!$K$3,Database!$C$355:$AS$355,0),MATCH('Pipe Input'!G30,Database!$E$348:$AS$348,0)),"")))),"") ->  | L30: =IF(E30="RCP",INDEX(Database!$E$277:$BF$281,MATCH('Pipe Input'!$E$2,Database!$C$277:$C$281,0),MATCH('Pipe Input'!G30,Database!$E$270:$BF$270,0)),"") ->  | M30: =IF(E30="HERCP",INDEX(Database!$E$316:$S$320,MATCH('Pipe Input'!$E$2,Database!$C$316:$C$320,0),MATCH('Pipe Input'!G30,Database!$E$309:$S$309,0)),"") ->  | N30: =IF(E30="RCP",Summary!$AN$5,IF(E30="HERCP",Summary!$AN$33,IF(E30="HDPE",Summary!$AN$50,IF(E30="CMP",Summary!$AN$72, "")))) ->  | P30: 0 | Q30: 0 | AA30: =IFERROR(IF(E30="HDPE",INDEX(Database!$E$340:$S$340,MATCH('Pipe Input'!$AA$3,Database!$C$340:$S$340,0),MATCH('Pipe Input'!G30,Database!$E$331:$S$331,0)),""), "") ->  | AC30: =IFERROR(IF(E30="RCP",INDEX(Database!$E$283:$BF$283,MATCH('Pipe Input'!$AC$3,Database!$C$283:$BF$283,0),MATCH('Pipe Input'!G30,Database!$E$270:$BF$270,0)),IF(E30="HERCP",INDEX(Database!$E$322:$S$322,MATCH('Pipe Input'!$AC$3,Database!$C$322:$S$322,0),MATCH('Pipe Input'!G30,Database!$E$309:$S$309,0)),IF(E30="HDPE",INDEX(Database!$E$338:$S$338,MATCH('Pipe Input'!$AC$3,Database!$C$338:$S$338,0),MATCH('Pipe Input'!G30,Database!$E$331:$S$331,0)),IF(E30="CMP",INDEX(Database!$E$356:$AS$356,MATCH('Pipe Input'!$AC$3,Database!$C$356:$AS$356,0),MATCH('Pipe Input'!G30,Database!$E$348:$AS$348,0)),"")))),"") ->  | AD30: 0 | AE30: 0 | AF30: 0
B31: 28 | I31: =IFERROR(IF(E31="RCP",INDEX(Database!$E$272:$BF$272,MATCH('Pipe Input'!$I$3,Database!$C$272:$BF$272,0),MATCH('Pipe Input'!G31,Database!$E$270:$BF$270,0)),IF(E31="HERCP",INDEX(Database!$E$312:$S$312,MATCH('Pipe Input'!$I$3,Database!$C$312:$S$312,0),MATCH('Pipe Input'!G31,Database!$E$309:$S$309,0)),IF(E31="HDPE",INDEX(Database!$E$333:$S$333,MATCH('Pipe Input'!$I$3,Database!$C$333:$S$333,0),MATCH('Pipe Input'!G31,Database!$E$331:$S$331,0)),IF(E31="CMP",INDEX(Database!$E$350:$AS$350,MATCH('Pipe Input'!$I$3,Database!$C$350:$AS$350,0),MATCH('Pipe Input'!G31,Database!$E$348:$AS$348,0)),"")))),"") ->  | K31: =IFERROR(IF(E31="RCP",L31,IF(E31="HERCP",M31,IF(E31="HDPE",INDEX(Database!$E$337:$S$337,MATCH('Pipe Input'!$K$3,Database!$C$337:$S$337,0),MATCH('Pipe Input'!G31,Database!$E$331:$S$331,0)),IF(E31="CMP",INDEX(Database!$E$355:$AS$355,MATCH('Pipe Input'!$K$3,Database!$C$355:$AS$355,0),MATCH('Pipe Input'!G31,Database!$E$348:$AS$348,0)),"")))),"") ->  | L31: =IF(E31="RCP",INDEX(Database!$E$277:$BF$281,MATCH('Pipe Input'!$E$2,Database!$C$277:$C$281,0),MATCH('Pipe Input'!G31,Database!$E$270:$BF$270,0)),"") ->  | M31: =IF(E31="HERCP",INDEX(Database!$E$316:$S$320,MATCH('Pipe Input'!$E$2,Database!$C$316:$C$320,0),MATCH('Pipe Input'!G31,Database!$E$309:$S$309,0)),"") ->  | N31: =IF(E31="RCP",Summary!$AN$5,IF(E31="HERCP",Summary!$AN$33,IF(E31="HDPE",Summary!$AN$50,IF(E31="CMP",Summary!$AN$72, "")))) ->  | P31: 0 | Q31: 0 | AA31: =IFERROR(IF(E31="HDPE",INDEX(Database!$E$340:$S$340,MATCH('Pipe Input'!$AA$3,Database!$C$340:$S$340,0),MATCH('Pipe Input'!G31,Database!$E$331:$S$331,0)),""), "") ->  | AC31: =IFERROR(IF(E31="RCP",INDEX(Database!$E$283:$BF$283,MATCH('Pipe Input'!$AC$3,Database!$C$283:$BF$283,0),MATCH('Pipe Input'!G31,Database!$E$270:$BF$270,0)),IF(E31="HERCP",INDEX(Database!$E$322:$S$322,MATCH('Pipe Input'!$AC$3,Database!$C$322:$S$322,0),MATCH('Pipe Input'!G31,Database!$E$309:$S$309,0)),IF(E31="HDPE",INDEX(Database!$E$338:$S$338,MATCH('Pipe Input'!$AC$3,Database!$C$338:$S$338,0),MATCH('Pipe Input'!G31,Database!$E$331:$S$331,0)),IF(E31="CMP",INDEX(Database!$E$356:$AS$356,MATCH('Pipe Input'!$AC$3,Database!$C$356:$AS$356,0),MATCH('Pipe Input'!G31,Database!$E$348:$AS$348,0)),"")))),"") ->  | AD31: 0 | AE31: 0 | AF31: 0
B32: 29 | I32: =IFERROR(IF(E32="RCP",INDEX(Database!$E$272:$BF$272,MATCH('Pipe Input'!$I$3,Database!$C$272:$BF$272,0),MATCH('Pipe Input'!G32,Database!$E$270:$BF$270,0)),IF(E32="HERCP",INDEX(Database!$E$312:$S$312,MATCH('Pipe Input'!$I$3,Database!$C$312:$S$312,0),MATCH('Pipe Input'!G32,Database!$E$309:$S$309,0)),IF(E32="HDPE",INDEX(Database!$E$333:$S$333,MATCH('Pipe Input'!$I$3,Database!$C$333:$S$333,0),MATCH('Pipe Input'!G32,Database!$E$331:$S$331,0)),IF(E32="CMP",INDEX(Database!$E$350:$AS$350,MATCH('Pipe Input'!$I$3,Database!$C$350:$AS$350,0),MATCH('Pipe Input'!G32,Database!$E$348:$AS$348,0)),"")))),"") ->  | K32: =IFERROR(IF(E32="RCP",L32,IF(E32="HERCP",M32,IF(E32="HDPE",INDEX(Database!$E$337:$S$337,MATCH('Pipe Input'!$K$3,Database!$C$337:$S$337,0),MATCH('Pipe Input'!G32,Database!$E$331:$S$331,0)),IF(E32="CMP",INDEX(Database!$E$355:$AS$355,MATCH('Pipe Input'!$K$3,Database!$C$355:$AS$355,0),MATCH('Pipe Input'!G32,Database!$E$348:$AS$348,0)),"")))),"") ->  | L32: =IF(E32="RCP",INDEX(Database!$E$277:$BF$281,MATCH('Pipe Input'!$E$2,Database!$C$277:$C$281,0),MATCH('Pipe Input'!G32,Database!$E$270:$BF$270,0)),"") ->  | M32: =IF(E32="HERCP",INDEX(Database!$E$316:$S$320,MATCH('Pipe Input'!$E$2,Database!$C$316:$C$320,0),MATCH('Pipe Input'!G32,Database!$E$309:$S$309,0)),"") ->  | N32: =IF(E32="RCP",Summary!$AN$5,IF(E32="HERCP",Summary!$AN$33,IF(E32="HDPE",Summary!$AN$50,IF(E32="CMP",Summary!$AN$72, "")))) ->  | P32: 0 | Q32: 0 | AA32: =IFERROR(IF(E32="HDPE",INDEX(Database!$E$340:$S$340,MATCH('Pipe Input'!$AA$3,Database!$C$340:$S$340,0),MATCH('Pipe Input'!G32,Database!$E$331:$S$331,0)),""), "") ->  | AC32: =IFERROR(IF(E32="RCP",INDEX(Database!$E$283:$BF$283,MATCH('Pipe Input'!$AC$3,Database!$C$283:$BF$283,0),MATCH('Pipe Input'!G32,Database!$E$270:$BF$270,0)),IF(E32="HERCP",INDEX(Database!$E$322:$S$322,MATCH('Pipe Input'!$AC$3,Database!$C$322:$S$322,0),MATCH('Pipe Input'!G32,Database!$E$309:$S$309,0)),IF(E32="HDPE",INDEX(Database!$E$338:$S$338,MATCH('Pipe Input'!$AC$3,Database!$C$338:$S$338,0),MATCH('Pipe Input'!G32,Database!$E$331:$S$331,0)),IF(E32="CMP",INDEX(Database!$E$356:$AS$356,MATCH('Pipe Input'!$AC$3,Database!$C$356:$AS$356,0),MATCH('Pipe Input'!G32,Database!$E$348:$AS$348,0)),"")))),"") ->  | AD32: 0 | AE32: 0 | AF32: 0
B33: 30 | I33: =IFERROR(IF(E33="RCP",INDEX(Database!$E$272:$BF$272,MATCH('Pipe Input'!$I$3,Database!$C$272:$BF$272,0),MATCH('Pipe Input'!G33,Database!$E$270:$BF$270,0)),IF(E33="HERCP",INDEX(Database!$E$312:$S$312,MATCH('Pipe Input'!$I$3,Database!$C$312:$S$312,0),MATCH('Pipe Input'!G33,Database!$E$309:$S$309,0)),IF(E33="HDPE",INDEX(Database!$E$333:$S$333,MATCH('Pipe Input'!$I$3,Database!$C$333:$S$333,0),MATCH('Pipe Input'!G33,Database!$E$331:$S$331,0)),IF(E33="CMP",INDEX(Database!$E$350:$AS$350,MATCH('Pipe Input'!$I$3,Database!$C$350:$AS$350,0),MATCH('Pipe Input'!G33,Database!$E$348:$AS$348,0)),"")))),"") ->  | K33: =IFERROR(IF(E33="RCP",L33,IF(E33="HERCP",M33,IF(E33="HDPE",INDEX(Database!$E$337:$S$337,MATCH('Pipe Input'!$K$3,Database!$C$337:$S$337,0),MATCH('Pipe Input'!G33,Database!$E$331:$S$331,0)),IF(E33="CMP",INDEX(Database!$E$355:$AS$355,MATCH('Pipe Input'!$K$3,Database!$C$355:$AS$355,0),MATCH('Pipe Input'!G33,Database!$E$348:$AS$348,0)),"")))),"") ->  | L33: =IF(E33="RCP",INDEX(Database!$E$277:$BF$281,MATCH('Pipe Input'!$E$2,Database!$C$277:$C$281,0),MATCH('Pipe Input'!G33,Database!$E$270:$BF$270,0)),"") ->  | M33: =IF(E33="HERCP",INDEX(Database!$E$316:$S$320,MATCH('Pipe Input'!$E$2,Database!$C$316:$C$320,0),MATCH('Pipe Input'!G33,Database!$E$309:$S$309,0)),"") ->  | N33: =IF(E33="RCP",Summary!$AN$5,IF(E33="HERCP",Summary!$AN$33,IF(E33="HDPE",Summary!$AN$50,IF(E33="CMP",Summary!$AN$72, "")))) ->  | P33: 0 | Q33: 0 | AA33: =IFERROR(IF(E33="HDPE",INDEX(Database!$E$340:$S$340,MATCH('Pipe Input'!$AA$3,Database!$C$340:$S$340,0),MATCH('Pipe Input'!G33,Database!$E$331:$S$331,0)),""), "") ->  | AC33: =IFERROR(IF(E33="RCP",INDEX(Database!$E$283:$BF$283,MATCH('Pipe Input'!$AC$3,Database!$C$283:$BF$283,0),MATCH('Pipe Input'!G33,Database!$E$270:$BF$270,0)),IF(E33="HERCP",INDEX(Database!$E$322:$S$322,MATCH('Pipe Input'!$AC$3,Database!$C$322:$S$322,0),MATCH('Pipe Input'!G33,Database!$E$309:$S$309,0)),IF(E33="HDPE",INDEX(Database!$E$338:$S$338,MATCH('Pipe Input'!$AC$3,Database!$C$338:$S$338,0),MATCH('Pipe Input'!G33,Database!$E$331:$S$331,0)),IF(E33="CMP",INDEX(Database!$E$356:$AS$356,MATCH('Pipe Input'!$AC$3,Database!$C$356:$AS$356,0),MATCH('Pipe Input'!G33,Database!$E$348:$AS$348,0)),"")))),"") ->  | AD33: 0 | AE33: 0 | AF33: 0
R35: Truck Rate | S35: =(Summary!AN4) -> 0 | T35: RCP | U35: Truck Rate | V35: =Summary!AN32 -> 0 | W35: HERCP | X35: Truck Rate | Y35: =Summary!AN49 -> 0 | AA35: HDPE
R36: Truck $ Total | S36: # of Trucks | T36: Total Wt. | U36: Truck $ Total | V36: # of Trucks | W36: Total Wt. | X36: Truck $ Total | Y36: # of Trucks | Z36: % Load Sum | AA36: Load Count
R37: =(S37*S35) -> 0 | S37: =(Summary!AN2) -> 0 | T37: =SUM(T4:T33) -> 0 | U37: =(V37*V35) -> 0 | V37: =Summary!AN30 -> 0 | W37: =SUM(W4:W33) -> 0 | X37: =(Y37*Y35) -> 0 | Y37: =(Summary!AN48) -> 0 | Z37: =SUM(Z4:Z33) -> 0 | AA37: =(Z37/100) -> 0
R38: =(R37) -> 0 | S38: 0 | T38: 0 | U38: 0 | V38: 0 | W38: 0 | X38: 0 | Y38: 0 | Z38: 0 | AA38: =(Z38/100) -> 0
R39: =(R38) -> 0 | S39: =(S38) -> 0 | T39: =(T38) -> 0 | U39: =(U38) -> 0 | V39: =(V38) -> 0 | W39: =(W38) -> 0 | X39: 0 | Y39: =(Y38) -> 0 | Z39: =(Z38) -> 0 | AA39: 0
R40: 0 | S40: 0 | T40: 0 | U40: 0 | V40: 0 | W40: 0 | X40: 0 | Y40: 0 | Z40: 0 | AA40: 0
R41: 0 | S41: 0 | T41: 0 | U41: 0 | V41: 0 | W41: 0 | X41: 0 | Y41: 0 | Z41: 0 | AA41: 0
R42: 0 | S42: 0 | T42: 0 | U42: 0 | V42: 0 | W42: 0 | X42: 0 | Y42: 0 | Z42: 0 | AA42: 0
R43: 0 | S43: 0 | T43: 0 | U43: 0 | V43: 0 | W43: 0 | X43: 0 | Y43: 0 | Z43: 0 | AA43: 0
R44: 0 | S44: 0 | T44: 0 | U44: 0 | V44: 0 | W44: 0 | X44: 0 | Y44: 0 | Z44: 0 | AA44: 0
R45: 0 | S45: 0 | T45: 0 | U45: 0 | V45: 0 | W45: 0 | X45: 0 | Y45: 0 | Z45: 0 | AA45: 0
R46: 0 | S46: 0 | T46: 0 | U46: 0 | V46: 0 | W46: 0 | X46: 0 | Y46: 0 | Z46: 0 | AA46: 0
R47: 0 | S47: 0 | T47: 0 | U47: 0 | V47: 0 | W47: 0 | X47: 0 | Y47: 0 | Z47: 0 | AA47: 0
R48: 0 | S48: 0 | T48: 0 | U48: 0 | V48: 0 | W48: 0 | X48: 0 | Y48: 0 | Z48: 0 | AA48: 0
R49: 0 | S49: 0 | T49: 0 | U49: 0 | V49: 0 | W49: 0 | X49: 0 | Y49: 0 | Z49: 0 | AA49: 0
R50: 0 | S50: 0 | T50: 0 | U50: 0 | V50: 0 | W50: 0 | X50: 0 | Y50: 0 | Z50: 0 | AA50: 0
R51: 0 | S51: 0 | T51: 0 | U51: 0 | V51: 0 | W51: 0 | X51: 0 | Y51: 0 | Z51: 0 | AA51: 0
R52: 0 | S52: 0 | T52: 0 | U52: 0 | V52: 0 | W52: 0 | X52: 0 | Y52: 0 | Z52: 0 | AA52: 0
R53: 0 | S53: 0 | T53: 0 | U53: 0 | V53: 0 | W53: 0 | X53: 0 | Y53: 0 | Z53: 0 | AA53: 0
R54: 0 | S54: 0 | T54: 0 | U54: 0 | V54: 0 | W54: 0 | X54: 0 | Y54: 0 | Z54: 0 | AA54: 0
R55: 0 | S55: 0 | T55: 0 | U55: 0 | V55: 0 | W55: 0 | X55: 0 | Y55: 0 | Z55: 0 | AA55: 0
R56: 0 | S56: 0 | T56: 0 | U56: 0 | V56: 0 | W56: 0 | X56: 0 | Y56: 0 | Z56: 0 | AA56: 0
R57: 0 | S57: 0 | T57: 0 | U57: 0 | V57: 0 | W57: 0 | X57: 0 | Y57: 0 | Z57: 0 | AA57: 0
R58: 0 | S58: 0 | T58: 0 | U58: 0 | V58: 0 | W58: 0 | X58: 0 | Y58: 0 | Z58: 0 | AA58: 0
R59: 0 | S59: 0 | T59: 0 | U59: 0 | V59: 0 | W59: 0 | X59: 0 | Y59: 0 | Z59: 0 | AA59: 0
R60: 0 | S60: 0 | T60: 0 | U60: 0 | V60: 0 | W60: 0 | X60: 0 | Y60: 0 | Z60: 0 | AA60: 0
R61: 0 | S61: 0 | T61: 0 | U61: 0 | V61: 0 | W61: 0 | X61: 0 | Y61: 0 | Z61: 0 | AA61: 0
R62: 0 | S62: 0 | T62: 0 | U62: 0 | V62: 0 | W62: 0 | X62: 0 | Y62: 0 | Z62: 0 | AA62: 0
R63: 0 | S63: 0 | T63: 0 | U63: 0 | V63: 0 | W63: 0 | X63: 0 | Y63: 0 | Z63: 0 | AA63: 0
R64: 0 | S64: 0 | T64: 0 | U64: 0 | V64: 0 | W64: 0 | X64: 0 | Y64: 0 | Z64: 0 | AA64: 0
R65: 0 | S65: 0 | T65: 0 | U65: 0 | V65: 0 | W65: 0 | X65: 0 | Y65: 0 | Z65: 0 | AA65: 0
R66: 0 | S66: 0 | T66: 0 | U66: 0 | V66: 0 | W66: 0 | X66: 0 | Y66: 0 | Z66: 0 | AA66: 0
R67: 0 | S67: 0 | T67: 0 | U67: 0 | V67: 0 | W67: =(W66) -> 0 | X67: =(X66) -> 0 | Y67: 0 | Z67: 0 | AA67: 0

Sheet Structure Input
A7: Data Collection: Unlocked Cells. Fill out all yellow boxes | R7: Number of Truck Loads Required | W7: =(Summary!AC9) -> 4.301076939 | X7: =(Summary!AD9) -> 5 | AI7: Rounded Up Largest Pipe Wall Thickness (Inches) | AQ7: Dimension inputs are not required for standard GT's, Tanks if using the component price function in column G. | AV7: Minimum I-Cast Configurations: (Storm - 1" CS-102) (Sanitary - 1" CS-102 Dbl, 6" CS-212) (Wet Well - 1" CS-231 Dbl, 12" MacWrap) | BH7: Rectangle | BI7: Rectangle | BJ7: Rectangle or Round Thicknesses (Inches) | CM7: Freight Category: 1 = (Standard Load), 2 = (8'7" to 12'5"), 3 = (12'6" to 13'11"), 4 = (14'0" to 16'0") | DA7: Component Tons Each | DB7: Estimators Internal Comments in Grey Cell | DF7: Over Weight Load (Single Piece over 45,000 LBS) | DG7: Dedicate freight to only this Item # (No loads to be combined with other Item #'s) | FS7: INPUT ACTUAL COST ON RESALE ITEMS, WITHOUT MARKUP | HD7: Add Load Total Freight Fee for Wide Load
A8: Index Formula Cells: Type value in cell to overide formula. Unlock Password: I-Cast | J8: Elevation | O8: Pipe Info (Enter Largest Pipe as Pipe 1) | W8: Casting Quick Ref. (Y-AE) | AJ8: Add for Min. Depth or Sump (feet) | AL8: Transition | AQ8: Structure Configuration | BN8: Transition | BS8: External Perimeter | BV8: Internal Perimeter | BY8: Pipe Chamber Round Volume | CC8: Pipe Chamber Rectangle Volume | CG8: Transition Volume | CJ8: Load Width | CO8: Total Load Count | CS8: Load Tonnage | DB8: Estimators External Comments in Yellow Cell | DQ8: List Prices | EA8: KO Str. | FA8: VF Cost Rate | FF8: List Prices | FS8: Cost, Multiplier & Selling Price | HA8: Freight Fee for Piece Weight over 45K Lbs | HC8: Load 1 Freight Total Fee for Wide Load | HE8: Total freight Amount (Base Rate + Fees)
A9: Line Item # | B9: Bid Item # | C9: Quantity | D9: Type | E9: Stack-It Specification Translation | F9: Sub Type | G9: Structure Description | H9: Component Type: (Headwall, Top Phase, Riser Section, Tops) | I9: STR # | J9: Rim | K9: Pipe / Floor / Sump | L9: Pipe Defference | M9: Eligible for a Drop | N9: Drop Depth | O9: # | P9: ID | Q9: Type | R9: Angle | S9: Pipe ID, Type & Connection Type (Default to RCP/HDPE for open storm pipe spec's) | T9: Pipe Seal Legend # | U9: Product ID | V9: Pipe Seal Cost | W9: Casting or Hatch Model# (Yellow) Type: "Casting" or "Hatch" (Orange) Accessory Selection (Green) | X9: Casting Height | Y9: Casting Qty Per Structure | Z9: Clear Opening | AA9: Stock or Non-Stock Item | AB9: Number of Non-Stock Items | AC9: Equivalent 1 | AD9: Equivalent 2 | AE9: Equivalent 3 | AF9: Specification | AG9: Specification | AH9: Grade Ring Height | AK9: Total Str. Rim- Inv. Depth (ft) | AL9: Pipe Chamber Depth (ft) | AM9: Transition Depth (Ft) | AN9: Transition Status | AO9: Structure Type | AP9: Min. Base Ht. For Trans. Str. | AQ9: Structure Size | AR9: Top/Trans Slab Required | AS9: Base Slab Required | AT9: Plain Concrete or Special Admixture | AU9: Open Bottom or Open Top | AV9: Joint Sealant | AW9: Joint Sealant Legend # | AX9: Exterior Joint Wrap | AY9: Exterior Joint Wrap Legend # | AZ9: MH Step | BA9: Exterior Coating (Yellow) or Interior Coating (Green) | BB9: Coating Legend # | BC9: Coating Legend # | BD9: Round Shaped Invert | BE9: Round Shaped Invert | BF9: Standard Base Extension | BG9: Dia (inches) | BH9: Width (inches) | BI9: Length (inches) | BJ9: Base | BK9: Lid | BL9: Walls | BM9: Base Ext | BN9: Dia (inches) | BO9: Width (inches) | BP9: Length (inches) | BQ9: Lid | BR9: Walls | BS9: Round Perimeter (Feet) | BT9: Flat Wall Perimeter (Feet) | BU9: Perimeter (Feet) | BV9: Round Perimeter (Feet) | BW9: Flat Wall Perimeter (Feet) | BX9: Perimeter (Feet) | BY9: Base | BZ9: Wall | CA9: Lid | CB9: Total | CC9: Base | CD9: Wall | CE9: Lid | CF9: Total | CG9: Wall | CH9: Lid | CI9: Total | CJ9: Initial Load Width (Base Slab Dimension) | CK9: Additonal Load Width (Riser Dimension) | CL9: Component Load Width | CM9: Initial Load Category | CN9: Additonal Load Category | CO9: Initial Load Count | CP9: Additonal Load Count | CQ9: Total Load Count for Item | CR9: Load Count Added to Item | CS9: Initial Load Tons Each (Base Slab) | CT9: Additonal Load Tons Each (Riser,Top) | CU9: Total Load 1 Tons (Base Slab) | CV9: Total Additonal Load Tons (Riser,Top) | CW9: Category 1 Tonnage | CX9: Category 2 Tonnage | CY9: Category 3 Tonnage | CZ9: Category 4 Tonnage | DD9: Jon Comments | DE9: # Loads over 45,000 LBS | DH9: Standard Cubic Feet | DI9: Total Tons | DJ9: Tons Each | DK9: Custom Cubic Feet | DL9: Custom Rate per CF | DM9: Plain / Xypex / MIC / Xypex+MIC | DN9: Admixture Legend # | DO9: Pipe Chamber Depth (ft) | DP9: Structure Type | DQ9: Base Price Depth | DR9: Round Base & Top | DS9: Flat Wall Base | DT9: Flat Wall Lid Adder | DU9: VF Adder Rate | DV9: Round Component Price | DW9: Trans. Riser | DX9: Trans. Top | DY9: Round Base Slab Deduct | DZ9: Round Lid Slab Deduct | EA9: KO Structrue Height in Inches | EB9: KO Base Height Inches | EC9: KO Base Price | ED9: KO Lid Height Inches | EE9: KO Lid Price | EF9: Remaining Height After Base, Lid and Casting | EG9: KO Riser #1 Height Inches | EH9: KO Riser Price | EI9: Remaining Height After Base, Lid, Riser 1 and Casting | EJ9: KO Riser #2 Height Inches | EK9: KO Riser Price | EL9: Remaining Height After Base, Lid, Riser 1,2 and Casting | EM9: KO Riser #3 Height Inches | EN9: KO Riser Price | EO9: Remaining Height After Base, Lid, Riser 1,2,3 and Casting | EP9: KO Riser #4 Height Inches | EQ9: KO Riser Price | ER9: Remaining Height After Base, Lid, Riser 1,2,3,4 and Casting | ES9: KO Grade Ring 1 Height | ET9: KO Grade Ring 1 Price | EU9: Remaining Height After Base, Lid, Riser 1,2,3,4,GR1 and Casting | EV9: KO Grade Ring 2 Height | EW9: KO Grade Ring 2 Price | EX9: Grout Field Adjustment In Inches | EY9: KO Structure Total Price | EZ9: Joint Sealant Cost Per LF | FA9: Joint Sealant Cost Rate | FB9: Exterior Wrap Cost Per LF | FC9: Exterior Joint Wrap Cost Rate | FD9: MH Step Cost Rate | FE9: Coating Cost Per Sq. Ft. | FF9: Exterior Coating Rate | FG9: Interior Coating Rate | FH9: Largest Actual Pipe Size | FI9: Largest Invert Size | FJ9: Shaped Invert | FK9: Base Ext Adder | FL9: Grade Ring Adder | FM9: Casting In Frame or Hatch Adder | FN9: Weir Wall Adder | FO9: V-Notch or other Shape Adder | FP9: WQU or Detention System | FQ9: Grease Oil Sep Septic Tank | FR9: Headwall or Top Phase List Price | FS9: Casting Price | FT9: Used for Casting Price Total | FU9: Used for Hatch Price Total | FV9: Used for Casting Cost Total | FW9: Used for Hatch Cost Total | FX9: Item Casting Total Quantity | FY9: Item Hatch Total Quantity | FZ9: Casting Fraction of the Total | GA9: Hatch Fraction of the Total | GB9: Accessory 1 Selling Price | GC9: Accessory 2 Selling Price | GD9: Exterior Drop Multiplier | GE9: Exterior Drop Rate | GF9: Exterior Drop Depth (4' Min) | GG9: STR ID | GH9: VF over Base | GI9: VF of Trans. Riser | GJ9: Joint Sealant Cost | GK9: Joint Wrap Cost | GL9: Pipe Connector Cost | GM9: MH Step Cost | GN9: Sealant Connector Step Selling Price | GO9: Sealant Connector Step Selling Price | GP9: Exterior Drop | GQ9: Exterior Coating | GR9: Interior Coating | GS9: Custom Products | GT9: Unit Freight | GU9: Total Selling Price | GV9: Rate/CF | GW9: Base Rate Total Freight | GX9: Total Not Used | GY9: Rate/CF Not used | GZ9: Freight % | HB9: Dedicated load Fee | HF9: Unit Freight W/Fees Not Used | HG9: Precast Multiplier | HH9: Total PC $ w/frt & Accessories | HI9: Total PC $ w/frt w/o Accessories (Precast Only) | HJ9: Total PC $ No Frt w/o Accessories (Precast Only)
A10: Master Configuration Chart / Kits | AQ10: Master Configuration Chart / Kits (Note: individual structure overrides may differ)
A11: A | D11: Storm | AQ11: Storm | AT11: Plain | AU11: =IFERROR(IF(AND(OR(AR11="Yes Top",AR11="Trans 48""R W/Top",AR11="Trans 60""R W/Top",AR11="Trans 24""x24"" Riser",AR11="Trans 24""x24"" W/Top",AR11="Trans 24""x30"" Riser",AR11="Trans 24""x30"" W/Top",AR11="Trans 24""x36"" Riser",AR11="Trans 24""x36"" W/Top",AR11="Trans 36""x36"" Riser",AR11="Trans 36""x36"" W/Top"),J11>0,AS11="W/Base"),"No",IF(AND(OR(AR11="Yes Top",AR11="Trans 48""R W/Top",AR11="Trans 60""R W/Top",AR11="Trans 24""x24"" Riser",AR11="Trans 24""x24"" W/Top",AR11="Trans 24""x30"" Riser",AR11="Trans 24""x30"" W/Top",AR11="Trans 24""x36"" Riser",AR11="Trans 24""x36"" W/Top",AR11="Trans 36""x36"" Riser",AR11="Trans 36""x36"" W/Top"),J11>0,AS11="No Base"),"OB",IF(AND(AR11="No Top",J11>0,W11=0,AS11="W/Base"),"OT",IF(AND(AR11="No Top",J11>0,W11>0,AS11="W/Base"),"No",IF(AND(AR11="No Top",J11>0,W11=0,AS11="No Base"),"OB & OT",IF(AND(AR11="No Top",J11>0,W11>0,AS11="No Base"),"OB","")))))),"") ->  | AV11: 1" CS-102 | AW11: =IF(AV11="1"" CS-102",1,IF(AV11="1"" CS-102 Dbl",2,IF(AV11="1.25"" CS-102",3,IF(AV11="1.25"" CS-102 Dbl",4,IF(AV11="1"" CS-231",5,IF(AV11="1"" CS-231 Dbl",6,IF(AV11="1.25"" CS-231",7,IF(AV11="1.25"" CS-231 Dbl",8,IF(AV11="3/4"" CS-440",9,IF(AV11="HK TSS Gasket",10,IF(AND(C11>0,AV11=""),"No",""))))))))))) -> 1 | AY11: =IF(AX11="6"" CS-212",1,IF(AX11="12"" CS-212",2,IF(AX11="12"" MacWrap",3,IF(AND(C11>0,AX11=""),"No","")))) ->  | BB11: =IF(ISNUMBER(SEARCH("CS-55",BA11)),"1",IF(ISNUMBER(SEARCH("Carboline 300M",BA11)),"2",IF(ISNUMBER(SEARCH("Masterseal 610",BA11)),"3",IF(ISNUMBER(SEARCH("HLM 5000",BA11)),"4",IF(AND(C11>0,BA11=""),"No",""))))) ->  | BC11: =IF(AND(BB11="No",BB13="No"),"No",IF(AND(BB11>0,BB13="No"),BB11,IF(AND(BB13>0,BB11="No"),BB13,IF(AND(BB13>0,BB11>0,C11>0),BB11&","&BB13,"")))) ->  | BE11: =IF(BD11="Yes","Yes",IF(BD11="Exclude","Exclude",IF(BD11="No","No",IF(AND(J11>0,BD11=""),"No", "")))) -> 
A12: B | D12: Sanitary | AQ12: Sanitary | AT12: Xypex | AV12: 1" CS-102 Dbl | AW12: 2 | AX12: 6" CS-212 | AY12: 1 | AZ12: Yes | BD12: Yes | BE12: Yes
A13: C | D13: Wet Well | AQ13: Wet Well | AT13: Plain | AV13: 1" CS-231 Dbl | AW13: 6 | AX13: 12" MacWrap | AY13: 3
A14: D | D14: Vault | AQ14: Vault | AT14: Plain | AV14: 1" CS-102 Dbl | AW14: 2 | BC14: =IF(AND(BB14="No",#REF!="No"),"No",IF(AND(BB14>0,#REF!="No"),BB14,IF(AND(#REF!>0,BB14="No"),#REF!,IF(AND(#REF!>0,BB14>0,C14>0),BB14&","&#REF!,"")))) -> 
A15: E | D15: GT/ Oil Sep. | AQ15: Grease Trap / Oil Seperator | AT15: Plain | AV15: 1" CS-102 Dbl | AW15: 2 | BC15: =IF(AND(BB15="No",BB16="No"),"No",IF(AND(BB15>0,BB16="No"),BB15,IF(AND(BB16>0,BB15="No"),BB16,IF(AND(BB16>0,BB15>0,C15>0),BB15&","&BB16,"")))) -> 
A16: F | D16: Septic | AQ16: Septic | AT16: Plain | AV16: 1" CS-102 Dbl | AW16: 2 | AX16: 6" CS-212 | AY16: 1
A17: G | D17: Water/SS ARV | AQ17: Water/SS ARV | AT17: Plain | AV17: 1" CS-102 Dbl | AW17: 2
A19: Master Casting Chart | H19: Master Casting Override | J19: (Note: individual structure overrides may differ) | S19: Preset Standard Spec. Selection | W19: Master Casting List
A20: A | D20: Sanitary | G20: Manhole | H20: JBS 1150 BDWT | W20: =IF(H20>0,H20,IF(AND(H20="",(Database!E514)>0),Database!E514,"")) -> JBS 1150 BDWT
A21: B | D21: Sanitary | G21: Manhole W/Exterior Drop | W21: =IF(H21>0,H21,IF(AND(H21="",(Database!F514)>0),Database!F514,"")) -> 
A22: C | D22: Sanitary | G22: Manhole (Drop Excluded) | S22: Note: DOT structures are already preset. | W22: =IF(H22>0,H22,IF(AND(H22="",(Database!G514)>0),Database!G514,"")) -> 
A23: D | D23: Sanitary | G23: Manhole (Doghouse) | W23: =IF(H23>0,H23,IF(AND(H23="",(Database!H514)>0),Database!H514,"")) -> 
A24: E | D24: Storm | G24: Manhole | W24: =IF(H24>0,H24,IF(AND(H24="",(Database!I514)>0),Database!I514,"")) -> 
A25: F | D25: Storm | G25: Area Drain | W25: =IF(H25>0,H25,IF(AND(H25="",(Database!J514)>0),Database!J514,"")) -> 
A26: G | D26: Storm | G26: Catch Basin (Single) | W26: =IF(H26>0,H26,IF(AND(H26="",(Database!K514)>0),Database!K514,"")) -> 
A27: H | D27: Storm | G27: Catch Basin (Double) | W27: =IF(H27>0,H27,IF(AND(H27="",(Database!L514)>0),Database!L514,"")) -> 
A28: I | D28: Storm | G28: Catch Basin (Triple) | W28: =IF(H28>0,H28,IF(AND(H28="",(Database!M514)>0),Database!M514,"")) -> 
A29: J | D29: Storm | G29: Curb Inlet (Single) | W29: =IF(H29>0,H29,IF(AND(H29="",(Database!N514)>0),Database!N514,"")) -> 
A30: K | D30: Storm | G30: Curb Inlet (Double) | W30: =IF(H30>0,H30,IF(AND(H30="",(Database!O514)>0),Database!O514,"")) -> 
A31: L | D31: Storm | G31: Curb Inlet (Triple) | W31: =IF(H31>0,H31,IF(AND(H31="",(Database!P514)>0),Database!P514,"")) -> 
A32: M | D32: Storm | G32: Diversion Structure | W32: =IF(H32>0,H32,IF(AND(H32="",(Database!Q514)>0),Database!Q514,"")) -> 
A33: N | D33: Storm | G33: Drop Box Inlet | W33: =IF(H33>0,H33,IF(AND(H33="",(Database!R514)>0),Database!R514,"")) -> 
A34: O | D34: Storm | G34: Inlet | W34: =IF(H34>0,H34,IF(AND(H34="",(Database!S514)>0),Database!S514,"")) -> 
A35: P | D35: Storm | G35: Junction Box | W35: =IF(H35>0,H35,IF(AND(H35="",(Database!T514)>0),Database!T514,"")) -> 
A36: Q | D36: Storm | G36: Outlet Control Structure | W36: =IF(H36>0,H36,IF(AND(H36="",(Database!U514)>0),Database!U514,"")) -> 
A37: R | D37: Water/SS ARV | G37: Sanitary ARV | W37: =IF(H37>0,H37,IF(AND(H37="",(Database!V514)>0),Database!V514,"")) -> 
A38: S | D38: Water/SS ARV | G38: Water ARV | W38: =IF(H38>0,H38,IF(AND(H38="",(Database!W514)>0),Database!W514,"")) -> 
A39: T | D39: Storm | G39: Yard Drain | W39: =IF(H39>0,H39,IF(AND(H39="",(Database!X514)>0),Database!X514,"")) -> 
A40: U | D40: Enter ==> | G40: Custom Description 1 | W40: =IF(H40>0,H40,"") -> 
A41: V | D41: Enter ==> | G41: Custom Description 2 | W41: =IF(H41>0,H41,"") -> 
A42: W | D42: Enter ==> | G42: Custom Description 3 | W42: =IF(H42>0,H42,"") -> 
A45: 1 | N45: =IF(AND(OR(L46>2.1,L47>2.1,L48>2.1,L49>2.1,L50>2.1), J45>0,D45="Sanitary"), "Yes", IF(AND(OR(L46<2.1,L47<2.1,L48<2.1,L49<2.1,L50<2.1), J45>0,D45="Sanitary"), "No",IF(J45=0, "", ""))) ->  | O45: 1 | P45: =IFERROR(INDEX(Database!$E$170:$CR$170,MATCH('Structure Input'!$P$9,Database!$C$170:$CR$170,0), MATCH('Structure Input'!S45,Database!$E$166:$CR$166,0)), "") ->  | R45: 0 | T45: =IF(ISNUMBER(SEARCH("Grout",S45)),"1",IF(ISNUMBER(SEARCH("Link Seal",S45)),"4",IF(ISNUMBER(SEARCH("Boot",S45)),"2",IF(ISNUMBER(SEARCH("A-Lok",S45)),"3",IF(AND(C45>0,S45=""),"1",""))))) ->  | U45: =IFERROR(INDEX(Database!$E$168:$CR$168,MATCH('Structure Input'!$U$9,Database!$C$168:$CR$168,0), MATCH('Structure Input'!S45,Database!$E$166:$CR$166,0)), "n/a") -> n/a | V45: =IFERROR(INDEX(Database!$E$167:$CR$167,MATCH('Structure Input'!$V$9,Database!$C$167:$CR$167,0), MATCH('Structure Input'!S45,Database!$E$166:$CR$166,0)), 0) -> 0 | W45: =IFERROR(IF(W47>0,W47,IF(AND(W47=0,G45>0,H45=0),(INDEX(Database!$E$514:$DF$514,MATCH('Structure Input'!$W$19,Database!$C$514:$DF$514,0), MATCH('Structure Input'!G45,Database!$E$513:$DF$513,0))),IF(AND(W47=0,G45=0,H45>0),(INDEX(Database!$E$194:$IA$194,MATCH('Structure Input'!$W$19,Database!$C$194:$C$194,0), MATCH('Structure Input'!H45,Database!$E$185:$IA$185,0))),""))),"") ->  | X45: =IFERROR(INDEX(Database!$F$151:$JL$151,MATCH('Structure Input'!$X$9,Database!$C$151:$JL$151,0), MATCH('Structure Input'!W45,Database!$F$150:$JL$150,0)), 0) -> 0 | Y45: =IF(OR(W45>"",W47>0), 1, "") ->  | Z45: =IFERROR(INDEX(Database!$I$153:$JL$153,MATCH('Structure Input'!$Z$9,Database!$C$153:$JL$153,0), MATCH('Structure Input'!W45,Database!$I$150:$JL$150,0)), 0) -> 0 | AA45: =IFERROR(INDEX(Database!$F$155:$JL$155,MATCH('Structure Input'!$AA$9,Database!$C$155:$JL$155,0), MATCH('Structure Input'!W45,Database!$F$150:$JL$150,0)), 0) -> 0 | AB45: =IF(AA45="Non-Stock",1*C45*Y45,0) -> 0 | AC45: =IFERROR(INDEX(Database!$I$156:$JL$156,MATCH('Structure Input'!$AC$9,Database!$C$156:$JL$156,0), MATCH('Structure Input'!W45,Database!$I$150:$JL$150,0)), 0) -> 0 | AD45: =IFERROR(INDEX(Database!$I$157:$JL$157,MATCH('Structure Input'!$AD$9,Database!$C$157:$JL$157,0), MATCH('Structure Input'!W45,Database!$I$150:$JL$150,0)), 0) -> 0 | AE45: =IFERROR(INDEX(Database!$I$158:$JL$158,MATCH('Structure Input'!$AE$9,Database!$C$158:$JL$158,0), MATCH('Structure Input'!W45,Database!$I$150:$JL$150,0)), 0) -> 0 | AF45: =IFERROR(INDEX(Database!$I$159:$JL$159,MATCH('Structure Input'!$AF$9,Database!$C$159:$JL$159,0), MATCH('Structure Input'!W45,Database!$I$150:$JL$150,0)), 0) -> 0 | AG45: =IFERROR(INDEX(Database!$I$160:$JL$160,MATCH('Structure Input'!$AG$9,Database!$C$160:$JL$160,0), MATCH('Structure Input'!W45,Database!$I$150:$JL$150,0)), 0) -> 0 | AI45: =IFERROR(INDEX(Database!$E$171:$CR$171,MATCH('Structure Input'!$AI$7,Database!$C$171:$CR$171,0), MATCH('Structure Input'!S45,Database!$E$166:$CR$166,0)),0) -> 0 | AK45: =(J45-K45)+AJ45 -> 0 | AL45: =AK45-AM45 -> 0 | AM45: =IF(AND(AP45>0, AN45="Transition"), AK45-AP45, 0) -> 0 | AN45: =IFERROR(INDEX(Database!$E$141:$P$141,MATCH('Structure Input'!$AN$9,Database!$C$141:$P$141, 0), MATCH('Structure Input'!AR45,Database!$E$132:$P$132,0)), "") -> Top Slab | AO45: =IFERROR(INDEX(Database!$E$140:$P$140,MATCH('Structure Input'!$AO$9,Database!$C$140:$P$140, 0), MATCH('Structure Input'!AR45,Database!$E$132:$P$132,0)), "") -> 0 | AR45: =IF(AR46>0,AR46,IF(AND(AR46=0,AQ45>0),INDEX(Database!$E$13:$BM$13,MATCH('Structure Input'!$AR$9,Database!$C$13:$C$13,0), MATCH('Structure Input'!AQ45,Database!$E$4:$BM$4,0)),"Yes Top")) -> Yes Top | AS45: =IF(AS46>0,AS46,"W/Base") -> W/Base | AT45: =IF(AT46>0,AT46,IF(AND($D45="Storm",AT46=0,$AT$11>0),$AT$11,IF(AND($D45="Sanitary",AT46=0,$AT$12>0),$AT$12,IF(AND($D45="Wet Well",AT46=0,$AT$13>0),$AT$13,IF(AND($D45="Vault",AT46=0,$AT$14>0),$AT$14,IF(AND($D45="Grease Trap",AT46=0,$AT$15>0),$AT$15,IF(AND($D45="Oil Seperator",AT46=0,$AT$15>0),$AT$15,IF(AND($D45="Septic",AT46=0,$AT$16>0),$AT$16,IF(AND($D45="Water/SS ARV",AT46=0,$AT$17>0),$AT$17,"Plain"))))))))) -> Plain | AU45: =IFERROR(IF(AND(OR(AR45="Yes Top",AR45="Trans 48""R W/Top",AR45="Trans 60""R W/Top",AR45="Trans 24""x24"" Riser",AR45="Trans 24""x24"" W/Top",AR45="Trans 24""x30"" Riser",AR45="Trans 24""x30"" W/Top",AR45="Trans 24""x36"" Riser",AR45="Trans 24""x36"" W/Top",AR45="Trans 36""x36"" Riser",AR45="Trans 36""x36"" W/Top"),J45>0,AS45="W/Base"),"No",IF(AND(OR(AR45="Yes Top",AR45="Trans 48""R W/Top",AR45="Trans 60""R W/Top",AR45="Trans 24""x24"" Riser",AR45="Trans 24""x24"" W/Top",AR45="Trans 24""x30"" Riser",AR45="Trans 24""x30"" W/Top",AR45="Trans 24""x36"" Riser",AR45="Trans 24""x36"" W/Top",AR45="Trans 36""x36"" Riser",AR45="Trans 36""x36"" W/Top"),J45>0,AS45="No Base"),"OB",IF(AND(AR45="No Top",J45>0,OR(W45="",W45="No Casting"),AS45="W/Base"),"OT",IF(AND(AR45="No Top",J45>0,W45>0,AS45="W/Base"),"No",IF(AND(AR45="No Top",J45>0,OR(W45="",W45="No Casting"),AS45="No Base"),"OB & OT",IF(AND(AR45="No Top",J45>0,W45>0,AS45="No Base"),"OB","")))))),"") ->  | AV45: =IF(AV46>0,AV46,IF(AND($D45="Storm",AV46=0,$AV$11>0),$AV$11,IF(AND($D45="Sanitary",AV46=0,$AV$12>0),$AV$12,IF(AND($D45="Wet Well",AV46=0,$AV$13>0),$AV$13,IF(AND($D45="Vault",AV46=0,$AV$14>0),$AV$14,IF(AND($D45="Grease Trap",AV46=0,$AV$15>0),$AV$15,IF(AND($D45="Oil Seperator",AV46=0,$AV$15>0),$AV$15,IF(AND($D45="Septic",AV46=0,$AV$16>0),$AV$16,IF(AND($D45="Water/SS ARV",AV46=0,$AV$17>0),$AV$17,""))))))))) ->  | AW45: =IF(AV45="1"" CS-102",1,IF(AV45="1"" CS-102 Dbl",2,IF(AV45="1.25"" CS-102",3,IF(AV45="1.25"" CS-102 Dbl",4,IF(AV45="1"" CS-231",5,IF(AV45="1"" CS-231 Dbl",6,IF(AV45="1.25"" CS-231",7,IF(AV45="1.25"" CS-231 Dbl",8,IF(AV45="3/4"" CS-440",9,IF(AV45="HK TSS Gasket",10,IF(AND(C45>0,AV45=""),"No",""))))))))))) ->  | AX45: =IF(AX46>0,AX46,IF(AND($D45="Storm",AX46=0,$AX$11>0),$AX$11,IF(AND($D45="Sanitary",AX46=0,$AX$12>0),$AX$12,IF(AND($D45="Wet Well",AX46=0,$AX$13>0),$AX$13,IF(AND($D45="Vault",AX46=0,$AX$14>0),$AX$14,IF(AND($D45="Grease Trap",AX46=0,$AX$15>0),$AX$15,IF(AND($D45="Oil Seperator",AX46=0,$AX$15>0),$AX$15,IF(AND($D45="Septic",AX46=0,$AX$16>0),$AX$16,IF(AND($D45="Water/SS ARV",AX46=0,$AX$17>0),$AX$17,""))))))))) ->  | AY45: =IF(AX45="6"" CS-212",1,IF(AX45="12"" CS-212",2,IF(AX45="12"" MacWrap",3,IF(AND(C45>0,AX45=""),"No","")))) ->  | AZ45: =IF(AZ46>0,AZ46,IF(AND($D45="Storm",AZ46=0,$AZ$11>0),$AZ$11,IF(AND($D45="Sanitary",AZ46=0,$AZ$12>0),$AZ$12,IF(AND($D45="Wet Well",AZ46=0,$AZ$13>0),$AZ$13,IF(AND($D45="Vault",AZ46=0,$AZ$14>0),$AZ$14,IF(AND($D45="Grease Trap",AZ46=0,$AZ$15>0),$AZ$15,IF(AND($D45="Oil Seperator",AZ46=0,$AZ$15>0),$AZ$15,IF(AND($D45="Septic",AZ46=0,$AZ$16>0),$AZ$16,IF(AND($D45="Water/SS ARV",AZ46=0,$AZ$17>0),$AZ$17,""))))))))) ->  | BA45: =IF(BA46>0,BA46,IF(AND($D45="Storm",BA46=0,$BA$11>0),$BA$11,IF(AND($D45="Sanitary",BA46=0,$BA$12>0),$BA$12,IF(AND($D45="Wet Well",BA46=0,$BA$13>0),$BA$13,IF(AND($D45="Vault",BA46=0,$BA$14>0),$BA$14,IF(AND($D45="Grease Trap",BA46=0,$BA$15>0),$BA$15,IF(AND($D45="Oil Seperator",BA46=0,$BA$15>0),$BA$15,IF(AND($D45="Septic",BA46=0,$BA$16>0),$BA$16,IF(AND($D45="Water/SS ARV",BA46=0,$BA$17>0),$BA$17,""))))))))) ->  | BB45: =IF(ISNUMBER(SEARCH("CS-55",BA45)),"1",IF(ISNUMBER(SEARCH("Carboline 300M",BA45)),"2",IF(ISNUMBER(SEARCH("Masterseal 610",BA45)),"3",IF(ISNUMBER(SEARCH("HLM 5000",BA45)),"4",IF(AND(C45>0,BA45=""),"No",""))))) ->  | BC45: =IF(AND(BB45="No",BB47="No"),"No",IF(AND(BB45>0,BB47="No"),BB45,IF(AND(BB47>0,BB45="No"),BB47,IF(AND(BB47>0,BB45>0,C45>0),BB45&","&BB47,"")))) ->  | BD45: =IF(BD46>0,BD46,IF(AND($D45="Storm",BD46=0,$BD$11>0),$BD$11,IF(AND($D45="Sanitary",BD46=0,$BD$12>0),$BD$12,""))) ->  | BE45: =IF(BD45="Yes","Yes",IF(BD45="Exclude","Exclude",IF(BD45="No","No",IF(AND(J45>0,BD45=""),"No", "")))) ->  | BF45: =IF(BF46>0,BF46,IF(AND($D45="Storm",BF46=0,$BF$11>0),$BF$11,IF(AND($D45="Sanitary",BF46=0,$BF$12>0),$BF$12,IF(AND($D45="Wet Well",BF46=0,$BF$13>0),$BF$13,IF(AND($D45="Vault",BF46=0,$BF$14>0),$BF$14,IF(AND($D45="Grease Trap",BF46=0,$BF$15>0),$BF$15,IF(AND($D45="Oil Seperator",BF46=0,$BF$15>0),$BF$15,IF(AND($D45="Septic",BF46=0,$BF$16>0),$BF$16,IF(AND($D45="Water/SS ARV",BF46=0,$BF$17>0),$BF$17,""))))))))) ->  | BG45: =IFERROR(INDEX(Database!$G$5:$BJ$5,MATCH('Structure Input'!$BG$9,Database!$C$5:$BJ$5,0), MATCH('Structure Input'!AQ45,Database!$G$4:$BJ$4,0)), 0) -> 0 | BH45: =IFERROR(INDEX(Database!$S$6:$BJ$6,MATCH('Structure Input'!$BH$9,Database!$C$6:$BJ$6,0), MATCH('Structure Input'!AQ45,Database!$S$4:$BJ$4,0)), 0) -> 0 | BI45: =IFERROR(INDEX(Database!$S$7:$BJ$7,MATCH('Structure Input'!$BI$9,Database!$C$7:$BJ$7,0), MATCH('Structure Input'!AQ45,Database!$S$4:$BJ$4,0)), 0) -> 0 | BJ45: =IF(AS45="W/Base",IFERROR(INDEX(Database!$E$8:$AX$8,MATCH('Structure Input'!$BJ$9,Database!$C$8:$AX$8,0),MATCH('Structure Input'!AQ45,Database!$E$4:$AX$4,0)),0),IF(AS45="No Base",0)) -> 0 | BK45: =IF(OR(AN45="Top Slab",AN45="Transition"),IFERROR(INDEX(Database!$E$9:$AX$9,MATCH('Structure Input'!$BK$9,Database!$C$9:$AX$9,0),MATCH('Structure Input'!AQ45,Database!$E$4:$AX$4,0)),0),IF(AN45="No Top",0)) -> 0 | BL45: =IFERROR(INDEX(Database!$E$10:$AX$10,MATCH('Structure Input'!$BL$9,Database!$C$10:$AX$10,0), MATCH('Structure Input'!AQ45,Database!$E$4:$AX$4,0)), 0) -> 0 | BM45: =IFERROR(IF(BF45="Yes",INDEX(Database!$E$33:$AX$33,MATCH('Structure Input'!$BM$9,Database!$C$33:$AX$33,0), MATCH('Structure Input'!AQ45,Database!$E$4:$AX$4,0)), 0), 0) -> 0 | BN45: =IFERROR(INDEX(Database!$E$133:$P$133,MATCH('Structure Input'!$BN$9,Database!$C$133:$P$133,0), MATCH('Structure Input'!AR45,Database!$E$132:$P$132,0)), 0) -> 0 | BO45: =IFERROR(INDEX(Database!$E$134:$P$134,MATCH('Structure Input'!$BO$9,Database!$C$134:$P$134,0), MATCH('Structure Input'!AR45,Database!$E$132:$P$132,0)), 0) -> 0 | BP45: =IFERROR(INDEX(Database!$E$135:$P$135,MATCH('Structure Input'!$BP$9,Database!$C$135:$P$135,0), MATCH('Structure Input'!AR45,Database!$E$132:$P$132,0)), 0) -> 0 | BQ45: =IFERROR(INDEX(Database!$E$136:$P$136,MATCH('Structure Input'!$BQ$9,Database!$C$136:$P$136,0), MATCH('Structure Input'!AR45,Database!$E$132:$P$132,0)), 0) -> 0 | BR45: =IFERROR(INDEX(Database!$E$137:$P$137,MATCH('Structure Input'!$BR$9,Database!$C$137:$P$137,0), MATCH('Structure Input'!AR45,Database!$E$132:$P$132,0)), 0) -> 0 | BS45: =IF(BG45>0,((BG45+(BL45*2))*(22/7))/12,0) -> 0 | BT45: =IF(BH45>0,(((BH45+(BL45*2))*2)+((BI45+(BL45*2))*2))/12,0) -> 0 | BU45: =BS45+BT45 -> 0 | BV45: =IF(BG45>0,(BG45*3.14159)/12,0) -> 0 | BW45: =IF(BH45>0,((BH45*2)+(BI45*2))/12,0) -> 0 | BX45: =BV45+BW45 -> 0 | BY45: =(BG45/2+BL45+BM45)*(BG45/2+BL45+BM45)/144*3.14*BJ45/12 -> 0 | BZ45: =((BG45/2+BL45)*(BG45/2+BL45)-(BG45/2)*(BG45/2))/144*3.14*(AL45-(X45+BK45+AH45-3)/12) -> 0 | CA45: =(BG45/2+BL45)*(BG45/2+BL45)/144*3.14*BK45/12 -> 0 | CB45: =SUM(BY45:CA45) -> 0 | CC45: =((BH45+2*BL45+2*BM45)*(BI45+2*BL45+2*BM45)/144*BJ45/12) -> 0 | CD45: =((BH45+2*BL45)*(BI45+2*BL45)-(BH45*BI45))/144*(AL45-(BK45+X45+AH45-AI45)/12) -> 0 | CE45: =(BH45+2*BL45)*(BI45+2*BL45)/144*BK45/12 -> 0 | CF45: =(CE45+CD45+CC45) -> 0 | CG45: =IF(AO45="Round", ((BN45/2+BR45)*(BN45/2+BR45)-(BN45/2)*(BN45/2))/144*3.14*(AM45-(BQ45-3)/12),IF(AO45="Flat Wall", ((BO45+2*BR45)*(BP45+2*BR45)-(BO45*BP45))/144*(AM45-(BQ45)/12), 0)) -> 0 | CH45: =IF(AO45="Round", ((BN45/2+BR45)*(BN45/2+BR45)/144*3.14*BQ45/12),IF(AO45="Flat Wall", ((BO45+2*BR45)*(BP45+2*BR45)/144*BQ45/12), 0)) -> 0 | CI45: =(CG45+CH45) -> 0 | CJ45: =BG45+BH45+(BL45*2)+(BM45*2) -> 0 | CK45: =BG45+BH45+(BL45*2) -> 0 | CL45: =IFERROR(INDEX(Database!$E$191:$IA$191,MATCH('Structure Input'!$CL$9,Database!$C$191:$IA$191,0), MATCH('Structure Input'!H45,Database!$E$185:$IA$185,0)), 0) -> 0 | CM45: =IF(AND(CJ45>=103,CJ45<150,CL45=0),2,IF(AND(CJ45>=150,CJ45<167,CL45=0),3,IF(AND(CJ45>=168,CL45=0),4,IF(AND(CL45>=103,CL45<150),2,IF(AND(CL45>=150,CL45<167),3,IF(CL45>=168,4,1)))))) -> 1 | CN45: =IF(AND(CK45>=103,CK45<150),2,IF(AND(CK45>=150,CK45<167),3,IF(CK45>=168,4,1))) -> 1 | CO45: =IF(OR(DG45="Yes",DG45="Yes +1 Ld",DG45="Yes +2 Lds",DG45="Yes +3 Lds",DG45="Yes +4 Lds",DG45="Yes +5 Lds"),ROUNDUP((CU45/20),0),CU45/20) -> 0 | CP45: =IF(AND(OR(DG45="Yes",DG45="Yes +1 Ld",DG45="Yes +2 Lds",DG45="Yes +3 Lds",DG45="Yes +4 Lds",DG45="Yes +5 Lds"),CS45=20,CT45>0),ROUNDUP((CV45/20),0),CV45/20)+IF(DG45="Yes +1 Ld",1,IF(DG45="Yes +2 Lds",2,IF(DG45="Yes +3 Lds",3,IF(DG45="Yes +4 Lds",4,IF(DG45="Yes +5 Lds",5,0))))) -> 0 | CQ45: =CO45+CP45 -> 0 | CR45: =CQ45-((CU45/20)+(CV45/20)) -> 0 | CS45: =IF(DJ45<=20,DJ45,20) -> 0 | CT45: =(DJ45-CS45) -> 0 | CU45: =IF(DJ45<=20,DJ45,20)*C45 -> 0 | CV45: =(DI45-CU45) -> 0 | CW45: =IF(CM45=1,CU45,0)+IF(CN45=1,CV45,0) -> 0 | CX45: =IF(CM45=2,CU45,0)+IF(CN45=2,CV45,0) -> 0 | CY45: =IF(CM45=3,CU45,0)+IF(CN45=3,CV45,0) -> 0 | CZ45: =IF(CM45=4,CU45,0)+IF(CN45=4,CV45,0) -> 0 | DA45: =IFERROR(INDEX(Database!$E$187:$IA$187,MATCH('Structure Input'!$DA$7,Database!$C$187:$IA$187,0), MATCH('Structure Input'!H45,Database!$E$185:$IA$185,0)), 0) -> 0 | DC45: =IF(AND(C45>0,DB48>0),"(Item "&A45&" - "&"Structure "&I45&") "&DB48,"") ->  | DE45: =IF(DF45="1 Piece",1,IF(DF45="2 Pieces",2,IF(DF45="3 Pieces",3,IF(DF45="4 Pieces",4,"")))) ->  | DH45: =IF(BG45>0,(CB45+CI45),(CF45+CI45)) -> 0 | DI45: =IF(C45>0,DJ45*C45,DJ45) -> 0 | DJ45: =((DH45/13.5)+FJ45/21*148/2000+(GF45*25*22/144*148/2000)+DA45+DK45*148/2000) -> 0 | DL45: =IF(ISNUMBER(SEARCH("Panel Form Structure",AQ45)),"30","") ->  | DM45: =AT45 -> Plain | DN45: =IF(AND(DM45="Plain",C45>0),"No",IF(AND(DM45="Xypex",C45>0),2,IF(AND(DM45="MIC",C45>0),3,IF(AND(DM45="Xypex+MIC",C45>0),4,"")))) ->  | DO45: =(AL45) -> 0 | DP45: =IFERROR(INDEX(Database!$E$12:$BM$12,MATCH('Structure Input'!$DP$9,Database!$C$12:$BM$12,0), MATCH('Structure Input'!AQ45,Database!$E$4:$BM$4,0)), 0) -> 0 | DQ45: =IFERROR(IF(AND(DP45="Flat Wall",AS45="W/Base"),(INDEX(Database!$S$14:$AX$14,MATCH('Structure Input'!$DQ$9,Database!$C$14:$AX$14,0),MATCH('Structure Input'!AQ45,Database!$S$4:$AX$4,0))),IF(AND(DP45="Round",DO45>=10),10,IF(AND(DP45="Round",DO45<10,DO45>2),ROUNDDOWN(DO45,0),IF(AND(DP45="Round",DO45<=2),2,0)))),0) -> 0 | DR45: =IFERROR(IF(AND(DM45="Plain",DP45="Round"),INDEX(Database!$G$34:$L$42,MATCH('Structure Input'!DQ45,Database!$C$34:$C$42,0),MATCH('Structure Input'!AQ45,Database!$G$4:$L$4,0)),IF(AND(DM45="Xypex",DP45="Round"),INDEX(Database!$G$57:$L$65,MATCH('Structure Input'!DQ45,Database!$C$57:$C$65,0),MATCH('Structure Input'!AQ45,Database!$G$4:$L$4,0)),IF(AND(DM45="MIC",DP45="Round"),INDEX(Database!$G$80:$L$88,MATCH('Structure Input'!DQ45,Database!$C$80:$C$88,0),MATCH('Structure Input'!AQ45,Database!$G$4:$L$4,0)), IF(AND(DM45="Xypex+MIC", DP45="Round"), INDEX(Database!$G$103:$L$111,MATCH('Structure Input'!DQ45,Database!$C$103:$C$111,0),MATCH('Structure Input'!AQ45,Database!$G$4:$L$4,0)), 0)))), 0) -> 0 | DS45: =IFERROR(IF(AND(AS45="W/Base",DM45="Plain"),(INDEX(Database!$S$15:$BM$15,MATCH('Structure Input'!$DS$9,Database!$C$15:$BM$15,0),MATCH('Structure Input'!AQ45,Database!$S$4:$BM$4,0))),IF(AND(AS45="No Base",DM45="Xypex",DM45="MIC", DM45="Xypex+MIC"),0,0)), 0) -> 0 | DT45: =IFERROR(IF(AND(OR(AR45="Yes Top",AR45="Trans 48""R W/Top",AR45="Trans 60""R W/Top",AR45="Trans 24""x24"" Riser",AR45="Trans 24""x24"" W/Top",AR45="Trans 24""x30"" Riser",AR45="Trans 24""x30"" W/Top",AR45="Trans 24""x36"" Riser",AR45="Trans 24""x36"" W/Top",AR45="Trans 36""x36"" Riser",AR45="Trans 36""x36"" W/Top"),DM45="Plain"),(INDEX(Database!$S$16:$BM$16,MATCH('Structure Input'!$DT$9,Database!$C$16:$BM$16,0),MATCH('Structure Input'!AQ45,Database!$S$4:$BM$4,0))),IF(AND(AR45="No Top",DM45="Xypex",DM45="MIC", DM45="Xypex+MIC"),0,0)), 0) -> 0 | DU45: =IFERROR(IF(DM45="Plain", INDEX(Database!$G$17:$BM$17,MATCH('Structure Input'!$DU$9,Database!$C$17:$BM$17,0), MATCH('Structure Input'!AQ45,Database!$G$4:$BM$4,0)), IF(DM45="Xypex", INDEX(Database!$G$66:$L$66,MATCH('Structure Input'!$DU$9,Database!$C$66:$L$66,0), MATCH('Structure Input'!AQ45,Database!$G$4:$L$4,0)), IF(DM45="MIC", INDEX(Database!$G$89:$L$89,MATCH('Structure Input'!$DU$9,Database!$C$89:$L$89,0), MATCH('Structure Input'!AQ45,Database!$G$4:$L$4,0)), IF(DM45="Xypex+MIC", INDEX(Database!$G$112:$L$112,MATCH('Structure Input'!$DU$9,Database!$C$112:$L$112,0), MATCH('Structure Input'!AQ45,Database!$G$4:$L$4,0)), 0)))), 0) -> 0 | DV45: =IFERROR(IF(DM45="Plain", INDEX(Database!$FI$195:$IA$195,MATCH('Structure Input'!$DV$9,Database!$C$195:$IA$195,0), MATCH('Structure Input'!H45,Database!$FI$185:$IA$185,0)), IF(DM45="Xypex", INDEX(Database!$FI$196:$IA$196,MATCH('Structure Input'!$DV$9,Database!$C$196:$IA$196,0), MATCH('Structure Input'!H45,Database!$FI$185:$IA$185,0)), IF(DM45="MIC", INDEX(Database!$FI$197:$IA$197,MATCH('Structure Input'!$DV$9,Database!$C$197:$IA$197,0), MATCH('Structure Input'!H45,Database!$FI$185:$IA$185,0)), IF(DM45="Xypex+MIC", INDEX(Database!$FI$198:$IA$198,MATCH('Structure Input'!$DV$9,Database!$C$198:$IA$198,0), MATCH('Structure Input'!H45,Database!$FI$185:$IA$185,0)), 0)))), 0) -> 0 | DW45: =IFERROR(INDEX(Database!$E$144:$P$144,MATCH('Structure Input'!$DW$9,Database!$C$144:$P$144,0), MATCH('Structure Input'!AR45,Database!$E$132:$P$132,0)), 0) -> 0 | DX45: =IFERROR(INDEX(Database!$E$143:$P$143,MATCH('Structure Input'!$DX$9,Database!$C$143:$P$143,0), MATCH('Structure Input'!AR45,Database!$E$132:$P$132,0)), 0) -> 0 | DY45: =IFERROR(IF(AND(DM45="Plain",DP45="Round",AS45="No Base"),INDEX(Database!$G$44:$L$44,MATCH($DY$9,Database!$C$44:$C$44,0),MATCH('Structure Input'!AQ45,Database!$G$4:$L$4,0)),IF(AND(DM45="Xypex",DP45="Round",AS45="No Base"),INDEX(Database!$G$67:$L$67,MATCH($DY$9,Database!$C$67:$C$67,0),MATCH('Structure Input'!AQ45,Database!$G$4:$L$4,0)),IF(AND(DM45="MIC",DP45="Round",AS45="No Base"),INDEX(Database!$G$90:$L$90,MATCH($DY$9,Database!$C$90:$C$90,0),MATCH('Structure Input'!AQ45,Database!$G$4:$L$4,0)), IF(AND(DM45="Xypex+MIC", DP45="Round",AS45="No Base"), INDEX(Database!$G$113:$L$113,MATCH($DY$9,Database!$C$113:$C$113,0),MATCH('Structure Input'!AQ45,Database!$G$4:$L$4,0)), 0)))), 0) -> 0 | DZ45: =IFERROR(IF(AND(DM45="Plain",DP45="Round",AR45="No Top"),INDEX(Database!$G$45:$L$45,MATCH($DZ$9,Database!$C$45:$C$45,0),MATCH('Structure Input'!AQ45,Database!$G$4:$L$4,0)),IF(AND(DM45="Xypex",DP45="Round",AR45="No Top"),INDEX(Database!$G$68:$L$68,MATCH($DZ$9,Database!$C$68:$C$68,0),MATCH('Structure Input'!AQ45,Database!$G$4:$L$4,0)),IF(AND(DM45="MIC",DP45="Round",AR45="No Top"),INDEX(Database!$G$91:$L$91,MATCH($DZ$9,Database!$C$91:$C$91,0),MATCH('Structure Input'!AQ45,Database!$G$4:$L$4,0)), IF(AND(DM45="Xypex+MIC", DP45="Round",AR45="No Top"), INDEX(Database!$G$114:$L$114,MATCH($DZ$9,Database!$C$114:$C$114,0),MATCH('Structure Input'!AQ45,Database!$G$4:$L$4,0)), 0)))), 0) -> 0 | EA45: =IF(AND(DP45="Knockout",AK45<12.01),(AK45*12),0) -> 0 | EB45: =IFERROR(IF(AND(AS45="W/Base",DM45="Plain",DP45="Knockout",AK45<12.01),(INDEX(Database!$AY$21:$BJ$21,MATCH('Structure Input'!$EB$9,Database!$C$21:$BJ$21,0),MATCH('Structure Input'!AQ45,Database!$AY$4:$BJ$4,0))),IF(AND(AS45="No Base",DM45="Xypex",DM45="MIC", DM45="Xypex+MIC"),0,0)), 0) -> 0 | EC45: =IFERROR(IF(AND(AS45="W/Base",DM45="Plain",AK45<12.01),(INDEX(Database!$AY$19:$BJ$19,MATCH('Structure Input'!$EC$9,Database!$C$19:$BJ$19,0),MATCH('Structure Input'!AQ45,Database!$AY$4:$BJ$4,0))),IF(AND(AS45="No Base",DM45="Xypex",DM45="MIC", DM45="Xypex+MIC"),0,0)), 0) -> 0 | ED45: =IFERROR(IF(AND(OR(AR45="Yes Top",AR45="Trans. to 48"" Dia.",AR45="Trans. to 60"" Dia.",AR45="Trans. to 24""x24""",AR45="Trans. to 24""x30""",AR45="Trans. to 24""x36""",AR45="Trans. to 36""x36"""),DM45="Plain",DP45="Knockout",AK45<12.01),(INDEX(Database!$AY$24:$BJ$24,MATCH('Structure Input'!$ED$9,Database!$C$24:$BJ$24,0),MATCH('Structure Input'!AQ45,Database!$AY$4:$BJ$4,0))),IF(AND(AR45="No Top",DM45="Xypex",DM45="MIC", DM45="Xypex+MIC"),0,0)), 0) -> 0 | EE45: =IFERROR(IF(AND(OR(AR45="Yes Top",AR45="Trans. to 48"" Dia.",AR45="Trans. to 60"" Dia.",AR45="Trans. to 24""x24""",AR45="Trans. to 24""x30""",AR45="Trans. to 24""x36""",AR45="Trans. to 36""x36"""),DM45="Plain",DP45="Knockout",AK45<12.01),(INDEX(Database!$AY$22:$BJ$22,MATCH('Structure Input'!$EE$9,Database!$C$22:$BJ$22,0),MATCH('Structure Input'!AQ45,Database!$AY$4:$BJ$4,0))),IF(AND(AR45="No Top",DM45="Xypex",DM45="MIC", DM45="Xypex+MIC"),0,0)), 0) -> 0 | EF45: =IF(DP45="Knockout",(EA45-EB45-ED45-X45),0) -> 0 | EG45: =IF(AND(DP45="Knockout",EF45>23.9),24,IF(AND(DP45="Knockout",EF45<23.9,EF45>11.9),12,0)) -> 0 | EH45: =IFERROR(IF(AND(AS45="W/Base",DM45="Plain",AK45<12.01,EG45=12),(INDEX(Database!$AY$25:$BJ$25,MATCH('Structure Input'!$EH$9,Database!$C$25:$BJ$25,0),MATCH('Structure Input'!AQ45,Database!$AY$4:$BJ$4,0))),IF(AND(AS45="W/Base",DM45="Plain",AK45<12.01,EG45=24),(INDEX(Database!$AY$27:$BJ$27,MATCH('Structure Input'!$EH$9,Database!$C$27:$BJ$27,0),MATCH('Structure Input'!AQ45,Database!$AY$4:$BJ$4,0))),IF(AND(AS45="No Base",DM45="Xypex",DM45="MIC", DM45="Xypex+MIC"),0,0))), 0) -> 0 | EI45: =IF(DP45="Knockout",(EA45-EB45-ED45-X45-EG45),0) -> 0 | EJ45: =IF(AND(DP45="Knockout",EI45>23.9),24,IF(AND(DP45="Knockout",EI45<23.9,EI45>11.9),12,0)) -> 0 | EK45: =IFERROR(IF(AND(AS45="W/Base",DM45="Plain",AK45<12.01,EJ45=12),(INDEX(Database!$AY$25:$BJ$25,MATCH('Structure Input'!$EK$9,Database!$C$25:$BJ$25,0),MATCH('Structure Input'!AQ45,Database!$AY$4:$BJ$4,0))),IF(AND(AS45="W/Base",DM45="Plain",AK45<12.01,EJ45=24),(INDEX(Database!$AY$27:$BJ$27,MATCH('Structure Input'!$EK$9,Database!$C$27:$BJ$27,0),MATCH('Structure Input'!AQ45,Database!$AY$4:$BJ$4,0))),IF(AND(AS45="No Base",DM45="Xypex",DM45="MIC", DM45="Xypex+MIC"),0,0))), 0) -> 0 | EL45: =IF(DP45="Knockout",(EA45-EB45-ED45-X45-EG45-EJ45),0) -> 0 | EM45: =IF(AND(DP45="Knockout",EL45>23.9),24,IF(AND(DP45="Knockout",EL45<23.9,EL45>11.9),12,0)) -> 0 | EN45: =IFERROR(IF(AND(AS45="W/Base",DM45="Plain",AK45<12.01,EM45=12),(INDEX(Database!$AY$25:$BJ$25,MATCH('Structure Input'!$EN$9,Database!$C$25:$BJ$25,0),MATCH('Structure Input'!AQ45,Database!$AY$4:$BJ$4,0))),IF(AND(AS45="W/Base",DM45="Plain",AK45<12.01,EM45=24),(INDEX(Database!$AY$27:$BJ$27,MATCH('Structure Input'!$EN$9,Database!$C$27:$BJ$27,0),MATCH('Structure Input'!AQ45,Database!$AY$4:$BJ$4,0))),IF(AND(AS45="No Base",DM45="Xypex",DM45="MIC", DM45="Xypex+MIC"),0,0))), 0) -> 0 | EO45: =IF(DP45="Knockout",(EA45-EB45-ED45-X45-EG45-EJ45-EM45),0) -> 0 | EP45: =IF(AND(DP45="Knockout",EO45>23.9),24,IF(AND(DP45="Knockout",EO45<23.9,EO45>11.9),12,0)) -> 0 | EQ45: =IFERROR(IF(AND(AS45="W/Base",DM45="Plain",AK45<12.01,EP45=12),(INDEX(Database!$AY$25:$BJ$25,MATCH('Structure Input'!$EQ$9,Database!$C$25:$BJ$25,0),MATCH('Structure Input'!AQ45,Database!$AY$4:$BJ$4,0))),IF(AND(AS45="W/Base",DM45="Plain",AK45<12.01,EP45=24),(INDEX(Database!$AY$27:$BJ$27,MATCH('Structure Input'!$EQ$9,Database!$C$27:$BJ$27,0),MATCH('Structure Input'!AQ45,Database!$AY$4:$BJ$4,0))),IF(AND(AS45="No Base",DM45="Xypex",DM45="MIC", DM45="Xypex+MIC"),0,0))), 0) -> 0 | ER45: =IF(DP45="Knockout",(EA45-EB45-ED45-X45-EG45-EJ45-EM45-EP45),0) -> 0 | ES45: =IF(AND(DP45="Knockout",ER45>5.01, ER45<8.1),6,IF(AND(DP45="Knockout",ER45>3.5,ER45<5.01),4,IF(AND(DP45="Knockout",ER45>1.99,ER45<3.49),3,0))) -> 0 | ET45: =IF(ES45=3,50,IF(ES45=4,60,IF(ES45=6,78,0))) -> 0 | EU45: =IF(DP45="Knockout",(EA45-EB45-ED45-X45-EG45-EJ45-EM45-EP45-ES45),0) -> 0 | EV45: =IF(AND(DP45="Knockout",EU45>5.01, EU45<8.1),6,IF(AND(DP45="Knockout",EU45>3.5,EU45<5.01),4,IF(AND(DP45="Knockout",EU45>1.99,EU45<3.49),3,0))) -> 0 | EW45: =IF(EV45=3,50,IF(EV45=4,60,IF(EV45=6,78,0))) -> 0 | EX45: =EU45-EV45 -> 0 | EY45: =EC45+EE45+EH45+EK45+EN45+EQ45+ET45+EW45 -> 0 | EZ45: =IFERROR(INDEX(Database!$E$231:$M$231,MATCH('Structure Input'!$EZ$9,Database!$C$231:$C$231,0),MATCH('Structure Input'!AV45,Database!$E$217:$M$217,0)),0) -> 0 | FA45: =IFERROR(IF(DP45="Round",INDEX(Database!$E$218:$N$230,MATCH('Structure Input'!AQ45,Database!$C$218:$C$232,0),MATCH('Structure Input'!AV45,Database!$E$217:$N$217,0)),IF(DP45="Flat Wall",(EZ45*BU45),0)),0) -> 0 | FB45: =IFERROR(INDEX(Database!$R$242:$R$244,MATCH('Structure Input'!AX45,Database!$C$242:$C$244,0),MATCH('Structure Input'!$FB$9,Database!$R$241:$R$241,0)),0) -> 0 | FC45: =IFERROR(IF(DP45="Round",INDEX(Database!$E$242:$Q$244,MATCH('Structure Input'!AX45,Database!$C$242:$C$244,0),MATCH('Structure Input'!AQ45,Database!$E$241:$Q$241,0)),IF(DP45="Flat Wall",(FB45*BU45),0)),0) -> 0 | FD45: =IF(AND(AZ45="Yes", DP45="Round"),6,IF(AND(AZ45="Yes",DP45="Flat Wall"),18,IF(AND(AZ45="Yes",DP45="Knockout"),6,IF(AND(AZ45="Yes",DP45="Riser"),6,0)))) -> 0 | FE45: =IFERROR(INDEX(Database!$T$203:$T$210,MATCH('Structure Input'!BA45,Database!$C$203:$C$210,0), MATCH('Structure Input'!$FE$9,Database!$T$202:$T$202,0)), 0) -> 0 | FF45: =BU45*FE45 -> 0 | FG45: =BX45*FE47 -> 0 | FH45: =IFERROR(MAX(P45:P50), "") -> 0 | FI45: =IF(AND(FH45>=1,FH45<=8),8,IF(AND(FH45>=8.001,FH45<=10),10,IF(AND(FH45>=10.001,FH45<=12),12,IF(AND(FH45>=12.001,FH45<=15),15,IF(AND(FH45>=15.001,FH45<=18),18,IF(AND(FH45>=18.001,FH45<=24),24,IF(AND(FH45>=24.001,FH45<=30),30,IF(AND(FH45>=30.001,FH45<=36),36,IF(AND(FH45>=36.001,FH45<=42),42,IF(AND(FH45>=42.001,FH45<=48),48,0)))))))))) -> 0 | FJ45: =IFERROR(IF(AND(DM45="Plain",BD45="Yes"),INDEX(Database!$G$47:$I$56,MATCH('Structure Input'!FI45,Database!$C$47:$C$56,0),MATCH('Structure Input'!AQ45,Database!$G$4:$I$4,0)),IF(AND(DM45="Xypex",BD45="Yes"),INDEX(Database!$G$70:$I$79,MATCH('Structure Input'!FI45,Database!$C$70:$C$79,0),MATCH('Structure Input'!AQ45,Database!$G$4:$I$4,0)),IF(AND(DM45="MIC",BD45="Yes"),INDEX(Database!$G$93:$I$102,MATCH('Structure Input'!FI45,Database!$C$93:$C$102,0),MATCH('Structure Input'!AQ45,Database!$G$4:$I$4,0)),IF(AND(DM45="Xypex+MIC",BD45="Yes"),INDEX(Database!$G$116:$I$125,MATCH('Structure Input'!FI45,Database!$C$116:$C$125,0),MATCH('Structure Input'!AQ45,Database!$G$4:$I$4,0)),IF(BD45="",0,0))))),0) -> 0 | FK45: =IFERROR(IF(AND(DM45="Plain",BF45="Yes"),INDEX(Database!$G$46:$AX$46,MATCH('Structure Input'!$FK$9,Database!$C$46:$AX$46,0),MATCH('Structure Input'!AQ45,Database!$G$4:$AX$4,0)),IF(AND(DM45="Xypex",BF45="Yes"),INDEX(Database!$G$69:$L$69,MATCH('Structure Input'!$FK$9,Database!$C$69:$L$69,0),MATCH('Structure Input'!AQ45,Database!$G$4:$L$4,0)),IF(AND(DM45="MIC",BF45="Yes"),INDEX(Database!$G$92:$L$92,MATCH('Structure Input'!$FK$9,Database!$C$92:$L$92,0),MATCH('Structure Input'!AQ45,Database!$G$4:$L$4,0)),IF(AND(DM45="Xypex+MIC",BF45="Yes"),INDEX(Database!$G$115:$L$115,MATCH('Structure Input'!$FK$9,Database!$C$115:$L$115,0),MATCH('Structure Input'!AQ45,Database!$G$4:$L$4,0)),0)))),0) -> 0 | FR45: =IFERROR(INDEX(Database!$E$186:$IA$186,MATCH('Structure Input'!$FR$9,Database!$C$186:$IA$186,0), MATCH('Structure Input'!H45,Database!$E$185:$IA$185,0)), 0) -> 0 | FS45: =ROUNDUP((FS47*FS48)+FS49,0) -> 0 | FT45: =IF(X47="Casting",FS45*FX45,0) -> 0 | FU45: =IF(X47="Hatch",FS45*FY45,0) -> 0 | FV45: =IF(X47="Casting",FS48*FX45,0) -> 0 | FW45: =IF(X47="Hatch",FS48*FY45,0) -> 0 | FX45: =IF(X47="Casting",C45*Y45,0) -> 0 | FY45: =IF(X47="Hatch",C45*Y45,0) -> 0 | FZ45: =IF(X47="Casting",FS48/Summary!$AG$10,0) -> 0 | GA45: =IFERROR(IF(X47="Hatch",FS48/Summary!$AG$13,0),0) -> 0 | GB45: =GB47*GB48 -> 0 | GC45: =GC47*GC48 -> 0 | GF45: =SUM(GF46:GF50) -> 0 | GG45: =IF(AND(BG45>0,BH45=0),BG45&" Dia.",IF(AND(BH45>0,BG45=0),BH45&"x"&BI45, "")) ->  | GH45: =IF(DO45-DQ45>0,(DO45-DQ45)*DU45,0) -> 0 | GI45: =MAX(0,((AM45-(BQ45/12))*DW45)) -> 0 | GJ45: =(FA45*AK45) -> 0 | GK45: =(FC45*AK45) -> 0 | GL45: =(V45+V46+V47+V48+V49+V50) -> 0 | GM45: =(FD45*AK45) -> 0 | GN45: =Summary!$Q$11 -> 1.2 | GO45: =(GJ45+GK45+GL45+GM45)*(GN45) -> 0 | GP45: =SUM(GP46:GP50) -> 0 | GQ45: =(FF45*AK45) -> 0 | GR45: =(FG45*AK45) -> 0 | GS45: =IF(DL45<>"",(DL45*DK45)+(DH45*DL45),0) -> 0 | GT45: =IFERROR(HF45,"") ->  | GU45: =IFERROR(GX45,"") ->  | GV45: =IFERROR(GY45,"") ->  | GW45: =((DR45+DS45+DT45+DV45+DX45-DY45-DZ45+GH45+GI45+FJ45+FN45+FQ45+FR45+GS45)/((100-GZ45)/100)-DR45-DS45-DT45-DV45-DX45+DY45+DZ45-GH45-GI45-FJ45-FN45-FQ45-FR45-GS45)*C45 -> 0 | GX45: =(DR45+DS45+DT45+DV45+DX45-DY45-DZ45+EY45+FJ45+FK45+FL45+FM45+FN45+FO45+FP45+FQ45+FR45+GH45+GI45+GO45+GP45+GQ45+GR45+GS45+HF45)*HG45 ->  | GY45: =((DR45+DS45+DT45+DV45+DX45-DY45-DZ45+GH45+GI45+FQ45+EY45+FJ45+FK45+GP45+FR45+GS45)/DJ45*2/27)*HG45 ->  | GZ45: =(Summary!$AA$9) -> 14.07674269 | HA45: =(IF(DF45="1 Piece",(Summary!$AB$9*0.5),IF(DF45="2 Pieces",(Summary!$AB$9*1),IF(DF45="3 Pieces",(Summary!$AB$9*1.5),IF(DF45="4 Pieces",(Summary!$AB$9*2),0))))) -> 0 | HB45: =CR45*Summary!$AB$9 -> 0 | HC45: =IF(CM45=2,(CO45*Summary!$AB$9*0.25),IF(CM45=3,(CO45*Summary!$AB$9*0.5),IF(CM45=4,(CO45*Summary!$AB$9*0.75),0))) -> 0 | HD45: =IF(CN45=2,(CP45*Summary!$AB$9*0.25),IF(CN45=3,(CP45*Summary!$AB$9*0.5),IF(CN45=4,(CP45*Summary!$AB$9*0.75),0))) -> 0 | HE45: =GW45+HB45+HC45+HD45+(HA45*C45) -> 0 | HF45: =((GW45+HB45+HC45+HD45)/C45)+HA45 ->  | HG45: =IF(D45="Storm",Summary!$Q$2,IF(D45="End Treatment",Summary!$Q$3,IF(D45="Storm WQU",Summary!$Q$4,IF(D45="Sanitary",Summary!$Q$5,IF(D45="Wet Well",Summary!$Q$6,IF(D45="Vault",Summary!$Q$7,IF(OR(D45="Grease Trap",D45="Oil Separator",D45="Septic"),Summary!$Q$8,IF(D45="Water/SS ARV",Summary!$Q$9,IF(D45="Other",Summary!$Q$10,IF(D45="Box Culvert",Summary!$Q$15,IF(D45="UG Detention",Summary!$Q$16,1))))))))))) -> 1 | HH45: =IFERROR(GU45*C45, "") ->  | HI45: =IFERROR((((DR45+DS45+DT45+DV45+DX45-DY45-DZ45+FJ45+FK45+FL45+FM45+FN45+FO45+FQ45+FR45+GH45+GI45+GP45+GS45+HF45)*HG45)*C45), "") ->  | HJ45: =IFERROR((((DR45+DS45+DT45+DV45+DX45-DY45-DZ45+FJ45+FK45+GI45+FL45+FM45+FN45+FO45+FQ45+FR45+GH45+GP45+GS45)*HG45)*C45), "") -> 0
A46: 1 | L46: =(K46-K45) -> 0 | M46: =IF(AND(P46<12.1,P46>3.9,L46>2.1,D45="Sanitary"), "Yes", "No") -> No | N46: =IF(L46<2.1,"",L46) ->  | O46: 2 | P46: =IFERROR(INDEX(Database!$E$170:$CR$170,MATCH('Structure Input'!$P$9,Database!$C$170:$CR$170,0), MATCH('Structure Input'!S46,Database!$E$166:$CR$166,0)), "") ->  | U46: =IFERROR(INDEX(Database!$E$168:$CR$168,MATCH('Structure Input'!$U$9,Database!$C$168:$CR$168,0), MATCH('Structure Input'!S46,Database!$E$166:$CR$166,0)), "n/a") -> n/a | V46: =IFERROR(INDEX(Database!$E$167:$CR$167,MATCH('Structure Input'!$V$9,Database!$C$167:$CR$167,0), MATCH('Structure Input'!S46,Database!$E$166:$CR$166,0)), 0) -> 0 | AQ46: Overrides: | AW46: =IF(AV46="1"" CS-102",1,IF(AV46="1"" CS-102 Dbl",2,IF(AV46="1.25"" CS-102",3,IF(AV46="1.25"" CS-102 Dbl",4,IF(AV46="1"" CS-231",5,IF(AV46="1"" CS-231 Dbl",6,IF(AV46="1.25"" CS-231",7,IF(AV46="1.25"" CS-231 Dbl",8,IF(AV46="3/4"" CS-440",9,IF(AV46="HK TSS Gasket",10,IF(AND(C46>0,AV46=""),"No",""))))))))))) ->  | AY46: =IF(AX46="6"" CS-212",1,IF(AX46="12"" CS-212",2,IF(AX46="12"" MacWrap",3,IF(AND(C46>0,AX46=""),"No","")))) ->  | BE46: =IF(BD46="Yes","Yes",IF(BD46="Exclude","Exclude",IF(BD46="No","No",IF(AND(J46>0,BD46=""),"No", "")))) ->  | FE46: Interior | FR46: Designation: | FS46: =IF(OR(X47="Casting",X47="Hatch"),X47,"") ->  | GB46: =IF(OR(W48>0,W49>0),W48&""&W49,"") ->  | GD46: =IF(AT45="Xypex+MIC", 1.25,1) -> 1 | GE46: =IF(AND(M46="Yes",P46>3.99,P46<5.98),160*GD46,IF(AND(M46="Yes",P46>5.99,P46<7.98),182*GD46,IF(AND(M46="Yes",P46>7.99,P46<9.98),216*GD46,IF(AND(M46="Yes",P46>9.99,P46<11.98),468*GD46,IF(AND(M46="Yes",P46=12),604*GD46,""))))) ->  | GF46: =IF(AND(N46>0,N46<4),4,IF(N46>=4,N46,"")) ->  | GP46: =IFERROR(IF(GE46>0,GE46*GF46,""),"") -> 
A47: 1 | L47: =(K47-K45) -> 0 | M47: =IF(AND(P47<12.1,P47>3.9,L47>2.1,D45="Sanitary"), "Yes", "No") -> No | N47: =IF(L47<2.1,"",L47) ->  | O47: 3 | P47: =IFERROR(INDEX(Database!$E$170:$CR$170,MATCH('Structure Input'!$P$9,Database!$C$170:$CR$170,0), MATCH('Structure Input'!S47,Database!$E$166:$CR$166,0)), "") ->  | U47: =IFERROR(INDEX(Database!$E$168:$CR$168,MATCH('Structure Input'!$U$9,Database!$C$168:$CR$168,0), MATCH('Structure Input'!S47,Database!$E$166:$CR$166,0)), "n/a") -> n/a | V47: =IFERROR(INDEX(Database!$E$167:$CR$167,MATCH('Structure Input'!$V$9,Database!$C$167:$CR$167,0), MATCH('Structure Input'!S47,Database!$E$166:$CR$166,0)), 0) -> 0 | X47: =IFERROR(INDEX(Database!$F$154:$JL$154,MATCH('Structure Input'!FR46,Database!$C$154:$JL$154,0),MATCH('Structure Input'!W45,Database!$F$150:$JL$150,0)),"Type in ""Casting"" or ""Hatch"" here if manually entered") -> Type in "Casting" or "Hatch" here if manually entered | BA47: Interior Coating | BB47: =IF(ISNUMBER(SEARCH("CS-55",BA48)),"5",IF(ISNUMBER(SEARCH("Carboline 300M",BA48)),"6",IF(ISNUMBER(SEARCH("Masterseal 610",BA48)),"7",IF(ISNUMBER(SEARCH("HLM 5000",BA48)),"8",IF(AND(C45>0,BA48=""),"No",""))))) ->  | FE47: =IFERROR(INDEX(Database!$T$203:$T$210,MATCH('Structure Input'!BA48,Database!$C$203:$C$210,0), MATCH('Structure Input'!$FE$9,Database!$T$202:$T$202,0)), 0) -> 0 | FR47: Multiplier: | FS47: =Summary!$Q$12 -> 1.3 | GB47: =Summary!$Q$13 -> 1.25 | GC47: =Summary!$Q$14 -> 1.25 | GD47: =IF(AT45="Xypex+MIC", 1.25,1) -> 1 | GE47: =IF(AND(M47="Yes",P47>3.99,P47<5.98),160*GD47,IF(AND(M47="Yes",P47>5.99,P47<7.98),182*GD47,IF(AND(M47="Yes",P47>7.99,P47<9.98),216*GD47,IF(AND(M47="Yes",P47>9.99,P47<11.98),468*GD47,IF(AND(M47="Yes",P47=12),604*GD47,""))))) ->  | GF47: =IF(AND(N47>0,N47<4),4,IF(N47>=4,N47,"")) ->  | GP47: =IFERROR(IF(GE47>0,GE47*GF47,""),"") -> 
A48: 1 | L48: =(K48-K45) -> 0 | M48: =IF(AND(P48<12.1,P48>3.9,L48>2.1,D45="Sanitary"), "Yes", "No") -> No | N48: =IF(L48<2.1,"",L48) ->  | O48: 4 | P48: =IFERROR(INDEX(Database!$E$170:$CR$170,MATCH('Structure Input'!$P$9,Database!$C$170:$CR$170,0), MATCH('Structure Input'!S48,Database!$E$166:$CR$166,0)), "") ->  | U48: =IFERROR(INDEX(Database!$E$168:$CR$168,MATCH('Structure Input'!$U$9,Database!$C$168:$CR$168,0), MATCH('Structure Input'!S48,Database!$E$166:$CR$166,0)), "n/a") -> n/a | V48: =IFERROR(INDEX(Database!$E$167:$CR$167,MATCH('Structure Input'!$V$9,Database!$C$167:$CR$167,0), MATCH('Structure Input'!S48,Database!$E$166:$CR$166,0)), 0) -> 0 | X48: Qty: | Y48: =IF(OR(W48>0,W49>0), 1, "") ->  | AH48: <== Accessory | FR48: Cost: | FS48: =IFERROR(INDEX(Database!$F$152:$JL$152,MATCH('Structure Input'!$FS$9,Database!$C$152:$JL$152,0), MATCH('Structure Input'!W45,Database!$F$150:$JL$150,0)), 0) -> 0 | GB48: =IFERROR(INDEX(Database!$E$263:$AO$263,MATCH('Structure Input'!$GB$9,Database!$C$263:$AO$263,0), MATCH('Structure Input'!GB46,Database!$E$262:$AO$262,0)), 0) -> 0 | GC48: =IFERROR(INDEX(Database!$E$264:$AO$264,MATCH('Structure Input'!$GC$9,Database!$C$264:$AO$264,0), MATCH('Structure Input'!GC46,Database!$E$262:$AO$262,0)), 0) -> 0 | GD48: =IF(AT45="Xypex+MIC", 1.25,1) -> 1 | GE48: =IF(AND(M48="Yes",P48>3.99,P48<5.98),160*GD48,IF(AND(M48="Yes",P48>5.99,P48<7.98),182*GD48,IF(AND(M48="Yes",P48>7.99,P48<9.98),216*GD48,IF(AND(M48="Yes",P48>9.99,P48<11.98),468*GD48,IF(AND(M48="Yes",P48=12),604*GD48,""))))) ->  | GF48: =IF(AND(N48>0,N48<4),4,IF(N48>=4,N48,"")) ->  | GP48: =IFERROR(IF(GE48>0,GE48*GF48,""),"") -> 
A49: 1 | L49: =(K49-K45) -> 0 | M49: =IF(AND(P49<12.1,P49>3.9,L49>2.1,D45="Sanitary"), "Yes", "No") -> No | N49: =IF(L49<2.1,"",L49) ->  | O49: 5 | P49: =IFERROR(INDEX(Database!$E$170:$CR$170,MATCH('Structure Input'!$P$9,Database!$C$170:$CR$170,0), MATCH('Structure Input'!S49,Database!$E$166:$CR$166,0)), "") ->  | U49: =IFERROR(INDEX(Database!$E$168:$CR$168,MATCH('Structure Input'!$U$9,Database!$C$168:$CR$168,0), MATCH('Structure Input'!S49,Database!$E$166:$CR$166,0)), "n/a") -> n/a | V49: =IFERROR(INDEX(Database!$E$167:$CR$167,MATCH('Structure Input'!$V$9,Database!$C$167:$CR$167,0), MATCH('Structure Input'!S49,Database!$E$166:$CR$166,0)), 0) -> 0 | FR49: Applied Freight: | FS49: =IF(X47="Casting",FZ45*Summary!$AI$10,IF(X47="Hatch",GA45*Summary!$AI$13,0)) -> 0 | GD49: =IF(AT45="Xypex+MIC", 1.25,1) -> 1 | GE49: =IF(AND(M49="Yes",P49>3.99,P49<5.98),160*GD49,IF(AND(M49="Yes",P49>5.99,P49<7.98),182*GD49,IF(AND(M49="Yes",P49>7.99,P49<9.98),216*GD49,IF(AND(M49="Yes",P49>9.99,P49<11.98),468*GD49,IF(AND(M49="Yes",P49=12),604*GD49,""))))) ->  | GF49: =IF(AND(N49>0,N49<4),4,IF(N49>=4,N49,"")) ->  | GP49: =IFERROR(IF(GE49>0,GE49*GF49,""),"") -> 
A50: 1 | L50: =(K50-K45) -> 0 | M50: =IF(AND(P50<12.1,P50>3.9,L50>2.1,D45="Sanitary"), "Yes", "No") -> No | N50: =IF(L50<2.1,"",L50) ->  | O50: 6 | P50: =IFERROR(INDEX(Database!$E$170:$CR$170,MATCH('Structure Input'!$P$9,Database!$C$170:$CR$170,0), MATCH('Structure Input'!S50,Database!$E$166:$CR$166,0)), "") ->  | U50: =IFERROR(INDEX(Database!$E$168:$CR$168,MATCH('Structure Input'!$U$9,Database!$C$168:$CR$168,0), MATCH('Structure Input'!S50,Database!$E$166:$CR$166,0)), "n/a") -> n/a | V50: =IFERROR(INDEX(Database!$E$167:$CR$167,MATCH('Structure Input'!$V$9,Database!$C$167:$CR$167,0), MATCH('Structure Input'!S50,Database!$E$166:$CR$166,0)), 0) -> 0 | BA50: Exterior Coating | FE50: Exterior | GD50: =IF(AT45="Xypex+MIC", 1.25,1) -> 1 | GE50: =IF(AND(M50="Yes",P50>3.99,P50<5.98),160*GD50,IF(AND(M50="Yes",P50>5.99,P50<7.98),182*GD50,IF(AND(M50="Yes",P50>7.99,P50<9.98),216*GD50,IF(AND(M50="Yes",P50>9.99,P50<11.98),468*GD50,IF(AND(M50="Yes",P50=12),604*GD50,""))))) ->  | GF50: =IF(AND(N50>0,N50<4),4,IF(N50>=4,N50,"")) ->  | GP50: =IFERROR(IF(GE50>0,GE50*GF50,""),"") -> 
A51: =(A45+1) -> 2 | N51: =IF(AND(OR(L52>2.1,L53>2.1,L54>2.1,L55>2.1,L56>2.1), J51>0,D51="Sanitary"), "Yes", IF(AND(OR(L52<2.1,L53<2.1,L54<2.1,L55<2.1,L56<2.1), J51>0,D51="Sanitary"), "No",IF(J51=0, "", ""))) ->  | O51: 1 | P51: =IFERROR(INDEX(Database!$E$170:$CR$170,MATCH('Structure Input'!$P$9,Database!$C$170:$CR$170,0), MATCH('Structure Input'!S51,Database!$E$166:$CR$166,0)), "") ->  | R51: 0 | T51: =IF(ISNUMBER(SEARCH("Grout",S51)),"1",IF(ISNUMBER(SEARCH("Link Seal",S51)),"4",IF(ISNUMBER(SEARCH("Boot",S51)),"2",IF(ISNUMBER(SEARCH("A-Lok",S51)),"3",IF(AND(C51>0,S51=""),"1",""))))) ->  | U51: =IFERROR(INDEX(Database!$E$168:$CR$168,MATCH('Structure Input'!$U$9,Database!$C$168:$CR$168,0), MATCH('Structure Input'!S51,Database!$E$166:$CR$166,0)), "n/a") -> n/a | V51: =IFERROR(INDEX(Database!$E$167:$CR$167,MATCH('Structure Input'!$V$9,Database!$C$167:$CR$167,0), MATCH('Structure Input'!S51,Database!$E$166:$CR$166,0)), 0) -> 0 | W51: =IFERROR(IF(W53>0,W53,IF(W53=0,(INDEX(Database!$E$514:$DF$514,MATCH('Structure Input'!$W$19,Database!$C$514:$DF$514,0), MATCH('Structure Input'!G51,Database!$E$513:$DF$513,0))),"")),"") ->  | X51: =IFERROR(INDEX(Database!$F$151:$JL$151,MATCH('Structure Input'!$X$9,Database!$C$151:$JL$151,0), MATCH('Structure Input'!W51,Database!$F$150:$JL$150,0)), 0) -> 0 | Y51: =IF(OR(W51>"",W53>0), 1, "") ->  | Z51: =IFERROR(INDEX(Database!$I$153:$JL$153,MATCH('Structure Input'!$Z$9,Database!$C$153:$JL$153,0), MATCH('Structure Input'!W51,Database!$I$150:$JL$150,0)), 0) -> 0 | AA51: =IFERROR(INDEX(Database!$F$155:$JL$155,MATCH('Structure Input'!$AA$9,Database!$C$155:$JL$155,0), MATCH('Structure Input'!W51,Database!$F$150:$JL$150,0)), 0) -> 0 | AB51: =IF(AA51="Non-Stock",1*C51*Y51,0) -> 0 | AC51: =IFERROR(INDEX(Database!$I$156:$JL$156,MATCH('Structure Input'!$AC$9,Database!$C$156:$JL$156,0), MATCH('Structure Input'!W51,Database!$I$150:$JL$150,0)), 0) -> 0 | AD51: =IFERROR(INDEX(Database!$I$157:$JL$157,MATCH('Structure Input'!$AD$9,Database!$C$157:$JL$157,0), MATCH('Structure Input'!W51,Database!$I$150:$JL$150,0)), 0) -> 0 | AE51: =IFERROR(INDEX(Database!$I$158:$JL$158,MATCH('Structure Input'!$AE$9,Database!$C$158:$JL$158,0), MATCH('Structure Input'!W51,Database!$I$150:$JL$150,0)), 0) -> 0 | AF51: =IFERROR(INDEX(Database!$I$159:$JL$159,MATCH('Structure Input'!$AF$9,Database!$C$159:$JL$159,0), MATCH('Structure Input'!W51,Database!$I$150:$JL$150,0)), 0) -> 0 | AG51: =IFERROR(INDEX(Database!$I$160:$JL$160,MATCH('Structure Input'!$AG$9,Database!$C$160:$JL$160,0), MATCH('Structure Input'!W51,Database!$I$150:$JL$150,0)), 0) -> 0 | AI51: =IFERROR(INDEX(Database!$E$171:$CR$171,MATCH('Structure Input'!$AI$7,Database!$C$171:$CR$171,0), MATCH('Structure Input'!S51,Database!$E$166:$CR$166,0)),0) -> 0 | AK51: =(J51-K51)+AJ51 -> 0 | AL51: =AK51-AM51 -> 0 | AM51: =IF(AND(AP51>0, AN51="Transition"), AK51-AP51, 0) -> 0 | AN51: =IFERROR(INDEX(Database!$E$141:$P$141,MATCH('Structure Input'!$AN$9,Database!$C$141:$P$141, 0), MATCH('Structure Input'!AR51,Database!$E$132:$P$132,0)), "") -> Top Slab | AO51: =IFERROR(INDEX(Database!$E$140:$P$140,MATCH('Structure Input'!$AO$9,Database!$C$140:$P$140, 0), MATCH('Structure Input'!AR51,Database!$E$132:$P$132,0)), "") -> 0 | AR51: =IF(AR52>0,AR52,IF(AND(AR52=0,AQ51>0),INDEX(Database!$E$13:$BM$13,MATCH('Structure Input'!$AR$9,Database!$C$13:$C$13,0), MATCH('Structure Input'!AQ51,Database!$E$4:$BM$4,0)),"Yes Top")) -> Yes Top | AS51: =IF(AS52>0,AS52,"W/Base") -> W/Base | AT51: =IF(AT52>0,AT52,IF(AND($D51="Storm",AT52=0,$AT$11>0),$AT$11,IF(AND($D51="Sanitary",AT52=0,$AT$12>0),$AT$12,IF(AND($D51="Wet Well",AT52=0,$AT$13>0),$AT$13,IF(AND($D51="Vault",AT52=0,$AT$14>0),$AT$14,IF(AND($D51="Grease Trap",AT52=0,$AT$15>0),$AT$15,IF(AND($D51="Oil Seperator",AT52=0,$AT$15>0),$AT$15,IF(AND($D51="Septic",AT52=0,$AT$16>0),$AT$16,IF(AND($D51="Water/SS ARV",AT52=0,$AT$17>0),$AT$17,"Plain"))))))))) -> Plain | AU51: =IFERROR(IF(AND(OR(AR51="Yes Top",AR51="Trans 48""R W/Top",AR51="Trans 60""R W/Top",AR51="Trans 24""x24"" Riser",AR51="Trans 24""x24"" W/Top",AR51="Trans 24""x30"" Riser",AR51="Trans 24""x30"" W/Top",AR51="Trans 24""x36"" Riser",AR51="Trans 24""x36"" W/Top",AR51="Trans 36""x36"" Riser",AR51="Trans 36""x36"" W/Top"),J51>0,AS51="W/Base"),"No",IF(AND(OR(AR51="Yes Top",AR51="Trans 48""R W/Top",AR51="Trans 60""R W/Top",AR51="Trans 24""x24"" Riser",AR51="Trans 24""x24"" W/Top",AR51="Trans 24""x30"" Riser",AR51="Trans 24""x30"" W/Top",AR51="Trans 24""x36"" Riser",AR51="Trans 24""x36"" W/Top",AR51="Trans 36""x36"" Riser",AR51="Trans 36""x36"" W/Top"),J51>0,AS51="No Base"),"OB",IF(AND(AR51="No Top",J51>0,OR(W51="",W51="No Casting"),AS51="W/Base"),"OT",IF(AND(AR51="No Top",J51>0,W51>0,AS51="W/Base"),"No",IF(AND(AR51="No Top",J51>0,OR(W51="",W51="No Casting"),AS51="No Base"),"OB & OT",IF(AND(AR51="No Top",J51>0,W51>0,AS51="No Base"),"OB","")))))),"") ->  | AV51: =IF(AV52>0,AV52,IF(AND($D51="Storm",AV52=0,$AV$11>0),$AV$11,IF(AND($D51="Sanitary",AV52=0,$AV$12>0),$AV$12,IF(AND($D51="Wet Well",AV52=0,$AV$13>0),$AV$13,IF(AND($D51="Vault",AV52=0,$AV$14>0),$AV$14,IF(AND($D51="Grease Trap",AV52=0,$AV$15>0),$AV$15,IF(AND($D51="Oil Seperator",AV52=0,$AV$15>0),$AV$15,IF(AND($D51="Septic",AV52=0,$AV$16>0),$AV$16,IF(AND($D51="Water/SS ARV",AV52=0,$AV$17>0),$AV$17,""))))))))) ->  | AW51: =IF(AV51="1"" CS-102",1,IF(AV51="1"" CS-102 Dbl",2,IF(AV51="1.25"" CS-102",3,IF(AV51="1.25"" CS-102 Dbl",4,IF(AV51="1"" CS-231",5,IF(AV51="1"" CS-231 Dbl",6,IF(AV51="1.25"" CS-231",7,IF(AV51="1.25"" CS-231 Dbl",8,IF(AV51="3/4"" CS-440",9,IF(AV51="HK TSS Gasket",10,IF(AND(C51>0,AV51=""),"No",""))))))))))) ->  | AX51: =IF(AX52>0,AX52,IF(AND($D51="Storm",AX52=0,$AX$11>0),$AX$11,IF(AND($D51="Sanitary",AX52=0,$AX$12>0),$AX$12,IF(AND($D51="Wet Well",AX52=0,$AX$13>0),$AX$13,IF(AND($D51="Vault",AX52=0,$AX$14>0),$AX$14,IF(AND($D51="Grease Trap",AX52=0,$AX$15>0),$AX$15,IF(AND($D51="Oil Seperator",AX52=0,$AX$15>0),$AX$15,IF(AND($D51="Septic",AX52=0,$AX$16>0),$AX$16,IF(AND($D51="Water/SS ARV",AX52=0,$AX$17>0),$AX$17,""))))))))) ->  | AY51: =IF(AX51="6"" CS-212",1,IF(AX51="12"" CS-212",2,IF(AX51="12"" MacWrap",3,IF(AND(C51>0,AX51=""),"No","")))) ->  | AZ51: =IF(AZ52>0,AZ52,IF(AND($D51="Storm",AZ52=0,$AZ$11>0),$AZ$11,IF(AND($D51="Sanitary",AZ52=0,$AZ$12>0),$AZ$12,IF(AND($D51="Wet Well",AZ52=0,$AZ$13>0),$AZ$13,IF(AND($D51="Vault",AZ52=0,$AZ$14>0),$AZ$14,IF(AND($D51="Grease Trap",AZ52=0,$AZ$15>0),$AZ$15,IF(AND($D51="Oil Seperator",AZ52=0,$AZ$15>0),$AZ$15,IF(AND($D51="Septic",AZ52=0,$AZ$16>0),$AZ$16,IF(AND($D51="Water/SS ARV",AZ52=0,$AZ$17>0),$AZ$17,""))))))))) ->  | BA51: =IF(BA52>0,BA52,IF(AND($D51="Storm",BA52=0,$BA$11>0),$BA$11,IF(AND($D51="Sanitary",BA52=0,$BA$12>0),$BA$12,IF(AND($D51="Wet Well",BA52=0,$BA$13>0),$BA$13,IF(AND($D51="Vault",BA52=0,$BA$14>0),$BA$14,IF(AND($D51="Grease Trap",BA52=0,$BA$15>0),$BA$15,IF(AND($D51="Oil Seperator",BA52=0,$BA$15>0),$BA$15,IF(AND($D51="Septic",BA52=0,$BA$16>0),$BA$16,IF(AND($D51="Water/SS ARV",BA52=0,$BA$17>0),$BA$17,""))))))))) ->  | BB51: =IF(ISNUMBER(SEARCH("CS-55",BA51)),"1",IF(ISNUMBER(SEARCH("Carboline 300M",BA51)),"2",IF(ISNUMBER(SEARCH("Masterseal 610",BA51)),"3",IF(ISNUMBER(SEARCH("HLM 5000",BA51)),"4",IF(AND(C51>0,BA51=""),"No",""))))) ->  | BC51: =IF(AND(BB51="No",BB53="No"),"No",IF(AND(BB51>0,BB53="No"),BB51,IF(AND(BB53>0,BB51="No"),BB53,IF(AND(BB53>0,BB51>0,C51>0),BB51&","&BB53,"")))) ->  | BD51: =IF(BD52>0,BD52,IF(AND($D51="Storm",BD52=0,$BD$11>0),$BD$11,IF(AND($D51="Sanitary",BD52=0,$BD$12>0),$BD$12,""))) ->  | BE51: =IF(BD51="Yes","Yes",IF(BD51="Exclude","Exclude",IF(BD51="No","No",IF(AND(J51>0,BD51=""),"No", "")))) ->  | BF51: =IF(BF52>0,BF52,IF(AND($D51="Storm",BF52=0,$BF$11>0),$BF$11,IF(AND($D51="Sanitary",BF52=0,$BF$12>0),$BF$12,IF(AND($D51="Wet Well",BF52=0,$BF$13>0),$BF$13,IF(AND($D51="Vault",BF52=0,$BF$14>0),$BF$14,IF(AND($D51="Grease Trap",BF52=0,$BF$15>0),$BF$15,IF(AND($D51="Oil Seperator",BF52=0,$BF$15>0),$BF$15,IF(AND($D51="Septic",BF52=0,$BF$16>0),$BF$16,IF(AND($D51="Water/SS ARV",BF52=0,$BF$17>0),$BF$17,""))))))))) ->  | BG51: =IFERROR(INDEX(Database!$G$5:$BJ$5,MATCH('Structure Input'!$BG$9,Database!$C$5:$BJ$5,0), MATCH('Structure Input'!AQ51,Database!$G$4:$BJ$4,0)), 0) -> 0 | BH51: =IFERROR(INDEX(Database!$S$6:$BJ$6,MATCH('Structure Input'!$BH$9,Database!$C$6:$BJ$6,0), MATCH('Structure Input'!AQ51,Database!$S$4:$BJ$4,0)), 0) -> 0 | BI51: =IFERROR(INDEX(Database!$S$7:$BJ$7,MATCH('Structure Input'!$BI$9,Database!$C$7:$BJ$7,0), MATCH('Structure Input'!AQ51,Database!$S$4:$BJ$4,0)), 0) -> 0 | BJ51: =IF(AS51="W/Base",IFERROR(INDEX(Database!$E$8:$AX$8,MATCH('Structure Input'!$BJ$9,Database!$C$8:$AX$8,0),MATCH('Structure Input'!AQ51,Database!$E$4:$AX$4,0)),0),IF(AS51="No Base",0)) -> 0 | BK51: =IF(OR(AN51="Top Slab",AN51="Transition"),IFERROR(INDEX(Database!$E$9:$AX$9,MATCH('Structure Input'!$BK$9,Database!$C$9:$AX$9,0),MATCH('Structure Input'!AQ51,Database!$E$4:$AX$4,0)),0),IF(AN51="No Top",0)) -> 0 | BL51: =IFERROR(INDEX(Database!$E$10:$AX$10,MATCH('Structure Input'!$BL$9,Database!$C$10:$AX$10,0), MATCH('Structure Input'!AQ51,Database!$E$4:$AX$4,0)), 0) -> 0 | BM51: =IFERROR(IF(BF51="Yes",INDEX(Database!$E$33:$AX$33,MATCH('Structure Input'!$BM$9,Database!$C$33:$AX$33,0), MATCH('Structure Input'!AQ51,Database!$E$4:$AX$4,0)), 0), 0) -> 0 | BN51: =IFERROR(INDEX(Database!$E$133:$P$133,MATCH('Structure Input'!$BN$9,Database!$C$133:$P$133,0), MATCH('Structure Input'!AR51,Database!$E$132:$P$132,0)), 0) -> 0 | BO51: =IFERROR(INDEX(Database!$E$134:$P$134,MATCH('Structure Input'!$BO$9,Database!$C$134:$P$134,0), MATCH('Structure Input'!AR51,Database!$E$132:$P$132,0)), 0) -> 0 | BP51: =IFERROR(INDEX(Database!$E$135:$P$135,MATCH('Structure Input'!$BP$9,Database!$C$135:$P$135,0), MATCH('Structure Input'!AR51,Database!$E$132:$P$132,0)), 0) -> 0 | BQ51: =IFERROR(INDEX(Database!$E$136:$P$136,MATCH('Structure Input'!$BQ$9,Database!$C$136:$P$136,0), MATCH('Structure Input'!AR51,Database!$E$132:$P$132,0)), 0) -> 0 | BR51: =IFERROR(INDEX(Database!$E$137:$P$137,MATCH('Structure Input'!$BR$9,Database!$C$137:$P$137,0), MATCH('Structure Input'!AR51,Database!$E$132:$P$132,0)), 0) -> 0 | BS51: =IF(BG51>0,((BG51+(BL51*2))*(22/7))/12,0) -> 0 | BT51: =IF(BH51>0,(((BH51+(BL51*2))*2)+((BI51+(BL51*2))*2))/12,0) -> 0 | BU51: =BS51+BT51 -> 0 | BV51: =IF(BG51>0,(BG51*3.14159)/12,0) -> 0 | BW51: =IF(BH51>0,((BH51*2)+(BI51*2))/12,0) -> 0 | BX51: =BV51+BW51 -> 0 | BY51: =(BG51/2+BL51+BM51)*(BG51/2+BL51+BM51)/144*3.14*BJ51/12 -> 0 | BZ51: =((BG51/2+BL51)*(BG51/2+BL51)-(BG51/2)*(BG51/2))/144*3.14*(AL51-(X51+BK51+AH51-3)/12) -> 0 | CA51: =(BG51/2+BL51)*(BG51/2+BL51)/144*3.14*BK51/12 -> 0 | CB51: =SUM(BY51:CA51) -> 0 | CC51: =((BH51+2*BL51+2*BM51)*(BI51+2*BL51+2*BM51)/144*BJ51/12) -> 0 | CD51: =((BH51+2*BL51)*(BI51+2*BL51)-(BH51*BI51))/144*(AL51-(BK51+X51+AH51-AI51)/12) -> 0 | CE51: =(BH51+2*BL51)*(BI51+2*BL51)/144*BK51/12 -> 0 | CF51: =(CE51+CD51+CC51) -> 0 | CG51: =IF(AO51="Round", ((BN51/2+BR51)*(BN51/2+BR51)-(BN51/2)*(BN51/2))/144*3.14*(AM51-(BQ51-3)/12),IF(AO51="Flat Wall", ((BO51+2*BR51)*(BP51+2*BR51)-(BO51*BP51))/144*(AM51-(BQ51)/12), 0)) -> 0 | CH51: =IF(AO51="Round", ((BN51/2+BR51)*(BN51/2+BR51)/144*3.14*BQ51/12),IF(AO51="Flat Wall", ((BO51+2*BR51)*(BP51+2*BR51)/144*BQ51/12), 0)) -> 0 | CI51: =(CG51+CH51) -> 0 | CJ51: =BG51+BH51+(BL51*2)+(BM51*2) -> 0 | CK51: =BG51+BH51+(BL51*2) -> 0 | CL51: =IFERROR(INDEX(Database!$E$191:$IA$191,MATCH('Structure Input'!$CL$9,Database!$C$191:$IA$191,0), MATCH('Structure Input'!H51,Database!$E$185:$IA$185,0)), 0) -> 0 | CM51: =IF(AND(CJ51>=103,CJ51<150,CL51=0),2,IF(AND(CJ51>=150,CJ51<167,CL51=0),3,IF(AND(CJ51>=168,CL51=0),4,IF(AND(CL51>=103,CL51<150),2,IF(AND(CL51>=150,CL51<167),3,IF(CL51>=168,4,1)))))) -> 1 | CN51: =IF(AND(CK51>=103,CK51<150),2,IF(AND(CK51>=150,CK51<167),3,IF(CK51>=168,4,1))) -> 1 | CO51: =IF(OR(DG51="Yes",DG51="Yes +1 Ld",DG51="Yes +2 Lds",DG51="Yes +3 Lds",DG51="Yes +4 Lds",DG51="Yes +5 Lds"),ROUNDUP((CU51/20),0),CU51/20) -> 0 | CP51: =IF(AND(OR(DG51="Yes",DG51="Yes +1 Ld",DG51="Yes +2 Lds",DG51="Yes +3 Lds",DG51="Yes +4 Lds",DG51="Yes +5 Lds"),CS51=20,CT51>0),ROUNDUP((CV51/20),0),CV51/20)+IF(DG51="Yes +1 Ld",1,IF(DG51="Yes +2 Lds",2,IF(DG51="Yes +3 Lds",3,IF(DG51="Yes +4 Lds",4,IF(DG51="Yes +5 Lds",5,0))))) -> 0.32745 | CQ51: =CO51+CP51 -> 0.32745 | CR51: =CQ51-((CU51/20)+(CV51/20)) -> 0 | CS51: =IF(DJ51<=20,DJ51,20) -> 6.549 | CT51: =(DJ51-CS51) -> 0 | CU51: =IF(DJ51<=20,DJ51,20)*C51 -> 0 | CV51: =(DI51-CU51) -> 6.549 | CW51: =IF(CM51=1,CU51,0)+IF(CN51=1,CV51,0) -> 6.549 | CX51: =IF(CM51=2,CU51,0)+IF(CN51=2,CV51,0) -> 0 | CY51: =IF(CM51=3,CU51,0)+IF(CN51=3,CV51,0) -> 0 | CZ51: =IF(CM51=4,CU51,0)+IF(CN51=4,CV51,0) -> 0 | DA51: =IFERROR(INDEX(Database!$E$187:$IA$187,MATCH('Structure Input'!$DA$7,Database!$C$187:$IA$187,0), MATCH('Structure Input'!H51,Database!$E$185:$IA$185,0)), 0) -> 0 | DC51: =IF(AND(C51>0,DB54>0),"(Item "&A51&" - "&"Structure "&I51&") "&DB54,"") ->  | DE51: =IF(DF51="1 Piece",1,IF(DF51="2 Pieces",2,IF(DF51="3 Pieces",3,IF(DF51="4 Pieces",4,"")))) ->  | DH51: =IF(BG51>0,(CB51+CI51),(CF51+CI51)) -> 0 | DI51: =IF(C51>0,DJ51*C51,DJ51) -> 6.549 | DJ51: =((DH51/13.5)+FJ51/21*148/2000+(GF51*25*22/144*148/2000)+DA51+DK51*148/2000) -> 6.549 | DK51: 88.5 | DL51: 55 | DM51: =AT51 -> Plain | DN51: =IF(AND(DM51="Plain",C51>0),"No",IF(AND(DM51="Xypex",C51>0),2,IF(AND(DM51="MIC",C51>0),3,IF(AND(DM51="Xypex+MIC",C51>0),4,"")))) ->  | DO51: =(AL51) -> 0 | DP51: =IFERROR(INDEX(Database!$E$12:$BM$12,MATCH('Structure Input'!$DP$9,Database!$C$12:$BM$12,0), MATCH('Structure Input'!AQ51,Database!$E$4:$BM$4,0)), 0) -> 0 | DQ51: =IFERROR(IF(AND(DP51="Flat Wall",AS51="W/Base"),(INDEX(Database!$S$14:$AX$14,MATCH('Structure Input'!$DQ$9,Database!$C$14:$AX$14,0),MATCH('Structure Input'!AQ51,Database!$S$4:$AX$4,0))),IF(AND(DP51="Round",DO51>=10),10,IF(AND(DP51="Round",DO51<10,DO51>2),ROUNDDOWN(DO51,0),IF(AND(DP51="Round",DO51<=2),2,0)))),0) -> 0 | DR51: =IFERROR(IF(AND(DM51="Plain",DP51="Round"),INDEX(Database!$G$34:$L$42,MATCH('Structure Input'!DQ51,Database!$C$34:$C$42,0),MATCH('Structure Input'!AQ51,Database!$G$4:$L$4,0)),IF(AND(DM51="Xypex",DP51="Round"),INDEX(Database!$G$57:$L$65,MATCH('Structure Input'!DQ51,Database!$C$57:$C$65,0),MATCH('Structure Input'!AQ51,Database!$G$4:$L$4,0)),IF(AND(DM51="MIC",DP51="Round"),INDEX(Database!$G$80:$L$88,MATCH('Structure Input'!DQ51,Database!$C$80:$C$88,0),MATCH('Structure Input'!AQ51,Database!$G$4:$L$4,0)), IF(AND(DM51="Xypex+MIC", DP51="Round"), INDEX(Database!$G$103:$L$111,MATCH('Structure Input'!DQ51,Database!$C$103:$C$111,0),MATCH('Structure Input'!AQ51,Database!$G$4:$L$4,0)), 0)))), 0) -> 0 | DS51: =IFERROR(IF(AND(AS51="W/Base",DM51="Plain"),(INDEX(Database!$S$15:$BM$15,MATCH('Structure Input'!$DS$9,Database!$C$15:$BM$15,0),MATCH('Structure Input'!AQ51,Database!$S$4:$BM$4,0))),IF(AND(AS51="No Base",DM51="Xypex",DM51="MIC", DM51="Xypex+MIC"),0,0)), 0) -> 0 | DT51: =IFERROR(IF(AND(OR(AR51="Yes Top",AR51="Trans 48""R W/Top",AR51="Trans 60""R W/Top",AR51="Trans 24""x24"" Riser",AR51="Trans 24""x24"" W/Top",AR51="Trans 24""x30"" Riser",AR51="Trans 24""x30"" W/Top",AR51="Trans 24""x36"" Riser",AR51="Trans 24""x36"" W/Top",AR51="Trans 36""x36"" Riser",AR51="Trans 36""x36"" W/Top"),DM51="Plain"),(INDEX(Database!$S$16:$BM$16,MATCH('Structure Input'!$DT$9,Database!$C$16:$BM$16,0),MATCH('Structure Input'!AQ51,Database!$S$4:$BM$4,0))),IF(AND(AR51="No Top",DM51="Xypex",DM51="MIC", DM51="Xypex+MIC"),0,0)), 0) -> 0 | DU51: =IFERROR(IF(DM51="Plain", INDEX(Database!$G$17:$BM$17,MATCH('Structure Input'!$DU$9,Database!$C$17:$BM$17,0), MATCH('Structure Input'!AQ51,Database!$G$4:$BM$4,0)), IF(DM51="Xypex", INDEX(Database!$G$66:$L$66,MATCH('Structure Input'!$DU$9,Database!$C$66:$L$66,0), MATCH('Structure Input'!AQ51,Database!$G$4:$L$4,0)), IF(DM51="MIC", INDEX(Database!$G$89:$L$89,MATCH('Structure Input'!$DU$9,Database!$C$89:$L$89,0), MATCH('Structure Input'!AQ51,Database!$G$4:$L$4,0)), IF(DM51="Xypex+MIC", INDEX(Database!$G$112:$L$112,MATCH('Structure Input'!$DU$9,Database!$C$112:$L$112,0), MATCH('Structure Input'!AQ51,Database!$G$4:$L$4,0)), 0)))), 0) -> 0 | DV51: =IFERROR(IF(DM51="Plain", INDEX(Database!$FI$195:$IA$195,MATCH('Structure Input'!$DV$9,Database!$C$195:$IA$195,0), MATCH('Structure Input'!H51,Database!$FI$185:$IA$185,0)), IF(DM51="Xypex", INDEX(Database!$FI$196:$IA$196,MATCH('Structure Input'!$DV$9,Database!$C$196:$IA$196,0), MATCH('Structure Input'!H51,Database!$FI$185:$IA$185,0)), IF(DM51="MIC", INDEX(Database!$FI$197:$IA$197,MATCH('Structure Input'!$DV$9,Database!$C$197:$IA$197,0), MATCH('Structure Input'!H51,Database!$FI$185:$IA$185,0)), IF(DM51="Xypex+MIC", INDEX(Database!$FI$198:$IA$198,MATCH('Structure Input'!$DV$9,Database!$C$198:$IA$198,0), MATCH('Structure Input'!H51,Database!$FI$185:$IA$185,0)), 0)))), 0) -> 0 | DW51: =IFERROR(INDEX(Database!$E$144:$P$144,MATCH('Structure Input'!$DW$9,Database!$C$144:$P$144,0), MATCH('Structure Input'!AR51,Database!$E$132:$P$132,0)), 0) -> 0 | DX51: =IFERROR(INDEX(Database!$E$143:$P$143,MATCH('Structure Input'!$DX$9,Database!$C$143:$P$143,0), MATCH('Structure Input'!AR51,Database!$E$132:$P$132,0)), 0) -> 0 | DY51: =IFERROR(IF(AND(DM51="Plain",DP51="Round",AS51="No Base"),INDEX(Database!$G$44:$L$44,MATCH($DY$9,Database!$C$44:$C$44,0),MATCH('Structure Input'!AQ51,Database!$G$4:$L$4,0)),IF(AND(DM51="Xypex",DP51="Round",AS51="No Base"),INDEX(Database!$G$67:$L$67,MATCH($DY$9,Database!$C$67:$C$67,0),MATCH('Structure Input'!AQ51,Database!$G$4:$L$4,0)),IF(AND(DM51="MIC",DP51="Round",AS51="No Base"),INDEX(Database!$G$90:$L$90,MATCH($DY$9,Database!$C$90:$C$90,0),MATCH('Structure Input'!AQ51,Database!$G$4:$L$4,0)), IF(AND(DM51="Xypex+MIC", DP51="Round",AS51="No Base"), INDEX(Database!$G$113:$L$113,MATCH($DY$9,Database!$C$113:$C$113,0),MATCH('Structure Input'!AQ51,Database!$G$4:$L$4,0)), 0)))), 0) -> 0 | DZ51: =IFERROR(IF(AND(DM51="Plain",DP51="Round",AR51="No Top"),INDEX(Database!$G$45:$L$45,MATCH($DZ$9,Database!$C$45:$C$45,0),MATCH('Structure Input'!AQ51,Database!$G$4:$L$4,0)),IF(AND(DM51="Xypex",DP51="Round",AR51="No Top"),INDEX(Database!$G$68:$L$68,MATCH($DZ$9,Database!$C$68:$C$68,0),MATCH('Structure Input'!AQ51,Database!$G$4:$L$4,0)),IF(AND(DM51="MIC",DP51="Round",AR51="No Top"),INDEX(Database!$G$91:$L$91,MATCH($DZ$9,Database!$C$91:$C$91,0),MATCH('Structure Input'!AQ51,Database!$G$4:$L$4,0)), IF(AND(DM51="Xypex+MIC", DP51="Round",AR51="No Top"), INDEX(Database!$G$114:$L$114,MATCH($DZ$9,Database!$C$114:$C$114,0),MATCH('Structure Input'!AQ51,Database!$G$4:$L$4,0)), 0)))), 0) -> 0 | EA51: =IF(AND(DP51="Knockout",AK51<12.01),(AK51*12),0) -> 0 | EB51: =IFERROR(IF(AND(AS51="W/Base",DM51="Plain",DP51="Knockout",AK51<12.01),(INDEX(Database!$AY$21:$BJ$21,MATCH('Structure Input'!$EB$9,Database!$C$21:$BJ$21,0),MATCH('Structure Input'!AQ51,Database!$AY$4:$BJ$4,0))),IF(AND(AS51="No Base",DM51="Xypex",DM51="MIC", DM51="Xypex+MIC"),0,0)), 0) -> 0 | EC51: =IFERROR(IF(AND(AS51="W/Base",DM51="Plain",AK51<12.01),(INDEX(Database!$AY$19:$BJ$19,MATCH('Structure Input'!$EC$9,Database!$C$19:$BJ$19,0),MATCH('Structure Input'!AQ51,Database!$AY$4:$BJ$4,0))),IF(AND(AS51="No Base",DM51="Xypex",DM51="MIC", DM51="Xypex+MIC"),0,0)), 0) -> 0 | ED51: =IFERROR(IF(AND(OR(AR51="Yes Top",AR51="Trans. to 48"" Dia.",AR51="Trans. to 60"" Dia.",AR51="Trans. to 24""x24""",AR51="Trans. to 24""x30""",AR51="Trans. to 24""x36""",AR51="Trans. to 36""x36"""),DM51="Plain",DP51="Knockout",AK51<12.01),(INDEX(Database!$AY$24:$BJ$24,MATCH('Structure Input'!$ED$9,Database!$C$24:$BJ$24,0),MATCH('Structure Input'!AQ51,Database!$AY$4:$BJ$4,0))),IF(AND(AR51="No Top",DM51="Xypex",DM51="MIC", DM51="Xypex+MIC"),0,0)), 0) -> 0 | EE51: =IFERROR(IF(AND(OR(AR51="Yes Top",AR51="Trans. to 48"" Dia.",AR51="Trans. to 60"" Dia.",AR51="Trans. to 24""x24""",AR51="Trans. to 24""x30""",AR51="Trans. to 24""x36""",AR51="Trans. to 36""x36"""),DM51="Plain",DP51="Knockout",AK51<12.01),(INDEX(Database!$AY$22:$BJ$22,MATCH('Structure Input'!$EE$9,Database!$C$22:$BJ$22,0),MATCH('Structure Input'!AQ51,Database!$AY$4:$BJ$4,0))),IF(AND(AR51="No Top",DM51="Xypex",DM51="MIC", DM51="Xypex+MIC"),0,0)), 0) -> 0 | EF51: =IF(DP51="Knockout",(EA51-EB51-ED51-X51),0) -> 0 | EG51: =IF(AND(DP51="Knockout",EF51>23.9),24,IF(AND(DP51="Knockout",EF51<23.9,EF51>11.9),12,0)) -> 0 | EH51: =IFERROR(IF(AND(AS51="W/Base",DM51="Plain",AK51<12.01,EG51=12),(INDEX(Database!$AY$25:$BJ$25,MATCH('Structure Input'!$EH$9,Database!$C$25:$BJ$25,0),MATCH('Structure Input'!AQ51,Database!$AY$4:$BJ$4,0))),IF(AND(AS51="W/Base",DM51="Plain",AK51<12.01,EG51=24),(INDEX(Database!$AY$27:$BJ$27,MATCH('Structure Input'!$EH$9,Database!$C$27:$BJ$27,0),MATCH('Structure Input'!AQ51,Database!$AY$4:$BJ$4,0))),IF(AND(AS51="No Base",DM51="Xypex",DM51="MIC", DM51="Xypex+MIC"),0,0))), 0) -> 0 | EI51: =IF(DP51="Knockout",(EA51-EB51-ED51-X51-EG51),0) -> 0 | EJ51: =IF(AND(DP51="Knockout",EI51>23.9),24,IF(AND(DP51="Knockout",EI51<23.9,EI51>11.9),12,0)) -> 0 | EK51: =IFERROR(IF(AND(AS51="W/Base",DM51="Plain",AK51<12.01,EJ51=12),(INDEX(Database!$AY$25:$BJ$25,MATCH('Structure Input'!$EK$9,Database!$C$25:$BJ$25,0),MATCH('Structure Input'!AQ51,Database!$AY$4:$BJ$4,0))),IF(AND(AS51="W/Base",DM51="Plain",AK51<12.01,EJ51=24),(INDEX(Database!$AY$27:$BJ$27,MATCH('Structure Input'!$EK$9,Database!$C$27:$BJ$27,0),MATCH('Structure Input'!AQ51,Database!$AY$4:$BJ$4,0))),IF(AND(AS51="No Base",DM51="Xypex",DM51="MIC", DM51="Xypex+MIC"),0,0))), 0) -> 0 | EL51: =IF(DP51="Knockout",(EA51-EB51-ED51-X51-EG51-EJ51),0) -> 0 | EM51: =IF(AND(DP51="Knockout",EL51>23.9),24,IF(AND(DP51="Knockout",EL51<23.9,EL51>11.9),12,0)) -> 0 | EN51: =IFERROR(IF(AND(AS51="W/Base",DM51="Plain",AK51<12.01,EM51=12),(INDEX(Database!$AY$25:$BJ$25,MATCH('Structure Input'!$EN$9,Database!$C$25:$BJ$25,0),MATCH('Structure Input'!AQ51,Database!$AY$4:$BJ$4,0))),IF(AND(AS51="W/Base",DM51="Plain",AK51<12.01,EM51=24),(INDEX(Database!$AY$27:$BJ$27,MATCH('Structure Input'!$EN$9,Database!$C$27:$BJ$27,0),MATCH('Structure Input'!AQ51,Database!$AY$4:$BJ$4,0))),IF(AND(AS51="No Base",DM51="Xypex",DM51="MIC", DM51="Xypex+MIC"),0,0))), 0) -> 0 | EO51: =IF(DP51="Knockout",(EA51-EB51-ED51-X51-EG51-EJ51-EM51),0) -> 0 | EP51: =IF(AND(DP51="Knockout",EO51>23.9),24,IF(AND(DP51="Knockout",EO51<23.9,EO51>11.9),12,0)) -> 0 | EQ51: =IFERROR(IF(AND(AS51="W/Base",DM51="Plain",AK51<12.01,EP51=12),(INDEX(Database!$AY$25:$BJ$25,MATCH('Structure Input'!$EQ$9,Database!$C$25:$BJ$25,0),MATCH('Structure Input'!AQ51,Database!$AY$4:$BJ$4,0))),IF(AND(AS51="W/Base",DM51="Plain",AK51<12.01,EP51=24),(INDEX(Database!$AY$27:$BJ$27,MATCH('Structure Input'!$EQ$9,Database!$C$27:$BJ$27,0),MATCH('Structure Input'!AQ51,Database!$AY$4:$BJ$4,0))),IF(AND(AS51="No Base",DM51="Xypex",DM51="MIC", DM51="Xypex+MIC"),0,0))), 0) -> 0 | ER51: =IF(DP51="Knockout",(EA51-EB51-ED51-X51-EG51-EJ51-EM51-EP51),0) -> 0 | ES51: =IF(AND(DP51="Knockout",ER51>5.01, ER51<8.1),6,IF(AND(DP51="Knockout",ER51>3.5,ER51<5.01),4,IF(AND(DP51="Knockout",ER51>1.99,ER51<3.49),3,0))) -> 0 | ET51: =IF(ES51=3,50,IF(ES51=4,60,IF(ES51=6,78,0))) -> 0 | EU51: =IF(DP51="Knockout",(EA51-EB51-ED51-X51-EG51-EJ51-EM51-EP51-ES51),0) -> 0 | EV51: =IF(AND(DP51="Knockout",EU51>5.01, EU51<8.1),6,IF(AND(DP51="Knockout",EU51>3.5,EU51<5.01),4,IF(AND(DP51="Knockout",EU51>1.99,EU51<3.49),3,0))) -> 0 | EW51: =IF(EV51=3,50,IF(EV51=4,60,IF(EV51=6,78,0))) -> 0 | EX51: =EU51-EV51 -> 0 | EY51: =EC51+EE51+EH51+EK51+EN51+EQ51+ET51+EW51 -> 0 | EZ51: =IFERROR(INDEX(Database!$E$231:$M$231,MATCH('Structure Input'!$EZ$9,Database!$C$231:$C$231,0),MATCH('Structure Input'!AV51,Database!$E$217:$M$217,0)),0) -> 0 | FA51: =IFERROR(IF(DP51="Round",INDEX(Database!$E$218:$N$230,MATCH('Structure Input'!AQ51,Database!$C$218:$C$232,0),MATCH('Structure Input'!AV51,Database!$E$217:$N$217,0)),IF(DP51="Flat Wall",(EZ51*BU51),0)),0) -> 0 | FB51: =IFERROR(INDEX(Database!$R$242:$R$244,MATCH('Structure Input'!AX51,Database!$C$242:$C$244,0),MATCH('Structure Input'!$FB$9,Database!$R$241:$R$241,0)),0) -> 0 | FC51: =IFERROR(IF(DP51="Round",INDEX(Database!$E$242:$Q$244,MATCH('Structure Input'!AX51,Database!$C$242:$C$244,0),MATCH('Structure Input'!AQ51,Database!$E$241:$Q$241,0)),IF(DP51="Flat Wall",(FB51*BU51),0)),0) -> 0 | FD51: =IF(AND(AZ51="Yes", DP51="Round"),6,IF(AND(AZ51="Yes",DP51="Flat Wall"),18,IF(AND(AZ51="Yes",DP51="Knockout"),6,IF(AND(AZ51="Yes",DP51="Riser"),6,0)))) -> 0 | FE51: =IFERROR(INDEX(Database!$T$203:$T$210,MATCH('Structure Input'!BA51,Database!$C$203:$C$210,0), MATCH('Structure Input'!$FE$9,Database!$T$202:$T$202,0)), 0) -> 0 | FF51: =BU51*FE51 -> 0 | FG51: =BX51*FE53 -> 0 | FH51: =IFERROR(MAX(P51:P56), "") -> 0 | FI51: =IF(AND(FH51>=1,FH51<=8),8,IF(AND(FH51>=8.001,FH51<=10),10,IF(AND(FH51>=10.001,FH51<=12),12,IF(AND(FH51>=12.001,FH51<=15),15,IF(AND(FH51>=15.001,FH51<=18),18,IF(AND(FH51>=18.001,FH51<=24),24,IF(AND(FH51>=24.001,FH51<=30),30,IF(AND(FH51>=30.001,FH51<=36),36,IF(AND(FH51>=36.001,FH51<=42),42,IF(AND(FH51>=42.001,FH51<=48),48,0)))))))))) -> 0 | FJ51: =IFERROR(IF(AND(DM51="Plain",BD51="Yes"),INDEX(Database!$G$47:$I$56,MATCH('Structure Input'!FI51,Database!$C$47:$C$56,0),MATCH('Structure Input'!AQ51,Database!$G$4:$I$4,0)),IF(AND(DM51="Xypex",BD51="Yes"),INDEX(Database!$G$70:$I$79,MATCH('Structure Input'!FI51,Database!$C$70:$C$79,0),MATCH('Structure Input'!AQ51,Database!$G$4:$I$4,0)),IF(AND(DM51="MIC",BD51="Yes"),INDEX(Database!$G$93:$I$102,MATCH('Structure Input'!FI51,Database!$C$93:$C$102,0),MATCH('Structure Input'!AQ51,Database!$G$4:$I$4,0)),IF(AND(DM51="Xypex+MIC",BD51="Yes"),INDEX(Database!$G$116:$I$125,MATCH('Structure Input'!FI51,Database!$C$116:$C$125,0),MATCH('Structure Input'!AQ51,Database!$G$4:$I$4,0)),IF(BD51="",0,0))))),0) -> 0 | FK51: =IFERROR(IF(AND(DM51="Plain",BF51="Yes"),INDEX(Database!$G$46:$AX$46,MATCH('Structure Input'!$FK$9,Database!$C$46:$AX$46,0),MATCH('Structure Input'!AQ51,Database!$G$4:$AX$4,0)),IF(AND(DM51="Xypex",BF51="Yes"),INDEX(Database!$G$69:$L$69,MATCH('Structure Input'!$FK$9,Database!$C$69:$L$69,0),MATCH('Structure Input'!AQ51,Database!$G$4:$L$4,0)),IF(AND(DM51="MIC",BF51="Yes"),INDEX(Database!$G$92:$L$92,MATCH('Structure Input'!$FK$9,Database!$C$92:$L$92,0),MATCH('Structure Input'!AQ51,Database!$G$4:$L$4,0)),IF(AND(DM51="Xypex+MIC",BF51="Yes"),INDEX(Database!$G$115:$L$115,MATCH('Structure Input'!$FK$9,Database!$C$115:$L$115,0),MATCH('Structure Input'!AQ51,Database!$G$4:$L$4,0)),0)))),0) -> 0 | FR51: =IFERROR(INDEX(Database!$E$186:$IA$186,MATCH('Structure Input'!$FR$9,Database!$C$186:$IA$186,0), MATCH('Structure Input'!H51,Database!$E$185:$IA$185,0)), 0) -> 0 | FS51: =ROUNDUP((FS53*FS54)+FS55,0) -> 0 | FT51: =IF(X53="Casting",FS51*FX51,0) -> 0 | FU51: =IF(X53="Hatch",FS51*FY51,0) -> 0 | FV51: =IF(X53="Casting",FS54*FX51,0) -> 0 | FW51: =IF(X53="Hatch",FS54*FY51,0) -> 0 | FX51: =IF(X53="Casting",C51*Y51,0) -> 0 | FY51: =IF(X53="Hatch",C51*Y51,0) -> 0 | FZ51: =IF(X53="Casting",FS54/Summary!$AG$10,0) -> 0 | GA51: =IFERROR(IF(X53="Hatch",FS54/Summary!$AG$13,0),0) -> 0 | GB51: =GB53*GB54 -> 0 | GC51: 0 | GF51: =SUM(GF52:GF56) -> 0 | GG51: =IF(AND(BG51>0,BH51=0),BG51&" Dia.",IF(AND(BH51>0,BG51=0),BH51&"x"&BI51, "")) ->  | GH51: =IF(DO51-DQ51>0,(DO51-DQ51)*DU51,0) -> 0 | GI51: =MAX(0,((AM51-(BQ51/12))*DW51)) -> 0 | GJ51: =(FA51*AK51) -> 0 | GK51: =(FC51*AK51) -> 0 | GL51: =(V51+V52+V53+V54+V55+V56) -> 0 | GM51: =(FD51*AK51) -> 0 | GN51: =Summary!$Q$11 -> 1.2 | GO51: =(GJ51+GK51+GL51+GM51)*(GN51) -> 0 | GP51: =SUM(GP52:GP56) -> 0 | GQ51: =(FF51*AK51) -> 0 | GR51: =(FG51*AK51) -> 0 | GS51: =IF(DL51<>"",(DL51*DK51)+(DH51*DL51),0) -> 4867.5 | GT51: =IFERROR(HF51,"") ->  | GU51: =IFERROR(GX51,"") ->  | GV51: =IFERROR(GY51,"") -> 55.05505506 | GW51: =((DR51+DS51+DT51+DV51+DX51-DY51-DZ51+GH51+GI51+FJ51+FN51+FQ51+FR51+GS51)/((100-GZ51)/100)-DR51-DS51-DT51-DV51-DX51+DY51+DZ51-GH51-GI51-FJ51-FN51-FQ51-FR51-GS51)*C51 -> 0 | GX51: =(DR51+DS51+DT51+DV51+DX51-DY51-DZ51+EY51+FJ51+FK51+FL51+FM51+FN51+FO51+FP51+FQ51+FR51+GH51+GI51+GO51+GP51+GQ51+GR51+GS51+HF51)*HG51 ->  | GY51: =((DR51+DS51+DT51+DV51+DX51-DY51-DZ51+GH51+GI51+FQ51+EY51+FJ51+FK51+GP51+FR51+GS51)/DJ51*2/27)*HG51 -> 55.05505506 | GZ51: =(Summary!$AA$9) -> 14.07674269 | HA51: =(IF(DF51="1 Piece",(Summary!$AB$9*0.5),IF(DF51="2 Pieces",(Summary!$AB$9*1),IF(DF51="3 Pieces",(Summary!$AB$9*1.5),IF(DF51="4 Pieces",(Summary!$AB$9*2),0))))) -> 0 | HB51: =CR51*Summary!$AB$9 -> 0 | HC51: =IF(CM51=2,(CO51*Summary!$AB$9*0.25),IF(CM51=3,(CO51*Summary!$AB$9*0.5),IF(CM51=4,(CO51*Summary!$AB$9*0.75),0))) -> 0 | HD51: =IF(CN51=2,(CP51*Summary!$AB$9*0.25),IF(CN51=3,(CP51*Summary!$AB$9*0.5),IF(CN51=4,(CP51*Summary!$AB$9*0.75),0))) -> 0 | HE51: =GW51+HB51+HC51+HD51+(HA51*C51) -> 0 | HF51: =((GW51+HB51+HC51+HD51)/C51)+HA51 ->  | HG51: =IF(D51="Storm",Summary!$Q$2,IF(D51="End Treatment",Summary!$Q$3,IF(D51="Storm WQU",Summary!$Q$4,IF(D51="Sanitary",Summary!$Q$5,IF(D51="Wet Well",Summary!$Q$6,IF(D51="Vault",Summary!$Q$7,IF(OR(D51="Grease Trap",D51="Oil Separator",D51="Septic"),Summary!$Q$8,IF(D51="Water/SS ARV",Summary!$Q$9,IF(D51="Other",Summary!$Q$10,IF(D51="Box Culvert",Summary!$Q$15,IF(D51="UG Detention",Summary!$Q$16,1))))))))))) -> 1 | HH51: =IFERROR(GU51*C51, "") ->  | HI51: =IFERROR((((DR51+DS51+DT51+DV51+DX51-DY51-DZ51+FJ51+FK51+FL51+FM51+FN51+FO51+FQ51+FR51+GH51+GI51+GP51+GS51+HF51)*HG51)*C51), "") ->  | HJ51: =IFERROR((((DR51+DS51+DT51+DV51+DX51-DY51-DZ51+FJ51+FK51+GI51+FL51+FM51+FN51+FO51+FQ51+FR51+GH51+GP51+GS51)*HG51)*C51), "") -> 0
A52: 2 | L52: =(K52-K51) -> 0 | M52: =IF(AND(P52<12.1,P52>3.9,L52>2.1,D51="Sanitary"), "Yes", "No") -> No | N52: =IF(L52<2.1,"",L52) ->  | O52: 2 | P52: =IFERROR(INDEX(Database!$E$170:$CR$170,MATCH('Structure Input'!$P$9,Database!$C$170:$CR$170,0), MATCH('Structure Input'!S52,Database!$E$166:$CR$166,0)), "") ->  | U52: =IFERROR(INDEX(Database!$E$168:$CR$168,MATCH('Structure Input'!$U$9,Database!$C$168:$CR$168,0), MATCH('Structure Input'!S52,Database!$E$166:$CR$166,0)), "n/a") -> n/a | V52: =IFERROR(INDEX(Database!$E$167:$CR$167,MATCH('Structure Input'!$V$9,Database!$C$167:$CR$167,0), MATCH('Structure Input'!S52,Database!$E$166:$CR$166,0)), 0) -> 0 | AQ52: Overrides: | FE52: Interior | FR52: Designation: | FS52: =IF(OR(X53="Casting",X53="Hatch"),X53,"") ->  | GB52: =IF(OR(W54>0,W55>0),W54&""&W55,"") ->  | GD52: =IF(AT51="Xypex+MIC", 1.25,1) -> 1 | GE52: =IF(AND(M52="Yes",P52>3.99,P52<5.98),160*GD52,IF(AND(M52="Yes",P52>5.99,P52<7.98),182*GD52,IF(AND(M52="Yes",P52>7.99,P52<9.98),216*GD52,IF(AND(M52="Yes",P52>9.99,P52<11.98),468*GD52,IF(AND(M52="Yes",P52=12),604*GD52,""))))) ->  | GF52: =IF(AND(N52>0,N52<4),4,IF(N52>=4,N52,"")) ->  | GP52: =IFERROR(IF(GE52>0,GE52*GF52,""),"") -> 
A53: 2 | L53: =(K53-K51) -> 0 | M53: =IF(AND(P53<12.1,P53>3.9,L53>2.1,D51="Sanitary"), "Yes", "No") -> No | O53: 3 | P53: =IFERROR(INDEX(Database!$E$170:$CR$170,MATCH('Structure Input'!$P$9,Database!$C$170:$CR$170,0), MATCH('Structure Input'!S53,Database!$E$166:$CR$166,0)), "") ->  | U53: =IFERROR(INDEX(Database!$E$168:$CR$168,MATCH('Structure Input'!$U$9,Database!$C$168:$CR$168,0), MATCH('Structure Input'!S53,Database!$E$166:$CR$166,0)), "n/a") -> n/a | V53: =IFERROR(INDEX(Database!$E$167:$CR$167,MATCH('Structure Input'!$V$9,Database!$C$167:$CR$167,0), MATCH('Structure Input'!S53,Database!$E$166:$CR$166,0)), 0) -> 0 | X53: =IFERROR(INDEX(Database!$F$154:$JL$154,MATCH('Structure Input'!FR52,Database!$C$154:$JL$154,0),MATCH('Structure Input'!W51,Database!$F$150:$JL$150,0)),"Type in ""Casting"" or ""Hatch"" here if manually entered") -> Type in "Casting" or "Hatch" here if manually entered | BA53: Interior Coating | BB53: =IF(ISNUMBER(SEARCH("CS-55",BA54)),"5",IF(ISNUMBER(SEARCH("Carboline 300M",BA54)),"6",IF(ISNUMBER(SEARCH("Masterseal 610",BA54)),"7",IF(ISNUMBER(SEARCH("HLM 5000",BA54)),"8",IF(AND(C51>0,BA54=""),"No",""))))) ->  | FE53: =IFERROR(INDEX(Database!$T$203:$T$210,MATCH('Structure Input'!BA54,Database!$C$203:$C$210,0), MATCH('Structure Input'!$FE$9,Database!$T$202:$T$202,0)), 0) -> 0 | FR53: Multiplier: | FS53: =Summary!$Q$12 -> 1.3 | GB53: =Summary!$Q$13 -> 1.25 | GC53: =Summary!$Q$14 -> 1.25 | GD53: =IF(AT51="Xypex+MIC", 1.25,1) -> 1 | GE53: =IF(AND(M53="Yes",P53>3.99,P53<5.98),160*GD53,IF(AND(M53="Yes",P53>5.99,P53<7.98),182*GD53,IF(AND(M53="Yes",P53>7.99,P53<9.98),216*GD53,IF(AND(M53="Yes",P53>9.99,P53<11.98),468*GD53,IF(AND(M53="Yes",P53=12),604*GD53,""))))) ->  | GF53: =IF(AND(N53>0,N53<4),4,IF(N53>=4,N53,"")) -> 
A54: 2 | L54: =(K54-K51) -> 0 | M54: =IF(AND(P54<12.1,P54>3.9,L54>2.1,D51="Sanitary"), "Yes", "No") -> No | O54: 4 | P54: =IFERROR(INDEX(Database!$E$170:$CR$170,MATCH('Structure Input'!$P$9,Database!$C$170:$CR$170,0), MATCH('Structure Input'!S54,Database!$E$166:$CR$166,0)), "") ->  | U54: =IFERROR(INDEX(Database!$E$168:$CR$168,MATCH('Structure Input'!$U$9,Database!$C$168:$CR$168,0), MATCH('Structure Input'!S54,Database!$E$166:$CR$166,0)), "n/a") -> n/a | V54: =IFERROR(INDEX(Database!$E$167:$CR$167,MATCH('Structure Input'!$V$9,Database!$C$167:$CR$167,0), MATCH('Structure Input'!S54,Database!$E$166:$CR$166,0)), 0) -> 0 | X54: Qty: | Y54: =IF(OR(W54>0,W55>0), 1, "") ->  | AH54: <== Accessory | FR54: Cost: | FS54: =IFERROR(INDEX(Database!$F$152:$JL$152,MATCH('Structure Input'!$FS$9,Database!$C$152:$JL$152,0), MATCH('Structure Input'!W51,Database!$F$150:$JL$150,0)), 0) -> 0 | GB54: =IFERROR(INDEX(Database!$E$263:$AO$263,MATCH('Structure Input'!$GB$9,Database!$C$263:$AO$263,0), MATCH('Structure Input'!GB52,Database!$E$262:$AO$262,0)), 0) -> 0 | GC54: =IFERROR(INDEX(Database!$E$264:$AO$264,MATCH('Structure Input'!$GC$9,Database!$C$264:$AO$264,0), MATCH('Structure Input'!GC52,Database!$E$262:$AO$262,0)), 0) -> 0 | GD54: =IF(AT51="Xypex+MIC", 1.25,1) -> 1 | GE54: =IF(AND(M54="Yes",P54>3.99,P54<5.98),160*GD54,IF(AND(M54="Yes",P54>5.99,P54<7.98),182*GD54,IF(AND(M54="Yes",P54>7.99,P54<9.98),216*GD54,IF(AND(M54="Yes",P54>9.99,P54<11.98),468*GD54,IF(AND(M54="Yes",P54=12),604*GD54,""))))) ->  | GF54: =IF(AND(N54>0,N54<4),4,IF(N54>=4,N54,"")) -> 
A55: 2 | L55: =(K55-K51) -> 0 | M55: =IF(AND(P55<12.1,P55>3.9,L55>2.1,D51="Sanitary"), "Yes", "No") -> No | O55: 5 | P55: =IFERROR(INDEX(Database!$E$170:$CR$170,MATCH('Structure Input'!$P$9,Database!$C$170:$CR$170,0), MATCH('Structure Input'!S55,Database!$E$166:$CR$166,0)), "") ->  | U55: =IFERROR(INDEX(Database!$E$168:$CR$168,MATCH('Structure Input'!$U$9,Database!$C$168:$CR$168,0), MATCH('Structure Input'!S55,Database!$E$166:$CR$166,0)), "n/a") -> n/a | V55: =IFERROR(INDEX(Database!$E$167:$CR$167,MATCH('Structure Input'!$V$9,Database!$C$167:$CR$167,0), MATCH('Structure Input'!S55,Database!$E$166:$CR$166,0)), 0) -> 0 | FR55: Applied Freight: | FS55: =IF(X53="Casting",FZ51*Summary!$AI$10,IF(X53="Hatch",GA51*Summary!$AI$13,0)) -> 0 | GD55: =IF(AT51="Xypex+MIC", 1.25,1) -> 1 | GE55: =IF(AND(M55="Yes",P55>3.99,P55<5.98),160*GD55,IF(AND(M55="Yes",P55>5.99,P55<7.98),182*GD55,IF(AND(M55="Yes",P55>7.99,P55<9.98),216*GD55,IF(AND(M55="Yes",P55>9.99,P55<11.98),468*GD55,IF(AND(M55="Yes",P55=12),604*GD55,""))))) ->  | GF55: =IF(AND(N55>0,N55<4),4,IF(N55>=4,N55,"")) -> 
A56: 2 | L56: =(K56-K51) -> 0 | M56: =IF(AND(P56<12.1,P56>3.9,L56>2.1,D51="Sanitary"), "Yes", "No") -> No | O56: 6 | P56: =IFERROR(INDEX(Database!$E$170:$CR$170,MATCH('Structure Input'!$P$9,Database!$C$170:$CR$170,0), MATCH('Structure Input'!S56,Database!$E$166:$CR$166,0)), "") ->  | U56: =IFERROR(INDEX(Database!$E$168:$CR$168,MATCH('Structure Input'!$U$9,Database!$C$168:$CR$168,0), MATCH('Structure Input'!S56,Database!$E$166:$CR$166,0)), "n/a") -> n/a | V56: =IFERROR(INDEX(Database!$E$167:$CR$167,MATCH('Structure Input'!$V$9,Database!$C$167:$CR$167,0), MATCH('Structure Input'!S56,Database!$E$166:$CR$166,0)), 0) -> 0 | BA56: Exterior Coating | FE56: Exterior | GD56: =IF(AT51="Xypex+MIC", 1.25,1) -> 1 | GE56: =IF(AND(M56="Yes",P56>3.99,P56<5.98),160*GD56,IF(AND(M56="Yes",P56>5.99,P56<7.98),182*GD56,IF(AND(M56="Yes",P56>7.99,P56<9.98),216*GD56,IF(AND(M56="Yes",P56>9.99,P56<11.98),468*GD56,IF(AND(M56="Yes",P56=12),604*GD56,""))))) ->  | GF56: =IF(AND(N56>0,N56<4),4,IF(N56>=4,N56,"")) -> 
A57: 3 | N57: =IF(AND(OR(L58>2.1,L59>2.1,L60>2.1,L61>2.1,L62>2.1), J57>0,D57="Sanitary"), "Yes", IF(AND(OR(L58<2.1,L59<2.1,L60<2.1,L61<2.1,L62<2.1), J57>0,D57="Sanitary"), "No",IF(J57=0, "", ""))) ->  | O57: 1 | P57: =IFERROR(INDEX(Database!$E$170:$CR$170,MATCH('Structure Input'!$P$9,Database!$C$170:$CR$170,0), MATCH('Structure Input'!S57,Database!$E$166:$CR$166,0)), "") ->  | R57: 0 | T57: =IF(ISNUMBER(SEARCH("Grout",S57)),"1",IF(ISNUMBER(SEARCH("Link Seal",S57)),"4",IF(ISNUMBER(SEARCH("Boot",S57)),"2",IF(ISNUMBER(SEARCH("A-Lok",S57)),"3",IF(AND(C57>0,S57=""),"1",""))))) ->  | U57: =IFERROR(INDEX(Database!$E$168:$CR$168,MATCH('Structure Input'!$U$9,Database!$C$168:$CR$168,0), MATCH('Structure Input'!S57,Database!$E$166:$CR$166,0)), "n/a") -> n/a | V57: =IFERROR(INDEX(Database!$E$167:$CR$167,MATCH('Structure Input'!$V$9,Database!$C$167:$CR$167,0), MATCH('Structure Input'!S57,Database!$E$166:$CR$166,0)), 0) -> 0 | W57: =IFERROR(IF(W59>0,W59,IF(W59=0,(INDEX(Database!$E$514:$DF$514,MATCH('Structure Input'!$W$19,Database!$C$514:$DF$514,0), MATCH('Structure Input'!G57,Database!$E$513:$DF$513,0))),"")),"") ->  | X57: =IFERROR(INDEX(Database!$F$151:$JL$151,MATCH('Structure Input'!$X$9,Database!$C$151:$JL$151,0), MATCH('Structure Input'!W57,Database!$F$150:$JL$150,0)), 0) -> 0 | Y57: =IF(OR(W57>"",W59>0), 1, "") ->  | Z57: =IFERROR(INDEX(Database!$I$153:$JL$153,MATCH('Structure Input'!$Z$9,Database!$C$153:$JL$153,0), MATCH('Structure Input'!W57,Database!$I$150:$JL$150,0)), 0) -> 0 | AA57: =IFERROR(INDEX(Database!$F$155:$JL$155,MATCH('Structure Input'!$AA$9,Database!$C$155:$JL$155,0), MATCH('Structure Input'!W57,Database!$F$150:$JL$150,0)), 0) -> 0 | AB57: =IF(AA57="Non-Stock",1*C57*Y57,0) -> 0 | AC57: =IFERROR(INDEX(Database!$I$156:$JL$156,MATCH('Structure Input'!$AC$9,Database!$C$156:$JL$156,0), MATCH('Structure Input'!W57,Database!$I$150:$JL$150,0)), 0) -> 0 | AD57: =IFERROR(INDEX(Database!$I$157:$JL$157,MATCH('Structure Input'!$AD$9,Database!$C$157:$JL$157,0), MATCH('Structure Input'!W57,Database!$I$150:$JL$150,0)), 0) -> 0 | AE57: =IFERROR(INDEX(Database!$I$158:$JL$158,MATCH('Structure Input'!$AE$9,Database!$C$158:$JL$158,0), MATCH('Structure Input'!W57,Database!$I$150:$JL$150,0)), 0) -> 0 | AF57: =IFERROR(INDEX(Database!$I$159:$JL$159,MATCH('Structure Input'!$AF$9,Database!$C$159:$JL$159,0), MATCH('Structure Input'!W57,Database!$I$150:$JL$150,0)), 0) -> 0 | AG57: =IFERROR(INDEX(Database!$I$160:$JL$160,MATCH('Structure Input'!$AG$9,Database!$C$160:$JL$160,0), MATCH('Structure Input'!W57,Database!$I$150:$JL$150,0)), 0) -> 0 | AI57: =IFERROR(INDEX(Database!$E$171:$CR$171,MATCH('Structure Input'!$AI$7,Database!$C$171:$CR$171,0), MATCH('Structure Input'!S57,Database!$E$166:$CR$166,0)),0) -> 0 | AK57: =(J57-K57)+AJ57 -> 0 | AL57: =AK57-AM57 -> 0 | AM57: =IF(AND(AP57>0, AN57="Transition"), AK57-AP57, 0) -> 0 | AN57: =IFERROR(INDEX(Database!$E$141:$P$141,MATCH('Structure Input'!$AN$9,Database!$C$141:$P$141, 0), MATCH('Structure Input'!AR57,Database!$E$132:$P$132,0)), "") -> Top Slab | AO57: =IFERROR(INDEX(Database!$E$140:$P$140,MATCH('Structure Input'!$AO$9,Database!$C$140:$P$140, 0), MATCH('Structure Input'!AR57,Database!$E$132:$P$132,0)), "") -> 0 | AR57: =IF(AR58>0,AR58,IF(AND(AR58=0,AQ57>0),INDEX(Database!$E$13:$BM$13,MATCH('Structure Input'!$AR$9,Database!$C$13:$C$13,0), MATCH('Structure Input'!AQ57,Database!$E$4:$BM$4,0)),"Yes Top")) -> Yes Top | AS57: =IF(AS58>0,AS58,"W/Base") -> W/Base | AT57: =IF(AT58>0,AT58,IF(AND($D57="Storm",AT58=0,$AT$11>0),$AT$11,IF(AND($D57="Sanitary",AT58=0,$AT$12>0),$AT$12,IF(AND($D57="Wet Well",AT58=0,$AT$13>0),$AT$13,IF(AND($D57="Vault",AT58=0,$AT$14>0),$AT$14,IF(AND($D57="Grease Trap",AT58=0,$AT$15>0),$AT$15,IF(AND($D57="Oil Seperator",AT58=0,$AT$15>0),$AT$15,IF(AND($D57="Septic",AT58=0,$AT$16>0),$AT$16,IF(AND($D57="Water/SS ARV",AT58=0,$AT$17>0),$AT$17,"Plain"))))))))) -> Plain | AU57: =IFERROR(IF(AND(OR(AR57="Yes Top",AR57="Trans 48""R W/Top",AR57="Trans 60""R W/Top",AR57="Trans 24""x24"" Riser",AR57="Trans 24""x24"" W/Top",AR57="Trans 24""x30"" Riser",AR57="Trans 24""x30"" W/Top",AR57="Trans 24""x36"" Riser",AR57="Trans 24""x36"" W/Top",AR57="Trans 36""x36"" Riser",AR57="Trans 36""x36"" W/Top"),J57>0,AS57="W/Base"),"No",IF(AND(OR(AR57="Yes Top",AR57="Trans 48""R W/Top",AR57="Trans 60""R W/Top",AR57="Trans 24""x24"" Riser",AR57="Trans 24""x24"" W/Top",AR57="Trans 24""x30"" Riser",AR57="Trans 24""x30"" W/Top",AR57="Trans 24""x36"" Riser",AR57="Trans 24""x36"" W/Top",AR57="Trans 36""x36"" Riser",AR57="Trans 36""x36"" W/Top"),J57>0,AS57="No Base"),"OB",IF(AND(AR57="No Top",J57>0,OR(W57="",W57="No Casting"),AS57="W/Base"),"OT",IF(AND(AR57="No Top",J57>0,W57>0,AS57="W/Base"),"No",IF(AND(AR57="No Top",J57>0,OR(W57="",W57="No Casting"),AS57="No Base"),"OB & OT",IF(AND(AR57="No Top",J57>0,W57>0,AS57="No Base"),"OB","")))))),"") ->  | AV57: =IF(AV58>0,AV58,IF(AND($D57="Storm",AV58=0,$AV$11>0),$AV$11,IF(AND($D57="Sanitary",AV58=0,$AV$12>0),$AV$12,IF(AND($D57="Wet Well",AV58=0,$AV$13>0),$AV$13,IF(AND($D57="Vault",AV58=0,$AV$14>0),$AV$14,IF(AND($D57="Grease Trap",AV58=0,$AV$15>0),$AV$15,IF(AND($D57="Oil Seperator",AV58=0,$AV$15>0),$AV$15,IF(AND($D57="Septic",AV58=0,$AV$16>0),$AV$16,IF(AND($D57="Water/SS ARV",AV58=0,$AV$17>0),$AV$17,""))))))))) ->  | AW57: =IF(AV57="1"" CS-102",1,IF(AV57="1"" CS-102 Dbl",2,IF(AV57="1.25"" CS-102",3,IF(AV57="1.25"" CS-102 Dbl",4,IF(AV57="1"" CS-231",5,IF(AV57="1"" CS-231 Dbl",6,IF(AV57="1.25"" CS-231",7,IF(AV57="1.25"" CS-231 Dbl",8,IF(AV57="3/4"" CS-440",9,IF(AV57="HK TSS Gasket",10,IF(AND(C57>0,AV57=""),"No",""))))))))))) ->  | AX57: =IF(AX58>0,AX58,IF(AND($D57="Storm",AX58=0,$AX$11>0),$AX$11,IF(AND($D57="Sanitary",AX58=0,$AX$12>0),$AX$12,IF(AND($D57="Wet Well",AX58=0,$AX$13>0),$AX$13,IF(AND($D57="Vault",AX58=0,$AX$14>0),$AX$14,IF(AND($D57="Grease Trap",AX58=0,$AX$15>0),$AX$15,IF(AND($D57="Oil Seperator",AX58=0,$AX$15>0),$AX$15,IF(AND($D57="Septic",AX58=0,$AX$16>0),$AX$16,IF(AND($D57="Water/SS ARV",AX58=0,$AX$17>0),$AX$17,""))))))))) ->  | AY57: =IF(AX57="6"" CS-212",1,IF(AX57="12"" CS-212",2,IF(AX57="12"" MacWrap",3,IF(AND(C57>0,AX57=""),"No","")))) ->  | AZ57: =IF(AZ58>0,AZ58,IF(AND($D57="Storm",AZ58=0,$AZ$11>0),$AZ$11,IF(AND($D57="Sanitary",AZ58=0,$AZ$12>0),$AZ$12,IF(AND($D57="Wet Well",AZ58=0,$AZ$13>0),$AZ$13,IF(AND($D57="Vault",AZ58=0,$AZ$14>0),$AZ$14,IF(AND($D57="Grease Trap",AZ58=0,$AZ$15>0),$AZ$15,IF(AND($D57="Oil Seperator",AZ58=0,$AZ$15>0),$AZ$15,IF(AND($D57="Septic",AZ58=0,$AZ$16>0),$AZ$16,IF(AND($D57="Water/SS ARV",AZ58=0,$AZ$17>0),$AZ$17,""))))))))) ->  | BA57: =IF(BA58>0,BA58,IF(AND($D57="Storm",BA58=0,$BA$11>0),$BA$11,IF(AND($D57="Sanitary",BA58=0,$BA$12>0),$BA$12,IF(AND($D57="Wet Well",BA58=0,$BA$13>0),$BA$13,IF(AND($D57="Vault",BA58=0,$BA$14>0),$BA$14,IF(AND($D57="Grease Trap",BA58=0,$BA$15>0),$BA$15,IF(AND($D57="Oil Seperator",BA58=0,$BA$15>0),$BA$15,IF(AND($D57="Septic",BA58=0,$BA$16>0),$BA$16,IF(AND($D57="Water/SS ARV",BA58=0,$BA$17>0),$BA$17,""))))))))) ->  | BB57: =IF(ISNUMBER(SEARCH("CS-55",BA57)),"1",IF(ISNUMBER(SEARCH("Carboline 300M",BA57)),"2",IF(ISNUMBER(SEARCH("Masterseal 610",BA57)),"3",IF(ISNUMBER(SEARCH("HLM 5000",BA57)),"4",IF(AND(C57>0,BA57=""),"No",""))))) ->  | BC57: =IF(AND(BB57="No",BB59="No"),"No",IF(AND(BB57>0,BB59="No"),BB57,IF(AND(BB59>0,BB57="No"),BB59,IF(AND(BB59>0,BB57>0,C57>0),BB57&","&BB59,"")))) ->  | BD57: =IF(BD58>0,BD58,IF(AND($D57="Storm",BD58=0,$BD$11>0),$BD$11,IF(AND($D57="Sanitary",BD58=0,$BD$12>0),$BD$12,""))) ->  | BE57: =IF(BD57="Yes","Yes",IF(BD57="Exclude","Exclude",IF(BD57="No","No",IF(AND(J57>0,BD57=""),"No", "")))) ->  | BF57: =IF(BF58>0,BF58,IF(AND($D57="Storm",BF58=0,$BF$11>0),$BF$11,IF(AND($D57="Sanitary",BF58=0,$BF$12>0),$BF$12,IF(AND($D57="Wet Well",BF58=0,$BF$13>0),$BF$13,IF(AND($D57="Vault",BF58=0,$BF$14>0),$BF$14,IF(AND($D57="Grease Trap",BF58=0,$BF$15>0),$BF$15,IF(AND($D57="Oil Seperator",BF58=0,$BF$15>0),$BF$15,IF(AND($D57="Septic",BF58=0,$BF$16>0),$BF$16,IF(AND($D57="Water/SS ARV",BF58=0,$BF$17>0),$BF$17,""))))))))) ->  | BG57: =IFERROR(INDEX(Database!$G$5:$BJ$5,MATCH('Structure Input'!$BG$9,Database!$C$5:$BJ$5,0), MATCH('Structure Input'!AQ57,Database!$G$4:$BJ$4,0)), 0) -> 0 | BH57: =IFERROR(INDEX(Database!$S$6:$BJ$6,MATCH('Structure Input'!$BH$9,Database!$C$6:$BJ$6,0), MATCH('Structure Input'!AQ57,Database!$S$4:$BJ$4,0)), 0) -> 0 | BI57: =IFERROR(INDEX(Database!$S$7:$BJ$7,MATCH('Structure Input'!$BI$9,Database!$C$7:$BJ$7,0), MATCH('Structure Input'!AQ57,Database!$S$4:$BJ$4,0)), 0) -> 0 | BJ57: =IF(AS57="W/Base",IFERROR(INDEX(Database!$E$8:$AX$8,MATCH('Structure Input'!$BJ$9,Database!$C$8:$AX$8,0),MATCH('Structure Input'!AQ57,Database!$E$4:$AX$4,0)),0),IF(AS57="No Base",0)) -> 0 | BK57: =IF(OR(AN57="Top Slab",AN57="Transition"),IFERROR(INDEX(Database!$E$9:$AX$9,MATCH('Structure Input'!$BK$9,Database!$C$9:$AX$9,0),MATCH('Structure Input'!AQ57,Database!$E$4:$AX$4,0)),0),IF(AN57="No Top",0)) -> 0 | BL57: =IFERROR(INDEX(Database!$E$10:$AX$10,MATCH('Structure Input'!$BL$9,Database!$C$10:$AX$10,0), MATCH('Structure Input'!AQ57,Database!$E$4:$AX$4,0)), 0) -> 0 | BM57: =IFERROR(IF(BF57="Yes",INDEX(Database!$E$33:$AX$33,MATCH('Structure Input'!$BM$9,Database!$C$33:$AX$33,0), MATCH('Structure Input'!AQ57,Database!$E$4:$AX$4,0)), 0), 0) -> 0 | BN57: =IFERROR(INDEX(Database!$E$133:$P$133,MATCH('Structure Input'!$BN$9,Database!$C$133:$P$133,0), MATCH('Structure Input'!AR57,Database!$E$132:$P$132,0)), 0) -> 0 | BO57: =IFERROR(INDEX(Database!$E$134:$P$134,MATCH('Structure Input'!$BO$9,Database!$C$134:$P$134,0), MATCH('Structure Input'!AR57,Database!$E$132:$P$132,0)), 0) -> 0 | BP57: =IFERROR(INDEX(Database!$E$135:$P$135,MATCH('Structure Input'!$BP$9,Database!$C$135:$P$135,0), MATCH('Structure Input'!AR57,Database!$E$132:$P$132,0)), 0) -> 0 | BQ57: =IFERROR(INDEX(Database!$E$136:$P$136,MATCH('Structure Input'!$BQ$9,Database!$C$136:$P$136,0), MATCH('Structure Input'!AR57,Database!$E$132:$P$132,0)), 0) -> 0 | BR57: =IFERROR(INDEX(Database!$E$137:$P$137,MATCH('Structure Input'!$BR$9,Database!$C$137:$P$137,0), MATCH('Structure Input'!AR57,Database!$E$132:$P$132,0)), 0) -> 0 | BS57: =IF(BG57>0,((BG57+(BL57*2))*(22/7))/12,0) -> 0 | BT57: =IF(BH57>0,(((BH57+(BL57*2))*2)+((BI57+(BL57*2))*2))/12,0) -> 0 | BU57: =BS57+BT57 -> 0 | BV57: =IF(BG57>0,(BG57*3.14159)/12,0) -> 0 | BW57: =IF(BH57>0,((BH57*2)+(BI57*2))/12,0) -> 0 | BX57: =BV57+BW57 -> 0 | BY57: =(BG57/2+BL57+BM57)*(BG57/2+BL57+BM57)/144*3.14*BJ57/12 -> 0 | BZ57: =((BG57/2+BL57)*(BG57/2+BL57)-(BG57/2)*(BG57/2))/144*3.14*(AL57-(X57+BK57+AH57-3)/12) -> 0 | CA57: =(BG57/2+BL57)*(BG57/2+BL57)/144*3.14*BK57/12 -> 0 | CB57: =SUM(BY57:CA57) -> 0 | CC57: =((BH57+2*BL57+2*BM57)*(BI57+2*BL57+2*BM57)/144*BJ57/12) -> 0 | CD57: =((BH57+2*BL57)*(BI57+2*BL57)-(BH57*BI57))/144*(AL57-(BK57+X57+AH57-AI57)/12) -> 0 | CE57: =(BH57+2*BL57)*(BI57+2*BL57)/144*BK57/12 -> 0 | CF57: =(CE57+CD57+CC57) -> 0 | CG57: =IF(AO57="Round", ((BN57/2+BR57)*(BN57/2+BR57)-(BN57/2)*(BN57/2))/144*3.14*(AM57-(BQ57-3)/12),IF(AO57="Flat Wall", ((BO57+2*BR57)*(BP57+2*BR57)-(BO57*BP57))/144*(AM57-(BQ57)/12), 0)) -> 0 | CH57: =IF(AO57="Round", ((BN57/2+BR57)*(BN57/2+BR57)/144*3.14*BQ57/12),IF(AO57="Flat Wall", ((BO57+2*BR57)*(BP57+2*BR57)/144*BQ57/12), 0)) -> 0 | CI57: =(CG57+CH57) -> 0 | CJ57: =BG57+BH57+(BL57*2)+(BM57*2) -> 0 | CK57: =BG57+BH57+(BL57*2) -> 0 | CL57: =IFERROR(INDEX(Database!$E$191:$IA$191,MATCH('Structure Input'!$CL$9,Database!$C$191:$IA$191,0), MATCH('Structure Input'!H57,Database!$E$185:$IA$185,0)), 0) -> 0 | CM57: =IF(AND(CJ57>=103,CJ57<150,CL57=0),2,IF(AND(CJ57>=150,CJ57<167,CL57=0),3,IF(AND(CJ57>=168,CL57=0),4,IF(AND(CL57>=103,CL57<150),2,IF(AND(CL57>=150,CL57<167),3,IF(CL57>=168,4,1)))))) -> 1 | CN57: =IF(AND(CK57>=103,CK57<150),2,IF(AND(CK57>=150,CK57<167),3,IF(CK57>=168,4,1))) -> 1 | CO57: =IF(OR(DG57="Yes",DG57="Yes +1 Ld",DG57="Yes +2 Lds",DG57="Yes +3 Lds",DG57="Yes +4 Lds",DG57="Yes +5 Lds"),ROUNDUP((CU57/20),0),CU57/20) -> 0 | CP57: =IF(AND(OR(DG57="Yes",DG57="Yes +1 Ld",DG57="Yes +2 Lds",DG57="Yes +3 Lds",DG57="Yes +4 Lds",DG57="Yes +5 Lds"),CS57=20,CT57>0),ROUNDUP((CV57/20),0),CV57/20)+IF(DG57="Yes +1 Ld",1,IF(DG57="Yes +2 Lds",2,IF(DG57="Yes +3 Lds",3,IF(DG57="Yes +4 Lds",4,IF(DG57="Yes +5 Lds",5,0))))) -> 0.32745 | CQ57: =CO57+CP57 -> 0.32745 | CR57: =CQ57-((CU57/20)+(CV57/20)) -> 0 | CS57: =IF(DJ57<=20,DJ57,20) -> 6.549 | CT57: =(DJ57-CS57) -> 0 | CU57: =IF(DJ57<=20,DJ57,20)*C57 -> 0 | CV57: =(DI57-CU57) -> 6.549 | CW57: =IF(CM57=1,CU57,0)+IF(CN57=1,CV57,0) -> 6.549 | CX57: =IF(CM57=2,CU57,0)+IF(CN57=2,CV57,0) -> 0 | CY57: =IF(CM57=3,CU57,0)+IF(CN57=3,CV57,0) -> 0 | CZ57: =IF(CM57=4,CU57,0)+IF(CN57=4,CV57,0) -> 0 | DA57: =IFERROR(INDEX(Database!$E$187:$IA$187,MATCH('Structure Input'!$DA$7,Database!$C$187:$IA$187,0), MATCH('Structure Input'!H57,Database!$E$185:$IA$185,0)), 0) -> 0 | DC57: =IF(AND(C57>0,DB60>0),"(Item "&A57&" - "&"Structure "&I57&") "&DB60,"") ->  | DE57: =IF(DF57="1 Piece",1,IF(DF57="2 Pieces",2,IF(DF57="3 Pieces",3,IF(DF57="4 Pieces",4,"")))) ->  | DH57: =IF(BG57>0,(CB57+CI57),(CF57+CI57)) -> 0 | DI57: =IF(C57>0,DJ57*C57,DJ57) -> 6.549 | DJ57: =((DH57/13.5)+FJ57/21*148/2000+(GF57*25*22/144*148/2000)+DA57+DK57*148/2000) -> 6.549 | DK57: 88.5 | DL57: 55 | DM57: =AT57 -> Plain | DN57: =IF(AND(DM57="Plain",C57>0),"No",IF(AND(DM57="Xypex",C57>0),2,IF(AND(DM57="MIC",C57>0),3,IF(AND(DM57="Xypex+MIC",C57>0),4,"")))) ->  | DO57: =(AL57) -> 0 | DP57: =IFERROR(INDEX(Database!$E$12:$BM$12,MATCH('Structure Input'!$DP$9,Database!$C$12:$BM$12,0), MATCH('Structure Input'!AQ57,Database!$E$4:$BM$4,0)), 0) -> 0 | DQ57: =IFERROR(IF(AND(DP57="Flat Wall",AS57="W/Base"),(INDEX(Database!$S$14:$AX$14,MATCH('Structure Input'!$DQ$9,Database!$C$14:$AX$14,0),MATCH('Structure Input'!AQ57,Database!$S$4:$AX$4,0))),IF(AND(DP57="Round",DO57>=10),10,IF(AND(DP57="Round",DO57<10,DO57>2),ROUNDDOWN(DO57,0),IF(AND(DP57="Round",DO57<=2),2,0)))),0) -> 0 | DR57: =IFERROR(IF(AND(DM57="Plain",DP57="Round"),INDEX(Database!$G$34:$L$42,MATCH('Structure Input'!DQ57,Database!$C$34:$C$42,0),MATCH('Structure Input'!AQ57,Database!$G$4:$L$4,0)),IF(AND(DM57="Xypex",DP57="Round"),INDEX(Database!$G$57:$L$65,MATCH('Structure Input'!DQ57,Database!$C$57:$C$65,0),MATCH('Structure Input'!AQ57,Database!$G$4:$L$4,0)),IF(AND(DM57="MIC",DP57="Round"),INDEX(Database!$G$80:$L$88,MATCH('Structure Input'!DQ57,Database!$C$80:$C$88,0),MATCH('Structure Input'!AQ57,Database!$G$4:$L$4,0)), IF(AND(DM57="Xypex+MIC", DP57="Round"), INDEX(Database!$G$103:$L$111,MATCH('Structure Input'!DQ57,Database!$C$103:$C$111,0),MATCH('Structure Input'!AQ57,Database!$G$4:$L$4,0)), 0)))), 0) -> 0 | DS57: =IFERROR(IF(AND(AS57="W/Base",DM57="Plain"),(INDEX(Database!$S$15:$BM$15,MATCH('Structure Input'!$DS$9,Database!$C$15:$BM$15,0),MATCH('Structure Input'!AQ57,Database!$S$4:$BM$4,0))),IF(AND(AS57="No Base",DM57="Xypex",DM57="MIC", DM57="Xypex+MIC"),0,0)), 0) -> 0 | DT57: =IFERROR(IF(AND(OR(AR57="Yes Top",AR57="Trans 48""R W/Top",AR57="Trans 60""R W/Top",AR57="Trans 24""x24"" Riser",AR57="Trans 24""x24"" W/Top",AR57="Trans 24""x30"" Riser",AR57="Trans 24""x30"" W/Top",AR57="Trans 24""x36"" Riser",AR57="Trans 24""x36"" W/Top",AR57="Trans 36""x36"" Riser",AR57="Trans 36""x36"" W/Top"),DM57="Plain"),(INDEX(Database!$S$16:$BM$16,MATCH('Structure Input'!$DT$9,Database!$C$16:$BM$16,0),MATCH('Structure Input'!AQ57,Database!$S$4:$BM$4,0))),IF(AND(AR57="No Top",DM57="Xypex",DM57="MIC", DM57="Xypex+MIC"),0,0)), 0) -> 0 | DU57: =IFERROR(IF(DM57="Plain", INDEX(Database!$G$17:$BM$17,MATCH('Structure Input'!$DU$9,Database!$C$17:$BM$17,0), MATCH('Structure Input'!AQ57,Database!$G$4:$BM$4,0)), IF(DM57="Xypex", INDEX(Database!$G$66:$L$66,MATCH('Structure Input'!$DU$9,Database!$C$66:$L$66,0), MATCH('Structure Input'!AQ57,Database!$G$4:$L$4,0)), IF(DM57="MIC", INDEX(Database!$G$89:$L$89,MATCH('Structure Input'!$DU$9,Database!$C$89:$L$89,0), MATCH('Structure Input'!AQ57,Database!$G$4:$L$4,0)), IF(DM57="Xypex+MIC", INDEX(Database!$G$112:$L$112,MATCH('Structure Input'!$DU$9,Database!$C$112:$L$112,0), MATCH('Structure Input'!AQ57,Database!$G$4:$L$4,0)), 0)))), 0) -> 0 | DV57: =IFERROR(IF(DM57="Plain", INDEX(Database!$FI$195:$IA$195,MATCH('Structure Input'!$DV$9,Database!$C$195:$IA$195,0), MATCH('Structure Input'!H57,Database!$FI$185:$IA$185,0)), IF(DM57="Xypex", INDEX(Database!$FI$196:$IA$196,MATCH('Structure Input'!$DV$9,Database!$C$196:$IA$196,0), MATCH('Structure Input'!H57,Database!$FI$185:$IA$185,0)), IF(DM57="MIC", INDEX(Database!$FI$197:$IA$197,MATCH('Structure Input'!$DV$9,Database!$C$197:$IA$197,0), MATCH('Structure Input'!H57,Database!$FI$185:$IA$185,0)), IF(DM57="Xypex+MIC", INDEX(Database!$FI$198:$IA$198,MATCH('Structure Input'!$DV$9,Database!$C$198:$IA$198,0), MATCH('Structure Input'!H57,Database!$FI$185:$IA$185,0)), 0)))), 0) -> 0 | DW57: =IFERROR(INDEX(Database!$E$144:$P$144,MATCH('Structure Input'!$DW$9,Database!$C$144:$P$144,0), MATCH('Structure Input'!AR57,Database!$E$132:$P$132,0)), 0) -> 0 | DX57: =IFERROR(INDEX(Database!$E$143:$P$143,MATCH('Structure Input'!$DX$9,Database!$C$143:$P$143,0), MATCH('Structure Input'!AR57,Database!$E$132:$P$132,0)), 0) -> 0 | DY57: =IFERROR(IF(AND(DM57="Plain",DP57="Round",AS57="No Base"),INDEX(Database!$G$44:$L$44,MATCH($DY$9,Database!$C$44:$C$44,0),MATCH('Structure Input'!AQ57,Database!$G$4:$L$4,0)),IF(AND(DM57="Xypex",DP57="Round",AS57="No Base"),INDEX(Database!$G$67:$L$67,MATCH($DY$9,Database!$C$67:$C$67,0),MATCH('Structure Input'!AQ57,Database!$G$4:$L$4,0)),IF(AND(DM57="MIC",DP57="Round",AS57="No Base"),INDEX(Database!$G$90:$L$90,MATCH($DY$9,Database!$C$90:$C$90,0),MATCH('Structure Input'!AQ57,Database!$G$4:$L$4,0)), IF(AND(DM57="Xypex+MIC", DP57="Round",AS57="No Base"), INDEX(Database!$G$113:$L$113,MATCH($DY$9,Database!$C$113:$C$113,0),MATCH('Structure Input'!AQ57,Database!$G$4:$L$4,0)), 0)))), 0) -> 0 | DZ57: =IFERROR(IF(AND(DM57="Plain",DP57="Round",AR57="No Top"),INDEX(Database!$G$45:$L$45,MATCH($DZ$9,Database!$C$45:$C$45,0),MATCH('Structure Input'!AQ57,Database!$G$4:$L$4,0)),IF(AND(DM57="Xypex",DP57="Round",AR57="No Top"),INDEX(Database!$G$68:$L$68,MATCH($DZ$9,Database!$C$68:$C$68,0),MATCH('Structure Input'!AQ57,Database!$G$4:$L$4,0)),IF(AND(DM57="MIC",DP57="Round",AR57="No Top"),INDEX(Database!$G$91:$L$91,MATCH($DZ$9,Database!$C$91:$C$91,0),MATCH('Structure Input'!AQ57,Database!$G$4:$L$4,0)), IF(AND(DM57="Xypex+MIC", DP57="Round",AR57="No Top"), INDEX(Database!$G$114:$L$114,MATCH($DZ$9,Database!$C$114:$C$114,0),MATCH('Structure Input'!AQ57,Database!$G$4:$L$4,0)), 0)))), 0) -> 0 | EA57: =IF(AND(DP57="Knockout",AK57<12.01),(AK57*12),0) -> 0 | EB57: =IFERROR(IF(AND(AS57="W/Base",DM57="Plain",DP57="Knockout",AK57<12.01),(INDEX(Database!$AY$21:$BJ$21,MATCH('Structure Input'!$EB$9,Database!$C$21:$BJ$21,0),MATCH('Structure Input'!AQ57,Database!$AY$4:$BJ$4,0))),IF(AND(AS57="No Base",DM57="Xypex",DM57="MIC", DM57="Xypex+MIC"),0,0)), 0) -> 0 | EC57: =IFERROR(IF(AND(AS57="W/Base",DM57="Plain",AK57<12.01),(INDEX(Database!$AY$19:$BJ$19,MATCH('Structure Input'!$EC$9,Database!$C$19:$BJ$19,0),MATCH('Structure Input'!AQ57,Database!$AY$4:$BJ$4,0))),IF(AND(AS57="No Base",DM57="Xypex",DM57="MIC", DM57="Xypex+MIC"),0,0)), 0) -> 0 | ED57: =IFERROR(IF(AND(OR(AR57="Yes Top",AR57="Trans. to 48"" Dia.",AR57="Trans. to 60"" Dia.",AR57="Trans. to 24""x24""",AR57="Trans. to 24""x30""",AR57="Trans. to 24""x36""",AR57="Trans. to 36""x36"""),DM57="Plain",DP57="Knockout",AK57<12.01),(INDEX(Database!$AY$24:$BJ$24,MATCH('Structure Input'!$ED$9,Database!$C$24:$BJ$24,0),MATCH('Structure Input'!AQ57,Database!$AY$4:$BJ$4,0))),IF(AND(AR57="No Top",DM57="Xypex",DM57="MIC", DM57="Xypex+MIC"),0,0)), 0) -> 0 | EE57: =IFERROR(IF(AND(OR(AR57="Yes Top",AR57="Trans. to 48"" Dia.",AR57="Trans. to 60"" Dia.",AR57="Trans. to 24""x24""",AR57="Trans. to 24""x30""",AR57="Trans. to 24""x36""",AR57="Trans. to 36""x36"""),DM57="Plain",DP57="Knockout",AK57<12.01),(INDEX(Database!$AY$22:$BJ$22,MATCH('Structure Input'!$EE$9,Database!$C$22:$BJ$22,0),MATCH('Structure Input'!AQ57,Database!$AY$4:$BJ$4,0))),IF(AND(AR57="No Top",DM57="Xypex",DM57="MIC", DM57="Xypex+MIC"),0,0)), 0) -> 0 | EF57: =IF(DP57="Knockout",(EA57-EB57-ED57-X57),0) -> 0 | EG57: =IF(AND(DP57="Knockout",EF57>23.9),24,IF(AND(DP57="Knockout",EF57<23.9,EF57>11.9),12,0)) -> 0 | EH57: =IFERROR(IF(AND(AS57="W/Base",DM57="Plain",AK57<12.01,EG57=12),(INDEX(Database!$AY$25:$BJ$25,MATCH('Structure Input'!$EH$9,Database!$C$25:$BJ$25,0),MATCH('Structure Input'!AQ57,Database!$AY$4:$BJ$4,0))),IF(AND(AS57="W/Base",DM57="Plain",AK57<12.01,EG57=24),(INDEX(Database!$AY$27:$BJ$27,MATCH('Structure Input'!$EH$9,Database!$C$27:$BJ$27,0),MATCH('Structure Input'!AQ57,Database!$AY$4:$BJ$4,0))),IF(AND(AS57="No Base",DM57="Xypex",DM57="MIC", DM57="Xypex+MIC"),0,0))), 0) -> 0 | EI57: =IF(DP57="Knockout",(EA57-EB57-ED57-X57-EG57),0) -> 0 | EJ57: =IF(AND(DP57="Knockout",EI57>23.9),24,IF(AND(DP57="Knockout",EI57<23.9,EI57>11.9),12,0)) -> 0 | EK57: =IFERROR(IF(AND(AS57="W/Base",DM57="Plain",AK57<12.01,EJ57=12),(INDEX(Database!$AY$25:$BJ$25,MATCH('Structure Input'!$EK$9,Database!$C$25:$BJ$25,0),MATCH('Structure Input'!AQ57,Database!$AY$4:$BJ$4,0))),IF(AND(AS57="W/Base",DM57="Plain",AK57<12.01,EJ57=24),(INDEX(Database!$AY$27:$BJ$27,MATCH('Structure Input'!$EK$9,Database!$C$27:$BJ$27,0),MATCH('Structure Input'!AQ57,Database!$AY$4:$BJ$4,0))),IF(AND(AS57="No Base",DM57="Xypex",DM57="MIC", DM57="Xypex+MIC"),0,0))), 0) -> 0 | EL57: =IF(DP57="Knockout",(EA57-EB57-ED57-X57-EG57-EJ57),0) -> 0 | EM57: =IF(AND(DP57="Knockout",EL57>23.9),24,IF(AND(DP57="Knockout",EL57<23.9,EL57>11.9),12,0)) -> 0 | EN57: =IFERROR(IF(AND(AS57="W/Base",DM57="Plain",AK57<12.01,EM57=12),(INDEX(Database!$AY$25:$BJ$25,MATCH('Structure Input'!$EN$9,Database!$C$25:$BJ$25,0),MATCH('Structure Input'!AQ57,Database!$AY$4:$BJ$4,0))),IF(AND(AS57="W/Base",DM57="Plain",AK57<12.01,EM57=24),(INDEX(Database!$AY$27:$BJ$27,MATCH('Structure Input'!$EN$9,Database!$C$27:$BJ$27,0),MATCH('Structure Input'!AQ57,Database!$AY$4:$BJ$4,0))),IF(AND(AS57="No Base",DM57="Xypex",DM57="MIC", DM57="Xypex+MIC"),0,0))), 0) -> 0 | EO57: =IF(DP57="Knockout",(EA57-EB57-ED57-X57-EG57-EJ57-EM57),0) -> 0 | EP57: =IF(AND(DP57="Knockout",EO57>23.9),24,IF(AND(DP57="Knockout",EO57<23.9,EO57>11.9),12,0)) -> 0 | EQ57: =IFERROR(IF(AND(AS57="W/Base",DM57="Plain",AK57<12.01,EP57=12),(INDEX(Database!$AY$25:$BJ$25,MATCH('Structure Input'!$EQ$9,Database!$C$25:$BJ$25,0),MATCH('Structure Input'!AQ57,Database!$AY$4:$BJ$4,0))),IF(AND(AS57="W/Base",DM57="Plain",AK57<12.01,EP57=24),(INDEX(Database!$AY$27:$BJ$27,MATCH('Structure Input'!$EQ$9,Database!$C$27:$BJ$27,0),MATCH('Structure Input'!AQ57,Database!$AY$4:$BJ$4,0))),IF(AND(AS57="No Base",DM57="Xypex",DM57="MIC", DM57="Xypex+MIC"),0,0))), 0) -> 0 | ER57: =IF(DP57="Knockout",(EA57-EB57-ED57-X57-EG57-EJ57-EM57-EP57),0) -> 0 | ES57: =IF(AND(DP57="Knockout",ER57>5.01, ER57<8.1),6,IF(AND(DP57="Knockout",ER57>3.5,ER57<5.01),4,IF(AND(DP57="Knockout",ER57>1.99,ER57<3.49),3,0))) -> 0 | ET57: =IF(ES57=3,50,IF(ES57=4,60,IF(ES57=6,78,0))) -> 0 | EU57: =IF(DP57="Knockout",(EA57-EB57-ED57-X57-EG57-EJ57-EM57-EP57-ES57),0) -> 0 | EV57: =IF(AND(DP57="Knockout",EU57>5.01, EU57<8.1),6,IF(AND(DP57="Knockout",EU57>3.5,EU57<5.01),4,IF(AND(DP57="Knockout",EU57>1.99,EU57<3.49),3,0))) -> 0 | EW57: =IF(EV57=3,50,IF(EV57=4,60,IF(EV57=6,78,0))) -> 0 | EX57: =EU57-EV57 -> 0 | EY57: =EC57+EE57+EH57+EK57+EN57+EQ57+ET57+EW57 -> 0 | EZ57: =IFERROR(INDEX(Database!$E$231:$M$231,MATCH('Structure Input'!$EZ$9,Database!$C$231:$C$231,0),MATCH('Structure Input'!AV57,Database!$E$217:$M$217,0)),0) -> 0 | FA57: =IFERROR(IF(DP57="Round",INDEX(Database!$E$218:$N$230,MATCH('Structure Input'!AQ57,Database!$C$218:$C$232,0),MATCH('Structure Input'!AV57,Database!$E$217:$N$217,0)),IF(DP57="Flat Wall",(EZ57*BU57),0)),0) -> 0 | FB57: =IFERROR(INDEX(Database!$R$242:$R$244,MATCH('Structure Input'!AX57,Database!$C$242:$C$244,0),MATCH('Structure Input'!$FB$9,Database!$R$241:$R$241,0)),0) -> 0 | FC57: =IFERROR(IF(DP57="Round",INDEX(Database!$E$242:$Q$244,MATCH('Structure Input'!AX57,Database!$C$242:$C$244,0),MATCH('Structure Input'!AQ57,Database!$E$241:$Q$241,0)),IF(DP57="Flat Wall",(FB57*BU57),0)),0) -> 0 | FD57: =IF(AND(AZ57="Yes", DP57="Round"),6,IF(AND(AZ57="Yes",DP57="Flat Wall"),18,IF(AND(AZ57="Yes",DP57="Knockout"),6,IF(AND(AZ57="Yes",DP57="Riser"),6,0)))) -> 0 | FE57: =IFERROR(INDEX(Database!$T$203:$T$210,MATCH('Structure Input'!BA57,Database!$C$203:$C$210,0), MATCH('Structure Input'!$FE$9,Database!$T$202:$T$202,0)), 0) -> 0 | FF57: =BU57*FE57 -> 0 | FG57: =BX57*FE59 -> 0 | FH57: =IFERROR(MAX(P57:P62), "") -> 0 | FI57: =IF(AND(FH57>=1,FH57<=8),8,IF(AND(FH57>=8.001,FH57<=10),10,IF(AND(FH57>=10.001,FH57<=12),12,IF(AND(FH57>=12.001,FH57<=15),15,IF(AND(FH57>=15.001,FH57<=18),18,IF(AND(FH57>=18.001,FH57<=24),24,IF(AND(FH57>=24.001,FH57<=30),30,IF(AND(FH57>=30.001,FH57<=36),36,IF(AND(FH57>=36.001,FH57<=42),42,IF(AND(FH57>=42.001,FH57<=48),48,0)))))))))) -> 0 | FJ57: =IFERROR(IF(AND(DM57="Plain",BD57="Yes"),INDEX(Database!$G$47:$I$56,MATCH('Structure Input'!FI57,Database!$C$47:$C$56,0),MATCH('Structure Input'!AQ57,Database!$G$4:$I$4,0)),IF(AND(DM57="Xypex",BD57="Yes"),INDEX(Database!$G$70:$I$79,MATCH('Structure Input'!FI57,Database!$C$70:$C$79,0),MATCH('Structure Input'!AQ57,Database!$G$4:$I$4,0)),IF(AND(DM57="MIC",BD57="Yes"),INDEX(Database!$G$93:$I$102,MATCH('Structure Input'!FI57,Database!$C$93:$C$102,0),MATCH('Structure Input'!AQ57,Database!$G$4:$I$4,0)),IF(AND(DM57="Xypex+MIC",BD57="Yes"),INDEX(Database!$G$116:$I$125,MATCH('Structure Input'!FI57,Database!$C$116:$C$125,0),MATCH('Structure Input'!AQ57,Database!$G$4:$I$4,0)),IF(BD57="",0,0))))),0) -> 0 | FK57: =IFERROR(IF(AND(DM57="Plain",BF57="Yes"),INDEX(Database!$G$46:$AX$46,MATCH('Structure Input'!$FK$9,Database!$C$46:$AX$46,0),MATCH('Structure Input'!AQ57,Database!$G$4:$AX$4,0)),IF(AND(DM57="Xypex",BF57="Yes"),INDEX(Database!$G$69:$L$69,MATCH('Structure Input'!$FK$9,Database!$C$69:$L$69,0),MATCH('Structure Input'!AQ57,Database!$G$4:$L$4,0)),IF(AND(DM57="MIC",BF57="Yes"),INDEX(Database!$G$92:$L$92,MATCH('Structure Input'!$FK$9,Database!$C$92:$L$92,0),MATCH('Structure Input'!AQ57,Database!$G$4:$L$4,0)),IF(AND(DM57="Xypex+MIC",BF57="Yes"),INDEX(Database!$G$115:$L$115,MATCH('Structure Input'!$FK$9,Database!$C$115:$L$115,0),MATCH('Structure Input'!AQ57,Database!$G$4:$L$4,0)),0)))),0) -> 0 | FN57: 300 | FR57: =IFERROR(INDEX(Database!$E$186:$IA$186,MATCH('Structure Input'!$FR$9,Database!$C$186:$IA$186,0), MATCH('Structure Input'!H57,Database!$E$185:$IA$185,0)), 0) -> 0 | FS57: =ROUNDUP((FS59*FS60)+FS61,0) -> 0 | FT57: =IF(X59="Casting",FS57*FX57,0) -> 0 | FU57: =IF(X59="Hatch",FS57*FY57,0) -> 0 | FV57: =IF(X59="Casting",FS60*FX57,0) -> 0 | FW57: =IF(X59="Hatch",FS60*FY57,0) -> 0 | FX57: =IF(X59="Casting",C57*Y57,0) -> 0 | FY57: =IF(X59="Hatch",C57*Y57,0) -> 0 | FZ57: =IF(X59="Casting",FS60/Summary!$AG$10,0) -> 0 | GA57: =IFERROR(IF(X59="Hatch",FS60/Summary!$AG$13,0),0) -> 0 | GB57: =GB59*GB60 -> 0 | GC57: 0 | GF57: =SUM(GF58:GF62) -> 0 | GG57: =IF(AND(BG57>0,BH57=0),BG57&" Dia.",IF(AND(BH57>0,BG57=0),BH57&"x"&BI57, "")) ->  | GH57: =IF(DO57-DQ57>0,(DO57-DQ57)*DU57,0) -> 0 | GI57: =MAX(0,((AM57-(BQ57/12))*DW57)) -> 0 | GJ57: =(FA57*AK57) -> 0 | GK57: =(FC57*AK57) -> 0 | GL57: =(V57+V58+V59+V60+V61+V62) -> 0 | GM57: =(FD57*AK57) -> 0 | GN57: =Summary!$Q$11 -> 1.2 | GO57: =(GJ57+GK57+GL57+GM57)*(GN57) -> 0 | GP57: =SUM(GP58:GP62) -> 0 | GQ57: =(FF57*AK57) -> 0 | GR57: =(FG57*AK57) -> 0 | GS57: =IF(DL57<>"",(DL57*DK57)+(DH57*DL57),0) -> 4867.5 | GT57: =IFERROR(HF57,"") ->  | GU57: =IFERROR(GX57,"") ->  | GV57: =IFERROR(GY57,"") -> 55.05505506 | GW57: =((DR57+DS57+DT57+DV57+DX57-DY57-DZ57+GH57+GI57+FJ57+FN57+FQ57+FR57+GS57)/((100-GZ57)/100)-DR57-DS57-DT57-DV57-DX57+DY57+DZ57-GH57-GI57-FJ57-FN57-FQ57-FR57-GS57)*C57 -> 0 | GX57: =(DR57+DS57+DT57+DV57+DX57-DY57-DZ57+EY57+FJ57+FK57+FL57+FM57+FN57+FO57+FP57+FQ57+FR57+GH57+GI57+GO57+GP57+GQ57+GR57+GS57+HF57)*HG57 ->  | GY57: =((DR57+DS57+DT57+DV57+DX57-DY57-DZ57+GH57+GI57+FQ57+EY57+FJ57+FK57+GP57+FR57+GS57)/DJ57*2/27)*HG57 -> 55.05505506 | GZ57: =(Summary!$AA$9) -> 14.07674269 | HA57: =(IF(DF57="1 Piece",(Summary!$AB$9*0.5),IF(DF57="2 Pieces",(Summary!$AB$9*1),IF(DF57="3 Pieces",(Summary!$AB$9*1.5),IF(DF57="4 Pieces",(Summary!$AB$9*2),0))))) -> 0 | HB57: =CR57*Summary!$AB$9 -> 0 | HC57: =IF(CM57=2,(CO57*Summary!$AB$9*0.25),IF(CM57=3,(CO57*Summary!$AB$9*0.5),IF(CM57=4,(CO57*Summary!$AB$9*0.75),0))) -> 0 | HD57: =IF(CN57=2,(CP57*Summary!$AB$9*0.25),IF(CN57=3,(CP57*Summary!$AB$9*0.5),IF(CN57=4,(CP57*Summary!$AB$9*0.75),0))) -> 0 | HE57: =GW57+HB57+HC57+HD57+(HA57*C57) -> 0 | HF57: =((GW57+HB57+HC57+HD57)/C57)+HA57 ->  | HG57: =IF(D57="Storm",Summary!$Q$2,IF(D57="End Treatment",Summary!$Q$3,IF(D57="Storm WQU",Summary!$Q$4,IF(D57="Sanitary",Summary!$Q$5,IF(D57="Wet Well",Summary!$Q$6,IF(D57="Vault",Summary!$Q$7,IF(OR(D57="Grease Trap",D57="Oil Separator",D57="Septic"),Summary!$Q$8,IF(D57="Water/SS ARV",Summary!$Q$9,IF(D57="Other",Summary!$Q$10,IF(D57="Box Culvert",Summary!$Q$15,IF(D57="UG Detention",Summary!$Q$16,1))))))))))) -> 1 | HH57: =IFERROR(GU57*C57, "") ->  | HI57: =IFERROR((((DR57+DS57+DT57+DV57+DX57-DY57-DZ57+FJ57+FK57+FL57+FM57+FN57+FO57+FQ57+FR57+GH57+GI57+GP57+GS57+HF57)*HG57)*C57), "") ->  | HJ57: =IFERROR((((DR57+DS57+DT57+DV57+DX57-DY57-DZ57+FJ57+FK57+GI57+FL57+FM57+FN57+FO57+FQ57+FR57+GH57+GP57+GS57)*HG57)*C57), "") -> 0
A58: 3 | L58: =(K58-K57) -> 0 | M58: =IF(AND(P58<12.1,P58>3.9,L58>2.1,D57="Sanitary"), "Yes", "No") -> No | O58: 2 | P58: =IFERROR(INDEX(Database!$E$170:$CR$170,MATCH('Structure Input'!$P$9,Database!$C$170:$CR$170,0), MATCH('Structure Input'!S58,Database!$E$166:$CR$166,0)), "") ->  | U58: =IFERROR(INDEX(Database!$E$168:$CR$168,MATCH('Structure Input'!$U$9,Database!$C$168:$CR$168,0), MATCH('Structure Input'!S58,Database!$E$166:$CR$166,0)), "n/a") -> n/a | V58: =IFERROR(INDEX(Database!$E$167:$CR$167,MATCH('Structure Input'!$V$9,Database!$C$167:$CR$167,0), MATCH('Structure Input'!S58,Database!$E$166:$CR$166,0)), 0) -> 0 | AQ58: Overrides: | FE58: Interior | FR58: Designation: | FS58: =IF(OR(X59="Casting",X59="Hatch"),X59,"") ->  | GB58: =IF(OR(W60>0,W61>0),W60&""&W61,"") ->  | GD58: =IF(AT57="Xypex+MIC", 1.25,1) -> 1 | GE58: =IF(AND(M58="Yes",P58>3.99,P58<5.98),160*GD58,IF(AND(M58="Yes",P58>5.99,P58<7.98),182*GD58,IF(AND(M58="Yes",P58>7.99,P58<9.98),216*GD58,IF(AND(M58="Yes",P58>9.99,P58<11.98),468*GD58,IF(AND(M58="Yes",P58=12),604*GD58,""))))) ->  | GF58: =IF(AND(N58>0,N58<4),4,IF(N58>=4,N58,"")) ->  | GP58: =IFERROR(IF(GE58>0,GE58*GF58,""),"") -> 
A59: 3 | L59: =(K59-K57) -> 0 | M59: =IF(AND(P59<12.1,P59>3.9,L59>2.1,D57="Sanitary"), "Yes", "No") -> No | O59: 3 | P59: =IFERROR(INDEX(Database!$E$170:$CR$170,MATCH('Structure Input'!$P$9,Database!$C$170:$CR$170,0), MATCH('Structure Input'!S59,Database!$E$166:$CR$166,0)), "") ->  | U59: =IFERROR(INDEX(Database!$E$168:$CR$168,MATCH('Structure Input'!$U$9,Database!$C$168:$CR$168,0), MATCH('Structure Input'!S59,Database!$E$166:$CR$166,0)), "n/a") -> n/a | V59: =IFERROR(INDEX(Database!$E$167:$CR$167,MATCH('Structure Input'!$V$9,Database!$C$167:$CR$167,0), MATCH('Structure Input'!S59,Database!$E$166:$CR$166,0)), 0) -> 0 | X59: =IFERROR(INDEX(Database!$F$154:$JL$154,MATCH('Structure Input'!FR58,Database!$C$154:$JL$154,0),MATCH('Structure Input'!W57,Database!$F$150:$JL$150,0)),"Type in ""Casting"" or ""Hatch"" here if manually entered") -> Type in "Casting" or "Hatch" here if manually entered | BA59: Interior Coating | BB59: =IF(ISNUMBER(SEARCH("CS-55",BA60)),"5",IF(ISNUMBER(SEARCH("Carboline 300M",BA60)),"6",IF(ISNUMBER(SEARCH("Masterseal 610",BA60)),"7",IF(ISNUMBER(SEARCH("HLM 5000",BA60)),"8",IF(AND(C57>0,BA60=""),"No",""))))) ->  | FE59: =IFERROR(INDEX(Database!$T$203:$T$210,MATCH('Structure Input'!BA60,Database!$C$203:$C$210,0), MATCH('Structure Input'!$FE$9,Database!$T$202:$T$202,0)), 0) -> 0 | FR59: Multiplier: | FS59: =Summary!$Q$12 -> 1.3 | GB59: =Summary!$Q$13 -> 1.25 | GC59: =Summary!$Q$14 -> 1.25 | GD59: =IF(AT57="Xypex+MIC", 1.25,1) -> 1 | GE59: =IF(AND(M59="Yes",P59>3.99,P59<5.98),160*GD59,IF(AND(M59="Yes",P59>5.99,P59<7.98),182*GD59,IF(AND(M59="Yes",P59>7.99,P59<9.98),216*GD59,IF(AND(M59="Yes",P59>9.99,P59<11.98),468*GD59,IF(AND(M59="Yes",P59=12),604*GD59,""))))) ->  | GF59: =IF(AND(N59>0,N59<4),4,IF(N59>=4,N59,"")) -> 
A60: 3 | L60: =(K60-K57) -> 0 | M60: =IF(AND(P60<12.1,P60>3.9,L60>2.1,D57="Sanitary"), "Yes", "No") -> No | O60: 4 | P60: =IFERROR(INDEX(Database!$E$170:$CR$170,MATCH('Structure Input'!$P$9,Database!$C$170:$CR$170,0), MATCH('Structure Input'!S60,Database!$E$166:$CR$166,0)), "") ->  | U60: =IFERROR(INDEX(Database!$E$168:$CR$168,MATCH('Structure Input'!$U$9,Database!$C$168:$CR$168,0), MATCH('Structure Input'!S60,Database!$E$166:$CR$166,0)), "n/a") -> n/a | V60: =IFERROR(INDEX(Database!$E$167:$CR$167,MATCH('Structure Input'!$V$9,Database!$C$167:$CR$167,0), MATCH('Structure Input'!S60,Database!$E$166:$CR$166,0)), 0) -> 0 | X60: Qty: | Y60: =IF(OR(W60>0,W61>0), 1, "") ->  | AH60: <== Accessory | FR60: Cost: | FS60: =IFERROR(INDEX(Database!$F$152:$JL$152,MATCH('Structure Input'!$FS$9,Database!$C$152:$JL$152,0), MATCH('Structure Input'!W57,Database!$F$150:$JL$150,0)), 0) -> 0 | GB60: =IFERROR(INDEX(Database!$E$263:$AO$263,MATCH('Structure Input'!$GB$9,Database!$C$263:$AO$263,0), MATCH('Structure Input'!GB58,Database!$E$262:$AO$262,0)), 0) -> 0 | GC60: =IFERROR(INDEX(Database!$E$264:$AO$264,MATCH('Structure Input'!$GC$9,Database!$C$264:$AO$264,0), MATCH('Structure Input'!GC58,Database!$E$262:$AO$262,0)), 0) -> 0 | GD60: =IF(AT57="Xypex+MIC", 1.25,1) -> 1 | GE60: =IF(AND(M60="Yes",P60>3.99,P60<5.98),160*GD60,IF(AND(M60="Yes",P60>5.99,P60<7.98),182*GD60,IF(AND(M60="Yes",P60>7.99,P60<9.98),216*GD60,IF(AND(M60="Yes",P60>9.99,P60<11.98),468*GD60,IF(AND(M60="Yes",P60=12),604*GD60,""))))) ->  | GF60: =IF(AND(N60>0,N60<4),4,IF(N60>=4,N60,"")) -> 
A61: 3 | L61: =(K61-K57) -> 0 | M61: =IF(AND(P61<12.1,P61>3.9,L61>2.1,D57="Sanitary"), "Yes", "No") -> No | O61: 5 | P61: =IFERROR(INDEX(Database!$E$170:$CR$170,MATCH('Structure Input'!$P$9,Database!$C$170:$CR$170,0), MATCH('Structure Input'!S61,Database!$E$166:$CR$166,0)), "") ->  | U61: =IFERROR(INDEX(Database!$E$168:$CR$168,MATCH('Structure Input'!$U$9,Database!$C$168:$CR$168,0), MATCH('Structure Input'!S61,Database!$E$166:$CR$166,0)), "n/a") -> n/a | V61: =IFERROR(INDEX(Database!$E$167:$CR$167,MATCH('Structure Input'!$V$9,Database!$C$167:$CR$167,0), MATCH('Structure Input'!S61,Database!$E$166:$CR$166,0)), 0) -> 0 | FR61: Applied Freight: | FS61: =IF(X59="Casting",FZ57*Summary!$AI$10,IF(X59="Hatch",GA57*Summary!$AI$13,0)) -> 0 | GD61: =IF(AT57="Xypex+MIC", 1.25,1) -> 1 | GE61: =IF(AND(M61="Yes",P61>3.99,P61<5.98),160*GD61,IF(AND(M61="Yes",P61>5.99,P61<7.98),182*GD61,IF(AND(M61="Yes",P61>7.99,P61<9.98),216*GD61,IF(AND(M61="Yes",P61>9.99,P61<11.98),468*GD61,IF(AND(M61="Yes",P61=12),604*GD61,""))))) ->  | GF61: =IF(AND(N61>0,N61<4),4,IF(N61>=4,N61,"")) -> 
A62: 3 | L62: =(K62-K57) -> 0 | M62: =IF(AND(P62<12.1,P62>3.9,L62>2.1,D57="Sanitary"), "Yes", "No") -> No | O62: 6 | P62: =IFERROR(INDEX(Database!$E$170:$CR$170,MATCH('Structure Input'!$P$9,Database!$C$170:$CR$170,0), MATCH('Structure Input'!S62,Database!$E$166:$CR$166,0)), "") ->  | U62: =IFERROR(INDEX(Database!$E$168:$CR$168,MATCH('Structure Input'!$U$9,Database!$C$168:$CR$168,0), MATCH('Structure Input'!S62,Database!$E$166:$CR$166,0)), "n/a") -> n/a | V62: =IFERROR(INDEX(Database!$E$167:$CR$167,MATCH('Structure Input'!$V$9,Database!$C$167:$CR$167,0), MATCH('Structure Input'!S62,Database!$E$166:$CR$166,0)), 0) -> 0 | BA62: Exterior Coating | FE62: Exterior | GD62: =IF(AT57="Xypex+MIC", 1.25,1) -> 1 | GE62: =IF(AND(M62="Yes",P62>3.99,P62<5.98),160*GD62,IF(AND(M62="Yes",P62>5.99,P62<7.98),182*GD62,IF(AND(M62="Yes",P62>7.99,P62<9.98),216*GD62,IF(AND(M62="Yes",P62>9.99,P62<11.98),468*GD62,IF(AND(M62="Yes",P62=12),604*GD62,""))))) ->  | GF62: =IF(AND(N62>0,N62<4),4,IF(N62>=4,N62,"")) -> 
